Workbook

Sheet Simul_Base
D1: * Class 의 Name 은 Berserker, Archon, DemonHunt, Knight 4가지로 구성되어있다. 레벨에 따라 상위 Class 인 Master 가 있습니다.(레벨 구간별 기본능력수치의 증가량 변화요구)
B2: 클래스 | AC2: 1 | AD2: Berserker | AE2: C:\EG_Berserker.png
B3: =INDEX(AD2:AD10,AC2) -> Berserker | AD3: BskM1 | AE3: C:\EG_Berserker.png
AD4: Archon | AE4: C:\EG_Archon.png
AD5: ArchM1 | AE5: C:\EG_Archon.png
B6: 클래스 | C6: 레벨 | D6: 최대 생명력 | E6: 생명력회복 | F6: 활력도 | G6: 초당평균공격력 | H6: 최소 공격력 | I6: 최대 공격력 | J6: 공격속도 | K6: 치명타 확률 | L6: 치명타 세기 | M6: 치명타저항 | N6: 피해감소 | O6: 방어력 | P6: 회피율 | Q6: 적중도 | R6: 상태이상저항 | S6: 스킬쿨타임감소 | T6: 이동속도 | U6: 신성력 | V6: 1 | AD6: DemonHunter | AE6: C:\EG_Archon.png
B7: Berserker | C7: 1 | D7: 245.2 | E7: 43.187175 | F7: 101.058 | G7: 81.67607235 | H7: 67.7328 | I7: 90.3104 | J7: 967.5 | K7: 10.13 | L7: 2.222 | M7: 0.01936 | N7: 0.68 | O7: 31.85 | P7: 1.0065 | Q7: 100.87 | R7: 2.73 | S7: 0.18 | T7: 200 | U7: 0 | V7: 1.0125 | AD7: DmHM1 | AE7: C:\EG_Archon.png
B8: Berserker | C8: 2 | D8: 264.8 | E8: 44.5137 | F8: 101.352 | G8: 82.53181347 | H8: 68.2656 | I8: 91.0208 | J8: 965 | K8: 10.14 | L8: 2.224 | M8: 0.02112 | N8: 0.72 | O8: 34.3 | P8: 1.007 | Q8: 100.94 | R8: 2.76 | S8: 0.2 | T8: 200 | U8: 0 | V8: 1.025 | AD8: Knight | AE8: C:\EG_Archon.png
B9: Berserker | C9: 3 | D9: 286.8 | E9: 45.859575 | F9: 101.682 | G9: 83.392 | H9: 68.7984 | I9: 91.7312 | J9: 962.5 | K9: 10.15 | L9: 2.226 | M9: 0.02288 | N9: 0.76 | O9: 36.75 | P9: 1.0075 | Q9: 101.01 | R9: 2.79 | S9: 0.22 | T9: 200 | U9: 0 | V9: 1.0375 | AD9: KntM1 | AE9: C:\EG_Archon.png
B10: Berserker | C10: 4 | D10: 311.2 | E10: 47.2248 | F10: 102.048 | G10: 84.25666667 | H10: 69.3312 | I10: 92.4416 | J10: 960 | K10: 10.16 | L10: 2.228 | M10: 0.02464 | N10: 0.8 | O10: 39.2 | P10: 1.008 | Q10: 101.08 | R10: 2.82 | S10: 0.24 | T10: 200 | U10: 0 | V10: 1.05
B11: Berserker | C11: 5 | D11: 338 | E11: 48.609375 | F11: 102.45 | G11: 85.12584856 | H11: 69.864 | I11: 93.152 | J11: 957.5 | K11: 10.17 | L11: 2.23 | M11: 0.0264 | N11: 0.84 | O11: 41.65 | P11: 1.0085 | Q11: 101.15 | R11: 2.85 | S11: 0.26 | T11: 200 | U11: 0 | V11: 1.0625
B12: Berserker | C12: 6 | D12: 367.2 | E12: 50.0133 | F12: 102.888 | G12: 85.99958115 | H12: 70.3968 | I12: 93.8624 | J12: 955 | K12: 10.18 | L12: 2.232 | M12: 0.02816 | N12: 0.88 | O12: 44.1 | P12: 1.009 | Q12: 101.22 | R12: 2.88 | S12: 0.28 | T12: 200 | U12: 0 | V12: 1.075
B13: Berserker | C13: 7 | D13: 398.8 | E13: 51.436575 | F13: 103.362 | G13: 86.87790026 | H13: 70.9296 | I13: 94.5728 | J13: 952.5 | K13: 10.19 | L13: 2.234 | M13: 0.02992 | N13: 0.92 | O13: 46.55 | P13: 1.0095 | Q13: 101.29 | R13: 2.91 | S13: 0.3 | T13: 200 | U13: 0 | V13: 1.0875
B14: Berserker | C14: 8 | D14: 432.8 | E14: 52.8792 | F14: 103.872 | G14: 87.76084211 | H14: 71.4624 | I14: 95.2832 | J14: 950 | K14: 10.2 | L14: 2.236 | M14: 0.03168 | N14: 0.96 | O14: 49 | P14: 1.01 | Q14: 101.36 | R14: 2.94 | S14: 0.32 | T14: 200 | U14: 0 | V14: 1.1
B15: Berserker | C15: 9 | D15: 469.2 | E15: 54.341175 | F15: 104.418 | G15: 88.64844327 | H15: 71.9952 | I15: 95.9936 | J15: 947.5 | K15: 10.21 | L15: 2.238 | M15: 0.03344 | N15: 1 | O15: 51.45 | P15: 1.0105 | Q15: 101.43 | R15: 2.97 | S15: 0.34 | T15: 200 | U15: 0 | V15: 1.1125
B16: Berserker | C16: 10 | D16: 508 | E16: 55.8225 | F16: 105 | G16: 89.54074074 | H16: 72.528 | I16: 96.704 | J16: 945 | K16: 10.22 | L16: 2.24 | M16: 0.0352 | N16: 1.04 | O16: 53.9 | P16: 1.011 | Q16: 101.5 | R16: 3 | S16: 0.36 | T16: 200 | U16: 0 | V16: 1.125
B17: Berserker | C17: 11 | D17: 549.2 | E17: 57.323175 | F17: 105.618 | G17: 90.43777188 | H17: 73.0608 | I17: 97.4144 | J17: 942.5 | K17: 10.23 | L17: 2.242 | M17: 0.03696 | N17: 1.08 | O17: 56.35 | P17: 1.0115 | Q17: 101.57 | R17: 3.03 | S17: 0.38 | T17: 200 | U17: 0 | V17: 1.1375
B18: Berserker | C18: 12 | D18: 592.8 | E18: 58.8432 | F18: 106.272 | G18: 91.33957447 | H18: 73.5936 | I18: 98.1248 | J18: 940 | K18: 10.24 | L18: 2.244 | M18: 0.03872 | N18: 1.12 | O18: 58.8 | P18: 1.012 | Q18: 101.64 | R18: 3.06 | S18: 0.4 | T18: 200 | U18: 0 | V18: 1.15
B19: Berserker | C19: 13 | D19: 638.8 | E19: 60.382575 | F19: 106.962 | G19: 92.24618667 | H19: 74.1264 | I19: 98.8352 | J19: 937.5 | K19: 10.25 | L19: 2.246 | M19: 0.04048 | N19: 1.16 | O19: 61.25 | P19: 1.0125 | Q19: 101.71 | R19: 3.09 | S19: 0.42 | T19: 200 | U19: 0 | V19: 1.1625
B20: Berserker | C20: 14 | D20: 687.2 | E20: 61.9413 | F20: 107.688 | G20: 93.15764706 | H20: 74.6592 | I20: 99.5456 | J20: 935 | K20: 10.26 | L20: 2.248 | M20: 0.04224 | N20: 1.2 | O20: 63.7 | P20: 1.013 | Q20: 101.78 | R20: 3.12 | S20: 0.44 | T20: 200 | U20: 0 | V20: 1.175
B21: Berserker | C21: 15 | D21: 738 | E21: 63.519375 | F21: 108.45 | G21: 94.07399464 | H21: 75.192 | I21: 100.256 | J21: 932.5 | K21: 10.27 | L21: 2.25 | M21: 0.044 | N21: 1.24 | O21: 66.15 | P21: 1.0135 | Q21: 101.85 | R21: 3.15 | S21: 0.46 | T21: 200 | U21: 0 | V21: 1.1875
B22: Berserker | C22: 16 | D22: 791.2 | E22: 65.1168 | F22: 109.248 | G22: 94.99526882 | H22: 75.7248 | I22: 100.9664 | J22: 930 | K22: 10.28 | L22: 2.252 | M22: 0.04576 | N22: 1.28 | O22: 68.6 | P22: 1.014 | Q22: 101.92 | R22: 3.18 | S22: 0.48 | T22: 200 | U22: 0 | V22: 1.2
B23: Berserker | C23: 17 | D23: 846.8 | E23: 66.733575 | F23: 110.082 | G23: 95.92150943 | H23: 76.2576 | I23: 101.6768 | J23: 927.5 | K23: 10.29 | L23: 2.254 | M23: 0.04752 | N23: 1.32 | O23: 71.05 | P23: 1.0145 | Q23: 101.99 | R23: 3.21 | S23: 0.5 | T23: 200 | U23: 0 | V23: 1.2125
B24: Berserker | C24: 18 | D24: 904.8 | E24: 68.3697 | F24: 110.952 | G24: 96.85275676 | H24: 76.7904 | I24: 102.3872 | J24: 925 | K24: 10.3 | L24: 2.256 | M24: 0.04928 | N24: 1.36 | O24: 73.5 | P24: 1.015 | Q24: 102.06 | R24: 3.24 | S24: 0.52 | T24: 200 | U24: 0 | V24: 1.225
B25: Berserker | C25: 19 | D25: 965.2 | E25: 70.025175 | F25: 111.858 | G25: 97.78905149 | H25: 77.3232 | I25: 103.0976 | J25: 922.5 | K25: 10.31 | L25: 2.258 | M25: 0.05104 | N25: 1.4 | O25: 75.95 | P25: 1.0155 | Q25: 102.13 | R25: 3.27 | S25: 0.54 | T25: 200 | U25: 0 | V25: 1.2375
B26: Berserker | C26: 20 | D26: 1028 | E26: 71.7 | F26: 112.8 | G26: 98.73043478 | H26: 77.856 | I26: 103.808 | J26: 920 | K26: 10.32 | L26: 2.26 | M26: 0.0528 | N26: 1.44 | O26: 78.4 | P26: 1.016 | Q26: 102.2 | R26: 3.3 | S26: 0.56 | T26: 200 | U26: 0 | V26: 1.25

Sheet Class_Status
C1: 레벨별 증가량 | W1: 캐릭터 능력 종류 | X1: 영문 | Y1: 값 표시방식 | Z1: 기본자리수 | AA1: 계산형태
B2: Berserk 계열 | N2: 힘 | O2: Strength | W2: 공격력 | X2: Attack Power | Y2: Constant | Z2: 10
A3: 적용레벨 | C3: 힘 | D3: 체력 | E3: 민첩 | F3: 지능 | G3: 지혜 | H3: 증가량 합 | I3: 레벨구간 | P3: 기본 | Q3: 공격력 | S3: 클래스별 공격력으로 전환 | W3: 방어력 | X3: Defense Power | Y3: Constant | Z3: 10
A4: 1~20 | B4: Berserk | C4: 1 | D4: 1 | E4: 0.5 | F4: 0.2 | G4: 0.3 | H4: =SUM(C4:G4) -> 3 | I4: 20 | J4: =H4*I4 -> 60 | Q4: 증가 | R4: 레벨 상승 | S4: 클래스별 상승 | W4: 최대 생명력 | X4: Max HP | Y4: Constant | Z4: 100
A5: 21~50 | B5: BskM1 | C5: 1.4 | D5: 1.6 | E5: 0.6 | F5: 0.2 | G5: 0.2 | H5: =SUM(C5:G5) -> 4 | I5: 30 | J5: =H5*I5 -> 120 | K5: =SUM(J4:J5) -> 180 | R5: 아이템 옵션 | S5: 공격력 증가 | T5: + | W5: 생명력 회복 | X5: HP Regen | Y5: Constant | Z5: 10 | AA5: 1초에 회복하는 생명력의 치유량
A6: 51~100 | B6: BskM2 | C6: 1 | D6: 1 | E6: 1 | F6: 1 | G6: 1 | H6: =SUM(C6:G6) -> 5 | I6: 50 | J6: =H6*I6 -> 250 | K6: 주스탯증가(50회) | R6: 스킬 옵션 | S6: 공격력 증가 | T6: + | W6: 치명타 확률 | X6: Critical Ratio | Y6: Percent
A7: Start | B7: 기본 | C7: 14 | D7: 16 | E7: 6 | F7: 2 | G7: 2 | H7: =SUM(C7:G7) -> 40 | I7: 기본 | J7: =H7 -> 40 | K7: 일반레벨50+심화레벨50 | L7: =J7+K5 -> 220 | N7: 체력 | O7: Vitality | W7: 치명타 피해 | X7: Critical Rate | Y7: Percent
B8: Knight 계열 | P8: 기본 | Q8: 최대 생명력 | W8: 상태이상 저항력 | X8: Condition Regist | Y8: Percent | Z8: 10000 | AA8: 확률(%)
C9: 힘 | D9: 체력 | E9: 민첩 | F9: 지능 | G9: 지혜 | H9: 증가량 합 | I9: 레벨구간 | Q9: 증가 | R9: 레벨 상승 | S9: 클래스별 상승 | W9: 이동속도 | X9: Move Speed | Y9: Constant | Z9: 1000 | AA9: 1초 1M(100=1M)
A10: 1~20 | B10: Knight | C10: 0.3 | D10: 1 | E10: 1 | F10: 0.5 | G10: 0.2 | H10: =SUM(C10:G10) -> 3 | I10: 20 | J10: =H10*I10 -> 60 | R10: 아이템 옵션 | S10: 생명력 증가 | T10: + | W10: 활력 충전 | X10: Stamina Regen | Y10: Constant | Z10: 100 | AA10: 활력게이지(10000)를 1회 채우는 기본값 / 최대 625
A11: 21~50 | B11: KntM1 | C11: 0.4 | D11: 1.2 | E11: 1.5 | F11: 0.6 | G11: 0.3 | H11: =SUM(C11:G11) -> 4 | I11: 30 | J11: =H11*I11 -> 120 | K11: =SUM(J10:J11) -> 180 | S11: 생명력 증가 | T11: % | W11: 충전 증가률 | X11: Stamina Regen Rate | Y11: Percent | Z11: 100 | AA11: 비율(%) | AB11: 1회 공격성공 시 증가비율 / 최대 200% (활력충전도 최대 2배가 최고) -최고 8타에 1회 회피사용가능
A12: 51~100 | B12: KntM2 | C12: 1 | D12: 1 | E12: 1 | F12: 1 | G12: 1 | H12: =SUM(C12:G12) -> 5 | I12: 50 | J12: =H12*I12 -> 250 | K12: 주스탯증가(50회) | R12: 스킬 옵션 | S12: 생명력 증가 | T12: + | W12: 수호력 | X12: GuadianPower | Y12: Percent | Z12: 100 | AA12: 비율(%) | AB12: 최종 데미지 피해 시 적몬스터의 특수한 저항력값에 따른 데미지 비율
A13: Start | B13: 기본 | C13: 4 | D13: 12 | E13: 15 | F13: 6 | G13: 3 | H13: =SUM(C13:G13) -> 40 | I13: 기본 | J13: =H13 -> 40 | K13: 일반레벨50+심화레벨50 | L13: =J13+K11 -> 220 | S13: 생명력 증가 | T13: % | W13: 수호저항력 | X13: DevilPower | Y13: Percent | Z13: 0
B14: Demon Hunter 계열 | P14: 기본 | Q14: 생명력 회복
C15: 힘 | D15: 체력 | E15: 민첩 | F15: 지능 | G15: 지혜 | H15: 증가량 합 | I15: 레벨구간 | Q15: 증가 | R15: 레벨 상승 | S15: 클래스별 상승
A16: 1~20 | B16: DemonHunter | C16: 0.5 | D16: 0.4 | E16: 0.8 | F16: 0.8 | G16: 0.5 | H16: =SUM(C16:G16) -> 3 | I16: 20 | J16: =H16*I16 -> 60 | R16: 아이템 옵션 | S16: 생명력 회복 증가 | T16: % | Z16: Decrease | AA16: Decr
A17: 21~50 | B17: DmHM1 | C17: 0.6 | D17: 0.5 | E17: 1.3 | F17: 1 | G17: 0.6 | H17: =SUM(C17:G17) -> 4 | I17: 30 | J17: =H17*I17 -> 120 | K17: =SUM(J16:J17) -> 180 | R17: 스킬 옵션 | S17: 생명력 회복 증가 | T17: % | Z17: Increase | AA17: Incr
A18: 51~100 | B18: DmHM2 | C18: 1 | D18: 1 | E18: 1 | F18: 1 | G18: 1 | H18: =SUM(C18:G18) -> 5 | I18: 50 | J18: =H18*I18 -> 250 | K18: 주스탯증가(50회) | N18: 민첩 | O18: Agility | W18: 공격력 | X18: AttackPower | Y18: AP
A19: Start | B19: 기본 | C19: 6 | D19: 5 | E19: 13 | F19: 10 | G19: 6 | H19: =SUM(C19:G19) -> 40 | I19: 기본 | J19: =H19 -> 40 | K19: 일반레벨50+심화레벨50 | L19: =J19+K17 -> 220 | P19: 기본 | Q19: 방어력 | W19: 방어력 | X19: DefensePower | Y19: DP
B20: Archon 계열 | Q20: 증가 | R20: 레벨 상승 | S20: 클래스별 상승 | W20: 생명력 | X20: HealthPoint | Y20: Hp
C21: 힘 | D21: 체력 | E21: 민첩 | F21: 지능 | G21: 지혜 | H21: 증가량 합 | I21: 레벨구간 | R21: 아이템 옵션 | S21: 방어력 증가 | T21: + | W21: 생명력회복률 | X21: HealthRegenRate | Y21: HpRgn
A22: 1~20 | B22: Archon | C22: 0.5 | D22: 0.8 | E22: 0.5 | F22: 0.4 | G22: 0.8 | H22: =SUM(C22:G22) -> 3 | I22: 20 | J22: =H22*I22 -> 60 | S22: 방어력 증가 | T22: % | W22: 회피율 | X22: AvoidRate | Y22: Avd
A23: 21~50 | B23: ArchM1 | C23: 0.6 | D23: 1.3 | E23: 0.6 | F23: 0.5 | G23: 1 | H23: =SUM(C23:G23) -> 4 | I23: 30 | J23: =H23*I23 -> 120 | K23: =SUM(J22:J23) -> 180 | R23: 스킬 옵션 | S23: 방어력 증가 | T23: + | W23: 공격속도 | X23: AttackSpeed | Y23: AttkSpd
A24: 51~100 | B24: ArchM2 | C24: 1 | D24: 1 | E24: 1 | F24: 1 | G24: 1 | H24: =SUM(C24:G24) -> 5 | I24: 50 | J24: =H24*I24 -> 250 | K24: 주스탯증가(50회) | S24: 방어력 증가 | T24: % | W24: 치명타확률 | X24: CriticalRate | Y24: Crt
A25: Start | B25: 기본 | C25: 6 | D25: 13 | E25: 6 | F25: 5 | G25: 10 | H25: =SUM(C25:G25) -> 40 | I25: 기본 | J25: =H25 -> 40 | K25: 일반레벨50+심화레벨50 | L25: =J25+K23 -> 220 | Q25: 치명타피해 | W25: 치명타피해 | X25: CriticalMultiple | Y25: CtrMtp
Q26: 증가 | R26: 레벨 상승 | S26: 클래스별 상승 | W26: 스킬쿨타임 감소 | X26: CooltimeDecreaseease | Y26: CltDecr
R27: 아이템 옵션 | S27: 치명타확률증가 | T27: % | W27: 방어감소 | X27: DefenceDecrease | Y27: DefDecr
D28: 기본공격속도 | R28: 스킬 옵션 | S28: 치명타확률증가 | T28: % | W28: 치명타확률감소 | X28: CriticalRateDecrease | Y28: CrtDecr
B29: speed 값 | C29: min | D29: avr | E29: max | N29: 지능 | O29: Inteligence | W29: 치명타피해감소 | X29: CriticalMultDecrease | Y29: CrtMtpDecr
B30: 캐릭터계열 | C30: 2100 | D30: 1200 | E30: 300 | P30: 기본 | Q30: 활력충전도 | W30: 피해감소 | X30: DamageDecrease | Y30: DmgDecr
B31: Berserk | C31: 2 | D31: 1.5 | E31: 1 | F31: =(C31+E31)/2 -> 1.5 | H31: 1: 광전사 (Berserk) | Q31: 증가 | R31: 레벨 상승 | S31: 클래스별 상승 | W31: 상태이상 저항력 | X31: Condition Regist | Y31: ConReg
B32: Archon | C32: 1.82 | D32: 1.32 | E32: 0.82 | F32: =(C32+E32)/2 -> 1.32 | H32: 3: 집정관 (Archon) | R32: 아이템 옵션 | S32: 활력충전도 증가 | T32: + | W32: 이동속도 | X32: Move Speed
B33: D Hunter | C33: 1.66 | D33: 1.16 | E33: 0.66 | F33: =(C33+E33)/2 -> 1.16 | H33: 2: 악마사냥꾼 (DemonHunter) | S33: 활력충전도 증가 | T33: % | W33: 활력 충전 | X33: StaminaCharge | Y33: StaChrg
B34: Knight | C34: 1.5 | D34: 1 | E34: 0.5 | F34: =(C34+E34)/2 -> 1 | H34: 4: 나이트 (Knight) | R34: 스킬 옵션 | S34: 활력충전도 증가 | T34: + | W34: 충전 증가률 | X34: ChargeMultiple | Y34: ChrgMtp
S35: 활력충전도 증가 | T35: % | W35: 수호력 | X35: GuadianPower | Y35: GrdP
P36: 기본 | Q36: 충전비율 | R36: 활력 Full 충전 시 회피 스킬버튼 활성화 / 사용 - 충전 방식: 평타 및 스킬 시전 | W36: 수호저항력 | X36: DevilPower | Y36: DevP
Q37: 증가 | R37: 레벨 상승 | S37: 클래스별 상승
R38: 아이템 옵션 | S38: 충전비율 증가 | T38: %
R39: 스킬 옵션 | S39: 충전비율 증가 | T39: %
N40: 지혜 | O40: Wisdom
P41: 기본 | Q41: 상태 저항
Q42: 증가 | R42: 레벨 상승 | S42: 클래스별 상승
R43: 아이템 옵션 | S43: 상태이상 저항 증가 | T43: +
S44: 상태이상 저항 증가 | T44: %
R45: 스킬 옵션 | S45: 상태이상 저항 증가 | T45: +
S46: 상태이상 저항 증가 | T46: %

Sheet Class_Compare
A1: Berserk | H1: 0.6 | K1: 0.6
A2: 스탯 | B2: 힘 (STR) | D2: 체력 (VIT) | G2: 민첩 (AGIL) | L2: 지능 (INT) | M2: 지혜 (WIT)
A4: 파라미타 | B4: 공격력 | D4: 생명력 | E4: 생명력회복 | G4: 공격속도 | H4: 방어력 | I4: 회피 | J4: 적중도 | K4: 치명확률 | L4: 치명타 세기 | M4: 상태이상 저항 | N4: 재사용 감소 | O4: 활력 충전도
B6: min | C6: max
A7: Berserk | B7: 0.6 | C7: 0.8 | D7: 1 | E7: 0.6 | F7: 0 | G7: 1 | H7: 0.7 | I7: 1 | J7: 1 | K7: 0.5 | L7: 0.2 | M7: 0.2 | N7: 0.2 | O7: 0.2 | P7: 1~20증가비합 | Q7: =SUM(B7:O7) -> 8
A8: BskM1 | B8: 0.8 | C8: 1.1 | D8: 1.2 | E8: 0.8 | F8: 0 | G8: 1 | H8: 0.9 | I8: 1.1 | J8: 1 | K8: 0.7 | L8: 0.4 | M8: 0.3 | N8: 0.3 | O8: 0.4 | P8: 21~50증가비합 | Q8: =SUM(B8:O8) -> 10
A9: BskM2 | B9: 0.8 | C9: 1.1 | D9: 1.2 | E9: 0.8 | F9: 0 | G9: 1 | H9: 0.9 | I9: 1.1 | J9: 1 | K9: 0.7 | L9: 0.4 | M9: 0.3 | N9: 0.3 | O9: 0.4 | Q9: 10
B10: 14 | D10: 16 | G10: 6 | L10: 2 | M10: 2 | P10: 기본스탯합 | Q10: 40
A11: Knight | H11: 0.6 | K11: 0.6
A12: 스탯 | B12: 힘 (STR) | D12: 체력 (VIT) | G12: 민첩 (AGIL) | L12: 지능 (INT) | M12: 지혜 (WIT)
A14: 파라미타 | B14: 공격력 | D14: 생명력 | E14: 생명력회복 | G14: 공격속도 | H14: 방어력 | I14: 회피 | J14: 적중도 | K14: 치명확률 | L14: 치명타 세기 | M14: 상태이상 저항 | N14: 재사용 감소 | O14: 활력 충전도
B16: min | C16: max
A17: Knight | B17: 0.3 | C17: 0.3 | D17: 0.6 | E17: 0.6 | F17: 0 | G17: 1 | H17: 0.9 | I17: 1 | J17: 1 | K17: 0.8 | L17: 0.6 | M17: 0.3 | N17: 0.3 | O17: 0.3 | P17: 1~20증가비합 | Q17: =SUM(B17:O17) -> 8
A18: KntM1 | B18: 0.5 | C18: 0.6 | D18: 0.8 | E18: 0.8 | F18: 0 | G18: 1 | H18: 1.1 | I18: 1.1 | J18: 1 | K18: 1 | L18: 0.8 | M18: 0.4 | N18: 0.4 | O18: 0.5 | P18: 21~50증가비합 | Q18: =SUM(B18:O18) -> 10
A19: KntM2 | B19: 0.5 | C19: 0.6 | D19: 0.8 | E19: 0.8 | F19: 0 | G19: 1 | H19: 1.1 | I19: 1.1 | J19: 1 | K19: 1 | L19: 0.8 | M19: 0.4 | N19: 0.4 | O19: 0.5 | Q19: 10
B20: 4 | D20: 12 | G20: 15 | L20: 6 | M20: 3 | P20: 기본스탯합 | Q20: 40
A21: D Hunter
A22: 스탯 | B22: 힘 (STR) | D22: 체력 (VIT) | G22: 민첩 (AGIL) | L22: 지능 | M22: 지혜 (WIT)
L23: (INT)
A24: 파라미타 | B24: 근접공격력 | D24: 생명력 | E24: 생명력회복 | G24: 공격속도 | H24: 방어력 | I24: 회피 | J24: 적중도 | K24: 치명확률 | L24: 치명타 세기 | M24: 상태이상 저항 | N24: 재사용 감소 | O24: 활력 충전도
B26: min | C26: max
A27: DemonHunter | B27: 0.2 | C27: 0.4 | D27: 0.4 | E27: 0.1 | F27: 0 | G27: 1 | H27: 0.6 | I27: 1 | J27: 1 | K27: 0.7 | L27: 1 | M27: 0.6 | N27: 0.5 | O27: 0.5 | P27: 1~20증가비합 | Q27: =SUM(B27:O27) -> 8
A28: DmHM1 | B28: 0.4 | C28: 0.7 | D28: 0.6 | E28: 0.3 | F28: 0 | G28: 1 | H28: 0.8 | I28: 1.1 | J28: 1 | K28: 0.9 | L28: 1.2 | M28: 0.8 | N28: 0.6 | O28: 0.6 | P28: 21~50증가비합 | Q28: =SUM(B28:O28) -> 10
A29: DmHM2 | B29: 0.4 | C29: 0.7 | D29: 0.6 | E29: 0.3 | F29: 0 | G29: 1 | H29: 0.8 | I29: 1.1 | J29: 1 | K29: 0.9 | L29: 1.2 | M29: 0.8 | N29: 0.6 | O29: 0.6 | Q29: 10
B30: 6 | D30: 5 | G30: 13 | L30: 10 | M30: 6 | P30: 기본스탯합 | Q30: 40
A31: Archon
A32: 스탯 | B32: 힘 (STR) | D32: 체력 (VIT) | G32: 민첩 (AGIL) | L32: 지능 (INT) | M32: 지혜 (WIT)
A34: 파라미타 | B34: 근접공격력 | D34: 생명력 | E34: 생명력회복 | G34: 공격속도 | H34: 방어력 | I34: 회피 | J34: 적중도 | K34: 치명확률 | L34: 치명타 세기 | M34: 상태이상 저항 | N34: 재사용 감소 | O34: 활력 충전도
B36: min | C36: max
A37: Archon | B37: 0.2 | C37: 0.4 | D37: 0.9 | E37: 0.4 | F37: 0 | G37: 1 | H37: 0.3 | I37: 1 | J37: 1 | K37: 0.3 | L37: 0.5 | M37: 0.8 | N37: 0.2 | O37: 1 | P37: 1~20증가비합 | Q37: =SUM(B37:O37) -> 8
A38: ArchM1 | B38: 0.4 | C38: 0.7 | D38: 1.1 | E38: 0.6 | F38: 0 | G38: 1 | H38: 0.5 | I38: 1.1 | J38: 1 | K38: 0.5 | L38: 0.7 | M38: 0.9 | N38: 0.3 | O38: 1.2 | P38: 21~50증가비합 | Q38: =SUM(B38:O38) -> 10
A39: ArchM2 | B39: 0.4 | C39: 0.7 | D39: 1.1 | E39: 0.6 | F39: 0 | G39: 1 | H39: 0.5 | I39: 1.1 | J39: 1 | K39: 0.5 | L39: 0.7 | M39: 0.9 | N39: 0.3 | O39: 1.2 | Q39: 10
B40: 6 | D40: 13 | G40: 6 | L40: 5 | M40: 10 | P40: 기본스탯합 | Q40: 40
A41: 몬스터 기본
A42: 스탯 | B42: 힘 (STR) | D42: 체력 (VIT) | G42: 민첩 (AGIL) | L42: 지능 (INT) | M42: 지혜 (WIT)
A44: 파라미타 | B44: 근접공격력 | D44: 생명력 | E44: 생명력회복 | G44: 공격속도 | H44: 방어력 | I44: 회피 | J44: 적중도 | K44: 치명확률 | L44: 치명피해 | M44: 상태이상 저항 | N44: 재사용 감소 | O44: 활력 충전도
B46: min | C46: max
A47: 초보몬스터 | B47: 0.3 | C47: 0.7 | D47: 1 | E47: 0.2 | F47: 0 | G47: 1.8 | H47: 0.5 | I47: 1 | J47: 1 | K47: 0.1 | L47: 0.4 | M47: 1 | N47: 0 | O47: 0 | Q47: =SUM(B47:O47) -> 8
A48: 전사형몬스터 | B48: 1 | C48: 1.5 | D48: 2 | E48: 0.2 | F48: 0 | G48: 2.1 | H48: 1.5 | I48: 1.1 | J48: 1 | K48: 0.1 | L48: 0.5 | M48: 1 | N48: 0 | O48: 0 | Q48: =SUM(B48:O48) -> 12
A49: 위자드형몬스터 | B49: 1 | C49: 2 | D49: 1 | E49: 0.2 | F49: 0 | G49: 2.1 | H49: 0.5 | I49: 1.1 | J49: 1 | K49: 0.1 | L49: 1.5 | M49: 1.5 | N49: 0 | O49: 0 | Q49: 12
B50: 10 | D50: 10 | G50: 6 | L50: 4 | M50: 10 | Q50: 40

Sheet Prime_Parameters
B2: 성장 속성 종류 | C2: Full Name | D2: 속성표기 | E2: 설명 / 관계
B3: 클래스 레벨 | C3: Class Level | D3: ClsLv | E3: 현재 캐릭터의 클래스 일반 성장 레벨
E4: 현재 4개의 클래스가 존재하며, 각각의 클래스 레벨은 개별 적용이다.
E5: 최대 레벨 50
B6: 현재 일반 경험치 | C6: Class Current Experience | D6: cExp | E6: 현재 캐릭터의 클래스 경험치
E7: 일반 경험치: Exp
B8: 총 누적 일반 경험치 | C8: Class Total Experience | D8: tExp | E8: 해당 캐릭터의 클래스가 획득한 총 누적 경험치
B9: 수호자 레벨 | C9: Guardian Level | D9: GrdLv | E9: 현재 계정의 수호자 레벨
E10: 클래스에 관계없이 수호자 레벨은 계정에 공통 적용이다.
E11: 최대 레벨 2000
B12: 현재 수호자 경험치 | C12: Guardian Current Experience | D12: cGExp | E12: 현재 계정이 획득한 수호자 경험치
E13: 수호자 경험치: GExp
B14: 총 누적 수호자 경험치 | C14: Guardian Total Experience | D14: tGExp | E14: 현재 계정이 획득한 총 수호자 누적 경험치
B15: 획득 경험치 증가 | C15: Exp_Mult | D15: Exp_Mult | E15: 현재 경험치 Exp 에 대한 증가관련 옵션 형태.
E16: 아이템/스킬에 의해 추가되는 경험치: Exp_Mult
B18: 기본 속성 종류 | C18: Full Name | D18: 속성 표기 | E18: 설명 / 관계
B19: 힘 | C19: Strength | D19: STR | E19: 기본 최소, 최대 공격력에 영향(60%)
E20: 치명타 저항
B21: 체력 | C21: Vitality | D21: VIT | E21: 최대 생명력, 생명력 회복, 피해감소
B22: 민첩 | C22: Agility | D22: Agl | E22: 기본 최소, 최대 공격력에 영향(20%)
E23: 공격속도, 방어력, 치명타 확률, 회피율, 적중도
B24: 지능 | C24: Inteligence | D24: INT | E24: 기본 최소, 최대 공격력에 영향(20%)
E25: 치명타 세기, 적중도, 스킬 재사용 시간 감소
B26: 지혜 | C26: Wisdom | D26: MEN | E26: 생명력회복, 활력도, 치명타 세기, 상태이상 저항력, 치명타 저항
B28: 전투 속성 종류 | C28: Full Name | D28: 속성 표기 | E28: 설명 / 관계 / 수식
B29: 전투력 | C29: BattlePower | D29: BtlPow | E29: 공격력, 방어력, 생명력을 전투수치로 환산한 값. (정수 값)
E30: = Btl_AttkPow + Btl_DfsPow + Btl_Hp = 공격력전투비중 + 방어력전투비중 + 생명력전투비중
B31: 공격력 전투 비중 | C31: Battle Attack Power | D31: Btl_AttkPow | E31: 현재 캐릭터의 종합 공격력에 대한 전투력 환산 비중.
E32: = 0.75 * AttkPow
B33: 방어력 전투 비중 | C33: Battle Defense Power | D33: Btl_DfsPow | E33: 현재 캐릭터의 종합 방어력에 대한 전투력 환산 비중
E34: = 0.2 * DfsPow
B35: 생명력 전투 비중 | C35: Battle Health Point | D35: Btl_Hp | E35: 현재 캐릭터의 종합 생명력에 대한 전투력 환산 비중
E36: = 0.05 * HP
B37: 공격력 | C37: AttackPower | D37: AttkPow | E37: 현재 캐릭터의 종합 공격력. (정수 값)
E38: = ( AttkPow_Base + sum [ AttkPow_Constant ] ) * (1 + ( sum [ AttkPow_Percent / 100 ) )
B39: 기본 (랜덤)공격력 | C39: Base Attack Power | D39: AttkPow_Base | E39: 클래스 별 최소, 최대 공격력의 랜덤 값.
E40: = Randbetween ( Min_AttkPow , Max_AttkPow )
B41: 최소 공격력 | C41: Minimum Attack Power | D41: AttkPow_Min | E41: 클래스 최소 공격력 [각 기본속성(Status)는 클래스와 레벨에 따라 변화된 수치 ]
E42: = 최소공격력가중치 * (100+1.2 * ( 0.6 * STR + 0.2 * AGL + 0.2 * WIS ))
B43: 최대 공격력 | C43: Maximum Attack Power | D43: AttkPow_Max | E43: 클래스 최대 공격력 [각 기본속성(Status)는 클래스와 레벨에 따라 변화된 수치 ]
E44: = 최대공격력 가중치 * (100+1.2 * ( 0.6 * STR + 0.2 * AGL + 0.2 * WIS ))
B45: 무기 공격력 | C45: Item Attack Power | D45: AttkPow_ Constant | E45: 클래스 무기의 공격력
E46: 무기 착용 시 적용됨.
B47: 공격력 상수”+- N” | C47: Attack Power Constant | D47: AttkPow_ Constant | E47: 아이템 또는 스킬 등의 공격력 정수(상수) 가감 속성.
E48: 아이템 착용 또는 스킬 사용/학습 시 적용.
B49: 공격력 비율”+- n%” | C49: Attack Power Percent | D49: AttkPow_ Percent | E49: 아이템 또는 스킬 등의 공격력 비율 가감 속성
E50: 아이템 착용 또는 스킬 사용/학습 시 적용.
B51: 공격 속도 | C51: Attack Speed | D51: AttkSpd | E51: 캐릭터의 공격 속도: 기본 공격속도에 대한 속성 적용으로 환산되는 값. (정수 값)
E52: = Max [ (AttkSpd_Base * (1 + sum [ AttkSpd_Percent ] /100)) , 3 ]
E53: IF ( sum [ AttkSpd_Percent ] >0.3, sum [ AttkSpd_Percent ], 0 .3)
E54: 공격속도 가감 비율에 의한 합산 값이 0.3보다 작으면 0.3 (최소 공격속도) 를 보장한다.
E55: 공격속도 가감 비율에 의한 합산 값이 3 (3배속) 보다 크면 3 (최대 공격속도) 를 제한한다.
B56: 기본 공격속도 | C56: Base Attack Speed | D56: AttkSpd_Base | E56: 클래스 기본 공격속도 [각 기본속성(Status)는 클래스와 레벨에 따라 변화된 수치 ]
E57: = ( 공격속도가중치 * 1000) - ( AGL * 5 )
E58: 공격속도가중치는 클래스 1초(1000) 공통.
B59: 공격속도 비율”+- n%” | C59: Attack Speed Percent | D59: AttkSpd_Percent | E59: 아이템 또는 스킬 등의 공격속도 비율 가감 속성
E60: 아이템 착용 또는 스킬 사용/학습 시 적용.
E61: 공격속도 비율 감소는 둔화 계열 속성으로 처리
B62: 방어력 | C62: DefensePower | D62: DfsPow | E62: 캐릭터의 종합 방어력. (정수 값)
E63: = (DfsPow_Base + sum [ DfsPow_Constant ] ) * (1 + ( sum [ DfsPow_Percent ] / 100 ) )
B64: 기본 방어력 | C64: Base Defense Power | D64: DfsPow_Base | E64: 캐릭터 별 방어력.
E65: = 방어력가중치 * (0.2 *( AGL * 35) )
B66: 방어구 방어력 | C66: Item Defense Power | D66: DfsPow_Constant | E66: 클래스 방어구의 방어력 . 최종 방어력은 부위별 합산 형태임을 유의.
E67: 방어구 착용 시 적용됨. (방어구 파츠: 투구, 상의, 하의, 장갑, 신발)
B68: 방어력 상수”+- N” | C68: Defense Power Constant | D68: DfsPow_Constant | E68: 아이템 또는 스킬 등의 방어력 정수(상수) 가감 속성.
E69: 아이템 착용 또는 스킬 사용/학습 시 적용.
E70: 방어력 상수 감소(음수)는 없음. 대응 값으로 피해감소 활용.
B71: 방어력 비율”+- n%” | C71: Defense Power Percent | D71: DfsPow_Percent | E71: 아이템 또는 스킬 등의 방어력 비율 가감 속성
E72: 아이템 착용 또는 스킬 사용/학습 시 적용.
E73: 방어력 비율 감소(음수)는 없음. 대응 값으로 피해감소 활용.
B74: 최대 생명력 | C74: Health Point | D74: MaxHP | E74: 캐릭터의 생명을 표시하는 지수의 최대량 (정수 값)
E75: 생명력이 “0” 값일 경우 캐릭터 상태 “사망”.
E76: = ( HP_Base + sum [ HP_Constant ] ) * (1 + ( sum [ HP_Percent ] / 100 ) )
B77: 생명력 (현재) | C77: HP_Current | D77: HP_Current | E77: 캐릭터의 생명을 표시하는 수치의 현재 량
B78: 기본 생명력 | C78: Base Health Point | D78: HP_Base | E78: 캐릭터의 기본 생명력
E79: =(Level^2*0.7)+ VIT * ( VIT * 생명력가중치 )/2+100
B80: 목걸이 생명력 | C80: Item HP | D80: HP _Constant | E80: 아이템 목걸이의 생명력 .
E81: 목걸이 착용 시 적용됨.
B82: 생명력 상수”+- N” | C82: Health Point Constant | D82: HP_Constant | E82: 아이템 또는 스킬 등의 생명력 정수(상수) 가감 속성.
E83: 아이템 착용 또는 스킬 사용/학습 시 적용.
E84: 생명력 상수 감소(음수)는 없음.
B85: 생명력 비율”+- n%” | C85: Health Point Percent | D85: HP_Percent | E85: 아이템 또는 스킬 등의 생명력 비율 가감 속성
E86: 아이템 착용 또는 스킬 사용/학습 시 적용.
E87: 생명력 비율 감소(음수)는 없음.
B88: 생명력 회복(률) | C88: Health Point Regeneration | D88: HPRgn | E88: 캐릭터가 1초당 회복하는 생명력. (정수 값)
E89: = ( HpRgn_Base ) * (1 + ( sum [ HpRgn_Percent ] / 100 ) )
E90: 마을에서는 회복처리를 하지 않는다.
B91: 기본 생명력 회복 | C91: Base Health Point Regeneration | D91: HpRgn_Base | E91: 캐릭터의 기본 생명력 회복량
E92: =( 1+0.05 * (Level/4) )* { 생명력가중치 * [ 50 + 1.5 * ( 0.8*VIT + 0.2*WIS ) ] }
B93: 생명력회복비율"+- n%" | C93: Health Regeneration Percent | D93: HpRgn_Percent | E93: 아이템 또는 스킬 등의 생명력 회복 비율 가감 속성
E94: 아이템 착용 또는 스킬 사용/학습 시 적용.
E95: 생명력 회복 비율 감소(음수)는 없음. 도트 계열 속성으로 처리.
B96: 치명타 확률 | C96: Critical Rate | D96: CrtRt | E96: 캐릭터가 매 공격할 때마다 치명타 데미지로 환산될 확률. (백분율 값)
B97: Critical Rate | E97: = CrtRt_Base * ( 1 + ( sum [ CrtRt_Percent ] / 100 ) )
E98: IF ( sum [ CrtRt_Percent ] >0, sum [ CrtRt_Percent ], 0 )
E99: IF ( CrtRt <=100, sum [ CrtRt_Percent ], 100) : 치명타 확률이 100이상이면 100으로 제한한다.
B100: 기본 치명타 확률 | C100: Base Critical Rate | D100: CrtRt _Base | E100: 캐릭터의 기본 치명타 확률.
E101: =(치명타확률가중치 * 1000 + AGL )/50
B102: 치명타 확률 비율"+- n%" | C102: Critical Rate Percent | D102: CrtRt_Percent | E102: 아이템 또는 스킬 등의 치명타 확률 비율 가감 속성
E103: 아이템 착용 또는 스킬 사용/학습 시 적용.
B104: 치명타 세기 | C104: Critical Power | D104: CrtPow | E104: 캐릭터가 매 공격할 때마다 치명타 데미지 수치. (정수 값)
E105: = CtrPow_Base * (1 + ( sum [ CtrPow_Percent ] / 100 ) ) – CrtPowDecr
E106: IF ( CtrPow >=1, CtrPow, 1 )
B107: 기본 치명타 세기 | C107: Base Critical Power | D107: CtrPow_Base | E107: 캐릭터의 기본 치명타 세기
E108: = 2 + (치명타세기가중치 ) + ( INT / 100)
B109: 치명타세기비율"+- n%" | C109: Critical Power Percent | D109: CtrPow_Percent | E109: 아이템 또는 스킬 등의 치명타 세기 비율 가감 속성
E110: 아이템 착용 또는 스킬 사용/학습 시 적용.
E111: 치명타 세기 비율 감소(음수)없음. 대응 값으로 치명타 저항 속성
B112: 치명타 저항 | C112: Critical Power Decrease | D112: CrtPowDecr | E112: 방어 시 공격자의 치명타 세기를 감소시키는 수치. (정수 값)
E113: = CrtPowDecr_Base * (1 + ( sum [ CrtPowDecr_Percent ] / 100 ) )
B114: 기본 치명타 저항 | C114: Base Critical Power Decrease | D114: CrtPowDecr_Base | E114: 캐릭터의 기본 치명타 저항
E115: =( (0.2 * STR) + (0.8 * WIS ) ) /250
B116: 치명타저항비율"+- n%" | C116: Critical Power Decrease Percent | D116: CrtPowDecr_Percent | E116: 아이템 또는 스킬 등의 치명타 저항 비율 가감 속성
E117: 아이템 착용 또는 스킬 사용/학습 시 적용.
E118: 치명타 저항 비율 감소(음수)없음. 대응 값으로 치명타 세기 속성
B119: 피해감소 | C119: Damage Decrease | D119: DmgDecr | E119: 공격자로서 상대방에게 주는 피해인 데미지에 대한 감소되는 비율을 나타내는 수치.
E120: = DmgDecr_Base * ( 1 + ( sum [ DmgDecr_Percent ] / 100 ) )
B121: 기본 피해감소 | C121: Base Damage Decrease | D121: DmgDecr_Base | E121: 캐릭터의 기본 피해감소 능력치
E122: =(VIT /25)
B123: 피해감소비율"+- n%" | C123: Damage Decrease Percent | D123: DmgDecr_Percent | E123: 아이템 또는 스킬 등의 피해감소 비율 가감 속성
E124: 아이템 착용 또는 스킬 사용/학습 시 적용.
E125: 피해감소 비율 감소(음수)없음.
B126: 활력(충전)도 | C126: Stamina Charge | D126: StmChrg | E126: 캐릭터의 특수한 회피 스킬을 사용할 수 있는 조건인 스테미나(활력)을 채워주는 능력 수치.
E127: 스테미나를 최대 충전할 경우에만 해당 회피 스킬을 사용할 수 있다.
E128: = StmChrg_Base * (1 + ( sum [ StmChrg_Percent ] / 100 ) )
E129: IF ( StmChrg <=10000, StmChrg, 10000), 활력(충전)도는 10000을 초과면 10000으로 제한한다.
B130: 기본 활력도 | C130: Base Stamina Charge | D130: StmChrg_Base | E130: 캐릭터의 기본 활력 충전 능력치
E131: = WIS * (WIS * 활력도가중치 )+100
B132: 활력도비율"+- n%" | C132: Stamina Charge Percent | D132: StmChrg_Percent | E132: 아이템 또는 스킬 등의 활력도 비율 가감 속성
E133: 아이템 착용 또는 스킬 사용/학습 시 적용.
E134: 활력도비율 감소(음수)없음.
B135: 회피율 | C135: Avoid Rate | D135: AvdRt | E135: 캐릭터가 상대방의 적중을 회피할 수 있는 확률. 상대적인 값인 적중도와 관계되어 공격성공 판정에 활용.
B136: Avoid Rate | E136: = AvdRt_Base * (1 + ( sum [ AvdRt_Percent ] / 100 ) )
B137: 기본 회피율 | C137: Base Avoid Rate | D137: AvdRt_Base | E137: 캐릭터의 기본 회피율 능력치
E138: = [ ( 회피율가중치 * 1000 ) + AGL ) ] / 1000
B139: 회피율비율"+- n%" | C139: Avoid Rate Percent | D139: AvdRt_Percent | E139: 아이템 또는 스킬 등의 회피 확률 비율 가감 속성
E140: 아이템 착용 또는 스킬 사용/학습 시 적용.
E141: 감소비율없음. 대응값으로 적중도 속성
B142: 적중도 | C142: Accuracy | D142: Accr | E142: 캐릭터의 적중 확률. 상대적인 값인 회피율과 관계되어 공격성공 판정에 활용. 모든 스킬에 공용.
B143: Accuracy | E143: = Accr_Base * (1 + ( sum [ Accr_Percent ] / 100 ) )
B144: 기본 적중도 | C144: Base Accuracy | D144: Accr _Base | E144: 캐릭터의 기본 적중도 능력치
E145: = [ ( 적중도가중치 * 1000 ) + AGL + INT ) ] /10
B146: 적중도비율"+- n%" | C146: Accuracy Percent | D146: Accr _Percent | E146: 아이템 또는 스킬 등의 적중도비율 가감 속성
E147: 아이템 착용 또는 스킬 사용/학습 시 적용.
E148: 감소비율없음. 대응값으로 회피율 속성
B149: 상태이상 저항 | C149: State Regist | D149: StReg | E149: 방어자로서의 모든 상태이상에 대한 확률적 저항 능력치
E150: 공격자의 속성효과(옵션)의 발동확률 값에 대응하는 값.
E151: = StReg_Base * (1 + ( sum [ StReg_Percent ] / 100 ) )
B152: 기본 상태이상저항 | C152: Base State Regist | D152: StReg_Base | E152: 캐릭터의 기본 상태이상 저항 능력치
E153: = [ ( WIS * 상태이상저항가중치 )+5 ] /2
B154: 상태이상저항비율"+- n%" | C154: State Regist Percent | D154: StReg_Percent | E154: 아이템 또는 스킬 등의 상태이상 저항비율 가감 속성
E155: 아이템 착용 또는 스킬 사용/학습 시 적용.
B156: 스킬 재사용시간 감소 | C156: (Skill) Cool-Time Decrease | D156: CoolDecr | E156: 캐릭터의 액티브 스킬을 재사용하는데 걸리는 대기 시간.
E157: 해당 값은 각각의 스킬 T_SkillLevel 에 Sl_coolTime 과 개별적으로 연산된다.
E158: = CoolDecr_Base * (1 + ( sum [ CoolDecr_Percent ] / 100 ) )
B159: 스킬 재사용시간 | C159: Skill Cooltime | D159: Cooltime | E159: 각 스킬 별 Sl_coolTime 의 값과 CoolDecr 연산.
E160: 스킬 쿨타임 단위 1초
E161: = Sl_coolTime * [ 1 – ( CoolDecr / 100 ) ]
E162: If { [ 1 – ( CoolDecr / 100 ) ] <=0.3, 0.3, [ 1 – ( CoolDecr / 100 ) ] } , 쿨타임은 최대 70%감소 가능.
B163: 기본 스킬재사용시간감소 | C163: Base Cool-Time Decrease | D163: CoolDecr_Base | E163: 캐릭터의 기본 스킬 재사용시간 감소 능력치
E164: = [ (INT +WIS)*재사용시간감소가중치 ] / 5
B165: 재사용시간비율"+- n%" | C165: Cool-Time Decrease Percent | D165: CoolDecr_Percent | E165: 아이템 또는 스킬 등의 재사용 시간 감소 비율 가감 속성
E166: 아이템 착용 또는 스킬 사용/학습 시 적용.
B167: 이동속도 | C167: Move Speed | D167: MvSpd | E167: 캐릭터가 “맵”을 이동할 때의 속도.
B168: Move Speed | E168: 1초당 뛰는 거리 100 (단위 CM ) / 1초당 1m 를 이동.
E169: = MvSpd_Base * (1 + ( sum [ MvSpd_Percent ] / 100 ) )
E170: IF ( MvSpd <=0, 0, MvSpd), 이동속도 최하는 0값이며, 대상은 이동불가상태.
B171: 기본 이동속도 | C171: Base Move Speed | D171: MvSpd _Base | E171: 캐릭터의 기본 이동속도 능력치
E172: 기본적으로 200 의 이동속도를 공통으로 적용.
B173: 이동속도비율"+- n%" | C173: Move Speed Percent | D173: MvSpd _Percent | E173: 아이템 또는 스킬 등의 이동속도비율 가감 속성
E174: 아이템 착용 또는 스킬 사용/학습 시 적용.
B175: 신성력 | C175: Divine Force | D175: DvFrc | E175: 캐릭터가 갖는 특별한 몬스터에 대한 피해를 줄 수 있는 능력.
E176: 관련 몬스터는 흑마력(Dark Force)으로 해당 능력에 상대적인 능력을 지닌다.
E177: 기본 값 0.
B178: 흑마력 | C178: Dark Force | D178: DkFrc | E178: 특정 몬스터가 갖는 캐릭터의 피해를 감소시키는 능력.
E179: 관련 캐릭터는 신성력(Divine Force)으로 해당 능력에 상대적인 능력을 지닌다.

Sheet Game_Fomula
B2: 전투 수식 분류 | C2: Full Name | D2: 표기 | E2: 설명 / 관계 / 수식
B3: 공격성공 판정 | C3: Success Accuracy | D3: SAccr | E3: 공격자의 적중도, 방어자의 회피율로 환산한 공격성공 값.
E4: = Accr - ( AvdRt )
E5: IF( (SAccr <=15, 15, SAccr ), 공격성공확률은 15% 를 최하값으로 보정한다.
B6: 스킬 데미지 | C6: Skill Damage | D6: skDMG | E6: 캐릭터의 데미지를 기반으로 공격형 스킬을 사용했을 때의 Skill Damage 값.
E7: = AttkPow * ( 1 + ( skDMG_Percent / 100 )
E8: Skill_Infos 테이블에 T_SkillLevel 시트의 Sl_skDMG_Percent 필드 값
B9: 공격자의 초당 공격력 | C9: Damage Per Second | D9: DPS | E9: 캐릭터의 초당 공격력. 전투 속성의 수식에 의해 계산된 공격력과 공격속도로 환산되는 값.
E10: = AttkPow * (1000 / AttkSpd)
B11: 데미지 | C11: Damage | D11: DMG | E11: 공격자의 공격력, 방어자의 방어력으로 환산한 Damage 값.
E12: = skDMG * ( 1 - ( DfsPow / 50000 ) )
E13: IF( (1 - (DfsPow / 50000))<=0, 0.12, (1 - (DfsPow / 50000)) )
B14: 방어자의 방어력 | C14: Defense Power | D14: DfsPow | E14: 캐릭터의 종합 방어력. 전투 속성의 수식에 의해 계산된 방어력
E15: = (DfsPow_Base + sum [ DfsPow_Constant ] ) * (1 + ( sum [ DfsPow_Percent ] / 100 ) )
B16: (스킬) 피해감소 데미지 | C16: total Damage | D16: tDMG | E16: 치명타 데미지를 계산하기 전 피해감소 수치에 대한 데미지 계산이 먼저 진행되는 값
E17: = DMG * ( 1 - ( DmgDecr / 100 )
E18: =IF { [ 1 - ( DmgDecr / 100 ) ]<=0, 0.1, [ 1 - ( DmgDecr / 100 ) ] }
E19: 피해감소 수치가 100을 넘어도, 스킬 데미지의 최소 10%를 보장한다.
B20: 치명타 데미지 | C20: Critical Damage | D20: CrtDMG | E20: 치명타 확률에 의해 치명타 데미지의 결정 후 치명타 세기(치명타저항포함)로 연산되는 데미지 값.
B21: Critical Damage | E21: = skDMG * CtrPow
B22: 치명타 세기 | C22: Critical Power | D22: CrtPow | E22: = CtrPow_Base * (1 + ( sum [ CtrPow_Percent ] / 100 ) ) – CrtPowDecr 치명타 세기가 1미만이면 1로 제한한다.
B23: 치명타 저항 | C23: Critical Power Decrease | D23: CrtPowDecr | E23: IF ( CtrPow >=1, CtrPow, 1 )
B24: 신성력 데미지 | C24: Divine Damage | D24: DvDMG | E24: 최종 데미지 값이라고 볼 수 있다. 기본적으로 신성력을 100으로 갖고 있다.
E25: = CrtDMG * [ ( DvFrc – DkFrc ) / 100 ]

Sheet Berserker_Status
A1: 초기시작 | B1: 14 | C1: 16 | D1: 6 | E1: 2 | F1: 2
A2: Berserk | B2: =VLOOKUP($A2,Class_Status!$B$3:$G$25,2,0) -> 1 | C2: =VLOOKUP($A2,Class_Status!$B$3:$G$25,3,0) -> 1 | D2: =VLOOKUP($A2,Class_Status!$B$3:$G$25,4,0) -> 0.5 | E2: =VLOOKUP($A2,Class_Status!$B$3:$G$25,5,0) -> 0.2 | F2: =VLOOKUP($A2,Class_Status!$B$3:$G$25,6,0) -> 0.3 | H2: BskM1 | I2: =VLOOKUP($H2,Class_Status!$B$3:$G$24,2,0) -> 1.4 | J2: =VLOOKUP($H2,Class_Status!$B$3:$G$24,3,0) -> 1.6 | K2: =VLOOKUP($H2,Class_Status!$B$3:$G$24,4,0) -> 0.6 | L2: =VLOOKUP($H2,Class_Status!$B$3:$G$24,5,0) -> 0.2 | M2: =VLOOKUP($H2,Class_Status!$B$3:$G$24,6,0) -> 0.2 | O2: BskM2 | P2: =VLOOKUP($H2,Class_Status!$B$3:$G$24,2,0) -> 1.4 | Q2: =VLOOKUP($H2,Class_Status!$B$3:$G$24,3,0) -> 1.6 | R2: =VLOOKUP($H2,Class_Status!$B$3:$G$24,4,0) -> 0.6 | S2: =VLOOKUP($H2,Class_Status!$B$3:$G$24,5,0) -> 0.2 | T2: =VLOOKUP($H2,Class_Status!$B$3:$G$24,6,0) -> 0.2
A3: Berserk | B3: =SUM(B1:B2) -> 15 | C3: =SUM(C1:C2) -> 17 | D3: =SUM(D1:D2) -> 6.5 | E3: =SUM(E1:E2) -> 2.2 | F3: =SUM(F1:F2) -> 2.3 | H3: BskM1 | O3: BskM2
A4: Lvl | B4: P_Str | C4: P_vit | D4: P_Agil | E4: P_Int | F4: P_Wis | H4: Lvl | I4: P_Str | J4: P_vit | K4: P_Agil | L4: P_Int | M4: P_Wis | O4: Lvl | P4: P_Str | Q4: P_vit | R4: P_Agil | S4: P_Int | T4: P_Wis
A5: 1 | B5: =B3 -> 15 | C5: =C3 -> 17 | D5: =D3 -> 6.5 | E5: =E3 -> 2.2 | F5: =F3 -> 2.3 | H5: 21 | I5: =B24+I$2 -> 35.4 | J5: =C24+J$2 -> 37.6 | K5: =D24+K$2 -> 16.6 | L5: =E24+L$2 -> 6.2 | M5: =F24+M$2 -> 8.2 | O5: 21 | P5: =B24+P$2 -> 35.4 | Q5: =C24+Q$2 -> 37.6 | R5: =D24+R$2 -> 16.6 | S5: =E24+S$2 -> 6.2 | T5: =F24+T$2 -> 8.2
A6: 2 | B6: =B5+B$2 -> 16 | C6: =C5+C$2 -> 18 | D6: =D5+D$2 -> 7 | E6: =E5+E$2 -> 2.4 | F6: =F5+F$2 -> 2.6 | H6: 22 | I6: =I5+I$2 -> 36.8 | J6: =J5+J$2 -> 39.2 | K6: =K5+K$2 -> 17.2 | L6: =L5+L$2 -> 6.4 | M6: =M5+M$2 -> 8.4 | O6: 22 | P6: =P5+P$2 -> 36.8 | Q6: =Q5+Q$2 -> 39.2 | R6: =R5+R$2 -> 17.2 | S6: =S5+S$2 -> 6.4 | T6: =T5+T$2 -> 8.4
A7: 3 | B7: =B6+B$2 -> 17 | C7: 19 | D7: 7.5 | E7: 2.6 | F7: 2.9 | H7: 23 | I7: =I6+I$2 -> 38.2 | J7: =J6+J$2 -> 40.8 | K7: =K6+K$2 -> 17.8 | L7: =L6+L$2 -> 6.6 | M7: =M6+M$2 -> 8.6 | O7: 23 | P7: =P6+P$2 -> 38.2 | Q7: =Q6+Q$2 -> 40.8 | R7: =R6+R$2 -> 17.8 | S7: =S6+S$2 -> 6.6 | T7: =T6+T$2 -> 8.6
A8: 4 | B8: 18 | C8: 20 | D8: 8 | E8: 2.8 | F8: 3.2 | H8: 24 | I8: 39.6 | J8: 42.4 | K8: 18.4 | L8: 6.8 | M8: 8.8 | O8: 24 | P8: 39.6 | Q8: 42.4 | R8: 18.4 | S8: 6.8 | T8: 8.8
A9: 5 | B9: 19 | C9: 21 | D9: 8.5 | E9: 3 | F9: 3.5 | H9: 25 | I9: 41 | J9: 44 | K9: 19 | L9: 7 | M9: 9 | O9: 25 | P9: 41 | Q9: 44 | R9: 19 | S9: 7 | T9: 9
A10: 6 | B10: 20 | C10: 22 | D10: 9 | E10: 3.2 | F10: 3.8 | H10: 26 | I10: 42.4 | J10: 45.6 | K10: 19.6 | L10: 7.2 | M10: 9.2 | O10: 26 | P10: 42.4 | Q10: 45.6 | R10: 19.6 | S10: 7.2 | T10: 9.2
A11: 7 | B11: 21 | C11: 23 | D11: 9.5 | E11: 3.4 | F11: 4.1 | H11: 27 | I11: 43.8 | J11: 47.2 | K11: 20.2 | L11: 7.4 | M11: 9.4 | O11: 27 | P11: 43.8 | Q11: 47.2 | R11: 20.2 | S11: 7.4 | T11: 9.4
A12: 8 | B12: 22 | C12: 24 | D12: 10 | E12: 3.6 | F12: 4.4 | H12: 28 | I12: 45.2 | J12: 48.8 | K12: 20.8 | L12: 7.6 | M12: 9.6 | O12: 28 | P12: 45.2 | Q12: 48.8 | R12: 20.8 | S12: 7.6 | T12: 9.6
A13: 9 | B13: 23 | C13: 25 | D13: 10.5 | E13: 3.8 | F13: 4.7 | H13: 29 | I13: 46.6 | J13: 50.4 | K13: 21.4 | L13: 7.8 | M13: 9.8 | O13: 29 | P13: 46.6 | Q13: 50.4 | R13: 21.4 | S13: 7.8 | T13: 9.8
A14: 10 | B14: 24 | C14: 26 | D14: 11 | E14: 4 | F14: 5 | H14: 30 | I14: 48 | J14: 52 | K14: 22 | L14: 8 | M14: 10 | O14: 30 | P14: 48 | Q14: 52 | R14: 22 | S14: 8 | T14: 10
A15: 11 | B15: 25 | C15: 27 | D15: 11.5 | E15: 4.2 | F15: 5.3 | H15: 31 | I15: 49.4 | J15: 53.6 | K15: 22.6 | L15: 8.2 | M15: 10.2 | O15: 31 | P15: 49.4 | Q15: 53.6 | R15: 22.6 | S15: 8.2 | T15: 10.2
A16: 12 | B16: 26 | C16: 28 | D16: 12 | E16: 4.4 | F16: 5.6 | H16: 32 | I16: 50.8 | J16: 55.2 | K16: 23.2 | L16: 8.4 | M16: 10.4 | O16: 32 | P16: 50.8 | Q16: 55.2 | R16: 23.2 | S16: 8.4 | T16: 10.4
A17: 13 | B17: 27 | C17: 29 | D17: 12.5 | E17: 4.6 | F17: 5.9 | H17: 33 | I17: 52.2 | J17: 56.8 | K17: 23.8 | L17: 8.6 | M17: 10.6 | O17: 33 | P17: 52.2 | Q17: 56.8 | R17: 23.8 | S17: 8.6 | T17: 10.6
A18: 14 | B18: 28 | C18: 30 | D18: 13 | E18: 4.8 | F18: 6.2 | H18: 34 | I18: 53.6 | J18: 58.4 | K18: 24.4 | L18: 8.8 | M18: 10.8 | O18: 34 | P18: 53.6 | Q18: 58.4 | R18: 24.4 | S18: 8.8 | T18: 10.8
A19: 15 | B19: 29 | C19: 31 | D19: 13.5 | E19: 5 | F19: 6.5 | H19: 35 | I19: 55 | J19: 60 | K19: 25 | L19: 9 | M19: 11 | O19: 35 | P19: 55 | Q19: 60 | R19: 25 | S19: 9 | T19: 11
A20: 16 | B20: 30 | C20: 32 | D20: 14 | E20: 5.2 | F20: 6.8 | H20: 36 | I20: 56.4 | J20: 61.6 | K20: 25.6 | L20: 9.2 | M20: 11.2 | O20: 36 | P20: 56.4 | Q20: 61.6 | R20: 25.6 | S20: 9.2 | T20: 11.2
A21: 17 | B21: 31 | C21: 33 | D21: 14.5 | E21: 5.4 | F21: 7.1 | H21: 37 | I21: 57.8 | J21: 63.2 | K21: 26.2 | L21: 9.4 | M21: 11.4 | O21: 37 | P21: 57.8 | Q21: 63.2 | R21: 26.2 | S21: 9.4 | T21: 11.4
A22: 18 | B22: 32 | C22: 34 | D22: 15 | E22: 5.6 | F22: 7.4 | H22: 38 | I22: 59.2 | J22: 64.8 | K22: 26.8 | L22: 9.6 | M22: 11.6 | O22: 38 | P22: 59.2 | Q22: 64.8 | R22: 26.8 | S22: 9.6 | T22: 11.6
A23: 19 | B23: =B22+B$2 -> 33 | C23: 35 | D23: 15.5 | E23: 5.8 | F23: 7.7 | H23: 39 | I23: 60.6 | J23: 66.4 | K23: 27.4 | L23: 9.8 | M23: 11.8 | O23: 39 | P23: 60.6 | Q23: 66.4 | R23: 27.4 | S23: 9.8 | T23: 11.8
A24: 20 | B24: 34 | C24: 36 | D24: 16 | E24: 6 | F24: 8 | G24: =SUM(B24:F24) -> 100 | H24: 40 | I24: 62 | J24: 68 | K24: 28 | L24: 10 | M24: 12 | O24: 40 | P24: 62 | Q24: 68 | R24: 28 | S24: 10 | T24: 12
H25: 41 | I25: 63.4 | J25: 69.6 | K25: 28.6 | L25: 10.2 | M25: 12.2 | O25: 41 | P25: 63.4 | Q25: 69.6 | R25: 28.6 | S25: 10.2 | T25: 12.2
B26: 최소 공격력 | C26: 최대 생명력 | D26: 최소 공격력 | E26: 최소 공격력 | F26: 생명력회복 | H26: 42 | I26: 64.8 | J26: 71.2 | K26: 29.2 | L26: 10.4 | M26: 12.4 | O26: 42 | P26: 64.8 | Q26: 71.2 | R26: 29.2 | S26: 10.4 | T26: 12.4
B27: 최대 공격력 | C27: 생명력회복 | D27: 최대 공격력 | E27: 최대 공격력 | F27: 활력도 | H27: 43 | I27: 66.2 | J27: 72.8 | K27: 29.8 | L27: 10.6 | M27: 12.6 | O27: 43 | P27: 66.2 | Q27: 72.8 | R27: 29.8 | S27: 10.6 | T27: 12.6
B28: 치명타 저항 | C28: 피해 감소 | D28: 공격속도 | E28: 치명타 세기 | F28: 치명타 세기 | H28: 44 | I28: 67.6 | J28: 74.4 | K28: 30.4 | L28: 10.8 | M28: 12.8 | O28: 44 | P28: 67.6 | Q28: 74.4 | R28: 30.4 | S28: 10.8 | T28: 12.8
D29: 치명타 확률 | E29: 적중도 | F29: 상태이상저항 | H29: 45 | I29: 69 | J29: 76 | K29: 31 | L29: 11 | M29: 13 | O29: 45 | P29: 69 | Q29: 76 | R29: 31 | S29: 11 | T29: 13
D30: 방어력 | E30: 재사용시간 | F30: 치명타 저항 | H30: 46 | I30: 70.4 | J30: 77.6 | K30: 31.6 | L30: 11.2 | M30: 13.2 | O30: 46 | P30: 70.4 | Q30: 77.6 | R30: 31.6 | S30: 11.2 | T30: 13.2
D31: 회피율 | F31: 재사용시간 | H31: 47 | I31: 71.8 | J31: 79.2 | K31: 32.2 | L31: 11.4 | M31: 13.4 | O31: 47 | P31: 71.8 | Q31: 79.2 | R31: 32.2 | S31: 11.4 | T31: 13.4
D32: 적중도 | H32: 48 | I32: 73.2 | J32: 80.8 | K32: 32.8 | L32: 11.6 | M32: 13.6 | O32: 48 | P32: 73.2 | Q32: 80.8 | R32: 32.8 | S32: 11.6 | T32: 13.6
H33: 49 | I33: 74.6 | J33: 82.4 | K33: 33.4 | L33: 11.8 | M33: 13.8 | O33: 49 | P33: 74.6 | Q33: 82.4 | R33: 33.4 | S33: 11.8 | T33: 13.8
H34: 50 | I34: 76 | J34: 84 | K34: 34 | L34: 12 | M34: 14 | N34: =SUM(I34:M34) -> 220 | O34: 50 | P34: 76 | Q34: 84 | R34: 34 | S34: 12 | T34: 14
I36: P_Str | J36: P_Sta | K36: P_Agil | L36: P_Int | M36: P_Wis | P36: P_Str | Q36: P_Sta | R36: P_Agil | S36: P_Int | T36: P_Wis
I38: 최소 공격력 | J38: 최대 생명력 | K38: 최소 공격력 | L38: 최소 공격력 | M38: 생명력회복 | P38: 최소 공격력 | Q38: 최대 생명력 | R38: 최소 공격력 | S38: 최소 공격력 | T38: 생명력회복
I39: 최대 공격력 | J39: 생명력회복 | K39: 최대 공격력 | L39: 최대 공격력 | M39: 활력도 | P39: 최대 공격력 | Q39: 생명력회복 | R39: 최대 공격력 | S39: 최대 공격력 | T39: 활력도
I40: 치명타 저항 | J40: 피해 감소 | K40: 공격속도 | L40: 치명타 세기 | M40: 치명타 세기 | P40: 치명타 저항 | Q40: 피해 감소 | R40: 공격속도 | S40: 치명타 세기 | T40: 치명타 세기
K41: 치명타 확률 | L41: 적중도 | M41: 상태이상저항 | R41: 치명타 확률 | S41: 적중도 | T41: 상태이상저항
K42: 방어력 | L42: 재사용시간 | M42: 치명타 저항 | R42: 방어력 | S42: 재사용시간 | T42: 치명타 저항
K43: 회피율 | M43: 재사용시간 | R43: 회피율 | T43: 재사용시간
K44: 적중도 | R44: 적중도

Sheet Berserker_Simul
A1: 클래스 | B1: 레벨 | C1: 최대 생명력 | D1: 생명력회복 | E1: 활력도 | F1: 초당평균공격력 | G1: 최소 공격력 | H1: 최대 공격력 | I1: 공격속도 | J1: 치명타 확률 | K1: 치명타 세기 | L1: 치명타저항 | M1: 피해감소 | N1: 방어력 | O1: 회피율 | P1: 적중도 | Q1: 상태이상저항 | R1: 스킬쿨타임감소 | S1: 이동속도 | T1: 신성력 | U1: 1 | W1: 적중도 | Y1: 10000 | AC1: 아이템 기본
A2: Berserker | B2: 1 | C2: =(B2^2*0.7)+Berserker_Status!$C5*(Berserker_Status!$C5*Class_Compare!$D$7)/2+100 -> 245.2 | D2: =(U2)*(Class_Compare!$E$7*(50+1.5*(0.8*Berserker_Status!C5+0.2*Berserker_Status!F5))) -> 43.187175 | E2: =Berserker_Status!F5*(Berserker_Status!F5*Class_Compare!$O$7)+100 -> 101.058 | F2: =((G2+H2)/2)*(1000/(I2)) -> 81.67607235 | G2: =Class_Compare!$B$7*(100+1.2*(0.6*Berserker_Status!B5+0.2*Berserker_Status!D5+0.2*Berserker_Status!E5)) -> 67.7328 | H2: =Class_Compare!$C$7*(100+1.2*(0.6*Berserker_Status!B5+0.2*Berserker_Status!D5+0.2*Berserker_Status!E5)) -> 90.3104 | I2: =(Class_Compare!$G$7*1000)-(Berserker_Status!D5*5) -> 967.5 | J2: =(Class_Compare!$K$7*1000+Berserker_Status!D5)/50 -> 10.13 | K2: =2+(Class_Compare!$L$7)+(Berserker_Status!E5/100) -> 2.222 | L2: =(0.2*Berserker_Status!B5+0.8*Berserker_Status!F5)/250 -> 0.01936 | M2: =(Berserker_Status!C5/25) -> 0.68 | N2: =Class_Compare!$H$7*(0.2*(Berserker_Status!D5*35)) -> 31.85 | O2: =(Class_Compare!$I$7*1000+Berserker_Status!D5)/1000 -> 1.0065 | P2: =(Class_Compare!$J$7*1000+Berserker_Status!D5+Berserker_Status!E5)/10 -> 100.87 | Q2: =( (Berserker_Status!F5*Class_Compare!$M$7)+5 ) /2 -> 2.73 | R2: =((Berserker_Status!E5+Berserker_Status!F5)*Class_Compare!$N$7)/5 -> 0.18 | S2: 200 | T2: 0 | U2: =$U$1*(1+0.05*(B2/4)) -> 1.0125 | W2: =(Class_Compare!$J$7*1000+Berserker_Status!D5+Berserker_Status!E5)/10 -> 100.87 | X2: 기본과아이템비율 | Y2: 5000 | Z2: 5000 | AA2: 공격력 | AC2: 무기 | AE2: 투 | AF2: 상의 | AG2: 하의 | AH2: 장갑 | AI2: 신발
A3: Berserker | B3: 2 | C3: =(B3^2*0.7)+Berserker_Status!$C6*(Berserker_Status!$C6*Class_Compare!$D$7)/2+100 -> 264.8 | D3: =(U3)*(Class_Compare!$E$7*(50+1.5*(0.8*Berserker_Status!C6+0.2*Berserker_Status!F6))) -> 44.5137 | E3: =Berserker_Status!F6*(Berserker_Status!F6*Class_Compare!$O$7)+100 -> 101.352 | F3: =((G3+H3)/2)*(1000/(I3)) -> 82.53181347 | G3: =Class_Compare!$B$7*(100+1.2*(0.6*Berserker_Status!B6+0.2*Berserker_Status!D6+0.2*Berserker_Status!E6)) -> 68.2656 | H3: =Class_Compare!$C$7*(100+1.2*(0.6*Berserker_Status!B6+0.2*Berserker_Status!D6+0.2*Berserker_Status!E6)) -> 91.0208 | I3: =(Class_Compare!$G$7*1000)-(Berserker_Status!D6*5) -> 965 | J3: =(Class_Compare!$K$7*1000+Berserker_Status!D6)/50 -> 10.14 | K3: =2+(Class_Compare!$L$7)+(Berserker_Status!E6/100) -> 2.224 | L3: =(0.2*Berserker_Status!B6+0.8*Berserker_Status!F6)/250 -> 0.02112 | M3: =(Berserker_Status!C6/25) -> 0.72 | N3: =Class_Compare!$H$7*(0.2*(Berserker_Status!D6*35)) -> 34.3 | O3: =(Class_Compare!$I$7*1000+Berserker_Status!D6)/1000 -> 1.007 | P3: =(Class_Compare!$J$7*1000+Berserker_Status!D6+Berserker_Status!E6)/10 -> 100.94 | Q3: =( (Berserker_Status!F6*Class_Compare!$M$7)+5 ) /2 -> 2.76 | R3: =((Berserker_Status!E6+Berserker_Status!F6)*Class_Compare!$N$7)/5 -> 0.2 | S3: 200 | T3: 0 | U3: =$U$1*(1+0.05*(B3/4)) -> 1.025 | W3: =(Class_Compare!$J$7*1000+Berserker_Status!D6+Berserker_Status!E6)/10 -> 100.94 | X3: 보정 | Y3: 35 | AA3: 방어력 | AC3: 방어구 | AD3: 100 | AE3: 15 | AF3: 35 | AG3: 30 | AH3: 10 | AI3: 10
A4: Berserker | B4: 3 | C4: =(B4^2*0.7)+Berserker_Status!$C7*(Berserker_Status!$C7*Class_Compare!$D$7)/2+100 -> 286.8 | D4: =(U4)*(Class_Compare!$E$7*(50+1.5*(0.8*Berserker_Status!C7+0.2*Berserker_Status!F7))) -> 45.859575 | E4: =Berserker_Status!F7*(Berserker_Status!F7*Class_Compare!$O$7)+100 -> 101.682 | F4: 83.392 | G4: =Class_Compare!$B$7*(100+1.2*(0.6*Berserker_Status!B7+0.2*Berserker_Status!D7+0.2*Berserker_Status!E7)) -> 68.7984 | H4: =Class_Compare!$C$7*(100+1.2*(0.6*Berserker_Status!B7+0.2*Berserker_Status!D7+0.2*Berserker_Status!E7)) -> 91.7312 | I4: =(Class_Compare!$G$7*1000)-(Berserker_Status!D7*5) -> 962.5 | J4: =(Class_Compare!$K$7*1000+Berserker_Status!D7)/50 -> 10.15 | K4: =2+(Class_Compare!$L$7)+(Berserker_Status!E7/100) -> 2.226 | L4: =(0.2*Berserker_Status!B7+0.8*Berserker_Status!F7)/250 -> 0.02288 | M4: =(Berserker_Status!C7/25) -> 0.76 | N4: =Class_Compare!$H$7*(0.2*(Berserker_Status!D7*35)) -> 36.75 | O4: =(Class_Compare!$I$7*1000+Berserker_Status!D7)/1000 -> 1.0075 | P4: =(Class_Compare!$J$7*1000+Berserker_Status!D7+Berserker_Status!E7)/10 -> 101.01 | Q4: =( (Berserker_Status!F7*Class_Compare!$M$7)+5 ) /2 -> 2.79 | R4: =((Berserker_Status!E7+Berserker_Status!F7)*Class_Compare!$N$7)/5 -> 0.22 | S4: 200 | T4: 0 | U4: 1.0375 | W4: =(Class_Compare!$J$7*1000+Berserker_Status!D7+Berserker_Status!E7)/10 -> 101.01 | X4: agi | Y4: 100 | AA4: 최대 생명력 | AC4: 악세서리 | AD4: 목
A5: Berserker | B5: 4 | C5: =(B5^2*0.7)+Berserker_Status!$C8*(Berserker_Status!$C8*Class_Compare!$D$7)/2+100 -> 311.2 | D5: =(U5)*(Class_Compare!$E$7*(50+1.5*(0.8*Berserker_Status!C8+0.2*Berserker_Status!F8))) -> 47.2248 | E5: =Berserker_Status!F8*(Berserker_Status!F8*Class_Compare!$O$7)+100 -> 102.048 | F5: 84.25666667 | G5: =Class_Compare!$B$7*(100+1.2*(0.6*Berserker_Status!B8+0.2*Berserker_Status!D8+0.2*Berserker_Status!E8)) -> 69.3312 | H5: =Class_Compare!$C$7*(100+1.2*(0.6*Berserker_Status!B8+0.2*Berserker_Status!D8+0.2*Berserker_Status!E8)) -> 92.4416 | I5: =(Class_Compare!$G$7*1000)-(Berserker_Status!D8*5) -> 960 | J5: =(Class_Compare!$K$7*1000+Berserker_Status!D8)/50 -> 10.16 | K5: =2+(Class_Compare!$L$7)+(Berserker_Status!E8/100) -> 2.228 | L5: =(0.2*Berserker_Status!B8+0.8*Berserker_Status!F8)/250 -> 0.02464 | M5: =(Berserker_Status!C8/25) -> 0.8 | N5: =Class_Compare!$H$7*(0.2*(Berserker_Status!D8*35)) -> 39.2 | O5: =(Class_Compare!$I$7*1000+Berserker_Status!D8)/1000 -> 1.008 | P5: =(Class_Compare!$J$7*1000+Berserker_Status!D8+Berserker_Status!E8)/10 -> 101.08 | Q5: =( (Berserker_Status!F8*Class_Compare!$M$7)+5 ) /2 -> 2.82 | R5: =((Berserker_Status!E8+Berserker_Status!F8)*Class_Compare!$N$7)/5 -> 0.24 | S5: 200 | T5: 0 | U5: 1.05 | W5: =(Class_Compare!$J$7*1000+Berserker_Status!D8+Berserker_Status!E8)/10 -> 101.08 | Y5: =Y4*Y3 -> 3500 | Z5: 2000 | AA5: 생명력 회복률
A6: Berserker | B6: 5 | C6: =(B6^2*0.7)+Berserker_Status!$C9*(Berserker_Status!$C9*Class_Compare!$D$7)/2+100 -> 338 | D6: =(U6)*(Class_Compare!$E$7*(50+1.5*(0.8*Berserker_Status!C9+0.2*Berserker_Status!F9))) -> 48.609375 | E6: =Berserker_Status!F9*(Berserker_Status!F9*Class_Compare!$O$7)+100 -> 102.45 | F6: 85.12584856 | G6: =Class_Compare!$B$7*(100+1.2*(0.6*Berserker_Status!B9+0.2*Berserker_Status!D9+0.2*Berserker_Status!E9)) -> 69.864 | H6: =Class_Compare!$C$7*(100+1.2*(0.6*Berserker_Status!B9+0.2*Berserker_Status!D9+0.2*Berserker_Status!E9)) -> 93.152 | I6: =(Class_Compare!$G$7*1000)-(Berserker_Status!D9*5) -> 957.5 | J6: =(Class_Compare!$K$7*1000+Berserker_Status!D9)/50 -> 10.17 | K6: =2+(Class_Compare!$L$7)+(Berserker_Status!E9/100) -> 2.23 | L6: =(0.2*Berserker_Status!B9+0.8*Berserker_Status!F9)/250 -> 0.0264 | M6: =(Berserker_Status!C9/25) -> 0.84 | N6: =Class_Compare!$H$7*(0.2*(Berserker_Status!D9*35)) -> 41.65 | O6: =(Class_Compare!$I$7*1000+Berserker_Status!D9)/1000 -> 1.0085 | P6: =(Class_Compare!$J$7*1000+Berserker_Status!D9+Berserker_Status!E9)/10 -> 101.15 | Q6: =( (Berserker_Status!F9*Class_Compare!$M$7)+5 ) /2 -> 2.85 | R6: =((Berserker_Status!E9+Berserker_Status!F9)*Class_Compare!$N$7)/5 -> 0.26 | S6: 200 | T6: 0 | U6: 1.0625 | W6: =(Class_Compare!$J$7*1000+Berserker_Status!D9+Berserker_Status!E9)/10 -> 101.15 | Y6: =Y5 -> 3500 | Z6: =Z5 -> 2000 | AA6: 치명타 확률
A7: Berserker | B7: 6 | C7: =(B7^2*0.7)+Berserker_Status!$C10*(Berserker_Status!$C10*Class_Compare!$D$7)/2+100 -> 367.2 | D7: =(U7)*(Class_Compare!$E$7*(50+1.5*(0.8*Berserker_Status!C10+0.2*Berserker_Status!F10))) -> 50.0133 | E7: =Berserker_Status!F10*(Berserker_Status!F10*Class_Compare!$O$7)+100 -> 102.888 | F7: 85.99958115 | G7: =Class_Compare!$B$7*(100+1.2*(0.6*Berserker_Status!B10+0.2*Berserker_Status!D10+0.2*Berserker_Status!E10)) -> 70.3968 | H7: =Class_Compare!$C$7*(100+1.2*(0.6*Berserker_Status!B10+0.2*Berserker_Status!D10+0.2*Berserker_Status!E10)) -> 93.8624 | I7: =(Class_Compare!$G$7*1000)-(Berserker_Status!D10*5) -> 955 | J7: =(Class_Compare!$K$7*1000+Berserker_Status!D10)/50 -> 10.18 | K7: =2+(Class_Compare!$L$7)+(Berserker_Status!E10/100) -> 2.232 | L7: =(0.2*Berserker_Status!B10+0.8*Berserker_Status!F10)/250 -> 0.02816 | M7: =(Berserker_Status!C10/25) -> 0.88 | N7: =Class_Compare!$H$7*(0.2*(Berserker_Status!D10*35)) -> 44.1 | O7: =(Class_Compare!$I$7*1000+Berserker_Status!D10)/1000 -> 1.009 | P7: =(Class_Compare!$J$7*1000+Berserker_Status!D10+Berserker_Status!E10)/10 -> 101.22 | Q7: =( (Berserker_Status!F10*Class_Compare!$M$7)+5 ) /2 -> 2.88 | R7: =((Berserker_Status!E10+Berserker_Status!F10)*Class_Compare!$N$7)/5 -> 0.28 | S7: 200 | T7: 0 | U7: 1.075 | W7: =(Class_Compare!$J$7*1000+Berserker_Status!D10+Berserker_Status!E10)/10 -> 101.22 | AA7: 치명타 피해 | AB7: 지능
A8: Berserker | B8: 7 | C8: =(B8^2*0.7)+Berserker_Status!$C11*(Berserker_Status!$C11*Class_Compare!$D$7)/2+100 -> 398.8 | D8: =(U8)*(Class_Compare!$E$7*(50+1.5*(0.8*Berserker_Status!C11+0.2*Berserker_Status!F11))) -> 51.436575 | E8: =Berserker_Status!F11*(Berserker_Status!F11*Class_Compare!$O$7)+100 -> 103.362 | F8: 86.87790026 | G8: =Class_Compare!$B$7*(100+1.2*(0.6*Berserker_Status!B11+0.2*Berserker_Status!D11+0.2*Berserker_Status!E11)) -> 70.9296 | H8: =Class_Compare!$C$7*(100+1.2*(0.6*Berserker_Status!B11+0.2*Berserker_Status!D11+0.2*Berserker_Status!E11)) -> 94.5728 | I8: =(Class_Compare!$G$7*1000)-(Berserker_Status!D11*5) -> 952.5 | J8: =(Class_Compare!$K$7*1000+Berserker_Status!D11)/50 -> 10.19 | K8: =2+(Class_Compare!$L$7)+(Berserker_Status!E11/100) -> 2.234 | L8: =(0.2*Berserker_Status!B11+0.8*Berserker_Status!F11)/250 -> 0.02992 | M8: =(Berserker_Status!C11/25) -> 0.92 | N8: =Class_Compare!$H$7*(0.2*(Berserker_Status!D11*35)) -> 46.55 | O8: =(Class_Compare!$I$7*1000+Berserker_Status!D11)/1000 -> 1.0095 | P8: =(Class_Compare!$J$7*1000+Berserker_Status!D11+Berserker_Status!E11)/10 -> 101.29 | Q8: =( (Berserker_Status!F11*Class_Compare!$M$7)+5 ) /2 -> 2.91 | R8: =((Berserker_Status!E11+Berserker_Status!F11)*Class_Compare!$N$7)/5 -> 0.3 | S8: 200 | T8: 0 | U8: 1.0875 | W8: =(Class_Compare!$J$7*1000+Berserker_Status!D11+Berserker_Status!E11)/10 -> 101.29 | Y8: =0.5*(Y6+Z6) -> 2750 | Z8: =Y8*0.7 -> 1925 | AA8: 상태이상 저항력 | AC8: 악세서리 | AD8: 반지 | AE8: 상태이상 저항력은 자신에게 걸린 상태이상효과의 지속시간을 감소시키는 능력
A9: Berserker | B9: 8 | C9: =(B9^2*0.7)+Berserker_Status!$C12*(Berserker_Status!$C12*Class_Compare!$D$7)/2+100 -> 432.8 | D9: =(U9)*(Class_Compare!$E$7*(50+1.5*(0.8*Berserker_Status!C12+0.2*Berserker_Status!F12))) -> 52.8792 | E9: =Berserker_Status!F12*(Berserker_Status!F12*Class_Compare!$O$7)+100 -> 103.872 | F9: 87.76084211 | G9: =Class_Compare!$B$7*(100+1.2*(0.6*Berserker_Status!B12+0.2*Berserker_Status!D12+0.2*Berserker_Status!E12)) -> 71.4624 | H9: =Class_Compare!$C$7*(100+1.2*(0.6*Berserker_Status!B12+0.2*Berserker_Status!D12+0.2*Berserker_Status!E12)) -> 95.2832 | I9: =(Class_Compare!$G$7*1000)-(Berserker_Status!D12*5) -> 950 | J9: =(Class_Compare!$K$7*1000+Berserker_Status!D12)/50 -> 10.2 | K9: =2+(Class_Compare!$L$7)+(Berserker_Status!E12/100) -> 2.236 | L9: =(0.2*Berserker_Status!B12+0.8*Berserker_Status!F12)/250 -> 0.03168 | M9: =(Berserker_Status!C12/25) -> 0.96 | N9: =Class_Compare!$H$7*(0.2*(Berserker_Status!D12*35)) -> 49 | O9: =(Class_Compare!$I$7*1000+Berserker_Status!D12)/1000 -> 1.01 | P9: =(Class_Compare!$J$7*1000+Berserker_Status!D12+Berserker_Status!E12)/10 -> 101.36 | Q9: =( (Berserker_Status!F12*Class_Compare!$M$7)+5 ) /2 -> 2.94 | R9: =((Berserker_Status!E12+Berserker_Status!F12)*Class_Compare!$N$7)/5 -> 0.32 | S9: 200 | T9: 0 | U9: 1.1 | W9: =(Class_Compare!$J$7*1000+Berserker_Status!D12+Berserker_Status!E12)/10 -> 101.36 | Y9: =Z8/100 -> 19.25 | AA9: 이동속도
A10: Berserker | B10: 9 | C10: =(B10^2*0.7)+Berserker_Status!$C13*(Berserker_Status!$C13*Class_Compare!$D$7)/2+100 -> 469.2 | D10: =(U10)*(Class_Compare!$E$7*(50+1.5*(0.8*Berserker_Status!C13+0.2*Berserker_Status!F13))) -> 54.341175 | E10: =Berserker_Status!F13*(Berserker_Status!F13*Class_Compare!$O$7)+100 -> 104.418 | F10: 88.64844327 | G10: =Class_Compare!$B$7*(100+1.2*(0.6*Berserker_Status!B13+0.2*Berserker_Status!D13+0.2*Berserker_Status!E13)) -> 71.9952 | H10: =Class_Compare!$C$7*(100+1.2*(0.6*Berserker_Status!B13+0.2*Berserker_Status!D13+0.2*Berserker_Status!E13)) -> 95.9936 | I10: =(Class_Compare!$G$7*1000)-(Berserker_Status!D13*5) -> 947.5 | J10: =(Class_Compare!$K$7*1000+Berserker_Status!D13)/50 -> 10.21 | K10: =2+(Class_Compare!$L$7)+(Berserker_Status!E13/100) -> 2.238 | L10: =(0.2*Berserker_Status!B13+0.8*Berserker_Status!F13)/250 -> 0.03344 | M10: =(Berserker_Status!C13/25) -> 1 | N10: =Class_Compare!$H$7*(0.2*(Berserker_Status!D13*35)) -> 51.45 | O10: =(Class_Compare!$I$7*1000+Berserker_Status!D13)/1000 -> 1.0105 | P10: =(Class_Compare!$J$7*1000+Berserker_Status!D13+Berserker_Status!E13)/10 -> 101.43 | Q10: =( (Berserker_Status!F13*Class_Compare!$M$7)+5 ) /2 -> 2.97 | R10: =((Berserker_Status!E13+Berserker_Status!F13)*Class_Compare!$N$7)/5 -> 0.34 | S10: 200 | T10: 0 | U10: 1.1125 | W10: =(Class_Compare!$J$7*1000+Berserker_Status!D13+Berserker_Status!E13)/10 -> 101.43 | AA10: 활력 충전
A11: Berserker | B11: 10 | C11: =(B11^2*0.7)+Berserker_Status!$C14*(Berserker_Status!$C14*Class_Compare!$D$7)/2+100 -> 508 | D11: =(U11)*(Class_Compare!$E$7*(50+1.5*(0.8*Berserker_Status!C14+0.2*Berserker_Status!F14))) -> 55.8225 | E11: =Berserker_Status!F14*(Berserker_Status!F14*Class_Compare!$O$7)+100 -> 105 | F11: 89.54074074 | G11: =Class_Compare!$B$7*(100+1.2*(0.6*Berserker_Status!B14+0.2*Berserker_Status!D14+0.2*Berserker_Status!E14)) -> 72.528 | H11: =Class_Compare!$C$7*(100+1.2*(0.6*Berserker_Status!B14+0.2*Berserker_Status!D14+0.2*Berserker_Status!E14)) -> 96.704 | I11: =(Class_Compare!$G$7*1000)-(Berserker_Status!D14*5) -> 945 | J11: =(Class_Compare!$K$7*1000+Berserker_Status!D14)/50 -> 10.22 | K11: =2+(Class_Compare!$L$7)+(Berserker_Status!E14/100) -> 2.24 | L11: =(0.2*Berserker_Status!B14+0.8*Berserker_Status!F14)/250 -> 0.0352 | M11: =(Berserker_Status!C14/25) -> 1.04 | N11: =Class_Compare!$H$7*(0.2*(Berserker_Status!D14*35)) -> 53.9 | O11: =(Class_Compare!$I$7*1000+Berserker_Status!D14)/1000 -> 1.011 | P11: =(Class_Compare!$J$7*1000+Berserker_Status!D14+Berserker_Status!E14)/10 -> 101.5 | Q11: =( (Berserker_Status!F14*Class_Compare!$M$7)+5 ) /2 -> 3 | R11: =((Berserker_Status!E14+Berserker_Status!F14)*Class_Compare!$N$7)/5 -> 0.36 | S11: 200 | T11: 0 | U11: 1.125 | W11: =(Class_Compare!$J$7*1000+Berserker_Status!D14+Berserker_Status!E14)/10 -> 101.5 | AA11: 충전 증가률
A12: Berserker | B12: 11 | C12: =(B12^2*0.7)+Berserker_Status!$C15*(Berserker_Status!$C15*Class_Compare!$D$7)/2+100 -> 549.2 | D12: =(U12)*(Class_Compare!$E$7*(50+1.5*(0.8*Berserker_Status!C15+0.2*Berserker_Status!F15))) -> 57.323175 | E12: =Berserker_Status!F15*(Berserker_Status!F15*Class_Compare!$O$7)+100 -> 105.618 | F12: 90.43777188 | G12: =Class_Compare!$B$7*(100+1.2*(0.6*Berserker_Status!B15+0.2*Berserker_Status!D15+0.2*Berserker_Status!E15)) -> 73.0608 | H12: =Class_Compare!$C$7*(100+1.2*(0.6*Berserker_Status!B15+0.2*Berserker_Status!D15+0.2*Berserker_Status!E15)) -> 97.4144 | I12: =(Class_Compare!$G$7*1000)-(Berserker_Status!D15*5) -> 942.5 | J12: =(Class_Compare!$K$7*1000+Berserker_Status!D15)/50 -> 10.23 | K12: =2+(Class_Compare!$L$7)+(Berserker_Status!E15/100) -> 2.242 | L12: =(0.2*Berserker_Status!B15+0.8*Berserker_Status!F15)/250 -> 0.03696 | M12: =(Berserker_Status!C15/25) -> 1.08 | N12: =Class_Compare!$H$7*(0.2*(Berserker_Status!D15*35)) -> 56.35 | O12: =(Class_Compare!$I$7*1000+Berserker_Status!D15)/1000 -> 1.0115 | P12: =(Class_Compare!$J$7*1000+Berserker_Status!D15+Berserker_Status!E15)/10 -> 101.57 | Q12: =( (Berserker_Status!F15*Class_Compare!$M$7)+5 ) /2 -> 3.03 | R12: =((Berserker_Status!E15+Berserker_Status!F15)*Class_Compare!$N$7)/5 -> 0.38 | S12: 200 | T12: 0 | U12: 1.1375 | W12: =(Class_Compare!$J$7*1000+Berserker_Status!D15+Berserker_Status!E15)/10 -> 101.57 | AA12: 수호력 | AE12: 특정 몬스터에게 더 큰 피해를 주는 속성
A13: Berserker | B13: 12 | C13: =(B13^2*0.7)+Berserker_Status!$C16*(Berserker_Status!$C16*Class_Compare!$D$7)/2+100 -> 592.8 | D13: =(U13)*(Class_Compare!$E$7*(50+1.5*(0.8*Berserker_Status!C16+0.2*Berserker_Status!F16))) -> 58.8432 | E13: =Berserker_Status!F16*(Berserker_Status!F16*Class_Compare!$O$7)+100 -> 106.272 | F13: 91.33957447 | G13: =Class_Compare!$B$7*(100+1.2*(0.6*Berserker_Status!B16+0.2*Berserker_Status!D16+0.2*Berserker_Status!E16)) -> 73.5936 | H13: =Class_Compare!$C$7*(100+1.2*(0.6*Berserker_Status!B16+0.2*Berserker_Status!D16+0.2*Berserker_Status!E16)) -> 98.1248 | I13: =(Class_Compare!$G$7*1000)-(Berserker_Status!D16*5) -> 940 | J13: =(Class_Compare!$K$7*1000+Berserker_Status!D16)/50 -> 10.24 | K13: =2+(Class_Compare!$L$7)+(Berserker_Status!E16/100) -> 2.244 | L13: =(0.2*Berserker_Status!B16+0.8*Berserker_Status!F16)/250 -> 0.03872 | M13: =(Berserker_Status!C16/25) -> 1.12 | N13: =Class_Compare!$H$7*(0.2*(Berserker_Status!D16*35)) -> 58.8 | O13: =(Class_Compare!$I$7*1000+Berserker_Status!D16)/1000 -> 1.012 | P13: =(Class_Compare!$J$7*1000+Berserker_Status!D16+Berserker_Status!E16)/10 -> 101.64 | Q13: =( (Berserker_Status!F16*Class_Compare!$M$7)+5 ) /2 -> 3.06 | R13: =((Berserker_Status!E16+Berserker_Status!F16)*Class_Compare!$N$7)/5 -> 0.4 | S13: 200 | T13: 0 | U13: 1.15 | W13: =(Class_Compare!$J$7*1000+Berserker_Status!D16+Berserker_Status!E16)/10 -> 101.64 | AA13: 수호저항력 | AE13: 특정 몬스터가 갖는 수호력의 피해를 감소시키는 속성
A14: Berserker | B14: 13 | C14: =(B14^2*0.7)+Berserker_Status!$C17*(Berserker_Status!$C17*Class_Compare!$D$7)/2+100 -> 638.8 | D14: =(U14)*(Class_Compare!$E$7*(50+1.5*(0.8*Berserker_Status!C17+0.2*Berserker_Status!F17))) -> 60.382575 | E14: =Berserker_Status!F17*(Berserker_Status!F17*Class_Compare!$O$7)+100 -> 106.962 | F14: 92.24618667 | G14: =Class_Compare!$B$7*(100+1.2*(0.6*Berserker_Status!B17+0.2*Berserker_Status!D17+0.2*Berserker_Status!E17)) -> 74.1264 | H14: =Class_Compare!$C$7*(100+1.2*(0.6*Berserker_Status!B17+0.2*Berserker_Status!D17+0.2*Berserker_Status!E17)) -> 98.8352 | I14: =(Class_Compare!$G$7*1000)-(Berserker_Status!D17*5) -> 937.5 | J14: =(Class_Compare!$K$7*1000+Berserker_Status!D17)/50 -> 10.25 | K14: =2+(Class_Compare!$L$7)+(Berserker_Status!E17/100) -> 2.246 | L14: =(0.2*Berserker_Status!B17+0.8*Berserker_Status!F17)/250 -> 0.04048 | M14: =(Berserker_Status!C17/25) -> 1.16 | N14: =Class_Compare!$H$7*(0.2*(Berserker_Status!D17*35)) -> 61.25 | O14: =(Class_Compare!$I$7*1000+Berserker_Status!D17)/1000 -> 1.0125 | P14: =(Class_Compare!$J$7*1000+Berserker_Status!D17+Berserker_Status!E17)/10 -> 101.71 | Q14: =( (Berserker_Status!F17*Class_Compare!$M$7)+5 ) /2 -> 3.09 | R14: =((Berserker_Status!E17+Berserker_Status!F17)*Class_Compare!$N$7)/5 -> 0.42 | S14: 200 | T14: 0 | U14: 1.1625 | W14: =(Class_Compare!$J$7*1000+Berserker_Status!D17+Berserker_Status!E17)/10 -> 101.71
A15: Berserker | B15: 14 | C15: =(B15^2*0.7)+Berserker_Status!$C18*(Berserker_Status!$C18*Class_Compare!$D$7)/2+100 -> 687.2 | D15: =(U15)*(Class_Compare!$E$7*(50+1.5*(0.8*Berserker_Status!C18+0.2*Berserker_Status!F18))) -> 61.9413 | E15: =Berserker_Status!F18*(Berserker_Status!F18*Class_Compare!$O$7)+100 -> 107.688 | F15: 93.15764706 | G15: =Class_Compare!$B$7*(100+1.2*(0.6*Berserker_Status!B18+0.2*Berserker_Status!D18+0.2*Berserker_Status!E18)) -> 74.6592 | H15: =Class_Compare!$C$7*(100+1.2*(0.6*Berserker_Status!B18+0.2*Berserker_Status!D18+0.2*Berserker_Status!E18)) -> 99.5456 | I15: =(Class_Compare!$G$7*1000)-(Berserker_Status!D18*5) -> 935 | J15: =(Class_Compare!$K$7*1000+Berserker_Status!D18)/50 -> 10.26 | K15: =2+(Class_Compare!$L$7)+(Berserker_Status!E18/100) -> 2.248 | L15: =(0.2*Berserker_Status!B18+0.8*Berserker_Status!F18)/250 -> 0.04224 | M15: =(Berserker_Status!C18/25) -> 1.2 | N15: =Class_Compare!$H$7*(0.2*(Berserker_Status!D18*35)) -> 63.7 | O15: =(Class_Compare!$I$7*1000+Berserker_Status!D18)/1000 -> 1.013 | P15: =(Class_Compare!$J$7*1000+Berserker_Status!D18+Berserker_Status!E18)/10 -> 101.78 | Q15: =( (Berserker_Status!F18*Class_Compare!$M$7)+5 ) /2 -> 3.12 | R15: =((Berserker_Status!E18+Berserker_Status!F18)*Class_Compare!$N$7)/5 -> 0.44 | S15: 200 | T15: 0 | U15: 1.175 | W15: =(Class_Compare!$J$7*1000+Berserker_Status!D18+Berserker_Status!E18)/10 -> 101.78 | AA15: 공격력
A16: Berserker | B16: 15 | C16: =(B16^2*0.7)+Berserker_Status!$C19*(Berserker_Status!$C19*Class_Compare!$D$7)/2+100 -> 738 | D16: =(U16)*(Class_Compare!$E$7*(50+1.5*(0.8*Berserker_Status!C19+0.2*Berserker_Status!F19))) -> 63.519375 | E16: =Berserker_Status!F19*(Berserker_Status!F19*Class_Compare!$O$7)+100 -> 108.45 | F16: 94.07399464 | G16: =Class_Compare!$B$7*(100+1.2*(0.6*Berserker_Status!B19+0.2*Berserker_Status!D19+0.2*Berserker_Status!E19)) -> 75.192 | H16: =Class_Compare!$C$7*(100+1.2*(0.6*Berserker_Status!B19+0.2*Berserker_Status!D19+0.2*Berserker_Status!E19)) -> 100.256 | I16: =(Class_Compare!$G$7*1000)-(Berserker_Status!D19*5) -> 932.5 | J16: =(Class_Compare!$K$7*1000+Berserker_Status!D19)/50 -> 10.27 | K16: =2+(Class_Compare!$L$7)+(Berserker_Status!E19/100) -> 2.25 | L16: =(0.2*Berserker_Status!B19+0.8*Berserker_Status!F19)/250 -> 0.044 | M16: =(Berserker_Status!C19/25) -> 1.24 | N16: =Class_Compare!$H$7*(0.2*(Berserker_Status!D19*35)) -> 66.15 | O16: =(Class_Compare!$I$7*1000+Berserker_Status!D19)/1000 -> 1.0135 | P16: =(Class_Compare!$J$7*1000+Berserker_Status!D19+Berserker_Status!E19)/10 -> 101.85 | Q16: =( (Berserker_Status!F19*Class_Compare!$M$7)+5 ) /2 -> 3.15 | R16: =((Berserker_Status!E19+Berserker_Status!F19)*Class_Compare!$N$7)/5 -> 0.46 | S16: 200 | T16: 0 | U16: 1.1875 | W16: =(Class_Compare!$J$7*1000+Berserker_Status!D19+Berserker_Status!E19)/10 -> 101.85 | AA16: 방어력
A17: Berserker | B17: 16 | C17: =(B17^2*0.7)+Berserker_Status!$C20*(Berserker_Status!$C20*Class_Compare!$D$7)/2+100 -> 791.2 | D17: =(U17)*(Class_Compare!$E$7*(50+1.5*(0.8*Berserker_Status!C20+0.2*Berserker_Status!F20))) -> 65.1168 | E17: =Berserker_Status!F20*(Berserker_Status!F20*Class_Compare!$O$7)+100 -> 109.248 | F17: 94.99526882 | G17: =Class_Compare!$B$7*(100+1.2*(0.6*Berserker_Status!B20+0.2*Berserker_Status!D20+0.2*Berserker_Status!E20)) -> 75.7248 | H17: =Class_Compare!$C$7*(100+1.2*(0.6*Berserker_Status!B20+0.2*Berserker_Status!D20+0.2*Berserker_Status!E20)) -> 100.9664 | I17: =(Class_Compare!$G$7*1000)-(Berserker_Status!D20*5) -> 930 | J17: =(Class_Compare!$K$7*1000+Berserker_Status!D20)/50 -> 10.28 | K17: =2+(Class_Compare!$L$7)+(Berserker_Status!E20/100) -> 2.252 | L17: =(0.2*Berserker_Status!B20+0.8*Berserker_Status!F20)/250 -> 0.04576 | M17: =(Berserker_Status!C20/25) -> 1.28 | N17: =Class_Compare!$H$7*(0.2*(Berserker_Status!D20*35)) -> 68.6 | O17: =(Class_Compare!$I$7*1000+Berserker_Status!D20)/1000 -> 1.014 | P17: =(Class_Compare!$J$7*1000+Berserker_Status!D20+Berserker_Status!E20)/10 -> 101.92 | Q17: =( (Berserker_Status!F20*Class_Compare!$M$7)+5 ) /2 -> 3.18 | R17: =((Berserker_Status!E20+Berserker_Status!F20)*Class_Compare!$N$7)/5 -> 0.48 | S17: 200 | T17: 0 | U17: 1.2 | W17: =(Class_Compare!$J$7*1000+Berserker_Status!D20+Berserker_Status!E20)/10 -> 101.92 | AA17: 생명력
A18: Berserker | B18: 17 | C18: =(B18^2*0.7)+Berserker_Status!$C21*(Berserker_Status!$C21*Class_Compare!$D$7)/2+100 -> 846.8 | D18: =(U18)*(Class_Compare!$E$7*(50+1.5*(0.8*Berserker_Status!C21+0.2*Berserker_Status!F21))) -> 66.733575 | E18: =Berserker_Status!F21*(Berserker_Status!F21*Class_Compare!$O$7)+100 -> 110.082 | F18: 95.92150943 | G18: =Class_Compare!$B$7*(100+1.2*(0.6*Berserker_Status!B21+0.2*Berserker_Status!D21+0.2*Berserker_Status!E21)) -> 76.2576 | H18: =Class_Compare!$C$7*(100+1.2*(0.6*Berserker_Status!B21+0.2*Berserker_Status!D21+0.2*Berserker_Status!E21)) -> 101.6768 | I18: =(Class_Compare!$G$7*1000)-(Berserker_Status!D21*5) -> 927.5 | J18: =(Class_Compare!$K$7*1000+Berserker_Status!D21)/50 -> 10.29 | K18: =2+(Class_Compare!$L$7)+(Berserker_Status!E21/100) -> 2.254 | L18: =(0.2*Berserker_Status!B21+0.8*Berserker_Status!F21)/250 -> 0.04752 | M18: =(Berserker_Status!C21/25) -> 1.32 | N18: =Class_Compare!$H$7*(0.2*(Berserker_Status!D21*35)) -> 71.05 | O18: =(Class_Compare!$I$7*1000+Berserker_Status!D21)/1000 -> 1.0145 | P18: =(Class_Compare!$J$7*1000+Berserker_Status!D21+Berserker_Status!E21)/10 -> 101.99 | Q18: =( (Berserker_Status!F21*Class_Compare!$M$7)+5 ) /2 -> 3.21 | R18: =((Berserker_Status!E21+Berserker_Status!F21)*Class_Compare!$N$7)/5 -> 0.5 | S18: 200 | T18: 0 | U18: 1.2125 | W18: =(Class_Compare!$J$7*1000+Berserker_Status!D21+Berserker_Status!E21)/10 -> 101.99 | Y18: =21234+(2500*(1+((20+13)/100))) -> 24559 | AA18: 생명력회복률
A19: Berserker | B19: 18 | C19: =(B19^2*0.7)+Berserker_Status!$C22*(Berserker_Status!$C22*Class_Compare!$D$7)/2+100 -> 904.8 | D19: =(U19)*(Class_Compare!$E$7*(50+1.5*(0.8*Berserker_Status!C22+0.2*Berserker_Status!F22))) -> 68.3697 | E19: =Berserker_Status!F22*(Berserker_Status!F22*Class_Compare!$O$7)+100 -> 110.952 | F19: 96.85275676 | G19: =Class_Compare!$B$7*(100+1.2*(0.6*Berserker_Status!B22+0.2*Berserker_Status!D22+0.2*Berserker_Status!E22)) -> 76.7904 | H19: =Class_Compare!$C$7*(100+1.2*(0.6*Berserker_Status!B22+0.2*Berserker_Status!D22+0.2*Berserker_Status!E22)) -> 102.3872 | I19: =(Class_Compare!$G$7*1000)-(Berserker_Status!D22*5) -> 925 | J19: =(Class_Compare!$K$7*1000+Berserker_Status!D22)/50 -> 10.3 | K19: =2+(Class_Compare!$L$7)+(Berserker_Status!E22/100) -> 2.256 | L19: =(0.2*Berserker_Status!B22+0.8*Berserker_Status!F22)/250 -> 0.04928 | M19: =(Berserker_Status!C22/25) -> 1.36 | N19: =Class_Compare!$H$7*(0.2*(Berserker_Status!D22*35)) -> 73.5 | O19: =(Class_Compare!$I$7*1000+Berserker_Status!D22)/1000 -> 1.015 | P19: =(Class_Compare!$J$7*1000+Berserker_Status!D22+Berserker_Status!E22)/10 -> 102.06 | Q19: =( (Berserker_Status!F22*Class_Compare!$M$7)+5 ) /2 -> 3.24 | R19: =((Berserker_Status!E22+Berserker_Status!F22)*Class_Compare!$N$7)/5 -> 0.52 | S19: 200 | T19: 0 | U19: 1.225 | W19: =(Class_Compare!$J$7*1000+Berserker_Status!D22+Berserker_Status!E22)/10 -> 102.06 | AA19: 회피율
A20: Berserker | B20: 19 | C20: =(B20^2*0.7)+Berserker_Status!$C23*(Berserker_Status!$C23*Class_Compare!$D$7)/2+100 -> 965.2 | D20: =(U20)*(Class_Compare!$E$7*(50+1.5*(0.8*Berserker_Status!C23+0.2*Berserker_Status!F23))) -> 70.025175 | E20: =Berserker_Status!F23*(Berserker_Status!F23*Class_Compare!$O$7)+100 -> 111.858 | F20: 97.78905149 | G20: =Class_Compare!$B$7*(100+1.2*(0.6*Berserker_Status!B23+0.2*Berserker_Status!D23+0.2*Berserker_Status!E23)) -> 77.3232 | H20: =Class_Compare!$C$7*(100+1.2*(0.6*Berserker_Status!B23+0.2*Berserker_Status!D23+0.2*Berserker_Status!E23)) -> 103.0976 | I20: =(Class_Compare!$G$7*1000)-(Berserker_Status!D23*5) -> 922.5 | J20: =(Class_Compare!$K$7*1000+Berserker_Status!D23)/50 -> 10.31 | K20: =2+(Class_Compare!$L$7)+(Berserker_Status!E23/100) -> 2.258 | L20: =(0.2*Berserker_Status!B23+0.8*Berserker_Status!F23)/250 -> 0.05104 | M20: =(Berserker_Status!C23/25) -> 1.4 | N20: =Class_Compare!$H$7*(0.2*(Berserker_Status!D23*35)) -> 75.95 | O20: =(Class_Compare!$I$7*1000+Berserker_Status!D23)/1000 -> 1.0155 | P20: =(Class_Compare!$J$7*1000+Berserker_Status!D23+Berserker_Status!E23)/10 -> 102.13 | Q20: =( (Berserker_Status!F23*Class_Compare!$M$7)+5 ) /2 -> 3.27 | R20: =((Berserker_Status!E23+Berserker_Status!F23)*Class_Compare!$N$7)/5 -> 0.54 | S20: 200 | T20: 0 | U20: 1.2375 | W20: =(Class_Compare!$J$7*1000+Berserker_Status!D23+Berserker_Status!E23)/10 -> 102.13 | Y20: =21234+2500 -> 23734 | AA20: 공격속도
A21: Berserker | B21: 20 | C21: =(B21^2*0.7)+Berserker_Status!$C24*(Berserker_Status!$C24*Class_Compare!$D$7)/2+100 -> 1028 | D21: =(U21)*(Class_Compare!$E$7*(50+1.5*(0.8*Berserker_Status!C24+0.2*Berserker_Status!F24))) -> 71.7 | E21: =Berserker_Status!F24*(Berserker_Status!F24*Class_Compare!$O$7)+100 -> 112.8 | F21: 98.73043478 | G21: =Class_Compare!$B$7*(100+1.2*(0.6*Berserker_Status!B24+0.2*Berserker_Status!D24+0.2*Berserker_Status!E24)) -> 77.856 | H21: =Class_Compare!$C$7*(100+1.2*(0.6*Berserker_Status!B24+0.2*Berserker_Status!D24+0.2*Berserker_Status!E24)) -> 103.808 | I21: =(Class_Compare!$G$7*1000)-(Berserker_Status!D24*5) -> 920 | J21: =(Class_Compare!$K$7*1000+Berserker_Status!D24)/50 -> 10.32 | K21: =2+(Class_Compare!$L$7)+(Berserker_Status!E24/100) -> 2.26 | L21: =(0.2*Berserker_Status!B24+0.8*Berserker_Status!F24)/250 -> 0.0528 | M21: =(Berserker_Status!C24/25) -> 1.44 | N21: =Class_Compare!$H$7*(0.2*(Berserker_Status!D24*35)) -> 78.4 | O21: =(Class_Compare!$I$7*1000+Berserker_Status!D24)/1000 -> 1.016 | P21: =(Class_Compare!$J$7*1000+Berserker_Status!D24+Berserker_Status!E24)/10 -> 102.2 | Q21: =( (Berserker_Status!F24*Class_Compare!$M$7)+5 ) /2 -> 3.3 | R21: =((Berserker_Status!E24+Berserker_Status!F24)*Class_Compare!$N$7)/5 -> 0.56 | S21: 200 | T21: 0 | U21: 1.25 | W21: =(Class_Compare!$J$7*1000+Berserker_Status!D24+Berserker_Status!E24)/10 -> 102.2 | AA21: 스킬쿨타임 감소
A22: 클래스 | B22: BskM1 | C22: Sts(C / J), com(D7 / D8) | D22: Sts(C,F / J,M), com(E7 / E8) | AA22: 방어감소
A23: BskM1 | B23: 21 | C23: =(B23^2*0.7)+Berserker_Status!$J5*(Berserker_Status!$J5*Class_Compare!$D$8)/2+100 -> 1256.956 | D23: =(U23)*(Class_Compare!$E$8*(50+(0.8*Berserker_Status!J5+0.2*Berserker_Status!M5))) -> 82.5372 | E23: =Berserker_Status!M5*(Berserker_Status!M5*Class_Compare!$O$8)+100 -> 126.896 | F23: =((G23+H23)/2)*(1000/(I23)) -> 135.6728462 | G23: =Class_Compare!$B$8*(100+1.2*(0.6*Berserker_Status!I5+0.2*Berserker_Status!K5+0.2*Berserker_Status!L5)) -> 104.768 | H23: =Class_Compare!$C$8*(100+1.2*(0.6*Berserker_Status!I5+0.2*Berserker_Status!K5+0.2*Berserker_Status!L5)) -> 144.056 | I23: =(Class_Compare!$G$7*1000)-(Berserker_Status!K5*5) -> 917 | J23: =(Class_Compare!$K$8*1000+Berserker_Status!K5)/50 -> 14.332 | K23: =2+(Class_Compare!$L$8)/2+(Berserker_Status!L5/100) -> 2.262 | L23: =(0.2*Berserker_Status!I5+0.8*Berserker_Status!M5)/250 -> 0.05456 | M23: =(Berserker_Status!J5/25) -> 1.504 | N23: =Class_Compare!$H$8*(0.2*(Berserker_Status!K5*35)) -> 104.58 | O23: =(Class_Compare!$I$8*1000+Berserker_Status!K5)/1000 -> 1.1166 | P23: =(Class_Compare!$J$8*1000+Berserker_Status!K5+Berserker_Status!L5)/10 -> 102.28 | Q23: =( (Berserker_Status!M5*Class_Compare!$M$8)+5 )/2 -> 3.73 | R23: =((Berserker_Status!L5+Berserker_Status!M5)*Class_Compare!$N$8)/5 -> 0.864 | S23: 200 | T23: 0 | U23: =$U$1*(1+0.05*(B23/4)) -> 1.2625 | W23: =(Class_Compare!$J$8*1000+Berserker_Status!K5+Berserker_Status!L5)/10 -> 102.28 | AA23: 치명타확률
A24: BskM1 | B24: 22 | C24: =(B24^2*0.7)+Berserker_Status!$J6*(Berserker_Status!$J6*Class_Compare!$D$8)/2+100 -> 1360.784 | D24: =(U24)*(Class_Compare!$E$8*(50+(0.8*Berserker_Status!J6+0.2*Berserker_Status!M6))) -> 84.7008 | E24: =Berserker_Status!M6*(Berserker_Status!M6*Class_Compare!$O$8)+100 -> 128.224 | F24: =((G24+H24)/2)*(1000/(I24)) -> 137.3654267 | G24: =Class_Compare!$B$8*(100+1.2*(0.6*Berserker_Status!I6+0.2*Berserker_Status!K6+0.2*Berserker_Status!L6)) -> 105.728 | H24: =Class_Compare!$C$8*(100+1.2*(0.6*Berserker_Status!I6+0.2*Berserker_Status!K6+0.2*Berserker_Status!L6)) -> 145.376 | I24: =(Class_Compare!$G$7*1000)-(Berserker_Status!K6*5) -> 914 | J24: =(Class_Compare!$K$8*1000+Berserker_Status!K6)/50 -> 14.344 | K24: =2+(Class_Compare!$L$8)/2+(Berserker_Status!L6/100) -> 2.264 | L24: =(0.2*Berserker_Status!I6+0.8*Berserker_Status!M6)/250 -> 0.05632 | M24: =(Berserker_Status!J6/25) -> 1.568 | N24: =Class_Compare!$H$8*(0.2*(Berserker_Status!K6*35)) -> 108.36 | O24: =(Class_Compare!$I$8*1000+Berserker_Status!K6)/1000 -> 1.1172 | P24: =(Class_Compare!$J$8*1000+Berserker_Status!K6+Berserker_Status!L6)/10 -> 102.36 | Q24: =( (Berserker_Status!M6*Class_Compare!$M$8)+5 )/2 -> 3.76 | R24: =((Berserker_Status!L6+Berserker_Status!M6)*Class_Compare!$N$8)/5 -> 0.888 | S24: 200 | T24: 0 | U24: =$U$1*(1+0.05*(B24/4)) -> 1.275 | W24: =(Class_Compare!$J$8*1000+Berserker_Status!K6+Berserker_Status!L6)/10 -> 102.36 | AA24: 치명타확률감소
A25: BskM1 | B25: 23 | C25: =(B25^2*0.7)+Berserker_Status!$J7*(Berserker_Status!$J7*Class_Compare!$D$8)/2+100 -> 1469.084 | D25: =(U25)*(Class_Compare!$E$8*(50+(0.8*Berserker_Status!J7+0.2*Berserker_Status!M7))) -> 86.8908 | E25: =Berserker_Status!M7*(Berserker_Status!M7*Class_Compare!$O$8)+100 -> 129.584 | F25: 139.0691548 | G25: =Class_Compare!$B$8*(100+1.2*(0.6*Berserker_Status!I7+0.2*Berserker_Status!K7+0.2*Berserker_Status!L7)) -> 106.688 | H25: =Class_Compare!$C$8*(100+1.2*(0.6*Berserker_Status!I7+0.2*Berserker_Status!K7+0.2*Berserker_Status!L7)) -> 146.696 | I25: =(Class_Compare!$G$7*1000)-(Berserker_Status!K7*5) -> 911 | J25: =(Class_Compare!$K$8*1000+Berserker_Status!K7)/50 -> 14.356 | K25: =2+(Class_Compare!$L$8)/2+(Berserker_Status!L7/100) -> 2.266 | L25: =(0.2*Berserker_Status!I7+0.8*Berserker_Status!M7)/250 -> 0.05808 | M25: =(Berserker_Status!J7/25) -> 1.632 | N25: =Class_Compare!$H$8*(0.2*(Berserker_Status!K7*35)) -> 112.14 | O25: =(Class_Compare!$I$8*1000+Berserker_Status!K7)/1000 -> 1.1178 | P25: =(Class_Compare!$J$8*1000+Berserker_Status!K7+Berserker_Status!L7)/10 -> 102.44 | Q25: =( (Berserker_Status!M7*Class_Compare!$M$8)+5 )/2 -> 3.79 | R25: =((Berserker_Status!L7+Berserker_Status!M7)*Class_Compare!$N$8)/5 -> 0.912 | S25: 200 | T25: 0 | U25: 1.2875 | W25: =(Class_Compare!$J$8*1000+Berserker_Status!K7+Berserker_Status!L7)/10 -> 102.44 | AA25: 치명타피해
A26: BskM1 | B26: 24 | C26: =(B26^2*0.7)+Berserker_Status!$J8*(Berserker_Status!$J8*Class_Compare!$D$8)/2+100 -> 1581.856 | D26: =(U26)*(Class_Compare!$E$8*(50+(0.8*Berserker_Status!J8+0.2*Berserker_Status!M8))) -> 89.1072 | E26: =Berserker_Status!M8*(Berserker_Status!M8*Class_Compare!$O$8)+100 -> 130.976 | F26: 140.784141 | G26: =Class_Compare!$B$8*(100+1.2*(0.6*Berserker_Status!I8+0.2*Berserker_Status!K8+0.2*Berserker_Status!L8)) -> 107.648 | H26: =Class_Compare!$C$8*(100+1.2*(0.6*Berserker_Status!I8+0.2*Berserker_Status!K8+0.2*Berserker_Status!L8)) -> 148.016 | I26: =(Class_Compare!$G$7*1000)-(Berserker_Status!K8*5) -> 908 | J26: =(Class_Compare!$K$8*1000+Berserker_Status!K8)/50 -> 14.368 | K26: =2+(Class_Compare!$L$8)/2+(Berserker_Status!L8/100) -> 2.268 | L26: =(0.2*Berserker_Status!I8+0.8*Berserker_Status!M8)/250 -> 0.05984 | M26: =(Berserker_Status!J8/25) -> 1.696 | N26: =Class_Compare!$H$8*(0.2*(Berserker_Status!K8*35)) -> 115.92 | O26: =(Class_Compare!$I$8*1000+Berserker_Status!K8)/1000 -> 1.1184 | P26: =(Class_Compare!$J$8*1000+Berserker_Status!K8+Berserker_Status!L8)/10 -> 102.52 | Q26: =( (Berserker_Status!M8*Class_Compare!$M$8)+5 )/2 -> 3.82 | R26: =((Berserker_Status!L8+Berserker_Status!M8)*Class_Compare!$N$8)/5 -> 0.936 | S26: 200 | T26: 0 | U26: 1.3 | W26: =(Class_Compare!$J$8*1000+Berserker_Status!K8+Berserker_Status!L8)/10 -> 102.52 | AA26: 치명타피해감소
A27: BskM1 | B27: 25 | C27: =(B27^2*0.7)+Berserker_Status!$J9*(Berserker_Status!$J9*Class_Compare!$D$8)/2+100 -> 1699.1 | D27: =(U27)*(Class_Compare!$E$8*(50+(0.8*Berserker_Status!J9+0.2*Berserker_Status!M9))) -> 91.35 | E27: =Berserker_Status!M9*(Berserker_Status!M9*Class_Compare!$O$8)+100 -> 132.4 | F27: 142.5104972 | G27: =Class_Compare!$B$8*(100+1.2*(0.6*Berserker_Status!I9+0.2*Berserker_Status!K9+0.2*Berserker_Status!L9)) -> 108.608 | H27: =Class_Compare!$C$8*(100+1.2*(0.6*Berserker_Status!I9+0.2*Berserker_Status!K9+0.2*Berserker_Status!L9)) -> 149.336 | I27: =(Class_Compare!$G$7*1000)-(Berserker_Status!K9*5) -> 905 | J27: =(Class_Compare!$K$8*1000+Berserker_Status!K9)/50 -> 14.38 | K27: =2+(Class_Compare!$L$8)/2+(Berserker_Status!L9/100) -> 2.27 | L27: =(0.2*Berserker_Status!I9+0.8*Berserker_Status!M9)/250 -> 0.0616 | M27: =(Berserker_Status!J9/25) -> 1.76 | N27: =Class_Compare!$H$8*(0.2*(Berserker_Status!K9*35)) -> 119.7 | O27: =(Class_Compare!$I$8*1000+Berserker_Status!K9)/1000 -> 1.119 | P27: =(Class_Compare!$J$8*1000+Berserker_Status!K9+Berserker_Status!L9)/10 -> 102.6 | Q27: =( (Berserker_Status!M9*Class_Compare!$M$8)+5 )/2 -> 3.85 | R27: =((Berserker_Status!L9+Berserker_Status!M9)*Class_Compare!$N$8)/5 -> 0.96 | S27: 200 | T27: 0 | U27: 1.3125 | W27: =(Class_Compare!$J$8*1000+Berserker_Status!K9+Berserker_Status!L9)/10 -> 102.6 | AA27: 피해감소
A28: BskM1 | B28: 26 | C28: =(B28^2*0.7)+Berserker_Status!$J10*(Berserker_Status!$J10*Class_Compare!$D$8)/2+100 -> 1820.816 | D28: =(U28)*(Class_Compare!$E$8*(50+(0.8*Berserker_Status!J10+0.2*Berserker_Status!M10))) -> 93.6192 | E28: =Berserker_Status!M10*(Berserker_Status!M10*Class_Compare!$O$8)+100 -> 133.856 | F28: 144.248337 | G28: =Class_Compare!$B$8*(100+1.2*(0.6*Berserker_Status!I10+0.2*Berserker_Status!K10+0.2*Berserker_Status!L10)) -> 109.568 | H28: =Class_Compare!$C$8*(100+1.2*(0.6*Berserker_Status!I10+0.2*Berserker_Status!K10+0.2*Berserker_Status!L10)) -> 150.656 | I28: =(Class_Compare!$G$7*1000)-(Berserker_Status!K10*5) -> 902 | J28: =(Class_Compare!$K$8*1000+Berserker_Status!K10)/50 -> 14.392 | K28: =2+(Class_Compare!$L$8)/2+(Berserker_Status!L10/100) -> 2.272 | L28: =(0.2*Berserker_Status!I10+0.8*Berserker_Status!M10)/250 -> 0.06336 | M28: =(Berserker_Status!J10/25) -> 1.824 | N28: =Class_Compare!$H$8*(0.2*(Berserker_Status!K10*35)) -> 123.48 | O28: =(Class_Compare!$I$8*1000+Berserker_Status!K10)/1000 -> 1.1196 | P28: =(Class_Compare!$J$8*1000+Berserker_Status!K10+Berserker_Status!L10)/10 -> 102.68 | Q28: =( (Berserker_Status!M10*Class_Compare!$M$8)+5 )/2 -> 3.88 | R28: =((Berserker_Status!L10+Berserker_Status!M10)*Class_Compare!$N$8)/5 -> 0.984 | S28: 200 | T28: 0 | U28: 1.325 | W28: =(Class_Compare!$J$8*1000+Berserker_Status!K10+Berserker_Status!L10)/10 -> 102.68 | AA28: 상태이상 저항력
A29: BskM1 | B29: 27 | C29: =(B29^2*0.7)+Berserker_Status!$J11*(Berserker_Status!$J11*Class_Compare!$D$8)/2+100 -> 1947.004 | D29: =(U29)*(Class_Compare!$E$8*(50+(0.8*Berserker_Status!J11+0.2*Berserker_Status!M11))) -> 95.9148 | E29: =Berserker_Status!M11*(Berserker_Status!M11*Class_Compare!$O$8)+100 -> 135.344 | F29: 145.9977753 | G29: =Class_Compare!$B$8*(100+1.2*(0.6*Berserker_Status!I11+0.2*Berserker_Status!K11+0.2*Berserker_Status!L11)) -> 110.528 | H29: =Class_Compare!$C$8*(100+1.2*(0.6*Berserker_Status!I11+0.2*Berserker_Status!K11+0.2*Berserker_Status!L11)) -> 151.976 | I29: =(Class_Compare!$G$7*1000)-(Berserker_Status!K11*5) -> 899 | J29: =(Class_Compare!$K$8*1000+Berserker_Status!K11)/50 -> 14.404 | K29: =2+(Class_Compare!$L$8)/2+(Berserker_Status!L11/100) -> 2.274 | L29: =(0.2*Berserker_Status!I11+0.8*Berserker_Status!M11)/250 -> 0.06512 | M29: =(Berserker_Status!J11/25) -> 1.888 | N29: =Class_Compare!$H$8*(0.2*(Berserker_Status!K11*35)) -> 127.26 | O29: =(Class_Compare!$I$8*1000+Berserker_Status!K11)/1000 -> 1.1202 | P29: =(Class_Compare!$J$8*1000+Berserker_Status!K11+Berserker_Status!L11)/10 -> 102.76 | Q29: =( (Berserker_Status!M11*Class_Compare!$M$8)+5 )/2 -> 3.91 | R29: =((Berserker_Status!L11+Berserker_Status!M11)*Class_Compare!$N$8)/5 -> 1.008 | S29: 200 | T29: 0 | U29: 1.3375 | W29: =(Class_Compare!$J$8*1000+Berserker_Status!K11+Berserker_Status!L11)/10 -> 102.76 | AA29: 이동속도
A30: BskM1 | B30: 28 | C30: =(B30^2*0.7)+Berserker_Status!$J12*(Berserker_Status!$J12*Class_Compare!$D$8)/2+100 -> 2077.664 | D30: =(U30)*(Class_Compare!$E$8*(50+(0.8*Berserker_Status!J12+0.2*Berserker_Status!M12))) -> 98.2368 | E30: =Berserker_Status!M12*(Berserker_Status!M12*Class_Compare!$O$8)+100 -> 136.864 | F30: 147.7589286 | G30: =Class_Compare!$B$8*(100+1.2*(0.6*Berserker_Status!I12+0.2*Berserker_Status!K12+0.2*Berserker_Status!L12)) -> 111.488 | H30: =Class_Compare!$C$8*(100+1.2*(0.6*Berserker_Status!I12+0.2*Berserker_Status!K12+0.2*Berserker_Status!L12)) -> 153.296 | I30: =(Class_Compare!$G$7*1000)-(Berserker_Status!K12*5) -> 896 | J30: =(Class_Compare!$K$8*1000+Berserker_Status!K12)/50 -> 14.416 | K30: =2+(Class_Compare!$L$8)/2+(Berserker_Status!L12/100) -> 2.276 | L30: =(0.2*Berserker_Status!I12+0.8*Berserker_Status!M12)/250 -> 0.06688 | M30: =(Berserker_Status!J12/25) -> 1.952 | N30: =Class_Compare!$H$8*(0.2*(Berserker_Status!K12*35)) -> 131.04 | O30: =(Class_Compare!$I$8*1000+Berserker_Status!K12)/1000 -> 1.1208 | P30: =(Class_Compare!$J$8*1000+Berserker_Status!K12+Berserker_Status!L12)/10 -> 102.84 | Q30: =( (Berserker_Status!M12*Class_Compare!$M$8)+5 )/2 -> 3.94 | R30: =((Berserker_Status!L12+Berserker_Status!M12)*Class_Compare!$N$8)/5 -> 1.032 | S30: 200 | T30: 0 | U30: 1.35 | W30: =(Class_Compare!$J$8*1000+Berserker_Status!K12+Berserker_Status!L12)/10 -> 102.84 | AA30: 활력 충전
A31: BskM1 | B31: 29 | C31: =(B31^2*0.7)+Berserker_Status!$J13*(Berserker_Status!$J13*Class_Compare!$D$8)/2+100 -> 2212.796 | D31: =(U31)*(Class_Compare!$E$8*(50+(0.8*Berserker_Status!J13+0.2*Berserker_Status!M13))) -> 100.5852 | E31: =Berserker_Status!M13*(Berserker_Status!M13*Class_Compare!$O$8)+100 -> 138.416 | F31: 149.5319149 | G31: =Class_Compare!$B$8*(100+1.2*(0.6*Berserker_Status!I13+0.2*Berserker_Status!K13+0.2*Berserker_Status!L13)) -> 112.448 | H31: =Class_Compare!$C$8*(100+1.2*(0.6*Berserker_Status!I13+0.2*Berserker_Status!K13+0.2*Berserker_Status!L13)) -> 154.616 | I31: =(Class_Compare!$G$7*1000)-(Berserker_Status!K13*5) -> 893 | J31: =(Class_Compare!$K$8*1000+Berserker_Status!K13)/50 -> 14.428 | K31: =2+(Class_Compare!$L$8)/2+(Berserker_Status!L13/100) -> 2.278 | L31: =(0.2*Berserker_Status!I13+0.8*Berserker_Status!M13)/250 -> 0.06864 | M31: =(Berserker_Status!J13/25) -> 2.016 | N31: =Class_Compare!$H$8*(0.2*(Berserker_Status!K13*35)) -> 134.82 | O31: =(Class_Compare!$I$8*1000+Berserker_Status!K13)/1000 -> 1.1214 | P31: =(Class_Compare!$J$8*1000+Berserker_Status!K13+Berserker_Status!L13)/10 -> 102.92 | Q31: =( (Berserker_Status!M13*Class_Compare!$M$8)+5 )/2 -> 3.97 | R31: =((Berserker_Status!L13+Berserker_Status!M13)*Class_Compare!$N$8)/5 -> 1.056 | S31: 200 | T31: 0 | U31: 1.3625 | W31: =(Class_Compare!$J$8*1000+Berserker_Status!K13+Berserker_Status!L13)/10 -> 102.92 | AA31: 충전 증가률
A32: BskM1 | B32: 30 | C32: =(B32^2*0.7)+Berserker_Status!$J14*(Berserker_Status!$J14*Class_Compare!$D$8)/2+100 -> 2352.4 | D32: =(U32)*(Class_Compare!$E$8*(50+(0.8*Berserker_Status!J14+0.2*Berserker_Status!M14))) -> 102.96 | E32: =Berserker_Status!M14*(Berserker_Status!M14*Class_Compare!$O$8)+100 -> 140 | F32: 151.3168539 | G32: =Class_Compare!$B$8*(100+1.2*(0.6*Berserker_Status!I14+0.2*Berserker_Status!K14+0.2*Berserker_Status!L14)) -> 113.408 | H32: =Class_Compare!$C$8*(100+1.2*(0.6*Berserker_Status!I14+0.2*Berserker_Status!K14+0.2*Berserker_Status!L14)) -> 155.936 | I32: =(Class_Compare!$G$7*1000)-(Berserker_Status!K14*5) -> 890 | J32: =(Class_Compare!$K$8*1000+Berserker_Status!K14)/50 -> 14.44 | K32: =2+(Class_Compare!$L$8)/2+(Berserker_Status!L14/100) -> 2.28 | L32: =(0.2*Berserker_Status!I14+0.8*Berserker_Status!M14)/250 -> 0.0704 | M32: =(Berserker_Status!J14/25) -> 2.08 | N32: =Class_Compare!$H$8*(0.2*(Berserker_Status!K14*35)) -> 138.6 | O32: =(Class_Compare!$I$8*1000+Berserker_Status!K14)/1000 -> 1.122 | P32: =(Class_Compare!$J$8*1000+Berserker_Status!K14+Berserker_Status!L14)/10 -> 103 | Q32: =( (Berserker_Status!M14*Class_Compare!$M$8)+5 )/2 -> 4 | R32: =((Berserker_Status!L14+Berserker_Status!M14)*Class_Compare!$N$8)/5 -> 1.08 | S32: 200 | T32: 0 | U32: 1.375 | W32: =(Class_Compare!$J$8*1000+Berserker_Status!K14+Berserker_Status!L14)/10 -> 103 | AA32: 수호력
A33: BskM1 | B33: 31 | C33: =(B33^2*0.7)+Berserker_Status!$J15*(Berserker_Status!$J15*Class_Compare!$D$8)/2+100 -> 2496.476 | D33: =(U33)*(Class_Compare!$E$8*(50+(0.8*Berserker_Status!J15+0.2*Berserker_Status!M15))) -> 105.3612 | E33: =Berserker_Status!M15*(Berserker_Status!M15*Class_Compare!$O$8)+100 -> 141.616 | F33: 153.113867 | G33: =Class_Compare!$B$8*(100+1.2*(0.6*Berserker_Status!I15+0.2*Berserker_Status!K15+0.2*Berserker_Status!L15)) -> 114.368 | H33: =Class_Compare!$C$8*(100+1.2*(0.6*Berserker_Status!I15+0.2*Berserker_Status!K15+0.2*Berserker_Status!L15)) -> 157.256 | I33: =(Class_Compare!$G$7*1000)-(Berserker_Status!K15*5) -> 887 | J33: =(Class_Compare!$K$8*1000+Berserker_Status!K15)/50 -> 14.452 | K33: =2+(Class_Compare!$L$8)/2+(Berserker_Status!L15/100) -> 2.282 | L33: =(0.2*Berserker_Status!I15+0.8*Berserker_Status!M15)/250 -> 0.07216 | M33: =(Berserker_Status!J15/25) -> 2.144 | N33: =Class_Compare!$H$8*(0.2*(Berserker_Status!K15*35)) -> 142.38 | O33: =(Class_Compare!$I$8*1000+Berserker_Status!K15)/1000 -> 1.1226 | P33: =(Class_Compare!$J$8*1000+Berserker_Status!K15+Berserker_Status!L15)/10 -> 103.08 | Q33: =( (Berserker_Status!M15*Class_Compare!$M$8)+5 )/2 -> 4.03 | R33: =((Berserker_Status!L15+Berserker_Status!M15)*Class_Compare!$N$8)/5 -> 1.104 | S33: 200 | T33: 0 | U33: 1.3875 | W33: =(Class_Compare!$J$8*1000+Berserker_Status!K15+Berserker_Status!L15)/10 -> 103.08 | AA33: 수호저항력
A34: BskM1 | B34: 32 | C34: =(B34^2*0.7)+Berserker_Status!$J16*(Berserker_Status!$J16*Class_Compare!$D$8)/2+100 -> 2645.024 | D34: =(U34)*(Class_Compare!$E$8*(50+(0.8*Berserker_Status!J16+0.2*Berserker_Status!M16))) -> 107.7888 | E34: =Berserker_Status!M16*(Berserker_Status!M16*Class_Compare!$O$8)+100 -> 143.264 | F34: 154.9230769 | G34: =Class_Compare!$B$8*(100+1.2*(0.6*Berserker_Status!I16+0.2*Berserker_Status!K16+0.2*Berserker_Status!L16)) -> 115.328 | H34: =Class_Compare!$C$8*(100+1.2*(0.6*Berserker_Status!I16+0.2*Berserker_Status!K16+0.2*Berserker_Status!L16)) -> 158.576 | I34: =(Class_Compare!$G$7*1000)-(Berserker_Status!K16*5) -> 884 | J34: =(Class_Compare!$K$8*1000+Berserker_Status!K16)/50 -> 14.464 | K34: =2+(Class_Compare!$L$8)/2+(Berserker_Status!L16/100) -> 2.284 | L34: =(0.2*Berserker_Status!I16+0.8*Berserker_Status!M16)/250 -> 0.07392 | M34: =(Berserker_Status!J16/25) -> 2.208 | N34: =Class_Compare!$H$8*(0.2*(Berserker_Status!K16*35)) -> 146.16 | O34: =(Class_Compare!$I$8*1000+Berserker_Status!K16)/1000 -> 1.1232 | P34: =(Class_Compare!$J$8*1000+Berserker_Status!K16+Berserker_Status!L16)/10 -> 103.16 | Q34: =( (Berserker_Status!M16*Class_Compare!$M$8)+5 )/2 -> 4.06 | R34: =((Berserker_Status!L16+Berserker_Status!M16)*Class_Compare!$N$8)/5 -> 1.128 | S34: 200 | T34: 0 | U34: 1.4 | W34: =(Class_Compare!$J$8*1000+Berserker_Status!K16+Berserker_Status!L16)/10 -> 103.16
A35: BskM1 | B35: 33 | C35: =(B35^2*0.7)+Berserker_Status!$J17*(Berserker_Status!$J17*Class_Compare!$D$8)/2+100 -> 2798.044 | D35: =(U35)*(Class_Compare!$E$8*(50+(0.8*Berserker_Status!J17+0.2*Berserker_Status!M17))) -> 110.2428 | E35: =Berserker_Status!M17*(Berserker_Status!M17*Class_Compare!$O$8)+100 -> 144.944 | F35: 156.7446084 | G35: =Class_Compare!$B$8*(100+1.2*(0.6*Berserker_Status!I17+0.2*Berserker_Status!K17+0.2*Berserker_Status!L17)) -> 116.288 | H35: =Class_Compare!$C$8*(100+1.2*(0.6*Berserker_Status!I17+0.2*Berserker_Status!K17+0.2*Berserker_Status!L17)) -> 159.896 | I35: =(Class_Compare!$G$7*1000)-(Berserker_Status!K17*5) -> 881 | J35: =(Class_Compare!$K$8*1000+Berserker_Status!K17)/50 -> 14.476 | K35: =2+(Class_Compare!$L$8)/2+(Berserker_Status!L17/100) -> 2.286 | L35: =(0.2*Berserker_Status!I17+0.8*Berserker_Status!M17)/250 -> 0.07568 | M35: =(Berserker_Status!J17/25) -> 2.272 | N35: =Class_Compare!$H$8*(0.2*(Berserker_Status!K17*35)) -> 149.94 | O35: =(Class_Compare!$I$8*1000+Berserker_Status!K17)/1000 -> 1.1238 | P35: =(Class_Compare!$J$8*1000+Berserker_Status!K17+Berserker_Status!L17)/10 -> 103.24 | Q35: =( (Berserker_Status!M17*Class_Compare!$M$8)+5 )/2 -> 4.09 | R35: =((Berserker_Status!L17+Berserker_Status!M17)*Class_Compare!$N$8)/5 -> 1.152 | S35: 200 | T35: 0 | U35: 1.4125 | W35: =(Class_Compare!$J$8*1000+Berserker_Status!K17+Berserker_Status!L17)/10 -> 103.24
A36: BskM1 | B36: 34 | C36: =(B36^2*0.7)+Berserker_Status!$J18*(Berserker_Status!$J18*Class_Compare!$D$8)/2+100 -> 2955.536 | D36: =(U36)*(Class_Compare!$E$8*(50+(0.8*Berserker_Status!J18+0.2*Berserker_Status!M18))) -> 112.7232 | E36: =Berserker_Status!M18*(Berserker_Status!M18*Class_Compare!$O$8)+100 -> 146.656 | F36: 158.5785877 | G36: =Class_Compare!$B$8*(100+1.2*(0.6*Berserker_Status!I18+0.2*Berserker_Status!K18+0.2*Berserker_Status!L18)) -> 117.248 | H36: =Class_Compare!$C$8*(100+1.2*(0.6*Berserker_Status!I18+0.2*Berserker_Status!K18+0.2*Berserker_Status!L18)) -> 161.216 | I36: =(Class_Compare!$G$7*1000)-(Berserker_Status!K18*5) -> 878 | J36: =(Class_Compare!$K$8*1000+Berserker_Status!K18)/50 -> 14.488 | K36: =2+(Class_Compare!$L$8)/2+(Berserker_Status!L18/100) -> 2.288 | L36: =(0.2*Berserker_Status!I18+0.8*Berserker_Status!M18)/250 -> 0.07744 | M36: =(Berserker_Status!J18/25) -> 2.336 | N36: =Class_Compare!$H$8*(0.2*(Berserker_Status!K18*35)) -> 153.72 | O36: =(Class_Compare!$I$8*1000+Berserker_Status!K18)/1000 -> 1.1244 | P36: =(Class_Compare!$J$8*1000+Berserker_Status!K18+Berserker_Status!L18)/10 -> 103.32 | Q36: =( (Berserker_Status!M18*Class_Compare!$M$8)+5 )/2 -> 4.12 | R36: =((Berserker_Status!L18+Berserker_Status!M18)*Class_Compare!$N$8)/5 -> 1.176 | S36: 200 | T36: 0 | U36: 1.425 | W36: =(Class_Compare!$J$8*1000+Berserker_Status!K18+Berserker_Status!L18)/10 -> 103.32
A37: BskM1 | B37: 35 | C37: =(B37^2*0.7)+Berserker_Status!$J19*(Berserker_Status!$J19*Class_Compare!$D$8)/2+100 -> 3117.5 | D37: =(U37)*(Class_Compare!$E$8*(50+(0.8*Berserker_Status!J19+0.2*Berserker_Status!M19))) -> 115.23 | E37: =Berserker_Status!M19*(Berserker_Status!M19*Class_Compare!$O$8)+100 -> 148.4 | F37: 160.4251429 | G37: =Class_Compare!$B$8*(100+1.2*(0.6*Berserker_Status!I19+0.2*Berserker_Status!K19+0.2*Berserker_Status!L19)) -> 118.208 | H37: =Class_Compare!$C$8*(100+1.2*(0.6*Berserker_Status!I19+0.2*Berserker_Status!K19+0.2*Berserker_Status!L19)) -> 162.536 | I37: =(Class_Compare!$G$7*1000)-(Berserker_Status!K19*5) -> 875 | J37: =(Class_Compare!$K$8*1000+Berserker_Status!K19)/50 -> 14.5 | K37: =2+(Class_Compare!$L$8)/2+(Berserker_Status!L19/100) -> 2.29 | L37: =(0.2*Berserker_Status!I19+0.8*Berserker_Status!M19)/250 -> 0.0792 | M37: =(Berserker_Status!J19/25) -> 2.4 | N37: =Class_Compare!$H$8*(0.2*(Berserker_Status!K19*35)) -> 157.5 | O37: =(Class_Compare!$I$8*1000+Berserker_Status!K19)/1000 -> 1.125 | P37: =(Class_Compare!$J$8*1000+Berserker_Status!K19+Berserker_Status!L19)/10 -> 103.4 | Q37: =( (Berserker_Status!M19*Class_Compare!$M$8)+5 )/2 -> 4.15 | R37: =((Berserker_Status!L19+Berserker_Status!M19)*Class_Compare!$N$8)/5 -> 1.2 | S37: 200 | T37: 0 | U37: 1.4375 | W37: =(Class_Compare!$J$8*1000+Berserker_Status!K19+Berserker_Status!L19)/10 -> 103.4
A38: BskM1 | B38: 36 | C38: =(B38^2*0.7)+Berserker_Status!$J20*(Berserker_Status!$J20*Class_Compare!$D$8)/2+100 -> 3283.936 | D38: =(U38)*(Class_Compare!$E$8*(50+(0.8*Berserker_Status!J20+0.2*Berserker_Status!M20))) -> 117.7632 | E38: =Berserker_Status!M20*(Berserker_Status!M20*Class_Compare!$O$8)+100 -> 150.176 | F38: 162.2844037 | G38: =Class_Compare!$B$8*(100+1.2*(0.6*Berserker_Status!I20+0.2*Berserker_Status!K20+0.2*Berserker_Status!L20)) -> 119.168 | H38: =Class_Compare!$C$8*(100+1.2*(0.6*Berserker_Status!I20+0.2*Berserker_Status!K20+0.2*Berserker_Status!L20)) -> 163.856 | I38: =(Class_Compare!$G$7*1000)-(Berserker_Status!K20*5) -> 872 | J38: =(Class_Compare!$K$8*1000+Berserker_Status!K20)/50 -> 14.512 | K38: =2+(Class_Compare!$L$8)/2+(Berserker_Status!L20/100) -> 2.292 | L38: =(0.2*Berserker_Status!I20+0.8*Berserker_Status!M20)/250 -> 0.08096 | M38: =(Berserker_Status!J20/25) -> 2.464 | N38: =Class_Compare!$H$8*(0.2*(Berserker_Status!K20*35)) -> 161.28 | O38: =(Class_Compare!$I$8*1000+Berserker_Status!K20)/1000 -> 1.1256 | P38: =(Class_Compare!$J$8*1000+Berserker_Status!K20+Berserker_Status!L20)/10 -> 103.48 | Q38: =( (Berserker_Status!M20*Class_Compare!$M$8)+5 )/2 -> 4.18 | R38: =((Berserker_Status!L20+Berserker_Status!M20)*Class_Compare!$N$8)/5 -> 1.224 | S38: 200 | T38: 0 | U38: 1.45 | W38: =(Class_Compare!$J$8*1000+Berserker_Status!K20+Berserker_Status!L20)/10 -> 103.48
A39: BskM1 | B39: 37 | C39: =(B39^2*0.7)+Berserker_Status!$J21*(Berserker_Status!$J21*Class_Compare!$D$8)/2+100 -> 3454.844 | D39: =(U39)*(Class_Compare!$E$8*(50+(0.8*Berserker_Status!J21+0.2*Berserker_Status!M21))) -> 120.3228 | E39: =Berserker_Status!M21*(Berserker_Status!M21*Class_Compare!$O$8)+100 -> 151.984 | F39: 164.1565017 | G39: =Class_Compare!$B$8*(100+1.2*(0.6*Berserker_Status!I21+0.2*Berserker_Status!K21+0.2*Berserker_Status!L21)) -> 120.128 | H39: =Class_Compare!$C$8*(100+1.2*(0.6*Berserker_Status!I21+0.2*Berserker_Status!K21+0.2*Berserker_Status!L21)) -> 165.176 | I39: =(Class_Compare!$G$7*1000)-(Berserker_Status!K21*5) -> 869 | J39: =(Class_Compare!$K$8*1000+Berserker_Status!K21)/50 -> 14.524 | K39: =2+(Class_Compare!$L$8)/2+(Berserker_Status!L21/100) -> 2.294 | L39: =(0.2*Berserker_Status!I21+0.8*Berserker_Status!M21)/250 -> 0.08272 | M39: =(Berserker_Status!J21/25) -> 2.528 | N39: =Class_Compare!$H$8*(0.2*(Berserker_Status!K21*35)) -> 165.06 | O39: =(Class_Compare!$I$8*1000+Berserker_Status!K21)/1000 -> 1.1262 | P39: =(Class_Compare!$J$8*1000+Berserker_Status!K21+Berserker_Status!L21)/10 -> 103.56 | Q39: =( (Berserker_Status!M21*Class_Compare!$M$8)+5 )/2 -> 4.21 | R39: =((Berserker_Status!L21+Berserker_Status!M21)*Class_Compare!$N$8)/5 -> 1.248 | S39: 200 | T39: 0 | U39: 1.4625 | W39: =(Class_Compare!$J$8*1000+Berserker_Status!K21+Berserker_Status!L21)/10 -> 103.56
A40: BskM1 | B40: 38 | C40: =(B40^2*0.7)+Berserker_Status!$J22*(Berserker_Status!$J22*Class_Compare!$D$8)/2+100 -> 3630.224 | D40: =(U40)*(Class_Compare!$E$8*(50+(0.8*Berserker_Status!J22+0.2*Berserker_Status!M22))) -> 122.9088 | E40: =Berserker_Status!M22*(Berserker_Status!M22*Class_Compare!$O$8)+100 -> 153.824 | F40: 166.0415704 | G40: =Class_Compare!$B$8*(100+1.2*(0.6*Berserker_Status!I22+0.2*Berserker_Status!K22+0.2*Berserker_Status!L22)) -> 121.088 | H40: =Class_Compare!$C$8*(100+1.2*(0.6*Berserker_Status!I22+0.2*Berserker_Status!K22+0.2*Berserker_Status!L22)) -> 166.496 | I40: =(Class_Compare!$G$7*1000)-(Berserker_Status!K22*5) -> 866 | J40: =(Class_Compare!$K$8*1000+Berserker_Status!K22)/50 -> 14.536 | K40: =2+(Class_Compare!$L$8)/2+(Berserker_Status!L22/100) -> 2.296 | L40: =(0.2*Berserker_Status!I22+0.8*Berserker_Status!M22)/250 -> 0.08448 | M40: =(Berserker_Status!J22/25) -> 2.592 | N40: =Class_Compare!$H$8*(0.2*(Berserker_Status!K22*35)) -> 168.84 | O40: =(Class_Compare!$I$8*1000+Berserker_Status!K22)/1000 -> 1.1268 | P40: =(Class_Compare!$J$8*1000+Berserker_Status!K22+Berserker_Status!L22)/10 -> 103.64 | Q40: =( (Berserker_Status!M22*Class_Compare!$M$8)+5 )/2 -> 4.24 | R40: =((Berserker_Status!L22+Berserker_Status!M22)*Class_Compare!$N$8)/5 -> 1.272 | S40: 200 | T40: 0 | U40: 1.475 | W40: =(Class_Compare!$J$8*1000+Berserker_Status!K22+Berserker_Status!L22)/10 -> 103.64
A41: BskM1 | B41: 39 | C41: =(B41^2*0.7)+Berserker_Status!$J23*(Berserker_Status!$J23*Class_Compare!$D$8)/2+100 -> 3810.076 | D41: =(U41)*(Class_Compare!$E$8*(50+(0.8*Berserker_Status!J23+0.2*Berserker_Status!M23))) -> 125.5212 | E41: =Berserker_Status!M23*(Berserker_Status!M23*Class_Compare!$O$8)+100 -> 155.696 | F41: 167.9397451 | G41: =Class_Compare!$B$8*(100+1.2*(0.6*Berserker_Status!I23+0.2*Berserker_Status!K23+0.2*Berserker_Status!L23)) -> 122.048 | H41: =Class_Compare!$C$8*(100+1.2*(0.6*Berserker_Status!I23+0.2*Berserker_Status!K23+0.2*Berserker_Status!L23)) -> 167.816 | I41: =(Class_Compare!$G$7*1000)-(Berserker_Status!K23*5) -> 863 | J41: =(Class_Compare!$K$8*1000+Berserker_Status!K23)/50 -> 14.548 | K41: =2+(Class_Compare!$L$8)/2+(Berserker_Status!L23/100) -> 2.298 | L41: =(0.2*Berserker_Status!I23+0.8*Berserker_Status!M23)/250 -> 0.08624 | M41: =(Berserker_Status!J23/25) -> 2.656 | N41: =Class_Compare!$H$8*(0.2*(Berserker_Status!K23*35)) -> 172.62 | O41: =(Class_Compare!$I$8*1000+Berserker_Status!K23)/1000 -> 1.1274 | P41: =(Class_Compare!$J$8*1000+Berserker_Status!K23+Berserker_Status!L23)/10 -> 103.72 | Q41: =( (Berserker_Status!M23*Class_Compare!$M$8)+5 )/2 -> 4.27 | R41: =((Berserker_Status!L23+Berserker_Status!M23)*Class_Compare!$N$8)/5 -> 1.296 | S41: 200 | T41: 0 | U41: 1.4875 | W41: =(Class_Compare!$J$8*1000+Berserker_Status!K23+Berserker_Status!L23)/10 -> 103.72
A42: BskM1 | B42: 40 | C42: =(B42^2*0.7)+Berserker_Status!$J24*(Berserker_Status!$J24*Class_Compare!$D$8)/2+100 -> 3994.4 | D42: =(U42)*(Class_Compare!$E$8*(50+(0.8*Berserker_Status!J24+0.2*Berserker_Status!M24))) -> 128.16 | E42: =Berserker_Status!M24*(Berserker_Status!M24*Class_Compare!$O$8)+100 -> 157.6 | F42: 169.8511628 | G42: =Class_Compare!$B$8*(100+1.2*(0.6*Berserker_Status!I24+0.2*Berserker_Status!K24+0.2*Berserker_Status!L24)) -> 123.008 | H42: =Class_Compare!$C$8*(100+1.2*(0.6*Berserker_Status!I24+0.2*Berserker_Status!K24+0.2*Berserker_Status!L24)) -> 169.136 | I42: =(Class_Compare!$G$7*1000)-(Berserker_Status!K24*5) -> 860 | J42: =(Class_Compare!$K$8*1000+Berserker_Status!K24)/50 -> 14.56 | K42: =2+(Class_Compare!$L$8)/2+(Berserker_Status!L24/100) -> 2.3 | L42: =(0.2*Berserker_Status!I24+0.8*Berserker_Status!M24)/250 -> 0.088 | M42: =(Berserker_Status!J24/25) -> 2.72 | N42: =Class_Compare!$H$8*(0.2*(Berserker_Status!K24*35)) -> 176.4 | O42: =(Class_Compare!$I$8*1000+Berserker_Status!K24)/1000 -> 1.128 | P42: =(Class_Compare!$J$8*1000+Berserker_Status!K24+Berserker_Status!L24)/10 -> 103.8 | Q42: =( (Berserker_Status!M24*Class_Compare!$M$8)+5 )/2 -> 4.3 | R42: =((Berserker_Status!L24+Berserker_Status!M24)*Class_Compare!$N$8)/5 -> 1.32 | S42: 200 | T42: 0 | U42: 1.5 | W42: =(Class_Compare!$J$8*1000+Berserker_Status!K24+Berserker_Status!L24)/10 -> 103.8
A43: BskM1 | B43: 41 | C43: =(B43^2*0.7)+Berserker_Status!$J25*(Berserker_Status!$J25*Class_Compare!$D$8)/2+100 -> 4183.196 | D43: =(U43)*(Class_Compare!$E$8*(50+(0.8*Berserker_Status!J25+0.2*Berserker_Status!M25))) -> 130.8252 | E43: =Berserker_Status!M25*(Berserker_Status!M25*Class_Compare!$O$8)+100 -> 159.536 | F43: 171.7759627 | G43: =Class_Compare!$B$8*(100+1.2*(0.6*Berserker_Status!I25+0.2*Berserker_Status!K25+0.2*Berserker_Status!L25)) -> 123.968 | H43: =Class_Compare!$C$8*(100+1.2*(0.6*Berserker_Status!I25+0.2*Berserker_Status!K25+0.2*Berserker_Status!L25)) -> 170.456 | I43: =(Class_Compare!$G$7*1000)-(Berserker_Status!K25*5) -> 857 | J43: =(Class_Compare!$K$8*1000+Berserker_Status!K25)/50 -> 14.572 | K43: =2+(Class_Compare!$L$8)/2+(Berserker_Status!L25/100) -> 2.302 | L43: =(0.2*Berserker_Status!I25+0.8*Berserker_Status!M25)/250 -> 0.08976 | M43: =(Berserker_Status!J25/25) -> 2.784 | N43: =Class_Compare!$H$8*(0.2*(Berserker_Status!K25*35)) -> 180.18 | O43: =(Class_Compare!$I$8*1000+Berserker_Status!K25)/1000 -> 1.1286 | P43: =(Class_Compare!$J$8*1000+Berserker_Status!K25+Berserker_Status!L25)/10 -> 103.88 | Q43: =( (Berserker_Status!M25*Class_Compare!$M$8)+5 )/2 -> 4.33 | R43: =((Berserker_Status!L25+Berserker_Status!M25)*Class_Compare!$N$8)/5 -> 1.344 | S43: 200 | T43: 0 | U43: 1.5125 | W43: =(Class_Compare!$J$8*1000+Berserker_Status!K25+Berserker_Status!L25)/10 -> 103.88
A44: BskM1 | B44: 42 | C44: =(B44^2*0.7)+Berserker_Status!$J26*(Berserker_Status!$J26*Class_Compare!$D$8)/2+100 -> 4376.464 | D44: =(U44)*(Class_Compare!$E$8*(50+(0.8*Berserker_Status!J26+0.2*Berserker_Status!M26))) -> 133.5168 | E44: =Berserker_Status!M26*(Berserker_Status!M26*Class_Compare!$O$8)+100 -> 161.504 | F44: 173.7142857 | G44: =Class_Compare!$B$8*(100+1.2*(0.6*Berserker_Status!I26+0.2*Berserker_Status!K26+0.2*Berserker_Status!L26)) -> 124.928 | H44: =Class_Compare!$C$8*(100+1.2*(0.6*Berserker_Status!I26+0.2*Berserker_Status!K26+0.2*Berserker_Status!L26)) -> 171.776 | I44: =(Class_Compare!$G$7*1000)-(Berserker_Status!K26*5) -> 854 | J44: =(Class_Compare!$K$8*1000+Berserker_Status!K26)/50 -> 14.584 | K44: =2+(Class_Compare!$L$8)/2+(Berserker_Status!L26/100) -> 2.304 | L44: =(0.2*Berserker_Status!I26+0.8*Berserker_Status!M26)/250 -> 0.09152 | M44: =(Berserker_Status!J26/25) -> 2.848 | N44: =Class_Compare!$H$8*(0.2*(Berserker_Status!K26*35)) -> 183.96 | O44: =(Class_Compare!$I$8*1000+Berserker_Status!K26)/1000 -> 1.1292 | P44: =(Class_Compare!$J$8*1000+Berserker_Status!K26+Berserker_Status!L26)/10 -> 103.96 | Q44: =( (Berserker_Status!M26*Class_Compare!$M$8)+5 )/2 -> 4.36 | R44: =((Berserker_Status!L26+Berserker_Status!M26)*Class_Compare!$N$8)/5 -> 1.368 | S44: 200 | T44: 0 | U44: 1.525 | W44: =(Class_Compare!$J$8*1000+Berserker_Status!K26+Berserker_Status!L26)/10 -> 103.96
A45: BskM1 | B45: 43 | C45: =(B45^2*0.7)+Berserker_Status!$J27*(Berserker_Status!$J27*Class_Compare!$D$8)/2+100 -> 4574.204 | D45: =(U45)*(Class_Compare!$E$8*(50+(0.8*Berserker_Status!J27+0.2*Berserker_Status!M27))) -> 136.2348 | E45: =Berserker_Status!M27*(Berserker_Status!M27*Class_Compare!$O$8)+100 -> 163.504 | F45: 175.666275 | G45: =Class_Compare!$B$8*(100+1.2*(0.6*Berserker_Status!I27+0.2*Berserker_Status!K27+0.2*Berserker_Status!L27)) -> 125.888 | H45: =Class_Compare!$C$8*(100+1.2*(0.6*Berserker_Status!I27+0.2*Berserker_Status!K27+0.2*Berserker_Status!L27)) -> 173.096 | I45: =(Class_Compare!$G$7*1000)-(Berserker_Status!K27*5) -> 851 | J45: =(Class_Compare!$K$8*1000+Berserker_Status!K27)/50 -> 14.596 | K45: =2+(Class_Compare!$L$8)/2+(Berserker_Status!L27/100) -> 2.306 | L45: =(0.2*Berserker_Status!I27+0.8*Berserker_Status!M27)/250 -> 0.09328 | M45: =(Berserker_Status!J27/25) -> 2.912 | N45: =Class_Compare!$H$8*(0.2*(Berserker_Status!K27*35)) -> 187.74 | O45: =(Class_Compare!$I$8*1000+Berserker_Status!K27)/1000 -> 1.1298 | P45: =(Class_Compare!$J$8*1000+Berserker_Status!K27+Berserker_Status!L27)/10 -> 104.04 | Q45: =( (Berserker_Status!M27*Class_Compare!$M$8)+5 )/2 -> 4.39 | R45: =((Berserker_Status!L27+Berserker_Status!M27)*Class_Compare!$N$8)/5 -> 1.392 | S45: 200 | T45: 0 | U45: 1.5375 | W45: =(Class_Compare!$J$8*1000+Berserker_Status!K27+Berserker_Status!L27)/10 -> 104.04
A46: BskM1 | B46: 44 | C46: =(B46^2*0.7)+Berserker_Status!$J28*(Berserker_Status!$J28*Class_Compare!$D$8)/2+100 -> 4776.416 | D46: =(U46)*(Class_Compare!$E$8*(50+(0.8*Berserker_Status!J28+0.2*Berserker_Status!M28))) -> 138.9792 | E46: =Berserker_Status!M28*(Berserker_Status!M28*Class_Compare!$O$8)+100 -> 165.536 | F46: 177.6320755 | G46: =Class_Compare!$B$8*(100+1.2*(0.6*Berserker_Status!I28+0.2*Berserker_Status!K28+0.2*Berserker_Status!L28)) -> 126.848 | H46: =Class_Compare!$C$8*(100+1.2*(0.6*Berserker_Status!I28+0.2*Berserker_Status!K28+0.2*Berserker_Status!L28)) -> 174.416 | I46: =(Class_Compare!$G$7*1000)-(Berserker_Status!K28*5) -> 848 | J46: =(Class_Compare!$K$8*1000+Berserker_Status!K28)/50 -> 14.608 | K46: =2+(Class_Compare!$L$8)/2+(Berserker_Status!L28/100) -> 2.308 | L46: =(0.2*Berserker_Status!I28+0.8*Berserker_Status!M28)/250 -> 0.09504 | M46: =(Berserker_Status!J28/25) -> 2.976 | N46: =Class_Compare!$H$8*(0.2*(Berserker_Status!K28*35)) -> 191.52 | O46: =(Class_Compare!$I$8*1000+Berserker_Status!K28)/1000 -> 1.1304 | P46: =(Class_Compare!$J$8*1000+Berserker_Status!K28+Berserker_Status!L28)/10 -> 104.12 | Q46: =( (Berserker_Status!M28*Class_Compare!$M$8)+5 )/2 -> 4.42 | R46: =((Berserker_Status!L28+Berserker_Status!M28)*Class_Compare!$N$8)/5 -> 1.416 | S46: 200 | T46: 0 | U46: 1.55 | W46: =(Class_Compare!$J$8*1000+Berserker_Status!K28+Berserker_Status!L28)/10 -> 104.12
A47: BskM1 | B47: 45 | C47: =(B47^2*0.7)+Berserker_Status!$J29*(Berserker_Status!$J29*Class_Compare!$D$8)/2+100 -> 4983.1 | D47: =(U47)*(Class_Compare!$E$8*(50+(0.8*Berserker_Status!J29+0.2*Berserker_Status!M29))) -> 141.75 | E47: =Berserker_Status!M29*(Berserker_Status!M29*Class_Compare!$O$8)+100 -> 167.6 | F47: 179.6118343 | G47: =Class_Compare!$B$8*(100+1.2*(0.6*Berserker_Status!I29+0.2*Berserker_Status!K29+0.2*Berserker_Status!L29)) -> 127.808 | H47: =Class_Compare!$C$8*(100+1.2*(0.6*Berserker_Status!I29+0.2*Berserker_Status!K29+0.2*Berserker_Status!L29)) -> 175.736 | I47: =(Class_Compare!$G$7*1000)-(Berserker_Status!K29*5) -> 845 | J47: =(Class_Compare!$K$8*1000+Berserker_Status!K29)/50 -> 14.62 | K47: =2+(Class_Compare!$L$8)/2+(Berserker_Status!L29/100) -> 2.31 | L47: =(0.2*Berserker_Status!I29+0.8*Berserker_Status!M29)/250 -> 0.0968 | M47: =(Berserker_Status!J29/25) -> 3.04 | N47: =Class_Compare!$H$8*(0.2*(Berserker_Status!K29*35)) -> 195.3 | O47: =(Class_Compare!$I$8*1000+Berserker_Status!K29)/1000 -> 1.131 | P47: =(Class_Compare!$J$8*1000+Berserker_Status!K29+Berserker_Status!L29)/10 -> 104.2 | Q47: =( (Berserker_Status!M29*Class_Compare!$M$8)+5 )/2 -> 4.45 | R47: =((Berserker_Status!L29+Berserker_Status!M29)*Class_Compare!$N$8)/5 -> 1.44 | S47: 200 | T47: 0 | U47: 1.5625 | W47: =(Class_Compare!$J$8*1000+Berserker_Status!K29+Berserker_Status!L29)/10 -> 104.2
A48: BskM1 | B48: 46 | C48: =(B48^2*0.7)+Berserker_Status!$J30*(Berserker_Status!$J30*Class_Compare!$D$8)/2+100 -> 5194.256 | D48: =(U48)*(Class_Compare!$E$8*(50+(0.8*Berserker_Status!J30+0.2*Berserker_Status!M30))) -> 144.5472 | E48: =Berserker_Status!M30*(Berserker_Status!M30*Class_Compare!$O$8)+100 -> 169.696 | F48: 181.6057007 | G48: =Class_Compare!$B$8*(100+1.2*(0.6*Berserker_Status!I30+0.2*Berserker_Status!K30+0.2*Berserker_Status!L30)) -> 128.768 | H48: =Class_Compare!$C$8*(100+1.2*(0.6*Berserker_Status!I30+0.2*Berserker_Status!K30+0.2*Berserker_Status!L30)) -> 177.056 | I48: =(Class_Compare!$G$7*1000)-(Berserker_Status!K30*5) -> 842 | J48: =(Class_Compare!$K$8*1000+Berserker_Status!K30)/50 -> 14.632 | K48: =2+(Class_Compare!$L$8)/2+(Berserker_Status!L30/100) -> 2.312 | L48: =(0.2*Berserker_Status!I30+0.8*Berserker_Status!M30)/250 -> 0.09856 | M48: =(Berserker_Status!J30/25) -> 3.104 | N48: =Class_Compare!$H$8*(0.2*(Berserker_Status!K30*35)) -> 199.08 | O48: =(Class_Compare!$I$8*1000+Berserker_Status!K30)/1000 -> 1.1316 | P48: =(Class_Compare!$J$8*1000+Berserker_Status!K30+Berserker_Status!L30)/10 -> 104.28 | Q48: =( (Berserker_Status!M30*Class_Compare!$M$8)+5 )/2 -> 4.48 | R48: =((Berserker_Status!L30+Berserker_Status!M30)*Class_Compare!$N$8)/5 -> 1.464 | S48: 200 | T48: 0 | U48: 1.575 | W48: =(Class_Compare!$J$8*1000+Berserker_Status!K30+Berserker_Status!L30)/10 -> 104.28
A49: BskM1 | B49: 47 | C49: =(B49^2*0.7)+Berserker_Status!$J31*(Berserker_Status!$J31*Class_Compare!$D$8)/2+100 -> 5409.884 | D49: =(U49)*(Class_Compare!$E$8*(50+(0.8*Berserker_Status!J31+0.2*Berserker_Status!M31))) -> 147.3708 | E49: =Berserker_Status!M31*(Berserker_Status!M31*Class_Compare!$O$8)+100 -> 171.824 | F49: 183.613826 | G49: =Class_Compare!$B$8*(100+1.2*(0.6*Berserker_Status!I31+0.2*Berserker_Status!K31+0.2*Berserker_Status!L31)) -> 129.728 | H49: =Class_Compare!$C$8*(100+1.2*(0.6*Berserker_Status!I31+0.2*Berserker_Status!K31+0.2*Berserker_Status!L31)) -> 178.376 | I49: =(Class_Compare!$G$7*1000)-(Berserker_Status!K31*5) -> 839 | J49: =(Class_Compare!$K$8*1000+Berserker_Status!K31)/50 -> 14.644 | K49: =2+(Class_Compare!$L$8)/2+(Berserker_Status!L31/100) -> 2.314 | L49: =(0.2*Berserker_Status!I31+0.8*Berserker_Status!M31)/250 -> 0.10032 | M49: =(Berserker_Status!J31/25) -> 3.168 | N49: =Class_Compare!$H$8*(0.2*(Berserker_Status!K31*35)) -> 202.86 | O49: =(Class_Compare!$I$8*1000+Berserker_Status!K31)/1000 -> 1.1322 | P49: =(Class_Compare!$J$8*1000+Berserker_Status!K31+Berserker_Status!L31)/10 -> 104.36 | Q49: =( (Berserker_Status!M31*Class_Compare!$M$8)+5 )/2 -> 4.51 | R49: =((Berserker_Status!L31+Berserker_Status!M31)*Class_Compare!$N$8)/5 -> 1.488 | S49: 200 | T49: 0 | U49: 1.5875 | W49: =(Class_Compare!$J$8*1000+Berserker_Status!K31+Berserker_Status!L31)/10 -> 104.36
A50: BskM1 | B50: 48 | C50: =(B50^2*0.7)+Berserker_Status!$J32*(Berserker_Status!$J32*Class_Compare!$D$8)/2+100 -> 5629.984 | D50: =(U50)*(Class_Compare!$E$8*(50+(0.8*Berserker_Status!J32+0.2*Berserker_Status!M32))) -> 150.2208 | E50: =Berserker_Status!M32*(Berserker_Status!M32*Class_Compare!$O$8)+100 -> 173.984 | F50: 185.6363636 | G50: =Class_Compare!$B$8*(100+1.2*(0.6*Berserker_Status!I32+0.2*Berserker_Status!K32+0.2*Berserker_Status!L32)) -> 130.688 | H50: =Class_Compare!$C$8*(100+1.2*(0.6*Berserker_Status!I32+0.2*Berserker_Status!K32+0.2*Berserker_Status!L32)) -> 179.696 | I50: =(Class_Compare!$G$7*1000)-(Berserker_Status!K32*5) -> 836 | J50: =(Class_Compare!$K$8*1000+Berserker_Status!K32)/50 -> 14.656 | K50: =2+(Class_Compare!$L$8)/2+(Berserker_Status!L32/100) -> 2.316 | L50: =(0.2*Berserker_Status!I32+0.8*Berserker_Status!M32)/250 -> 0.10208 | M50: =(Berserker_Status!J32/25) -> 3.232 | N50: =Class_Compare!$H$8*(0.2*(Berserker_Status!K32*35)) -> 206.64 | O50: =(Class_Compare!$I$8*1000+Berserker_Status!K32)/1000 -> 1.1328 | P50: =(Class_Compare!$J$8*1000+Berserker_Status!K32+Berserker_Status!L32)/10 -> 104.44 | Q50: =( (Berserker_Status!M32*Class_Compare!$M$8)+5 )/2 -> 4.54 | R50: =((Berserker_Status!L32+Berserker_Status!M32)*Class_Compare!$N$8)/5 -> 1.512 | S50: 200 | T50: 0 | U50: 1.6 | W50: =(Class_Compare!$J$8*1000+Berserker_Status!K32+Berserker_Status!L32)/10 -> 104.44
A51: BskM1 | B51: 49 | C51: =(B51^2*0.7)+Berserker_Status!$J33*(Berserker_Status!$J33*Class_Compare!$D$8)/2+100 -> 5854.556 | D51: =(U51)*(Class_Compare!$E$8*(50+(0.8*Berserker_Status!J33+0.2*Berserker_Status!M33))) -> 153.0972 | E51: =Berserker_Status!M33*(Berserker_Status!M33*Class_Compare!$O$8)+100 -> 176.176 | F51: 187.6734694 | G51: =Class_Compare!$B$8*(100+1.2*(0.6*Berserker_Status!I33+0.2*Berserker_Status!K33+0.2*Berserker_Status!L33)) -> 131.648 | H51: =Class_Compare!$C$8*(100+1.2*(0.6*Berserker_Status!I33+0.2*Berserker_Status!K33+0.2*Berserker_Status!L33)) -> 181.016 | I51: =(Class_Compare!$G$7*1000)-(Berserker_Status!K33*5) -> 833 | J51: =(Class_Compare!$K$8*1000+Berserker_Status!K33)/50 -> 14.668 | K51: =2+(Class_Compare!$L$8)/2+(Berserker_Status!L33/100) -> 2.318 | L51: =(0.2*Berserker_Status!I33+0.8*Berserker_Status!M33)/250 -> 0.10384 | M51: =(Berserker_Status!J33/25) -> 3.296 | N51: =Class_Compare!$H$8*(0.2*(Berserker_Status!K33*35)) -> 210.42 | O51: =(Class_Compare!$I$8*1000+Berserker_Status!K33)/1000 -> 1.1334 | P51: =(Class_Compare!$J$8*1000+Berserker_Status!K33+Berserker_Status!L33)/10 -> 104.52 | Q51: =( (Berserker_Status!M33*Class_Compare!$M$8)+5 )/2 -> 4.57 | R51: =((Berserker_Status!L33+Berserker_Status!M33)*Class_Compare!$N$8)/5 -> 1.536 | S51: 200 | T51: 0 | U51: 1.6125 | W51: =(Class_Compare!$J$8*1000+Berserker_Status!K33+Berserker_Status!L33)/10 -> 104.52
A52: BskM1 | B52: 50 | C52: =(B52^2*0.7)+Berserker_Status!$J34*(Berserker_Status!$J34*Class_Compare!$D$8)/2+100 -> 6083.6 | D52: =(U52)*(Class_Compare!$E$8*(50+(0.8*Berserker_Status!J34+0.2*Berserker_Status!M34))) -> 156 | E52: =Berserker_Status!M34*(Berserker_Status!M34*Class_Compare!$O$8)+100 -> 178.4 | F52: 189.7253012 | G52: =Class_Compare!$B$8*(100+1.2*(0.6*Berserker_Status!I34+0.2*Berserker_Status!K34+0.2*Berserker_Status!L34)) -> 132.608 | H52: =Class_Compare!$C$8*(100+1.2*(0.6*Berserker_Status!I34+0.2*Berserker_Status!K34+0.2*Berserker_Status!L34)) -> 182.336 | I52: =(Class_Compare!$G$7*1000)-(Berserker_Status!K34*5) -> 830 | J52: =(Class_Compare!$K$8*1000+Berserker_Status!K34)/50 -> 14.68 | K52: =2+(Class_Compare!$L$8)/2+(Berserker_Status!L34/100) -> 2.32 | L52: =(0.2*Berserker_Status!I34+0.8*Berserker_Status!M34)/250 -> 0.1056 | M52: =(Berserker_Status!J34/25) -> 3.36 | N52: =Class_Compare!$H$8*(0.2*(Berserker_Status!K34*35)) -> 214.2 | O52: =(Class_Compare!$I$8*1000+Berserker_Status!K34)/1000 -> 1.134 | P52: =(Class_Compare!$J$8*1000+Berserker_Status!K34+Berserker_Status!L34)/10 -> 104.6 | Q52: =( (Berserker_Status!M34*Class_Compare!$M$8)+5 )/2 -> 4.6 | R52: =((Berserker_Status!L34+Berserker_Status!M34)*Class_Compare!$N$8)/5 -> 1.56 | S52: 200 | T52: 0 | U52: 1.625 | W52: =(Class_Compare!$J$8*1000+Berserker_Status!K34+Berserker_Status!L34)/10 -> 104.6
A53: 클래스 | B53: BskM2
A54: BskM2 | B54: 21 | C54: 1256.956 | D54: 82.5372 | E54: 126.896 | F54: 135.6728462 | G54: 104.768 | H54: 144.056 | I54: 917 | J54: 14.332 | K54: 2.262 | L54: 0.05456 | M54: 1.504 | N54: 104.58 | O54: 1.1166 | P54: 102.28 | Q54: 3.73 | R54: 0.864 | S54: 200 | T54: 0 | W54: 12.84
A55: BskM2 | B55: 22 | C55: 1360.784 | D55: 84.7008 | E55: 128.224 | F55: 137.3654267 | G55: 105.728 | H55: 145.376 | I55: 914 | J55: 14.344 | K55: 2.264 | L55: 0.05632 | M55: 1.568 | N55: 108.36 | O55: 1.1172 | P55: 102.36 | Q55: 3.76 | R55: 0.888 | S55: 200 | T55: 0 | W55: 13.68
A56: BskM2 | B56: 23 | C56: 1469.084 | D56: 86.8908 | E56: 129.584 | F56: 139.0691548 | G56: 106.688 | H56: 146.696 | I56: 911 | J56: 14.356 | K56: 2.266 | L56: 0.05808 | M56: 1.632 | N56: 112.14 | O56: 1.1178 | P56: 102.44 | Q56: 3.79 | R56: 0.912 | S56: 200 | T56: 0 | W56: 14.52
A57: BskM2 | B57: 24 | C57: 1581.856 | D57: 89.1072 | E57: 130.976 | F57: 140.784141 | G57: 107.648 | H57: 148.016 | I57: 908 | J57: 14.368 | K57: 2.268 | L57: 0.05984 | M57: 1.696 | N57: 115.92 | O57: 1.1184 | P57: 102.52 | Q57: 3.82 | R57: 0.936 | S57: 200 | T57: 0 | W57: 15.36
A58: BskM2 | B58: 25 | C58: 1699.1 | D58: 91.35 | E58: 132.4 | F58: 142.5104972 | G58: 108.608 | H58: 149.336 | I58: 905 | J58: 14.38 | K58: 2.27 | L58: 0.0616 | M58: 1.76 | N58: 119.7 | O58: 1.119 | P58: 102.6 | Q58: 3.85 | R58: 0.96 | S58: 200 | T58: 0 | W58: 16.2
A59: BskM2 | B59: 26 | C59: 1820.816 | D59: 93.6192 | E59: 133.856 | F59: 144.248337 | G59: 109.568 | H59: 150.656 | I59: 902 | J59: 14.392 | K59: 2.272 | L59: 0.06336 | M59: 1.824 | N59: 123.48 | O59: 1.1196 | P59: 102.68 | Q59: 3.88 | R59: 0.984 | S59: 200 | T59: 0 | W59: 17.04
A60: BskM2 | B60: 27 | C60: 1947.004 | D60: 95.9148 | E60: 135.344 | F60: 145.9977753 | G60: 110.528 | H60: 151.976 | I60: 899 | J60: 14.404 | K60: 2.274 | L60: 0.06512 | M60: 1.888 | N60: 127.26 | O60: 1.1202 | P60: 102.76 | Q60: 3.91 | R60: 1.008 | S60: 200 | T60: 0 | W60: 17.88
A61: BskM2 | B61: 28 | C61: 2077.664 | D61: 98.2368 | E61: 136.864 | F61: 147.7589286 | G61: 111.488 | H61: 153.296 | I61: 896 | J61: 14.416 | K61: 2.276 | L61: 0.06688 | M61: 1.952 | N61: 131.04 | O61: 1.1208 | P61: 102.84 | Q61: 3.94 | R61: 1.032 | S61: 200 | T61: 0 | W61: 18.72
A62: BskM2 | B62: 29 | C62: 2212.796 | D62: 100.5852 | E62: 138.416 | F62: 149.5319149 | G62: 112.448 | H62: 154.616 | I62: 893 | J62: 14.428 | K62: 2.278 | L62: 0.06864 | M62: 2.016 | N62: 134.82 | O62: 1.1214 | P62: 102.92 | Q62: 3.97 | R62: 1.056 | S62: 200 | T62: 0 | W62: 19.56
A63: BskM2 | B63: 30 | C63: 2352.4 | D63: 102.96 | E63: 140 | F63: 151.3168539 | G63: 113.408 | H63: 155.936 | I63: 890 | J63: 14.44 | K63: 2.28 | L63: 0.0704 | M63: 2.08 | N63: 138.6 | O63: 1.122 | P63: 103 | Q63: 4 | R63: 1.08 | S63: 200 | T63: 0 | W63: 20.4
A64: BskM2 | B64: 31 | C64: 2496.476 | D64: 105.3612 | E64: 141.616 | F64: 153.113867 | G64: 114.368 | H64: 157.256 | I64: 887 | J64: 14.452 | K64: 2.282 | L64: 0.07216 | M64: 2.144 | N64: 142.38 | O64: 1.1226 | P64: 103.08 | Q64: 4.03 | R64: 1.104 | S64: 200 | T64: 0 | W64: 21.24
A65: BskM2 | B65: 32 | C65: 2645.024 | D65: 107.7888 | E65: 143.264 | F65: 154.9230769 | G65: 115.328 | H65: 158.576 | I65: 884 | J65: 14.464 | K65: 2.284 | L65: 0.07392 | M65: 2.208 | N65: 146.16 | O65: 1.1232 | P65: 103.16 | Q65: 4.06 | R65: 1.128 | S65: 200 | T65: 0 | W65: 22.08
A66: BskM2 | B66: 33 | C66: 2798.044 | D66: 110.2428 | E66: 144.944 | F66: 156.7446084 | G66: 116.288 | H66: 159.896 | I66: 881 | J66: 14.476 | K66: 2.286 | L66: 0.07568 | M66: 2.272 | N66: 149.94 | O66: 1.1238 | P66: 103.24 | Q66: 4.09 | R66: 1.152 | S66: 200 | T66: 0 | W66: 22.92
A67: BskM2 | B67: 34 | C67: 2955.536 | D67: 112.7232 | E67: 146.656 | F67: 158.5785877 | G67: 117.248 | H67: 161.216 | I67: 878 | J67: 14.488 | K67: 2.288 | L67: 0.07744 | M67: 2.336 | N67: 153.72 | O67: 1.1244 | P67: 103.32 | Q67: 4.12 | R67: 1.176 | S67: 200 | T67: 0 | W67: 23.76
A68: BskM2 | B68: 35 | C68: 3117.5 | D68: 115.23 | E68: 148.4 | F68: 160.4251429 | G68: 118.208 | H68: 162.536 | I68: 875 | J68: 14.5 | K68: 2.29 | L68: 0.0792 | M68: 2.4 | N68: 157.5 | O68: 1.125 | P68: 103.4 | Q68: 4.15 | R68: 1.2 | S68: 200 | T68: 0 | W68: 24.6
A69: BskM2 | B69: 36 | C69: 3283.936 | D69: 117.7632 | E69: 150.176 | F69: 162.2844037 | G69: 119.168 | H69: 163.856 | I69: 872 | J69: 14.512 | K69: 2.292 | L69: 0.08096 | M69: 2.464 | N69: 161.28 | O69: 1.1256 | P69: 103.48 | Q69: 4.18 | R69: 1.224 | S69: 200 | T69: 0 | W69: 25.44
A70: BskM2 | B70: 37 | C70: 3454.844 | D70: 120.3228 | E70: 151.984 | F70: 164.1565017 | G70: 120.128 | H70: 165.176 | I70: 869 | J70: 14.524 | K70: 2.294 | L70: 0.08272 | M70: 2.528 | N70: 165.06 | O70: 1.1262 | P70: 103.56 | Q70: 4.21 | R70: 1.248 | S70: 200 | T70: 0 | W70: 26.28
A71: BskM2 | B71: 38 | C71: 3630.224 | D71: 122.9088 | E71: 153.824 | F71: 166.0415704 | G71: 121.088 | H71: 166.496 | I71: 866 | J71: 14.536 | K71: 2.296 | L71: 0.08448 | M71: 2.592 | N71: 168.84 | O71: 1.1268 | P71: 103.64 | Q71: 4.24 | R71: 1.272 | S71: 200 | T71: 0 | W71: 27.12
A72: BskM2 | B72: 39 | C72: 3810.076 | D72: 125.5212 | E72: 155.696 | F72: 167.9397451 | G72: 122.048 | H72: 167.816 | I72: 863 | J72: 14.548 | K72: 2.298 | L72: 0.08624 | M72: 2.656 | N72: 172.62 | O72: 1.1274 | P72: 103.72 | Q72: 4.27 | R72: 1.296 | S72: 200 | T72: 0 | W72: 27.96
A73: BskM2 | B73: 40 | C73: 3994.4 | D73: 128.16 | E73: 157.6 | F73: 169.8511628 | G73: 123.008 | H73: 169.136 | I73: 860 | J73: 14.56 | K73: 2.3 | L73: 0.088 | M73: 2.72 | N73: 176.4 | O73: 1.128 | P73: 103.8 | Q73: 4.3 | R73: 1.32 | S73: 200 | T73: 0 | W73: 28.8
A74: BskM2 | B74: 41 | C74: 4183.196 | D74: 130.8252 | E74: 159.536 | F74: 171.7759627 | G74: 123.968 | H74: 170.456 | I74: 857 | J74: 14.572 | K74: 2.302 | L74: 0.08976 | M74: 2.784 | N74: 180.18 | O74: 1.1286 | P74: 103.88 | Q74: 4.33 | R74: 1.344 | S74: 200 | T74: 0 | W74: 29.64
A75: BskM2 | B75: 42 | C75: 4376.464 | D75: 133.5168 | E75: 161.504 | F75: 173.7142857 | G75: 124.928 | H75: 171.776 | I75: 854 | J75: 14.584 | K75: 2.304 | L75: 0.09152 | M75: 2.848 | N75: 183.96 | O75: 1.1292 | P75: 103.96 | Q75: 4.36 | R75: 1.368 | S75: 200 | T75: 0 | W75: 30.48
A76: BskM2 | B76: 43 | C76: 4574.204 | D76: 136.2348 | E76: 163.504 | F76: 175.666275 | G76: 125.888 | H76: 173.096 | I76: 851 | J76: 14.596 | K76: 2.306 | L76: 0.09328 | M76: 2.912 | N76: 187.74 | O76: 1.1298 | P76: 104.04 | Q76: 4.39 | R76: 1.392 | S76: 200 | T76: 0 | W76: 31.32
A77: BskM2 | B77: 44 | C77: 4776.416 | D77: 138.9792 | E77: 165.536 | F77: 177.6320755 | G77: 126.848 | H77: 174.416 | I77: 848 | J77: 14.608 | K77: 2.308 | L77: 0.09504 | M77: 2.976 | N77: 191.52 | O77: 1.1304 | P77: 104.12 | Q77: 4.42 | R77: 1.416 | S77: 200 | T77: 0 | W77: 32.16
A78: BskM2 | B78: 45 | C78: 4983.1 | D78: 141.75 | E78: 167.6 | F78: 179.6118343 | G78: 127.808 | H78: 175.736 | I78: 845 | J78: 14.62 | K78: 2.31 | L78: 0.0968 | M78: 3.04 | N78: 195.3 | O78: 1.131 | P78: 104.2 | Q78: 4.45 | R78: 1.44 | S78: 200 | T78: 0 | W78: 33
A79: BskM2 | B79: 46 | C79: 5194.256 | D79: 144.5472 | E79: 169.696 | F79: 181.6057007 | G79: 128.768 | H79: 177.056 | I79: 842 | J79: 14.632 | K79: 2.312 | L79: 0.09856 | M79: 3.104 | N79: 199.08 | O79: 1.1316 | P79: 104.28 | Q79: 4.48 | R79: 1.464 | S79: 200 | T79: 0 | W79: 33.84
A80: BskM2 | B80: 47 | C80: 5409.884 | D80: 147.3708 | E80: 171.824 | F80: 183.613826 | G80: 129.728 | H80: 178.376 | I80: 839 | J80: 14.644 | K80: 2.314 | L80: 0.10032 | M80: 3.168 | N80: 202.86 | O80: 1.1322 | P80: 104.36 | Q80: 4.51 | R80: 1.488 | S80: 200 | T80: 0 | W80: 34.68
A81: BskM2 | B81: 48 | C81: 5629.984 | D81: 150.2208 | E81: 173.984 | F81: 185.6363636 | G81: 130.688 | H81: 179.696 | I81: 836 | J81: 14.656 | K81: 2.316 | L81: 0.10208 | M81: 3.232 | N81: 206.64 | O81: 1.1328 | P81: 104.44 | Q81: 4.54 | R81: 1.512 | S81: 200 | T81: 0 | W81: 35.52
A82: BskM2 | B82: 49 | C82: 5854.556 | D82: 153.0972 | E82: 176.176 | F82: 187.6734694 | G82: 131.648 | H82: 181.016 | I82: 833 | J82: 14.668 | K82: 2.318 | L82: 0.10384 | M82: 3.296 | N82: 210.42 | O82: 1.1334 | P82: 104.52 | Q82: 4.57 | R82: 1.536 | S82: 200 | T82: 0 | W82: 36.36
A83: BskM2 | B83: 50 | C83: 6083.6 | D83: 156 | E83: 178.4 | F83: 189.7253012 | G83: 132.608 | H83: 182.336 | I83: 830 | J83: 14.68 | K83: 2.32 | L83: 0.1056 | M83: 3.36 | N83: 214.2 | O83: 1.134 | P83: 104.6 | Q83: 4.6 | R83: 1.56 | S83: 200 | T83: 0 | W83: 37.2
A84: 클래스
A85: 최고레벨 | B85: Berserker | C85: 1028 | D85: 71.7 | E85: 112.8 | F85: 98.73043478 | G85: 77.856 | H85: 103.808 | I85: 920 | J85: 10.32 | K85: 2.26 | L85: 0.0528 | M85: 1.44 | N85: 78.4 | O85: 1.016 | P85: 102.2 | Q85: 3.3 | R85: 0.56 | S85: 200 | T85: 0 | W85: 39.2
A86: 최고레벨 | B86: BskM1 | C86: 6083.6 | D86: 156 | E86: 178.4 | F86: 189.7253012 | G86: 132.608 | H86: 182.336 | I86: 830 | J86: 14.68 | K86: 2.32 | L86: 0.1056 | M86: 3.36 | N86: 214.2 | O86: 1.134 | P86: 104.6 | Q86: 4.6 | R86: 1.56 | S86: 200 | T86: 0 | W86: 37.2
A87: 최고레벨 | B87: Knight | C87: 687.2 | D87: 67.875 | E87: 114.7 | F87: 44.18545455 | G87: 35.832 | H87: 37.074 | I87: 825 | J87: 20.7 | K87: 2.76 | L87: 0.0304 | M87: 1.28 | N87: 220.5 | O87: 1.035 | P87: 105.1 | Q87: 3.55 | R87: 1.38 | S87: 200 | T87: 0 | W87: 86.4
A88: 최고레벨 | B88: KntM1 | C88: 3699.6 | D88: 177.32 | E88: 228 | F88: 131.2666667 | G88: 71.6 | H88: 85.92 | I88: 600 | J88: 23.6 | K88: 3.14 | L88: 0.0688 | M88: 2.72 | N88: 616 | O88: 1.18 | P88: 111.4 | Q88: 5.7 | R88: 4 | S88: 200 | T88: 0 | W88: 79.8
A89: 최고레벨 | B89: DemonHunter | C89: 413.8 | D89: 8.8 | E89: 228 | F89: 43.76140351 | G89: 24.944 | H89: 49.888 | I89: 855 | J89: 20.58 | K89: 3.26 | L89: 0.0592 | M89: 0.52 | N89: 121.8 | O89: 1.029 | P89: 105.5 | Q89: 7.3 | R89: 4.2 | S89: 200 | T89: 0 | W89: 37.2
A90: 최고레벨 | B90: DmHM1 | C90: 2085.2 | D90: 45.7275 | E90: 793.6 | F90: 128.5333333 | G90: 61.696 | H90: 107.968 | I90: 660 | J90: 23.36 | K90: 3.76 | L90: 0.136 | M90: 1.12 | N90: 380.8 | O90: 1.168 | P90: 112.4 | Q90: 16.1 | R90: 10.8 | S90: 200 | T90: 0 | W90: 33.6
A91: 최고레벨 | B91: Archon | C91: 758.45 | D91: 46.3 | E91: 776 | F91: 45.07391304 | G91: 35.544 | H91: 47.392 | I91: 920 | J91: 20.32 | K91: 2.63 | L91: 0.096 | M91: 1.16 | N91: 33.6 | O91: 1.016 | P91: 102.9 | Q91: 12.9 | R91: 1.56 | S91: 200 | T91: 0 | W91: 22.5
A92: 최고레벨 | B92: ArchM1 | C92: 4393.2 | D92: 144.69 | E92: 3863.2 | F92: 92.34698795 | G92: 55.744 | H92: 97.552 | I92: 830 | J92: 22.68 | K92: 2.98 | L92: 0.2064 | M92: 2.72 | N92: 119 | O92: 1.134 | P92: 106.2 | Q92: 27.7 | R92: 5.04 | S92: 200 | T92: 0 | W92: 24

Sheet DemonHunter_Status
A1: 초기시작 | B1: 6 | C1: 5 | D1: 13 | E1: 10 | F1: 6 | I1: 0.6 | J1: 0.5 | K1: 1.3 | L1: 1 | M1: 0.6 | P1: 0.6 | Q1: 0.5 | R1: 1.3 | S1: 1 | T1: 0.6
A2: DemonHunter | B2: =VLOOKUP($A2,Class_Status!$B$3:$G$25,2,0) -> 0.5 | C2: =VLOOKUP($A2,Class_Status!$B$3:$G$25,3,0) -> 0.4 | D2: =VLOOKUP($A2,Class_Status!$B$3:$G$25,4,0) -> 0.8 | E2: =VLOOKUP($A2,Class_Status!$B$3:$G$25,5,0) -> 0.8 | F2: =VLOOKUP($A2,Class_Status!$B$3:$G$25,6,0) -> 0.5 | H2: DmHM1 | I2: =VLOOKUP($H2,Class_Status!$B$3:$G$25,2,0) -> 0.6 | J2: =VLOOKUP($H2,Class_Status!$B$3:$G$25,3,0) -> 0.5 | K2: =VLOOKUP($H2,Class_Status!$B$3:$G$25,4,0) -> 1.3 | L2: =VLOOKUP($H2,Class_Status!$B$3:$G$25,5,0) -> 1 | M2: =VLOOKUP($H2,Class_Status!$B$3:$G$25,6,0) -> 0.6 | O2: DmHM2 | P2: =VLOOKUP($H2,Class_Status!$B$3:$G$25,2,0) -> 0.6 | Q2: =VLOOKUP($H2,Class_Status!$B$3:$G$25,3,0) -> 0.5 | R2: =VLOOKUP($H2,Class_Status!$B$3:$G$25,4,0) -> 1.3 | S2: =VLOOKUP($H2,Class_Status!$B$3:$G$25,5,0) -> 1 | T2: =VLOOKUP($H2,Class_Status!$B$3:$G$25,6,0) -> 0.6
A3: DemonHunter | B3: =SUM(B1:B2) -> 6.5 | C3: =SUM(C1:C2) -> 5.4 | D3: =SUM(D1:D2) -> 13.8 | E3: =SUM(E1:E2) -> 10.8 | F3: =SUM(F1:F2) -> 6.5 | H3: DmHM1 | I3: =B24 -> 16 | J3: =C24 -> 13 | K3: 29 | L3: 26 | M3: 16 | O3: DmHM2 | P3: =B24 -> 16 | Q3: =C24 -> 13 | R3: 29 | S3: 26 | T3: 16
A4: Lvl | B4: P_Str | C4: P_Sta | D4: P_Agil | E4: P_Int | F4: P_Wis | H4: Lvl | I4: P_Str | J4: P_Sta | K4: P_Agil | L4: P_Int | M4: P_Wis | O4: Lvl | P4: P_Str | Q4: P_Sta | R4: P_Agil | S4: P_Int | T4: P_Wis
A5: 1 | B5: =B3 -> 6.5 | C5: =C3 -> 5.4 | D5: =D3 -> 13.8 | E5: =E3 -> 10.8 | F5: =F3 -> 6.5 | H5: 21 | I5: =B24+I$2 -> 16.6 | J5: =C24+J$2 -> 13.5 | K5: =D24+K$2 -> 30.3 | L5: =E24+L$2 -> 27 | M5: =F24+M$2 -> 16.6 | O5: 21 | P5: =B24+P$2 -> 16.6 | Q5: =C24+Q$2 -> 13.5 | R5: =D24+R$2 -> 30.3 | S5: =E24+S$2 -> 27 | T5: =F24+T$2 -> 16.6
A6: 2 | B6: =B5+B$2 -> 7 | C6: =C5+C$2 -> 5.8 | D6: =D5+D$2 -> 14.6 | E6: =E5+E$2 -> 11.6 | F6: =F5+F$2 -> 7 | H6: 22 | I6: =I5+I$2 -> 17.2 | J6: =J5+J$2 -> 14 | K6: 31.6 | L6: =L5+L$2 -> 28 | M6: 17.2 | O6: 22 | P6: =P5+P$2 -> 17.2 | Q6: =Q5+Q$2 -> 14 | R6: =R5+R$2 -> 31.6 | S6: =S5+S$2 -> 28 | T6: =T5+T$2 -> 17.2
A7: 3 | B7: =B6+B$2 -> 7.5 | C7: 6.2 | D7: 15.4 | E7: 12.4 | F7: 7.5 | H7: 23 | I7: =I6+I$2 -> 17.8 | J7: 14.5 | K7: 32.9 | L7: =L6+L$2 -> 29 | M7: 17.8 | O7: 23 | P7: =P6+P$2 -> 17.8 | Q7: =Q6+Q$2 -> 14.5 | R7: =R6+R$2 -> 32.9 | S7: =S6+S$2 -> 29 | T7: =T6+T$2 -> 17.8
A8: 4 | B8: 8 | C8: 6.6 | D8: 16.2 | E8: 13.2 | F8: 8 | H8: 24 | I8: 18.4 | J8: 15 | K8: 34.2 | L8: 30 | M8: 18.4 | O8: 24 | P8: 18.4 | Q8: 15 | R8: 34.2 | S8: 30 | T8: 18.4
A9: 5 | B9: 8.5 | C9: 7 | D9: 17 | E9: 14 | F9: 8.5 | H9: 25 | I9: 19 | J9: 15.5 | K9: 35.5 | L9: 31 | M9: 19 | O9: 25 | P9: 19 | Q9: 15.5 | R9: 35.5 | S9: 31 | T9: 19
A10: 6 | B10: 9 | C10: 7.4 | D10: 17.8 | E10: 14.8 | F10: 9 | H10: 26 | I10: 19.6 | J10: 16 | K10: 36.8 | L10: 32 | M10: 19.6 | O10: 26 | P10: 19.6 | Q10: 16 | R10: 36.8 | S10: 32 | T10: 19.6
A11: 7 | B11: 9.5 | C11: 7.8 | D11: 18.6 | E11: 15.6 | F11: 9.5 | H11: 27 | I11: 20.2 | J11: 16.5 | K11: 38.1 | L11: 33 | M11: 20.2 | O11: 27 | P11: 20.2 | Q11: 16.5 | R11: 38.1 | S11: 33 | T11: 20.2
A12: 8 | B12: 10 | C12: 8.2 | D12: 19.4 | E12: 16.4 | F12: 10 | H12: 28 | I12: 20.8 | J12: 17 | K12: 39.4 | L12: 34 | M12: 20.8 | O12: 28 | P12: 20.8 | Q12: 17 | R12: 39.4 | S12: 34 | T12: 20.8
A13: 9 | B13: 10.5 | C13: 8.6 | D13: 20.2 | E13: 17.2 | F13: 10.5 | H13: 29 | I13: 21.4 | J13: 17.5 | K13: 40.7 | L13: 35 | M13: 21.4 | O13: 29 | P13: 21.4 | Q13: 17.5 | R13: 40.7 | S13: 35 | T13: 21.4
A14: 10 | B14: 11 | C14: 9 | D14: 21 | E14: 18 | F14: 11 | H14: 30 | I14: 22 | J14: 18 | K14: 42 | L14: 36 | M14: 22 | O14: 30 | P14: 22 | Q14: 18 | R14: 42 | S14: 36 | T14: 22
A15: 11 | B15: 11.5 | C15: 9.4 | D15: 21.8 | E15: 18.8 | F15: 11.5 | H15: 31 | I15: 22.6 | J15: 18.5 | K15: 43.3 | L15: 37 | M15: 22.6 | O15: 31 | P15: 22.6 | Q15: 18.5 | R15: 43.3 | S15: 37 | T15: 22.6
A16: 12 | B16: 12 | C16: 9.8 | D16: 22.6 | E16: 19.6 | F16: 12 | H16: 32 | I16: 23.2 | J16: 19 | K16: 44.6 | L16: 38 | M16: 23.2 | O16: 32 | P16: 23.2 | Q16: 19 | R16: 44.6 | S16: 38 | T16: 23.2
A17: 13 | B17: 12.5 | C17: 10.2 | D17: 23.4 | E17: 20.4 | F17: 12.5 | H17: 33 | I17: 23.8 | J17: 19.5 | K17: 45.9 | L17: 39 | M17: 23.8 | O17: 33 | P17: 23.8 | Q17: 19.5 | R17: 45.9 | S17: 39 | T17: 23.8
A18: 14 | B18: 13 | C18: 10.6 | D18: 24.2 | E18: 21.2 | F18: 13 | H18: 34 | I18: 24.4 | J18: 20 | K18: 47.2 | L18: 40 | M18: 24.4 | O18: 34 | P18: 24.4 | Q18: 20 | R18: 47.2 | S18: 40 | T18: 24.4
A19: 15 | B19: 13.5 | C19: 11 | D19: 25 | E19: 22 | F19: 13.5 | H19: 35 | I19: 25 | J19: 20.5 | K19: 48.5 | L19: 41 | M19: 25 | O19: 35 | P19: 25 | Q19: 20.5 | R19: 48.5 | S19: 41 | T19: 25
A20: 16 | B20: 14 | C20: 11.4 | D20: 25.8 | E20: 22.8 | F20: 14 | H20: 36 | I20: 25.6 | J20: 21 | K20: 49.8 | L20: 42 | M20: 25.6 | O20: 36 | P20: 25.6 | Q20: 21 | R20: 49.8 | S20: 42 | T20: 25.6
A21: 17 | B21: 14.5 | C21: 11.8 | D21: 26.6 | E21: 23.6 | F21: 14.5 | H21: 37 | I21: 26.2 | J21: 21.5 | K21: 51.1 | L21: 43 | M21: 26.2 | O21: 37 | P21: 26.2 | Q21: 21.5 | R21: 51.1 | S21: 43 | T21: 26.2
A22: 18 | B22: 15 | C22: 12.2 | D22: 27.4 | E22: 24.4 | F22: 15 | H22: 38 | I22: 26.8 | J22: 22 | K22: 52.4 | L22: 44 | M22: 26.8 | O22: 38 | P22: 26.8 | Q22: 22 | R22: 52.4 | S22: 44 | T22: 26.8
A23: 19 | B23: =B22+B$2 -> 15.5 | C23: 12.6 | D23: 28.2 | E23: 25.2 | F23: 15.5 | H23: 39 | I23: 27.4 | J23: 22.5 | K23: 53.7 | L23: 45 | M23: 27.4 | O23: 39 | P23: 27.4 | Q23: 22.5 | R23: 53.7 | S23: 45 | T23: 27.4
A24: 20 | B24: 16 | C24: 13 | D24: 29 | E24: 26 | F24: 16 | G24: =SUM(B24:F24) -> 100 | H24: 40 | I24: 28 | J24: 23 | K24: 55 | L24: 46 | M24: 28 | O24: 40 | P24: 28 | Q24: 23 | R24: 55 | S24: 46 | T24: 28
H25: 41 | I25: 28.6 | J25: 23.5 | K25: 56.3 | L25: 47 | M25: 28.6 | O25: 41 | P25: 28.6 | Q25: 23.5 | R25: 56.3 | S25: 47 | T25: 28.6
B26: 최소 공격력 | C26: 최대 생명력 | D26: 최소 공격력 | E26: 최소 공격력 | F26: 생명력회복 | H26: 42 | I26: 29.2 | J26: 24 | K26: 57.6 | L26: 48 | M26: 29.2 | O26: 42 | P26: 29.2 | Q26: 24 | R26: 57.6 | S26: 48 | T26: 29.2
B27: 최대 공격력 | C27: 생명력회복 | D27: 최대 공격력 | E27: 최대 공격력 | F27: 활력도 | H27: 43 | I27: 29.8 | J27: 24.5 | K27: 58.9 | L27: 49 | M27: 29.8 | O27: 43 | P27: 29.8 | Q27: 24.5 | R27: 58.9 | S27: 49 | T27: 29.8
B28: 치명타 저항 | C28: 피해 감소 | D28: 공격속도 | E28: 치명타 세기 | F28: 치명타 세기 | H28: 44 | I28: 30.4 | J28: 25 | K28: 60.2 | L28: 50 | M28: 30.4 | O28: 44 | P28: 30.4 | Q28: 25 | R28: 60.2 | S28: 50 | T28: 30.4
D29: 치명타 확률 | E29: 적중도 | F29: 상태이상저항 | H29: 45 | I29: 31 | J29: 25.5 | K29: 61.5 | L29: 51 | M29: 31 | O29: 45 | P29: 31 | Q29: 25.5 | R29: 61.5 | S29: 51 | T29: 31
D30: 방어력 | E30: 재사용시간 | F30: 치명타 저항 | H30: 46 | I30: 31.6 | J30: 26 | K30: 62.8 | L30: 52 | M30: 31.6 | O30: 46 | P30: 31.6 | Q30: 26 | R30: 62.8 | S30: 52 | T30: 31.6
D31: 회피율 | F31: 재사용시간 | H31: 47 | I31: 32.2 | J31: 26.5 | K31: 64.1 | L31: 53 | M31: 32.2 | O31: 47 | P31: 32.2 | Q31: 26.5 | R31: 64.1 | S31: 53 | T31: 32.2
D32: 적중도 | H32: 48 | I32: 32.8 | J32: 27 | K32: 65.4 | L32: 54 | M32: 32.8 | O32: 48 | P32: 32.8 | Q32: 27 | R32: 65.4 | S32: 54 | T32: 32.8
H33: 49 | I33: 33.4 | J33: 27.5 | K33: 66.7 | L33: 55 | M33: 33.4 | O33: 49 | P33: 33.4 | Q33: 27.5 | R33: 66.7 | S33: 55 | T33: 33.4
H34: 50 | I34: 34 | J34: =J33+J$2 -> 28 | K34: 68 | L34: 56 | M34: 34 | N34: =SUM(I34:M34) -> 220 | O34: 50 | P34: 34 | Q34: 28 | R34: 68 | S34: 56 | T34: 34
I36: P_Str | J36: P_Sta | K36: P_Agil | L36: P_Int | M36: P_Wis | P36: P_Str | Q36: P_Sta | R36: P_Agil | S36: P_Int | T36: P_Wis
I38: 최소 공격력 | J38: 최대 생명력 | K38: 최소 공격력 | L38: 최소 공격력 | M38: 생명력회복 | P38: 최소 공격력 | Q38: 최대 생명력 | R38: 최소 공격력 | S38: 최소 공격력 | T38: 생명력회복
I39: 최대 공격력 | J39: 생명력회복 | K39: 최대 공격력 | L39: 최대 공격력 | M39: 활력도 | P39: 최대 공격력 | Q39: 생명력회복 | R39: 최대 공격력 | S39: 최대 공격력 | T39: 활력도
I40: 치명타 저항 | J40: 피해 감소 | K40: 공격속도 | L40: 치명타 세기 | M40: 치명타 세기 | P40: 치명타 저항 | Q40: 피해 감소 | R40: 공격속도 | S40: 치명타 세기 | T40: 치명타 세기
K41: 치명타 확률 | L41: 적중도 | M41: 상태이상저항 | R41: 치명타 확률 | S41: 적중도 | T41: 상태이상저항
K42: 방어력 | L42: 재사용시간 | M42: 치명타 저항 | R42: 방어력 | S42: 재사용시간 | T42: 치명타 저항
K43: 회피율 | M43: 재사용시간 | R43: 회피율 | T43: 재사용시간
K44: 적중도 | R44: 적중도

Sheet DemonHunter_Simul
A1: 클래스 | B1: 레벨 | C1: 최대 생명력 | D1: 생명력회복 | E1: 활력도 | F1: 초당평균공격력 | G1: 최소 공격력 | H1: 최대 공격력 | I1: 공격속도 | J1: 치명타 확률 | K1: 치명타 세기 | L1: 치명타저항 | M1: 피해감소 | N1: 방어력 | O1: 회피율 | P1: 적중도 | Q1: 상태이상저항 | R1: 스킬쿨타임감소 | S1: 이동속도 | T1: 신성력 | U1: 1
A2: DemonHunter | B2: 1 | C2: =(B2^2*0.7)+DemonHunter_Status!$C5*(DemonHunter_Status!$C5*Class_Compare!$D$27)/2+100 -> 106.532 | D2: =(U2)*(Class_Compare!$E$27*(50+1.5*(0.8*DemonHunter_Status!C5+0.2*DemonHunter_Status!F5))) -> 5.9160375 | E2: =DemonHunter_Status!F5*(DemonHunter_Status!F5*Class_Compare!$O$27)+100 -> 121.125 | F2: =((G2+H2)/2)*(1000/(I2)) -> 35.633942 | G2: =Class_Compare!$B$27*(100+1.2*(0.6*DemonHunter_Status!B5+0.2*DemonHunter_Status!D5+0.2*DemonHunter_Status!E5)) -> 22.1168 | H2: =Class_Compare!$C$27*(100+1.2*(0.6*DemonHunter_Status!B5+0.2*DemonHunter_Status!D5+0.2*DemonHunter_Status!E5)) -> 44.2336 | I2: =(Class_Compare!$G$27*1000)-(DemonHunter_Status!D5*5) -> 931 | J2: =(Class_Compare!$I$27*1000+DemonHunter_Status!D5)/50 -> 20.276 | K2: =2+(Class_Compare!$L$27)+(DemonHunter_Status!E5/100) -> 3.108 | L2: =(0.2*Knight_Status!B5+0.8*DemonHunter_Status!F5)/250 -> 0.02424 | M2: =(DemonHunter_Status!C5/25) -> 0.216 | N2: =Class_Compare!$H$27*(0.2*(DemonHunter_Status!D5*35)) -> 57.96 | O2: =(Class_Compare!$I$27*1000+DemonHunter_Status!D5)/1000 -> 1.0138 | P2: =(Class_Compare!$J$27*1000+DemonHunter_Status!D5+DemonHunter_Status!E5)/10 -> 102.46 | Q2: =((DemonHunter_Status!F5*Class_Compare!$M$27)+5)/2 -> 4.45 | R2: =((DemonHunter_Status!E5+DemonHunter_Status!F5)*Class_Compare!$N$27)/5 -> 1.73 | S2: 200 | T2: 0 | U2: =$U$1*(1+0.05*(B2/4)) -> 1.0125
A3: DemonHunter | B3: 2 | C3: =(B3^2*0.7)+DemonHunter_Status!$C6*(DemonHunter_Status!$C6*Class_Compare!$D$27)/2+100 -> 109.528 | D3: =(U3)*(Class_Compare!$E$27*(50+1.5*(0.8*DemonHunter_Status!C6+0.2*DemonHunter_Status!F6))) -> 6.05365 | E3: =DemonHunter_Status!F6*(DemonHunter_Status!F6*Class_Compare!$O$27)+100 -> 124.5 | F3: =((G3+H3)/2)*(1000/(I3)) -> 36.02847896 | G3: =Class_Compare!$B$27*(100+1.2*(0.6*DemonHunter_Status!B6+0.2*DemonHunter_Status!D6+0.2*DemonHunter_Status!E6)) -> 22.2656 | H3: =Class_Compare!$C$27*(100+1.2*(0.6*DemonHunter_Status!B6+0.2*DemonHunter_Status!D6+0.2*DemonHunter_Status!E6)) -> 44.5312 | I3: =(Class_Compare!$G$27*1000)-(DemonHunter_Status!D6*5) -> 927 | J3: =(Class_Compare!$I$27*1000+DemonHunter_Status!D6)/50 -> 20.292 | K3: =2+(Class_Compare!$L$27)+(DemonHunter_Status!E6/100) -> 3.116 | L3: =(0.2*Knight_Status!B6+0.8*DemonHunter_Status!F6)/250 -> 0.02608 | M3: =(DemonHunter_Status!C6/25) -> 0.232 | N3: =Class_Compare!$H$27*(0.2*(DemonHunter_Status!D6*35)) -> 61.32 | O3: =(Class_Compare!$I$27*1000+DemonHunter_Status!D6)/1000 -> 1.0146 | P3: =(Class_Compare!$J$27*1000+DemonHunter_Status!D6+DemonHunter_Status!E6)/10 -> 102.62 | Q3: =((DemonHunter_Status!F6*Class_Compare!$M$27)+5)/2 -> 4.6 | R3: =((DemonHunter_Status!E6+DemonHunter_Status!F6)*Class_Compare!$N$27)/5 -> 1.86 | S3: 200 | T3: 0 | U3: =$U$1*(1+0.05*(B3/4)) -> 1.025
A4: DemonHunter | B4: 3 | C4: =(B4^2*0.7)+DemonHunter_Status!$C7*(DemonHunter_Status!$C7*Class_Compare!$D$27)/2+100 -> 113.988 | D4: =(U4)*(Class_Compare!$E$27*(50+1.5*(0.8*DemonHunter_Status!C7+0.2*DemonHunter_Status!F7))) -> 6.1928375 | E4: =DemonHunter_Status!F7*(DemonHunter_Status!F7*Class_Compare!$O$27)+100 -> 128.125 | F4: 36.42643554 | G4: =Class_Compare!$B$27*(100+1.2*(0.6*DemonHunter_Status!B7+0.2*DemonHunter_Status!D7+0.2*DemonHunter_Status!E7)) -> 22.4144 | H4: =Class_Compare!$C$27*(100+1.2*(0.6*DemonHunter_Status!B7+0.2*DemonHunter_Status!D7+0.2*DemonHunter_Status!E7)) -> 44.8288 | I4: =(Class_Compare!$G$27*1000)-(DemonHunter_Status!D7*5) -> 923 | J4: =(Class_Compare!$I$27*1000+DemonHunter_Status!D7)/50 -> 20.308 | K4: =2+(Class_Compare!$L$27)+(DemonHunter_Status!E7/100) -> 3.124 | L4: =(0.2*Knight_Status!B7+0.8*DemonHunter_Status!F7)/250 -> 0.02792 | M4: =(DemonHunter_Status!C7/25) -> 0.248 | N4: =Class_Compare!$H$27*(0.2*(DemonHunter_Status!D7*35)) -> 64.68 | O4: =(Class_Compare!$I$27*1000+DemonHunter_Status!D7)/1000 -> 1.0154 | P4: =(Class_Compare!$J$27*1000+DemonHunter_Status!D7+DemonHunter_Status!E7)/10 -> 102.78 | Q4: =((DemonHunter_Status!F7*Class_Compare!$M$27)+5)/2 -> 4.75 | R4: =((DemonHunter_Status!E7+DemonHunter_Status!F7)*Class_Compare!$N$27)/5 -> 1.99 | S4: 200 | T4: 0 | U4: 1.0375
A5: DemonHunter | B5: 4 | C5: =(B5^2*0.7)+DemonHunter_Status!$C8*(DemonHunter_Status!$C8*Class_Compare!$D$27)/2+100 -> 119.912 | D5: =(U5)*(Class_Compare!$E$27*(50+1.5*(0.8*DemonHunter_Status!C8+0.2*DemonHunter_Status!F8))) -> 6.3336 | E5: =DemonHunter_Status!F8*(DemonHunter_Status!F8*Class_Compare!$O$27)+100 -> 132 | F5: 36.82785637 | G5: =Class_Compare!$B$27*(100+1.2*(0.6*DemonHunter_Status!B8+0.2*DemonHunter_Status!D8+0.2*DemonHunter_Status!E8)) -> 22.5632 | H5: =Class_Compare!$C$27*(100+1.2*(0.6*DemonHunter_Status!B8+0.2*DemonHunter_Status!D8+0.2*DemonHunter_Status!E8)) -> 45.1264 | I5: =(Class_Compare!$G$27*1000)-(DemonHunter_Status!D8*5) -> 919 | J5: =(Class_Compare!$I$27*1000+DemonHunter_Status!D8)/50 -> 20.324 | K5: =2+(Class_Compare!$L$27)+(DemonHunter_Status!E8/100) -> 3.132 | L5: =(0.2*Knight_Status!B8+0.8*DemonHunter_Status!F8)/250 -> 0.02976 | M5: =(DemonHunter_Status!C8/25) -> 0.264 | N5: =Class_Compare!$H$27*(0.2*(DemonHunter_Status!D8*35)) -> 68.04 | O5: =(Class_Compare!$I$27*1000+DemonHunter_Status!D8)/1000 -> 1.0162 | P5: =(Class_Compare!$J$27*1000+DemonHunter_Status!D8+DemonHunter_Status!E8)/10 -> 102.94 | Q5: =((DemonHunter_Status!F8*Class_Compare!$M$27)+5)/2 -> 4.9 | R5: =((DemonHunter_Status!E8+DemonHunter_Status!F8)*Class_Compare!$N$27)/5 -> 2.12 | S5: 200 | T5: 0 | U5: 1.05
A6: DemonHunter | B6: 5 | C6: =(B6^2*0.7)+DemonHunter_Status!$C9*(DemonHunter_Status!$C9*Class_Compare!$D$27)/2+100 -> 127.3 | D6: =(U6)*(Class_Compare!$E$27*(50+1.5*(0.8*DemonHunter_Status!C9+0.2*DemonHunter_Status!F9))) -> 6.4759375 | E6: =DemonHunter_Status!F9*(DemonHunter_Status!F9*Class_Compare!$O$27)+100 -> 136.125 | F6: 37.23278689 | G6: =Class_Compare!$B$27*(100+1.2*(0.6*DemonHunter_Status!B9+0.2*DemonHunter_Status!D9+0.2*DemonHunter_Status!E9)) -> 22.712 | H6: =Class_Compare!$C$27*(100+1.2*(0.6*DemonHunter_Status!B9+0.2*DemonHunter_Status!D9+0.2*DemonHunter_Status!E9)) -> 45.424 | I6: =(Class_Compare!$G$27*1000)-(DemonHunter_Status!D9*5) -> 915 | J6: =(Class_Compare!$I$27*1000+DemonHunter_Status!D9)/50 -> 20.34 | K6: =2+(Class_Compare!$L$27)+(DemonHunter_Status!E9/100) -> 3.14 | L6: =(0.2*Knight_Status!B9+0.8*DemonHunter_Status!F9)/250 -> 0.0316 | M6: =(DemonHunter_Status!C9/25) -> 0.28 | N6: =Class_Compare!$H$27*(0.2*(DemonHunter_Status!D9*35)) -> 71.4 | O6: =(Class_Compare!$I$27*1000+DemonHunter_Status!D9)/1000 -> 1.017 | P6: =(Class_Compare!$J$27*1000+DemonHunter_Status!D9+DemonHunter_Status!E9)/10 -> 103.1 | Q6: =((DemonHunter_Status!F9*Class_Compare!$M$27)+5)/2 -> 5.05 | R6: =((DemonHunter_Status!E9+DemonHunter_Status!F9)*Class_Compare!$N$27)/5 -> 2.25 | S6: 200 | T6: 0 | U6: 1.0625
A7: DemonHunter | B7: 6 | C7: =(B7^2*0.7)+DemonHunter_Status!$C10*(DemonHunter_Status!$C10*Class_Compare!$D$27)/2+100 -> 136.152 | D7: =(U7)*(Class_Compare!$E$27*(50+1.5*(0.8*DemonHunter_Status!C10+0.2*DemonHunter_Status!F10))) -> 6.61985 | E7: =DemonHunter_Status!F10*(DemonHunter_Status!F10*Class_Compare!$O$27)+100 -> 140.5 | F7: 37.64127333 | G7: =Class_Compare!$B$27*(100+1.2*(0.6*DemonHunter_Status!B10+0.2*DemonHunter_Status!D10+0.2*DemonHunter_Status!E10)) -> 22.8608 | H7: =Class_Compare!$C$27*(100+1.2*(0.6*DemonHunter_Status!B10+0.2*DemonHunter_Status!D10+0.2*DemonHunter_Status!E10)) -> 45.7216 | I7: =(Class_Compare!$G$27*1000)-(DemonHunter_Status!D10*5) -> 911 | J7: =(Class_Compare!$I$27*1000+DemonHunter_Status!D10)/50 -> 20.356 | K7: =2+(Class_Compare!$L$27)+(DemonHunter_Status!E10/100) -> 3.148 | L7: =(0.2*Knight_Status!B10+0.8*DemonHunter_Status!F10)/250 -> 0.03344 | M7: =(DemonHunter_Status!C10/25) -> 0.296 | N7: =Class_Compare!$H$27*(0.2*(DemonHunter_Status!D10*35)) -> 74.76 | O7: =(Class_Compare!$I$27*1000+DemonHunter_Status!D10)/1000 -> 1.0178 | P7: =(Class_Compare!$J$27*1000+DemonHunter_Status!D10+DemonHunter_Status!E10)/10 -> 103.26 | Q7: =((DemonHunter_Status!F10*Class_Compare!$M$27)+5)/2 -> 5.2 | R7: =((DemonHunter_Status!E10+DemonHunter_Status!F10)*Class_Compare!$N$27)/5 -> 2.38 | S7: 200 | T7: 0 | U7: 1.075
A8: DemonHunter | B8: 7 | C8: =(B8^2*0.7)+DemonHunter_Status!$C11*(DemonHunter_Status!$C11*Class_Compare!$D$27)/2+100 -> 146.468 | D8: =(U8)*(Class_Compare!$E$27*(50+1.5*(0.8*DemonHunter_Status!C11+0.2*DemonHunter_Status!F11))) -> 6.7653375 | E8: =DemonHunter_Status!F11*(DemonHunter_Status!F11*Class_Compare!$O$27)+100 -> 145.125 | F8: 38.05336273 | G8: =Class_Compare!$B$27*(100+1.2*(0.6*DemonHunter_Status!B11+0.2*DemonHunter_Status!D11+0.2*DemonHunter_Status!E11)) -> 23.0096 | H8: =Class_Compare!$C$27*(100+1.2*(0.6*DemonHunter_Status!B11+0.2*DemonHunter_Status!D11+0.2*DemonHunter_Status!E11)) -> 46.0192 | I8: =(Class_Compare!$G$27*1000)-(DemonHunter_Status!D11*5) -> 907 | J8: =(Class_Compare!$I$27*1000+DemonHunter_Status!D11)/50 -> 20.372 | K8: =2+(Class_Compare!$L$27)+(DemonHunter_Status!E11/100) -> 3.156 | L8: =(0.2*Knight_Status!B11+0.8*DemonHunter_Status!F11)/250 -> 0.03528 | M8: =(DemonHunter_Status!C11/25) -> 0.312 | N8: =Class_Compare!$H$27*(0.2*(DemonHunter_Status!D11*35)) -> 78.12 | O8: =(Class_Compare!$I$27*1000+DemonHunter_Status!D11)/1000 -> 1.0186 | P8: =(Class_Compare!$J$27*1000+DemonHunter_Status!D11+DemonHunter_Status!E11)/10 -> 103.42 | Q8: =((DemonHunter_Status!F11*Class_Compare!$M$27)+5)/2 -> 5.35 | R8: =((DemonHunter_Status!E11+DemonHunter_Status!F11)*Class_Compare!$N$27)/5 -> 2.51 | S8: 200 | T8: 0 | U8: 1.0875
A9: DemonHunter | B9: 8 | C9: =(B9^2*0.7)+DemonHunter_Status!$C12*(DemonHunter_Status!$C12*Class_Compare!$D$27)/2+100 -> 158.248 | D9: =(U9)*(Class_Compare!$E$27*(50+1.5*(0.8*DemonHunter_Status!C12+0.2*DemonHunter_Status!F12))) -> 6.9124 | E9: =DemonHunter_Status!F12*(DemonHunter_Status!F12*Class_Compare!$O$27)+100 -> 150 | F9: 38.46910299 | G9: =Class_Compare!$B$27*(100+1.2*(0.6*DemonHunter_Status!B12+0.2*DemonHunter_Status!D12+0.2*DemonHunter_Status!E12)) -> 23.1584 | H9: =Class_Compare!$C$27*(100+1.2*(0.6*DemonHunter_Status!B12+0.2*DemonHunter_Status!D12+0.2*DemonHunter_Status!E12)) -> 46.3168 | I9: =(Class_Compare!$G$27*1000)-(DemonHunter_Status!D12*5) -> 903 | J9: =(Class_Compare!$I$27*1000+DemonHunter_Status!D12)/50 -> 20.388 | K9: =2+(Class_Compare!$L$27)+(DemonHunter_Status!E12/100) -> 3.164 | L9: =(0.2*Knight_Status!B12+0.8*DemonHunter_Status!F12)/250 -> 0.03712 | M9: =(DemonHunter_Status!C12/25) -> 0.328 | N9: =Class_Compare!$H$27*(0.2*(DemonHunter_Status!D12*35)) -> 81.48 | O9: =(Class_Compare!$I$27*1000+DemonHunter_Status!D12)/1000 -> 1.0194 | P9: =(Class_Compare!$J$27*1000+DemonHunter_Status!D12+DemonHunter_Status!E12)/10 -> 103.58 | Q9: =((DemonHunter_Status!F12*Class_Compare!$M$27)+5)/2 -> 5.5 | R9: =((DemonHunter_Status!E12+DemonHunter_Status!F12)*Class_Compare!$N$27)/5 -> 2.64 | S9: 200 | T9: 0 | U9: 1.1
A10: DemonHunter | B10: 9 | C10: =(B10^2*0.7)+DemonHunter_Status!$C13*(DemonHunter_Status!$C13*Class_Compare!$D$27)/2+100 -> 171.492 | D10: =(U10)*(Class_Compare!$E$27*(50+1.5*(0.8*DemonHunter_Status!C13+0.2*DemonHunter_Status!F13))) -> 7.0610375 | E10: =DemonHunter_Status!F13*(DemonHunter_Status!F13*Class_Compare!$O$27)+100 -> 155.125 | F10: 38.88854283 | G10: =Class_Compare!$B$27*(100+1.2*(0.6*DemonHunter_Status!B13+0.2*DemonHunter_Status!D13+0.2*DemonHunter_Status!E13)) -> 23.3072 | H10: =Class_Compare!$C$27*(100+1.2*(0.6*DemonHunter_Status!B13+0.2*DemonHunter_Status!D13+0.2*DemonHunter_Status!E13)) -> 46.6144 | I10: =(Class_Compare!$G$27*1000)-(DemonHunter_Status!D13*5) -> 899 | J10: =(Class_Compare!$I$27*1000+DemonHunter_Status!D13)/50 -> 20.404 | K10: =2+(Class_Compare!$L$27)+(DemonHunter_Status!E13/100) -> 3.172 | L10: =(0.2*Knight_Status!B13+0.8*DemonHunter_Status!F13)/250 -> 0.03896 | M10: =(DemonHunter_Status!C13/25) -> 0.344 | N10: =Class_Compare!$H$27*(0.2*(DemonHunter_Status!D13*35)) -> 84.84 | O10: =(Class_Compare!$I$27*1000+DemonHunter_Status!D13)/1000 -> 1.0202 | P10: =(Class_Compare!$J$27*1000+DemonHunter_Status!D13+DemonHunter_Status!E13)/10 -> 103.74 | Q10: =((DemonHunter_Status!F13*Class_Compare!$M$27)+5)/2 -> 5.65 | R10: =((DemonHunter_Status!E13+DemonHunter_Status!F13)*Class_Compare!$N$27)/5 -> 2.77 | S10: 200 | T10: 0 | U10: 1.1125
A11: DemonHunter | B11: 10 | C11: =(B11^2*0.7)+DemonHunter_Status!$C14*(DemonHunter_Status!$C14*Class_Compare!$D$27)/2+100 -> 186.2 | D11: =(U11)*(Class_Compare!$E$27*(50+1.5*(0.8*DemonHunter_Status!C14+0.2*DemonHunter_Status!F14))) -> 7.21125 | E11: =DemonHunter_Status!F14*(DemonHunter_Status!F14*Class_Compare!$O$27)+100 -> 160.5 | F11: 39.31173184 | G11: =Class_Compare!$B$27*(100+1.2*(0.6*DemonHunter_Status!B14+0.2*DemonHunter_Status!D14+0.2*DemonHunter_Status!E14)) -> 23.456 | H11: =Class_Compare!$C$27*(100+1.2*(0.6*DemonHunter_Status!B14+0.2*DemonHunter_Status!D14+0.2*DemonHunter_Status!E14)) -> 46.912 | I11: =(Class_Compare!$G$27*1000)-(DemonHunter_Status!D14*5) -> 895 | J11: =(Class_Compare!$I$27*1000+DemonHunter_Status!D14)/50 -> 20.42 | K11: =2+(Class_Compare!$L$27)+(DemonHunter_Status!E14/100) -> 3.18 | L11: =(0.2*Knight_Status!B14+0.8*DemonHunter_Status!F14)/250 -> 0.0408 | M11: =(DemonHunter_Status!C14/25) -> 0.36 | N11: =Class_Compare!$H$27*(0.2*(DemonHunter_Status!D14*35)) -> 88.2 | O11: =(Class_Compare!$I$27*1000+DemonHunter_Status!D14)/1000 -> 1.021 | P11: =(Class_Compare!$J$27*1000+DemonHunter_Status!D14+DemonHunter_Status!E14)/10 -> 103.9 | Q11: =((DemonHunter_Status!F14*Class_Compare!$M$27)+5)/2 -> 5.8 | R11: =((DemonHunter_Status!E14+DemonHunter_Status!F14)*Class_Compare!$N$27)/5 -> 2.9 | S11: 200 | T11: 0 | U11: 1.125
A12: DemonHunter | B12: 11 | C12: =(B12^2*0.7)+DemonHunter_Status!$C15*(DemonHunter_Status!$C15*Class_Compare!$D$27)/2+100 -> 202.372 | D12: =(U12)*(Class_Compare!$E$27*(50+1.5*(0.8*DemonHunter_Status!C15+0.2*DemonHunter_Status!F15))) -> 7.3630375 | E12: =DemonHunter_Status!F15*(DemonHunter_Status!F15*Class_Compare!$O$27)+100 -> 166.125 | F12: 39.73872054 | G12: =Class_Compare!$B$27*(100+1.2*(0.6*DemonHunter_Status!B15+0.2*DemonHunter_Status!D15+0.2*DemonHunter_Status!E15)) -> 23.6048 | H12: =Class_Compare!$C$27*(100+1.2*(0.6*DemonHunter_Status!B15+0.2*DemonHunter_Status!D15+0.2*DemonHunter_Status!E15)) -> 47.2096 | I12: =(Class_Compare!$G$27*1000)-(DemonHunter_Status!D15*5) -> 891 | J12: =(Class_Compare!$I$27*1000+DemonHunter_Status!D15)/50 -> 20.436 | K12: =2+(Class_Compare!$L$27)+(DemonHunter_Status!E15/100) -> 3.188 | L12: =(0.2*Knight_Status!B15+0.8*DemonHunter_Status!F15)/250 -> 0.04264 | M12: =(DemonHunter_Status!C15/25) -> 0.376 | N12: =Class_Compare!$H$27*(0.2*(DemonHunter_Status!D15*35)) -> 91.56 | O12: =(Class_Compare!$I$27*1000+DemonHunter_Status!D15)/1000 -> 1.0218 | P12: =(Class_Compare!$J$27*1000+DemonHunter_Status!D15+DemonHunter_Status!E15)/10 -> 104.06 | Q12: =((DemonHunter_Status!F15*Class_Compare!$M$27)+5)/2 -> 5.95 | R12: =((DemonHunter_Status!E15+DemonHunter_Status!F15)*Class_Compare!$N$27)/5 -> 3.03 | S12: 200 | T12: 0 | U12: 1.1375
A13: DemonHunter | B13: 12 | C13: =(B13^2*0.7)+DemonHunter_Status!$C16*(DemonHunter_Status!$C16*Class_Compare!$D$27)/2+100 -> 220.008 | D13: =(U13)*(Class_Compare!$E$27*(50+1.5*(0.8*DemonHunter_Status!C16+0.2*DemonHunter_Status!F16))) -> 7.5164 | E13: =DemonHunter_Status!F16*(DemonHunter_Status!F16*Class_Compare!$O$27)+100 -> 172 | F13: 40.16956032 | G13: =Class_Compare!$B$27*(100+1.2*(0.6*DemonHunter_Status!B16+0.2*DemonHunter_Status!D16+0.2*DemonHunter_Status!E16)) -> 23.7536 | H13: =Class_Compare!$C$27*(100+1.2*(0.6*DemonHunter_Status!B16+0.2*DemonHunter_Status!D16+0.2*DemonHunter_Status!E16)) -> 47.5072 | I13: =(Class_Compare!$G$27*1000)-(DemonHunter_Status!D16*5) -> 887 | J13: =(Class_Compare!$I$27*1000+DemonHunter_Status!D16)/50 -> 20.452 | K13: =2+(Class_Compare!$L$27)+(DemonHunter_Status!E16/100) -> 3.196 | L13: =(0.2*Knight_Status!B16+0.8*DemonHunter_Status!F16)/250 -> 0.04448 | M13: =(DemonHunter_Status!C16/25) -> 0.392 | N13: =Class_Compare!$H$27*(0.2*(DemonHunter_Status!D16*35)) -> 94.92 | O13: =(Class_Compare!$I$27*1000+DemonHunter_Status!D16)/1000 -> 1.0226 | P13: =(Class_Compare!$J$27*1000+DemonHunter_Status!D16+DemonHunter_Status!E16)/10 -> 104.22 | Q13: =((DemonHunter_Status!F16*Class_Compare!$M$27)+5)/2 -> 6.1 | R13: =((DemonHunter_Status!E16+DemonHunter_Status!F16)*Class_Compare!$N$27)/5 -> 3.16 | S13: 200 | T13: 0 | U13: 1.15
A14: DemonHunter | B14: 13 | C14: =(B14^2*0.7)+DemonHunter_Status!$C17*(DemonHunter_Status!$C17*Class_Compare!$D$27)/2+100 -> 239.108 | D14: =(U14)*(Class_Compare!$E$27*(50+1.5*(0.8*DemonHunter_Status!C17+0.2*DemonHunter_Status!F17))) -> 7.6713375 | E14: =DemonHunter_Status!F17*(DemonHunter_Status!F17*Class_Compare!$O$27)+100 -> 178.125 | F14: 40.60430351 | G14: =Class_Compare!$B$27*(100+1.2*(0.6*DemonHunter_Status!B17+0.2*DemonHunter_Status!D17+0.2*DemonHunter_Status!E17)) -> 23.9024 | H14: =Class_Compare!$C$27*(100+1.2*(0.6*DemonHunter_Status!B17+0.2*DemonHunter_Status!D17+0.2*DemonHunter_Status!E17)) -> 47.8048 | I14: =(Class_Compare!$G$27*1000)-(DemonHunter_Status!D17*5) -> 883 | J14: =(Class_Compare!$I$27*1000+DemonHunter_Status!D17)/50 -> 20.468 | K14: =2+(Class_Compare!$L$27)+(DemonHunter_Status!E17/100) -> 3.204 | L14: =(0.2*Knight_Status!B17+0.8*DemonHunter_Status!F17)/250 -> 0.04632 | M14: =(DemonHunter_Status!C17/25) -> 0.408 | N14: =Class_Compare!$H$27*(0.2*(DemonHunter_Status!D17*35)) -> 98.28 | O14: =(Class_Compare!$I$27*1000+DemonHunter_Status!D17)/1000 -> 1.0234 | P14: =(Class_Compare!$J$27*1000+DemonHunter_Status!D17+DemonHunter_Status!E17)/10 -> 104.38 | Q14: =((DemonHunter_Status!F17*Class_Compare!$M$27)+5)/2 -> 6.25 | R14: =((DemonHunter_Status!E17+DemonHunter_Status!F17)*Class_Compare!$N$27)/5 -> 3.29 | S14: 200 | T14: 0 | U14: 1.1625
A15: DemonHunter | B15: 14 | C15: =(B15^2*0.7)+DemonHunter_Status!$C18*(DemonHunter_Status!$C18*Class_Compare!$D$27)/2+100 -> 259.672 | D15: =(U15)*(Class_Compare!$E$27*(50+1.5*(0.8*DemonHunter_Status!C18+0.2*DemonHunter_Status!F18))) -> 7.82785 | E15: =DemonHunter_Status!F18*(DemonHunter_Status!F18*Class_Compare!$O$27)+100 -> 184.5 | F15: 41.04300341 | G15: =Class_Compare!$B$27*(100+1.2*(0.6*DemonHunter_Status!B18+0.2*DemonHunter_Status!D18+0.2*DemonHunter_Status!E18)) -> 24.0512 | H15: =Class_Compare!$C$27*(100+1.2*(0.6*DemonHunter_Status!B18+0.2*DemonHunter_Status!D18+0.2*DemonHunter_Status!E18)) -> 48.1024 | I15: =(Class_Compare!$G$27*1000)-(DemonHunter_Status!D18*5) -> 879 | J15: =(Class_Compare!$I$27*1000+DemonHunter_Status!D18)/50 -> 20.484 | K15: =2+(Class_Compare!$L$27)+(DemonHunter_Status!E18/100) -> 3.212 | L15: =(0.2*Knight_Status!B18+0.8*DemonHunter_Status!F18)/250 -> 0.04816 | M15: =(DemonHunter_Status!C18/25) -> 0.424 | N15: =Class_Compare!$H$27*(0.2*(DemonHunter_Status!D18*35)) -> 101.64 | O15: =(Class_Compare!$I$27*1000+DemonHunter_Status!D18)/1000 -> 1.0242 | P15: =(Class_Compare!$J$27*1000+DemonHunter_Status!D18+DemonHunter_Status!E18)/10 -> 104.54 | Q15: =((DemonHunter_Status!F18*Class_Compare!$M$27)+5)/2 -> 6.4 | R15: =((DemonHunter_Status!E18+DemonHunter_Status!F18)*Class_Compare!$N$27)/5 -> 3.42 | S15: 200 | T15: 0 | U15: 1.175
A16: DemonHunter | B16: 15 | C16: =(B16^2*0.7)+DemonHunter_Status!$C19*(DemonHunter_Status!$C19*Class_Compare!$D$27)/2+100 -> 281.7 | D16: =(U16)*(Class_Compare!$E$27*(50+1.5*(0.8*DemonHunter_Status!C19+0.2*DemonHunter_Status!F19))) -> 7.9859375 | E16: =DemonHunter_Status!F19*(DemonHunter_Status!F19*Class_Compare!$O$27)+100 -> 191.125 | F16: 41.48571429 | G16: =Class_Compare!$B$27*(100+1.2*(0.6*DemonHunter_Status!B19+0.2*DemonHunter_Status!D19+0.2*DemonHunter_Status!E19)) -> 24.2 | H16: =Class_Compare!$C$27*(100+1.2*(0.6*DemonHunter_Status!B19+0.2*DemonHunter_Status!D19+0.2*DemonHunter_Status!E19)) -> 48.4 | I16: =(Class_Compare!$G$27*1000)-(DemonHunter_Status!D19*5) -> 875 | J16: =(Class_Compare!$I$27*1000+DemonHunter_Status!D19)/50 -> 20.5 | K16: =2+(Class_Compare!$L$27)+(DemonHunter_Status!E19/100) -> 3.22 | L16: =(0.2*Knight_Status!B19+0.8*DemonHunter_Status!F19)/250 -> 0.05 | M16: =(DemonHunter_Status!C19/25) -> 0.44 | N16: =Class_Compare!$H$27*(0.2*(DemonHunter_Status!D19*35)) -> 105 | O16: =(Class_Compare!$I$27*1000+DemonHunter_Status!D19)/1000 -> 1.025 | P16: =(Class_Compare!$J$27*1000+DemonHunter_Status!D19+DemonHunter_Status!E19)/10 -> 104.7 | Q16: =((DemonHunter_Status!F19*Class_Compare!$M$27)+5)/2 -> 6.55 | R16: =((DemonHunter_Status!E19+DemonHunter_Status!F19)*Class_Compare!$N$27)/5 -> 3.55 | S16: 200 | T16: 0 | U16: 1.1875
A17: DemonHunter | B17: 16 | C17: =(B17^2*0.7)+DemonHunter_Status!$C20*(DemonHunter_Status!$C20*Class_Compare!$D$27)/2+100 -> 305.192 | D17: =(U17)*(Class_Compare!$E$27*(50+1.5*(0.8*DemonHunter_Status!C20+0.2*DemonHunter_Status!F20))) -> 8.1456 | E17: =DemonHunter_Status!F20*(DemonHunter_Status!F20*Class_Compare!$O$27)+100 -> 198 | F17: 41.93249139 | G17: =Class_Compare!$B$27*(100+1.2*(0.6*DemonHunter_Status!B20+0.2*DemonHunter_Status!D20+0.2*DemonHunter_Status!E20)) -> 24.3488 | H17: =Class_Compare!$C$27*(100+1.2*(0.6*DemonHunter_Status!B20+0.2*DemonHunter_Status!D20+0.2*DemonHunter_Status!E20)) -> 48.6976 | I17: =(Class_Compare!$G$27*1000)-(DemonHunter_Status!D20*5) -> 871 | J17: =(Class_Compare!$I$27*1000+DemonHunter_Status!D20)/50 -> 20.516 | K17: =2+(Class_Compare!$L$27)+(DemonHunter_Status!E20/100) -> 3.228 | L17: =(0.2*Knight_Status!B20+0.8*DemonHunter_Status!F20)/250 -> 0.05184 | M17: =(DemonHunter_Status!C20/25) -> 0.456 | N17: =Class_Compare!$H$27*(0.2*(DemonHunter_Status!D20*35)) -> 108.36 | O17: =(Class_Compare!$I$27*1000+DemonHunter_Status!D20)/1000 -> 1.0258 | P17: =(Class_Compare!$J$27*1000+DemonHunter_Status!D20+DemonHunter_Status!E20)/10 -> 104.86 | Q17: =((DemonHunter_Status!F20*Class_Compare!$M$27)+5)/2 -> 6.7 | R17: =((DemonHunter_Status!E20+DemonHunter_Status!F20)*Class_Compare!$N$27)/5 -> 3.68 | S17: 200 | T17: 0 | U17: 1.2
A18: DemonHunter | B18: 17 | C18: =(B18^2*0.7)+DemonHunter_Status!$C21*(DemonHunter_Status!$C21*Class_Compare!$D$27)/2+100 -> 330.148 | D18: =(U18)*(Class_Compare!$E$27*(50+1.5*(0.8*DemonHunter_Status!C21+0.2*DemonHunter_Status!F21))) -> 8.3068375 | E18: =DemonHunter_Status!F21*(DemonHunter_Status!F21*Class_Compare!$O$27)+100 -> 205.125 | F18: 42.383391 | G18: =Class_Compare!$B$27*(100+1.2*(0.6*DemonHunter_Status!B21+0.2*DemonHunter_Status!D21+0.2*DemonHunter_Status!E21)) -> 24.4976 | H18: =Class_Compare!$C$27*(100+1.2*(0.6*DemonHunter_Status!B21+0.2*DemonHunter_Status!D21+0.2*DemonHunter_Status!E21)) -> 48.9952 | I18: =(Class_Compare!$G$27*1000)-(DemonHunter_Status!D21*5) -> 867 | J18: =(Class_Compare!$I$27*1000+DemonHunter_Status!D21)/50 -> 20.532 | K18: =2+(Class_Compare!$L$27)+(DemonHunter_Status!E21/100) -> 3.236 | L18: =(0.2*Knight_Status!B21+0.8*DemonHunter_Status!F21)/250 -> 0.05368 | M18: =(DemonHunter_Status!C21/25) -> 0.472 | N18: =Class_Compare!$H$27*(0.2*(DemonHunter_Status!D21*35)) -> 111.72 | O18: =(Class_Compare!$I$27*1000+DemonHunter_Status!D21)/1000 -> 1.0266 | P18: =(Class_Compare!$J$27*1000+DemonHunter_Status!D21+DemonHunter_Status!E21)/10 -> 105.02 | Q18: =((DemonHunter_Status!F21*Class_Compare!$M$27)+5)/2 -> 6.85 | R18: =((DemonHunter_Status!E21+DemonHunter_Status!F21)*Class_Compare!$N$27)/5 -> 3.81 | S18: 200 | T18: 0 | U18: 1.2125
A19: DemonHunter | B19: 18 | C19: =(B19^2*0.7)+DemonHunter_Status!$C22*(DemonHunter_Status!$C22*Class_Compare!$D$27)/2+100 -> 356.568 | D19: =(U19)*(Class_Compare!$E$27*(50+1.5*(0.8*DemonHunter_Status!C22+0.2*DemonHunter_Status!F22))) -> 8.46965 | E19: =DemonHunter_Status!F22*(DemonHunter_Status!F22*Class_Compare!$O$27)+100 -> 212.5 | F19: 42.83847045 | G19: =Class_Compare!$B$27*(100+1.2*(0.6*DemonHunter_Status!B22+0.2*DemonHunter_Status!D22+0.2*DemonHunter_Status!E22)) -> 24.6464 | H19: =Class_Compare!$C$27*(100+1.2*(0.6*DemonHunter_Status!B22+0.2*DemonHunter_Status!D22+0.2*DemonHunter_Status!E22)) -> 49.2928 | I19: =(Class_Compare!$G$27*1000)-(DemonHunter_Status!D22*5) -> 863 | J19: =(Class_Compare!$I$27*1000+DemonHunter_Status!D22)/50 -> 20.548 | K19: =2+(Class_Compare!$L$27)+(DemonHunter_Status!E22/100) -> 3.244 | L19: =(0.2*Knight_Status!B22+0.8*DemonHunter_Status!F22)/250 -> 0.05552 | M19: =(DemonHunter_Status!C22/25) -> 0.488 | N19: =Class_Compare!$H$27*(0.2*(DemonHunter_Status!D22*35)) -> 115.08 | O19: =(Class_Compare!$I$27*1000+DemonHunter_Status!D22)/1000 -> 1.0274 | P19: =(Class_Compare!$J$27*1000+DemonHunter_Status!D22+DemonHunter_Status!E22)/10 -> 105.18 | Q19: =((DemonHunter_Status!F22*Class_Compare!$M$27)+5)/2 -> 7 | R19: =((DemonHunter_Status!E22+DemonHunter_Status!F22)*Class_Compare!$N$27)/5 -> 3.94 | S19: 200 | T19: 0 | U19: 1.225
A20: DemonHunter | B20: 19 | C20: =(B20^2*0.7)+DemonHunter_Status!$C23*(DemonHunter_Status!$C23*Class_Compare!$D$27)/2+100 -> 384.452 | D20: =(U20)*(Class_Compare!$E$27*(50+1.5*(0.8*DemonHunter_Status!C23+0.2*DemonHunter_Status!F23))) -> 8.6340375 | E20: =DemonHunter_Status!F23*(DemonHunter_Status!F23*Class_Compare!$O$27)+100 -> 220.125 | F20: 43.29778813 | G20: =Class_Compare!$B$27*(100+1.2*(0.6*DemonHunter_Status!B23+0.2*DemonHunter_Status!D23+0.2*DemonHunter_Status!E23)) -> 24.7952 | H20: =Class_Compare!$C$27*(100+1.2*(0.6*DemonHunter_Status!B23+0.2*DemonHunter_Status!D23+0.2*DemonHunter_Status!E23)) -> 49.5904 | I20: =(Class_Compare!$G$27*1000)-(DemonHunter_Status!D23*5) -> 859 | J20: =(Class_Compare!$I$27*1000+DemonHunter_Status!D23)/50 -> 20.564 | K20: =2+(Class_Compare!$L$27)+(DemonHunter_Status!E23/100) -> 3.252 | L20: =(0.2*Knight_Status!B23+0.8*DemonHunter_Status!F23)/250 -> 0.05736 | M20: =(DemonHunter_Status!C23/25) -> 0.504 | N20: =Class_Compare!$H$27*(0.2*(DemonHunter_Status!D23*35)) -> 118.44 | O20: =(Class_Compare!$I$27*1000+DemonHunter_Status!D23)/1000 -> 1.0282 | P20: =(Class_Compare!$J$27*1000+DemonHunter_Status!D23+DemonHunter_Status!E23)/10 -> 105.34 | Q20: =((DemonHunter_Status!F23*Class_Compare!$M$27)+5)/2 -> 7.15 | R20: =((DemonHunter_Status!E23+DemonHunter_Status!F23)*Class_Compare!$N$27)/5 -> 4.07 | S20: 200 | T20: 0 | U20: 1.2375
A21: DemonHunter | B21: 20 | C21: =(B21^2*0.7)+DemonHunter_Status!$C24*(DemonHunter_Status!$C24*Class_Compare!$D$27)/2+100 -> 413.8 | D21: =(U21)*(Class_Compare!$E$27*(50+1.5*(0.8*DemonHunter_Status!C24+0.2*DemonHunter_Status!F24))) -> 8.8 | E21: =DemonHunter_Status!F24*(DemonHunter_Status!F24*Class_Compare!$O$27)+100 -> 228 | F21: 43.76140351 | G21: =Class_Compare!$B$27*(100+1.2*(0.6*DemonHunter_Status!B24+0.2*DemonHunter_Status!D24+0.2*DemonHunter_Status!E24)) -> 24.944 | H21: =Class_Compare!$C$27*(100+1.2*(0.6*DemonHunter_Status!B24+0.2*DemonHunter_Status!D24+0.2*DemonHunter_Status!E24)) -> 49.888 | I21: =(Class_Compare!$G$27*1000)-(DemonHunter_Status!D24*5) -> 855 | J21: =(Class_Compare!$I$27*1000+DemonHunter_Status!D24)/50 -> 20.58 | K21: =2+(Class_Compare!$L$27)+(DemonHunter_Status!E24/100) -> 3.26 | L21: =(0.2*Knight_Status!B24+0.8*DemonHunter_Status!F24)/250 -> 0.0592 | M21: =(DemonHunter_Status!C24/25) -> 0.52 | N21: =Class_Compare!$H$27*(0.2*(DemonHunter_Status!D24*35)) -> 121.8 | O21: =(Class_Compare!$I$27*1000+DemonHunter_Status!D24)/1000 -> 1.029 | P21: =(Class_Compare!$J$27*1000+DemonHunter_Status!D24+DemonHunter_Status!E24)/10 -> 105.5 | Q21: =((DemonHunter_Status!F24*Class_Compare!$M$27)+5)/2 -> 7.3 | R21: =((DemonHunter_Status!E24+DemonHunter_Status!F24)*Class_Compare!$N$27)/5 -> 4.2 | S21: 200 | T21: 0 | U21: 1.25
A22: 클래스 | B22: DmHM1
A23: DmHM1 | B23: 21 | C23: =(B23^2*0.7)+DemonHunter_Status!$J5*(DemonHunter_Status!$J5*Class_Compare!$D$28)/2+100 -> 463.375 | D23: =(U23)*(Class_Compare!$E$28*(50+1.5*(0.8*DemonHunter_Status!J5+0.2*DemonHunter_Status!M5))) -> 26.959425 | E23: =DemonHunter_Status!M5*(DemonHunter_Status!M5*Class_Compare!$O$28)+100 -> 265.336 | F23: =((G23+H23)/2)*(1000/(I23)) -> 81.48167354 | G23: =Class_Compare!$B$28*(100+1.2*(0.6*DemonHunter_Status!I5+0.2*DemonHunter_Status!K5+0.2*DemonHunter_Status!L5)) -> 50.2816 | H23: =Class_Compare!$C$28*(100+1.2*(0.6*DemonHunter_Status!I5+0.2*DemonHunter_Status!K5+0.2*DemonHunter_Status!L5)) -> 87.9928 | I23: =(Class_Compare!$G$28*1000)-(DemonHunter_Status!K5*5) -> 848.5 | J23: =(Class_Compare!$I$28*1000+DemonHunter_Status!K5)/50 -> 22.606 | K23: =2+(Class_Compare!$L$28)+(DemonHunter_Status!L5/100) -> 3.47 | L23: =(0.2*DemonHunter_Status!I5+0.8*DemonHunter_Status!M5)/250 -> 0.0664 | M23: =(DemonHunter_Status!J5/25) -> 0.54 | N23: =Class_Compare!$H$28*(0.2*(DemonHunter_Status!K5*35)) -> 169.68 | O23: =(Class_Compare!$I$28*1000+DemonHunter_Status!K5)/1000 -> 1.1303 | P23: =(Class_Compare!$J$28*1000+DemonHunter_Status!K5+DemonHunter_Status!L5)/10 -> 105.73 | Q23: =((DemonHunter_Status!M5*Class_Compare!$M$28)+5)/2 -> 9.14 | R23: =((DemonHunter_Status!L5+DemonHunter_Status!M5)*Class_Compare!$N$28)/5 -> 5.232 | S23: 200 | T23: 0 | U23: =$U$1*(1+0.05*(B23/4)) -> 1.2625
A24: DmHM1 | B24: 22 | C24: =(B24^2*0.7)+DemonHunter_Status!$J6*(DemonHunter_Status!$J6*Class_Compare!$D$28)/2+100 -> 497.6 | D24: =(U24)*(Class_Compare!$E$28*(50+1.5*(0.8*DemonHunter_Status!J6+0.2*DemonHunter_Status!M6))) -> 27.5247 | E24: =DemonHunter_Status!M6*(DemonHunter_Status!M6*Class_Compare!$O$28)+100 -> 277.504 | F24: =((G24+H24)/2)*(1000/(I24)) -> 82.75344418 | G24: =Class_Compare!$B$28*(100+1.2*(0.6*DemonHunter_Status!I6+0.2*DemonHunter_Status!K6+0.2*DemonHunter_Status!L6)) -> 50.6752 | H24: =Class_Compare!$C$28*(100+1.2*(0.6*DemonHunter_Status!I6+0.2*DemonHunter_Status!K6+0.2*DemonHunter_Status!L6)) -> 88.6816 | I24: =(Class_Compare!$G$28*1000)-(DemonHunter_Status!K6*5) -> 842 | J24: =(Class_Compare!$I$28*1000+DemonHunter_Status!K6)/50 -> 22.632 | K24: =2+(Class_Compare!$L$28)+(DemonHunter_Status!L6/100) -> 3.48 | L24: =(0.2*DemonHunter_Status!I6+0.8*DemonHunter_Status!M6)/250 -> 0.0688 | M24: =(DemonHunter_Status!J6/25) -> 0.56 | N24: =Class_Compare!$H$28*(0.2*(DemonHunter_Status!K6*35)) -> 176.96 | O24: =(Class_Compare!$I$28*1000+DemonHunter_Status!K6)/1000 -> 1.1316 | P24: =(Class_Compare!$J$28*1000+DemonHunter_Status!K6+DemonHunter_Status!L6)/10 -> 105.96 | Q24: =((DemonHunter_Status!M6*Class_Compare!$M$28)+5)/2 -> 9.38 | R24: =((DemonHunter_Status!L6+DemonHunter_Status!M6)*Class_Compare!$N$28)/5 -> 5.424 | S24: 200 | T24: 0 | U24: =$U$1*(1+0.05*(B24/4)) -> 1.275
A25: DmHM1 | B25: 23 | C25: =(B25^2*0.7)+DemonHunter_Status!$J7*(DemonHunter_Status!$J7*Class_Compare!$D$28)/2+100 -> 533.375 | D25: =(U25)*(Class_Compare!$E$28*(50+1.5*(0.8*DemonHunter_Status!J7+0.2*DemonHunter_Status!M7))) -> 28.095825 | E25: =DemonHunter_Status!M7*(DemonHunter_Status!M7*Class_Compare!$O$28)+100 -> 290.104 | F25: 84.04500299 | G25: =Class_Compare!$B$28*(100+1.2*(0.6*DemonHunter_Status!I7+0.2*DemonHunter_Status!K7+0.2*DemonHunter_Status!L7)) -> 51.0688 | H25: =Class_Compare!$C$28*(100+1.2*(0.6*DemonHunter_Status!I7+0.2*DemonHunter_Status!K7+0.2*DemonHunter_Status!L7)) -> 89.3704 | I25: =(Class_Compare!$G$28*1000)-(DemonHunter_Status!K7*5) -> 835.5 | J25: =(Class_Compare!$I$28*1000+DemonHunter_Status!K7)/50 -> 22.658 | K25: =2+(Class_Compare!$L$28)+(DemonHunter_Status!L7/100) -> 3.49 | L25: =(0.2*DemonHunter_Status!I7+0.8*DemonHunter_Status!M7)/250 -> 0.0712 | M25: =(DemonHunter_Status!J7/25) -> 0.58 | N25: =Class_Compare!$H$28*(0.2*(DemonHunter_Status!K7*35)) -> 184.24 | O25: =(Class_Compare!$I$28*1000+DemonHunter_Status!K7)/1000 -> 1.1329 | P25: =(Class_Compare!$J$28*1000+DemonHunter_Status!K7+DemonHunter_Status!L7)/10 -> 106.19 | Q25: =((DemonHunter_Status!M7*Class_Compare!$M$28)+5)/2 -> 9.62 | R25: =((DemonHunter_Status!L7+DemonHunter_Status!M7)*Class_Compare!$N$28)/5 -> 5.616 | S25: 200 | T25: 0 | U25: 1.2875
A26: DmHM1 | B26: 24 | C26: =(B26^2*0.7)+DemonHunter_Status!$J8*(DemonHunter_Status!$J8*Class_Compare!$D$28)/2+100 -> 570.7 | D26: =(U26)*(Class_Compare!$E$28*(50+1.5*(0.8*DemonHunter_Status!J8+0.2*DemonHunter_Status!M8))) -> 28.6728 | E26: =DemonHunter_Status!M8*(DemonHunter_Status!M8*Class_Compare!$O$28)+100 -> 303.136 | F26: 85.35681544 | G26: =Class_Compare!$B$28*(100+1.2*(0.6*DemonHunter_Status!I8+0.2*DemonHunter_Status!K8+0.2*DemonHunter_Status!L8)) -> 51.4624 | H26: =Class_Compare!$C$28*(100+1.2*(0.6*DemonHunter_Status!I8+0.2*DemonHunter_Status!K8+0.2*DemonHunter_Status!L8)) -> 90.0592 | I26: =(Class_Compare!$G$28*1000)-(DemonHunter_Status!K8*5) -> 829 | J26: =(Class_Compare!$I$28*1000+DemonHunter_Status!K8)/50 -> 22.684 | K26: =2+(Class_Compare!$L$28)+(DemonHunter_Status!L8/100) -> 3.5 | L26: =(0.2*DemonHunter_Status!I8+0.8*DemonHunter_Status!M8)/250 -> 0.0736 | M26: =(DemonHunter_Status!J8/25) -> 0.6 | N26: =Class_Compare!$H$28*(0.2*(DemonHunter_Status!K8*35)) -> 191.52 | O26: =(Class_Compare!$I$28*1000+DemonHunter_Status!K8)/1000 -> 1.1342 | P26: =(Class_Compare!$J$28*1000+DemonHunter_Status!K8+DemonHunter_Status!L8)/10 -> 106.42 | Q26: =((DemonHunter_Status!M8*Class_Compare!$M$28)+5)/2 -> 9.86 | R26: =((DemonHunter_Status!L8+DemonHunter_Status!M8)*Class_Compare!$N$28)/5 -> 5.808 | S26: 200 | T26: 0 | U26: 1.3
A27: DmHM1 | B27: 25 | C27: =(B27^2*0.7)+DemonHunter_Status!$J9*(DemonHunter_Status!$J9*Class_Compare!$D$28)/2+100 -> 609.575 | D27: =(U27)*(Class_Compare!$E$28*(50+1.5*(0.8*DemonHunter_Status!J9+0.2*DemonHunter_Status!M9))) -> 29.255625 | E27: =DemonHunter_Status!M9*(DemonHunter_Status!M9*Class_Compare!$O$28)+100 -> 316.6 | F27: 86.6893617 | G27: =Class_Compare!$B$28*(100+1.2*(0.6*DemonHunter_Status!I9+0.2*DemonHunter_Status!K9+0.2*DemonHunter_Status!L9)) -> 51.856 | H27: =Class_Compare!$C$28*(100+1.2*(0.6*DemonHunter_Status!I9+0.2*DemonHunter_Status!K9+0.2*DemonHunter_Status!L9)) -> 90.748 | I27: =(Class_Compare!$G$28*1000)-(DemonHunter_Status!K9*5) -> 822.5 | J27: =(Class_Compare!$I$28*1000+DemonHunter_Status!K9)/50 -> 22.71 | K27: =2+(Class_Compare!$L$28)+(DemonHunter_Status!L9/100) -> 3.51 | L27: =(0.2*DemonHunter_Status!I9+0.8*DemonHunter_Status!M9)/250 -> 0.076 | M27: =(DemonHunter_Status!J9/25) -> 0.62 | N27: =Class_Compare!$H$28*(0.2*(DemonHunter_Status!K9*35)) -> 198.8 | O27: =(Class_Compare!$I$28*1000+DemonHunter_Status!K9)/1000 -> 1.1355 | P27: =(Class_Compare!$J$28*1000+DemonHunter_Status!K9+DemonHunter_Status!L9)/10 -> 106.65 | Q27: =((DemonHunter_Status!M9*Class_Compare!$M$28)+5)/2 -> 10.1 | R27: =((DemonHunter_Status!L9+DemonHunter_Status!M9)*Class_Compare!$N$28)/5 -> 6 | S27: 200 | T27: 0 | U27: 1.3125
A28: DmHM1 | B28: 26 | C28: =(B28^2*0.7)+DemonHunter_Status!$J10*(DemonHunter_Status!$J10*Class_Compare!$D$28)/2+100 -> 650 | D28: =(U28)*(Class_Compare!$E$28*(50+1.5*(0.8*DemonHunter_Status!J10+0.2*DemonHunter_Status!M10))) -> 29.8443 | E28: =DemonHunter_Status!M10*(DemonHunter_Status!M10*Class_Compare!$O$28)+100 -> 330.496 | F28: 88.04313725 | G28: =Class_Compare!$B$28*(100+1.2*(0.6*DemonHunter_Status!I10+0.2*DemonHunter_Status!K10+0.2*DemonHunter_Status!L10)) -> 52.2496 | H28: =Class_Compare!$C$28*(100+1.2*(0.6*DemonHunter_Status!I10+0.2*DemonHunter_Status!K10+0.2*DemonHunter_Status!L10)) -> 91.4368 | I28: =(Class_Compare!$G$28*1000)-(DemonHunter_Status!K10*5) -> 816 | J28: =(Class_Compare!$I$28*1000+DemonHunter_Status!K10)/50 -> 22.736 | K28: =2+(Class_Compare!$L$28)+(DemonHunter_Status!L10/100) -> 3.52 | L28: =(0.2*DemonHunter_Status!I10+0.8*DemonHunter_Status!M10)/250 -> 0.0784 | M28: =(DemonHunter_Status!J10/25) -> 0.64 | N28: =Class_Compare!$H$28*(0.2*(DemonHunter_Status!K10*35)) -> 206.08 | O28: =(Class_Compare!$I$28*1000+DemonHunter_Status!K10)/1000 -> 1.1368 | P28: =(Class_Compare!$J$28*1000+DemonHunter_Status!K10+DemonHunter_Status!L10)/10 -> 106.88 | Q28: =((DemonHunter_Status!M10*Class_Compare!$M$28)+5)/2 -> 10.34 | R28: =((DemonHunter_Status!L10+DemonHunter_Status!M10)*Class_Compare!$N$28)/5 -> 6.192 | S28: 200 | T28: 0 | U28: 1.325
A29: DmHM1 | B29: 27 | C29: =(B29^2*0.7)+DemonHunter_Status!$J11*(DemonHunter_Status!$J11*Class_Compare!$D$28)/2+100 -> 691.975 | D29: =(U29)*(Class_Compare!$E$28*(50+1.5*(0.8*DemonHunter_Status!J11+0.2*DemonHunter_Status!M11))) -> 30.438825 | E29: =DemonHunter_Status!M11*(DemonHunter_Status!M11*Class_Compare!$O$28)+100 -> 344.824 | F29: 89.41865349 | G29: =Class_Compare!$B$28*(100+1.2*(0.6*DemonHunter_Status!I11+0.2*DemonHunter_Status!K11+0.2*DemonHunter_Status!L11)) -> 52.6432 | H29: =Class_Compare!$C$28*(100+1.2*(0.6*DemonHunter_Status!I11+0.2*DemonHunter_Status!K11+0.2*DemonHunter_Status!L11)) -> 92.1256 | I29: =(Class_Compare!$G$28*1000)-(DemonHunter_Status!K11*5) -> 809.5 | J29: =(Class_Compare!$I$28*1000+DemonHunter_Status!K11)/50 -> 22.762 | K29: =2+(Class_Compare!$L$28)+(DemonHunter_Status!L11/100) -> 3.53 | L29: =(0.2*DemonHunter_Status!I11+0.8*DemonHunter_Status!M11)/250 -> 0.0808 | M29: =(DemonHunter_Status!J11/25) -> 0.66 | N29: =Class_Compare!$H$28*(0.2*(DemonHunter_Status!K11*35)) -> 213.36 | O29: =(Class_Compare!$I$28*1000+DemonHunter_Status!K11)/1000 -> 1.1381 | P29: =(Class_Compare!$J$28*1000+DemonHunter_Status!K11+DemonHunter_Status!L11)/10 -> 107.11 | Q29: =((DemonHunter_Status!M11*Class_Compare!$M$28)+5)/2 -> 10.58 | R29: =((DemonHunter_Status!L11+DemonHunter_Status!M11)*Class_Compare!$N$28)/5 -> 6.384 | S29: 200 | T29: 0 | U29: 1.3375
A30: DmHM1 | B30: 28 | C30: =(B30^2*0.7)+DemonHunter_Status!$J12*(DemonHunter_Status!$J12*Class_Compare!$D$28)/2+100 -> 735.5 | D30: =(U30)*(Class_Compare!$E$28*(50+1.5*(0.8*DemonHunter_Status!J12+0.2*DemonHunter_Status!M12))) -> 31.0392 | E30: =DemonHunter_Status!M12*(DemonHunter_Status!M12*Class_Compare!$O$28)+100 -> 359.584 | F30: 90.81643836 | G30: =Class_Compare!$B$28*(100+1.2*(0.6*DemonHunter_Status!I12+0.2*DemonHunter_Status!K12+0.2*DemonHunter_Status!L12)) -> 53.0368 | H30: =Class_Compare!$C$28*(100+1.2*(0.6*DemonHunter_Status!I12+0.2*DemonHunter_Status!K12+0.2*DemonHunter_Status!L12)) -> 92.8144 | I30: =(Class_Compare!$G$28*1000)-(DemonHunter_Status!K12*5) -> 803 | J30: =(Class_Compare!$I$28*1000+DemonHunter_Status!K12)/50 -> 22.788 | K30: =2+(Class_Compare!$L$28)+(DemonHunter_Status!L12/100) -> 3.54 | L30: =(0.2*DemonHunter_Status!I12+0.8*DemonHunter_Status!M12)/250 -> 0.0832 | M30: =(DemonHunter_Status!J12/25) -> 0.68 | N30: =Class_Compare!$H$28*(0.2*(DemonHunter_Status!K12*35)) -> 220.64 | O30: =(Class_Compare!$I$28*1000+DemonHunter_Status!K12)/1000 -> 1.1394 | P30: =(Class_Compare!$J$28*1000+DemonHunter_Status!K12+DemonHunter_Status!L12)/10 -> 107.34 | Q30: =((DemonHunter_Status!M12*Class_Compare!$M$28)+5)/2 -> 10.82 | R30: =((DemonHunter_Status!L12+DemonHunter_Status!M12)*Class_Compare!$N$28)/5 -> 6.576 | S30: 200 | T30: 0 | U30: 1.35
A31: DmHM1 | B31: 29 | C31: =(B31^2*0.7)+DemonHunter_Status!$J13*(DemonHunter_Status!$J13*Class_Compare!$D$28)/2+100 -> 780.575 | D31: =(U31)*(Class_Compare!$E$28*(50+1.5*(0.8*DemonHunter_Status!J13+0.2*DemonHunter_Status!M13))) -> 31.645425 | E31: =DemonHunter_Status!M13*(DemonHunter_Status!M13*Class_Compare!$O$28)+100 -> 374.776 | F31: 92.23703704 | G31: =Class_Compare!$B$28*(100+1.2*(0.6*DemonHunter_Status!I13+0.2*DemonHunter_Status!K13+0.2*DemonHunter_Status!L13)) -> 53.4304 | H31: =Class_Compare!$C$28*(100+1.2*(0.6*DemonHunter_Status!I13+0.2*DemonHunter_Status!K13+0.2*DemonHunter_Status!L13)) -> 93.5032 | I31: =(Class_Compare!$G$28*1000)-(DemonHunter_Status!K13*5) -> 796.5 | J31: =(Class_Compare!$I$28*1000+DemonHunter_Status!K13)/50 -> 22.814 | K31: =2+(Class_Compare!$L$28)+(DemonHunter_Status!L13/100) -> 3.55 | L31: =(0.2*DemonHunter_Status!I13+0.8*DemonHunter_Status!M13)/250 -> 0.0856 | M31: =(DemonHunter_Status!J13/25) -> 0.7 | N31: =Class_Compare!$H$28*(0.2*(DemonHunter_Status!K13*35)) -> 227.92 | O31: =(Class_Compare!$I$28*1000+DemonHunter_Status!K13)/1000 -> 1.1407 | P31: =(Class_Compare!$J$28*1000+DemonHunter_Status!K13+DemonHunter_Status!L13)/10 -> 107.57 | Q31: =((DemonHunter_Status!M13*Class_Compare!$M$28)+5)/2 -> 11.06 | R31: =((DemonHunter_Status!L13+DemonHunter_Status!M13)*Class_Compare!$N$28)/5 -> 6.768 | S31: 200 | T31: 0 | U31: 1.3625
A32: DmHM1 | B32: 30 | C32: =(B32^2*0.7)+DemonHunter_Status!$J14*(DemonHunter_Status!$J14*Class_Compare!$D$28)/2+100 -> 827.2 | D32: =(U32)*(Class_Compare!$E$28*(50+1.5*(0.8*DemonHunter_Status!J14+0.2*DemonHunter_Status!M14))) -> 32.2575 | E32: =DemonHunter_Status!M14*(DemonHunter_Status!M14*Class_Compare!$O$28)+100 -> 390.4 | F32: 93.68101266 | G32: =Class_Compare!$B$28*(100+1.2*(0.6*DemonHunter_Status!I14+0.2*DemonHunter_Status!K14+0.2*DemonHunter_Status!L14)) -> 53.824 | H32: =Class_Compare!$C$28*(100+1.2*(0.6*DemonHunter_Status!I14+0.2*DemonHunter_Status!K14+0.2*DemonHunter_Status!L14)) -> 94.192 | I32: =(Class_Compare!$G$28*1000)-(DemonHunter_Status!K14*5) -> 790 | J32: =(Class_Compare!$I$28*1000+DemonHunter_Status!K14)/50 -> 22.84 | K32: =2+(Class_Compare!$L$28)+(DemonHunter_Status!L14/100) -> 3.56 | L32: =(0.2*DemonHunter_Status!I14+0.8*DemonHunter_Status!M14)/250 -> 0.088 | M32: =(DemonHunter_Status!J14/25) -> 0.72 | N32: =Class_Compare!$H$28*(0.2*(DemonHunter_Status!K14*35)) -> 235.2 | O32: =(Class_Compare!$I$28*1000+DemonHunter_Status!K14)/1000 -> 1.142 | P32: =(Class_Compare!$J$28*1000+DemonHunter_Status!K14+DemonHunter_Status!L14)/10 -> 107.8 | Q32: =((DemonHunter_Status!M14*Class_Compare!$M$28)+5)/2 -> 11.3 | R32: =((DemonHunter_Status!L14+DemonHunter_Status!M14)*Class_Compare!$N$28)/5 -> 6.96 | S32: 200 | T32: 0 | U32: 1.375
A33: DmHM1 | B33: 31 | C33: =(B33^2*0.7)+DemonHunter_Status!$J15*(DemonHunter_Status!$J15*Class_Compare!$D$28)/2+100 -> 875.375 | D33: =(U33)*(Class_Compare!$E$28*(50+1.5*(0.8*DemonHunter_Status!J15+0.2*DemonHunter_Status!M15))) -> 32.875425 | E33: =DemonHunter_Status!M15*(DemonHunter_Status!M15*Class_Compare!$O$28)+100 -> 406.456 | F33: 95.14894703 | G33: =Class_Compare!$B$28*(100+1.2*(0.6*DemonHunter_Status!I15+0.2*DemonHunter_Status!K15+0.2*DemonHunter_Status!L15)) -> 54.2176 | H33: =Class_Compare!$C$28*(100+1.2*(0.6*DemonHunter_Status!I15+0.2*DemonHunter_Status!K15+0.2*DemonHunter_Status!L15)) -> 94.8808 | I33: =(Class_Compare!$G$28*1000)-(DemonHunter_Status!K15*5) -> 783.5 | J33: =(Class_Compare!$I$28*1000+DemonHunter_Status!K15)/50 -> 22.866 | K33: =2+(Class_Compare!$L$28)+(DemonHunter_Status!L15/100) -> 3.57 | L33: =(0.2*DemonHunter_Status!I15+0.8*DemonHunter_Status!M15)/250 -> 0.0904 | M33: =(DemonHunter_Status!J15/25) -> 0.74 | N33: =Class_Compare!$H$28*(0.2*(DemonHunter_Status!K15*35)) -> 242.48 | O33: =(Class_Compare!$I$28*1000+DemonHunter_Status!K15)/1000 -> 1.1433 | P33: =(Class_Compare!$J$28*1000+DemonHunter_Status!K15+DemonHunter_Status!L15)/10 -> 108.03 | Q33: =((DemonHunter_Status!M15*Class_Compare!$M$28)+5)/2 -> 11.54 | R33: =((DemonHunter_Status!L15+DemonHunter_Status!M15)*Class_Compare!$N$28)/5 -> 7.152 | S33: 200 | T33: 0 | U33: 1.3875
A34: DmHM1 | B34: 32 | C34: =(B34^2*0.7)+DemonHunter_Status!$J16*(DemonHunter_Status!$J16*Class_Compare!$D$28)/2+100 -> 925.1 | D34: =(U34)*(Class_Compare!$E$28*(50+1.5*(0.8*DemonHunter_Status!J16+0.2*DemonHunter_Status!M16))) -> 33.4992 | E34: =DemonHunter_Status!M16*(DemonHunter_Status!M16*Class_Compare!$O$28)+100 -> 422.944 | F34: 96.64144144 | G34: =Class_Compare!$B$28*(100+1.2*(0.6*DemonHunter_Status!I16+0.2*DemonHunter_Status!K16+0.2*DemonHunter_Status!L16)) -> 54.6112 | H34: =Class_Compare!$C$28*(100+1.2*(0.6*DemonHunter_Status!I16+0.2*DemonHunter_Status!K16+0.2*DemonHunter_Status!L16)) -> 95.5696 | I34: =(Class_Compare!$G$28*1000)-(DemonHunter_Status!K16*5) -> 777 | J34: =(Class_Compare!$I$28*1000+DemonHunter_Status!K16)/50 -> 22.892 | K34: =2+(Class_Compare!$L$28)+(DemonHunter_Status!L16/100) -> 3.58 | L34: =(0.2*DemonHunter_Status!I16+0.8*DemonHunter_Status!M16)/250 -> 0.0928 | M34: =(DemonHunter_Status!J16/25) -> 0.76 | N34: =Class_Compare!$H$28*(0.2*(DemonHunter_Status!K16*35)) -> 249.76 | O34: =(Class_Compare!$I$28*1000+DemonHunter_Status!K16)/1000 -> 1.1446 | P34: =(Class_Compare!$J$28*1000+DemonHunter_Status!K16+DemonHunter_Status!L16)/10 -> 108.26 | Q34: =((DemonHunter_Status!M16*Class_Compare!$M$28)+5)/2 -> 11.78 | R34: =((DemonHunter_Status!L16+DemonHunter_Status!M16)*Class_Compare!$N$28)/5 -> 7.344 | S34: 200 | T34: 0 | U34: 1.4
A35: DmHM1 | B35: 33 | C35: =(B35^2*0.7)+DemonHunter_Status!$J17*(DemonHunter_Status!$J17*Class_Compare!$D$28)/2+100 -> 976.375 | D35: =(U35)*(Class_Compare!$E$28*(50+1.5*(0.8*DemonHunter_Status!J17+0.2*DemonHunter_Status!M17))) -> 34.128825 | E35: =DemonHunter_Status!M17*(DemonHunter_Status!M17*Class_Compare!$O$28)+100 -> 439.864 | F35: 98.15911746 | G35: =Class_Compare!$B$28*(100+1.2*(0.6*DemonHunter_Status!I17+0.2*DemonHunter_Status!K17+0.2*DemonHunter_Status!L17)) -> 55.0048 | H35: =Class_Compare!$C$28*(100+1.2*(0.6*DemonHunter_Status!I17+0.2*DemonHunter_Status!K17+0.2*DemonHunter_Status!L17)) -> 96.2584 | I35: =(Class_Compare!$G$28*1000)-(DemonHunter_Status!K17*5) -> 770.5 | J35: =(Class_Compare!$I$28*1000+DemonHunter_Status!K17)/50 -> 22.918 | K35: =2+(Class_Compare!$L$28)+(DemonHunter_Status!L17/100) -> 3.59 | L35: =(0.2*DemonHunter_Status!I17+0.8*DemonHunter_Status!M17)/250 -> 0.0952 | M35: =(DemonHunter_Status!J17/25) -> 0.78 | N35: =Class_Compare!$H$28*(0.2*(DemonHunter_Status!K17*35)) -> 257.04 | O35: =(Class_Compare!$I$28*1000+DemonHunter_Status!K17)/1000 -> 1.1459 | P35: =(Class_Compare!$J$28*1000+DemonHunter_Status!K17+DemonHunter_Status!L17)/10 -> 108.49 | Q35: =((DemonHunter_Status!M17*Class_Compare!$M$28)+5)/2 -> 12.02 | R35: =((DemonHunter_Status!L17+DemonHunter_Status!M17)*Class_Compare!$N$28)/5 -> 7.536 | S35: 200 | T35: 0 | U35: 1.4125
A36: DmHM1 | B36: 34 | C36: =(B36^2*0.7)+DemonHunter_Status!$J18*(DemonHunter_Status!$J18*Class_Compare!$D$28)/2+100 -> 1029.2 | D36: =(U36)*(Class_Compare!$E$28*(50+1.5*(0.8*DemonHunter_Status!J18+0.2*DemonHunter_Status!M18))) -> 34.7643 | E36: =DemonHunter_Status!M18*(DemonHunter_Status!M18*Class_Compare!$O$28)+100 -> 457.216 | F36: 99.7026178 | G36: =Class_Compare!$B$28*(100+1.2*(0.6*DemonHunter_Status!I18+0.2*DemonHunter_Status!K18+0.2*DemonHunter_Status!L18)) -> 55.3984 | H36: =Class_Compare!$C$28*(100+1.2*(0.6*DemonHunter_Status!I18+0.2*DemonHunter_Status!K18+0.2*DemonHunter_Status!L18)) -> 96.9472 | I36: =(Class_Compare!$G$28*1000)-(DemonHunter_Status!K18*5) -> 764 | J36: =(Class_Compare!$I$28*1000+DemonHunter_Status!K18)/50 -> 22.944 | K36: =2+(Class_Compare!$L$28)+(DemonHunter_Status!L18/100) -> 3.6 | L36: =(0.2*DemonHunter_Status!I18+0.8*DemonHunter_Status!M18)/250 -> 0.0976 | M36: =(DemonHunter_Status!J18/25) -> 0.8 | N36: =Class_Compare!$H$28*(0.2*(DemonHunter_Status!K18*35)) -> 264.32 | O36: =(Class_Compare!$I$28*1000+DemonHunter_Status!K18)/1000 -> 1.1472 | P36: =(Class_Compare!$J$28*1000+DemonHunter_Status!K18+DemonHunter_Status!L18)/10 -> 108.72 | Q36: =((DemonHunter_Status!M18*Class_Compare!$M$28)+5)/2 -> 12.26 | R36: =((DemonHunter_Status!L18+DemonHunter_Status!M18)*Class_Compare!$N$28)/5 -> 7.728 | S36: 200 | T36: 0 | U36: 1.425
A37: DmHM1 | B37: 35 | C37: =(B37^2*0.7)+DemonHunter_Status!$J19*(DemonHunter_Status!$J19*Class_Compare!$D$28)/2+100 -> 1083.575 | D37: =(U37)*(Class_Compare!$E$28*(50+1.5*(0.8*DemonHunter_Status!J19+0.2*DemonHunter_Status!M19))) -> 35.405625 | E37: =DemonHunter_Status!M19*(DemonHunter_Status!M19*Class_Compare!$O$28)+100 -> 475 | F37: 101.2726073 | G37: =Class_Compare!$B$28*(100+1.2*(0.6*DemonHunter_Status!I19+0.2*DemonHunter_Status!K19+0.2*DemonHunter_Status!L19)) -> 55.792 | H37: =Class_Compare!$C$28*(100+1.2*(0.6*DemonHunter_Status!I19+0.2*DemonHunter_Status!K19+0.2*DemonHunter_Status!L19)) -> 97.636 | I37: =(Class_Compare!$G$28*1000)-(DemonHunter_Status!K19*5) -> 757.5 | J37: =(Class_Compare!$I$28*1000+DemonHunter_Status!K19)/50 -> 22.97 | K37: =2+(Class_Compare!$L$28)+(DemonHunter_Status!L19/100) -> 3.61 | L37: =(0.2*DemonHunter_Status!I19+0.8*DemonHunter_Status!M19)/250 -> 0.1 | M37: =(DemonHunter_Status!J19/25) -> 0.82 | N37: =Class_Compare!$H$28*(0.2*(DemonHunter_Status!K19*35)) -> 271.6 | O37: =(Class_Compare!$I$28*1000+DemonHunter_Status!K19)/1000 -> 1.1485 | P37: =(Class_Compare!$J$28*1000+DemonHunter_Status!K19+DemonHunter_Status!L19)/10 -> 108.95 | Q37: =((DemonHunter_Status!M19*Class_Compare!$M$28)+5)/2 -> 12.5 | R37: =((DemonHunter_Status!L19+DemonHunter_Status!M19)*Class_Compare!$N$28)/5 -> 7.92 | S37: 200 | T37: 0 | U37: 1.4375
A38: DmHM1 | B38: 36 | C38: =(B38^2*0.7)+DemonHunter_Status!$J20*(DemonHunter_Status!$J20*Class_Compare!$D$28)/2+100 -> 1139.5 | D38: =(U38)*(Class_Compare!$E$28*(50+1.5*(0.8*DemonHunter_Status!J20+0.2*DemonHunter_Status!M20))) -> 36.0528 | E38: =DemonHunter_Status!M20*(DemonHunter_Status!M20*Class_Compare!$O$28)+100 -> 493.216 | F38: 102.8697736 | G38: =Class_Compare!$B$28*(100+1.2*(0.6*DemonHunter_Status!I20+0.2*DemonHunter_Status!K20+0.2*DemonHunter_Status!L20)) -> 56.1856 | H38: =Class_Compare!$C$28*(100+1.2*(0.6*DemonHunter_Status!I20+0.2*DemonHunter_Status!K20+0.2*DemonHunter_Status!L20)) -> 98.3248 | I38: =(Class_Compare!$G$28*1000)-(DemonHunter_Status!K20*5) -> 751 | J38: =(Class_Compare!$I$28*1000+DemonHunter_Status!K20)/50 -> 22.996 | K38: =2+(Class_Compare!$L$28)+(DemonHunter_Status!L20/100) -> 3.62 | L38: =(0.2*DemonHunter_Status!I20+0.8*DemonHunter_Status!M20)/250 -> 0.1024 | M38: =(DemonHunter_Status!J20/25) -> 0.84 | N38: =Class_Compare!$H$28*(0.2*(DemonHunter_Status!K20*35)) -> 278.88 | O38: =(Class_Compare!$I$28*1000+DemonHunter_Status!K20)/1000 -> 1.1498 | P38: =(Class_Compare!$J$28*1000+DemonHunter_Status!K20+DemonHunter_Status!L20)/10 -> 109.18 | Q38: =((DemonHunter_Status!M20*Class_Compare!$M$28)+5)/2 -> 12.74 | R38: =((DemonHunter_Status!L20+DemonHunter_Status!M20)*Class_Compare!$N$28)/5 -> 8.112 | S38: 200 | T38: 0 | U38: 1.45
A39: DmHM1 | B39: 37 | C39: =(B39^2*0.7)+DemonHunter_Status!$J21*(DemonHunter_Status!$J21*Class_Compare!$D$28)/2+100 -> 1196.975 | D39: =(U39)*(Class_Compare!$E$28*(50+1.5*(0.8*DemonHunter_Status!J21+0.2*DemonHunter_Status!M21))) -> 36.705825 | E39: =DemonHunter_Status!M21*(DemonHunter_Status!M21*Class_Compare!$O$28)+100 -> 511.864 | F39: 104.4948287 | G39: =Class_Compare!$B$28*(100+1.2*(0.6*DemonHunter_Status!I21+0.2*DemonHunter_Status!K21+0.2*DemonHunter_Status!L21)) -> 56.5792 | H39: =Class_Compare!$C$28*(100+1.2*(0.6*DemonHunter_Status!I21+0.2*DemonHunter_Status!K21+0.2*DemonHunter_Status!L21)) -> 99.0136 | I39: =(Class_Compare!$G$28*1000)-(DemonHunter_Status!K21*5) -> 744.5 | J39: =(Class_Compare!$I$28*1000+DemonHunter_Status!K21)/50 -> 23.022 | K39: =2+(Class_Compare!$L$28)+(DemonHunter_Status!L21/100) -> 3.63 | L39: =(0.2*DemonHunter_Status!I21+0.8*DemonHunter_Status!M21)/250 -> 0.1048 | M39: =(DemonHunter_Status!J21/25) -> 0.86 | N39: =Class_Compare!$H$28*(0.2*(DemonHunter_Status!K21*35)) -> 286.16 | O39: =(Class_Compare!$I$28*1000+DemonHunter_Status!K21)/1000 -> 1.1511 | P39: =(Class_Compare!$J$28*1000+DemonHunter_Status!K21+DemonHunter_Status!L21)/10 -> 109.41 | Q39: =((DemonHunter_Status!M21*Class_Compare!$M$28)+5)/2 -> 12.98 | R39: =((DemonHunter_Status!L21+DemonHunter_Status!M21)*Class_Compare!$N$28)/5 -> 8.304 | S39: 200 | T39: 0 | U39: 1.4625
A40: DmHM1 | B40: 38 | C40: =(B40^2*0.7)+DemonHunter_Status!$J22*(DemonHunter_Status!$J22*Class_Compare!$D$28)/2+100 -> 1256 | D40: =(U40)*(Class_Compare!$E$28*(50+1.5*(0.8*DemonHunter_Status!J22+0.2*DemonHunter_Status!M22))) -> 37.3647 | E40: =DemonHunter_Status!M22*(DemonHunter_Status!M22*Class_Compare!$O$28)+100 -> 530.944 | F40: 106.1485095 | G40: =Class_Compare!$B$28*(100+1.2*(0.6*DemonHunter_Status!I22+0.2*DemonHunter_Status!K22+0.2*DemonHunter_Status!L22)) -> 56.9728 | H40: =Class_Compare!$C$28*(100+1.2*(0.6*DemonHunter_Status!I22+0.2*DemonHunter_Status!K22+0.2*DemonHunter_Status!L22)) -> 99.7024 | I40: =(Class_Compare!$G$28*1000)-(DemonHunter_Status!K22*5) -> 738 | J40: =(Class_Compare!$I$28*1000+DemonHunter_Status!K22)/50 -> 23.048 | K40: =2+(Class_Compare!$L$28)+(DemonHunter_Status!L22/100) -> 3.64 | L40: =(0.2*DemonHunter_Status!I22+0.8*DemonHunter_Status!M22)/250 -> 0.1072 | M40: =(DemonHunter_Status!J22/25) -> 0.88 | N40: =Class_Compare!$H$28*(0.2*(DemonHunter_Status!K22*35)) -> 293.44 | O40: =(Class_Compare!$I$28*1000+DemonHunter_Status!K22)/1000 -> 1.1524 | P40: =(Class_Compare!$J$28*1000+DemonHunter_Status!K22+DemonHunter_Status!L22)/10 -> 109.64 | Q40: =((DemonHunter_Status!M22*Class_Compare!$M$28)+5)/2 -> 13.22 | R40: =((DemonHunter_Status!L22+DemonHunter_Status!M22)*Class_Compare!$N$28)/5 -> 8.496 | S40: 200 | T40: 0 | U40: 1.475
A41: DmHM1 | B41: 39 | C41: =(B41^2*0.7)+DemonHunter_Status!$J23*(DemonHunter_Status!$J23*Class_Compare!$D$28)/2+100 -> 1316.575 | D41: =(U41)*(Class_Compare!$E$28*(50+1.5*(0.8*DemonHunter_Status!J23+0.2*DemonHunter_Status!M23))) -> 38.029425 | E41: =DemonHunter_Status!M23*(DemonHunter_Status!M23*Class_Compare!$O$28)+100 -> 550.456 | F41: 107.8315789 | G41: =Class_Compare!$B$28*(100+1.2*(0.6*DemonHunter_Status!I23+0.2*DemonHunter_Status!K23+0.2*DemonHunter_Status!L23)) -> 57.3664 | H41: =Class_Compare!$C$28*(100+1.2*(0.6*DemonHunter_Status!I23+0.2*DemonHunter_Status!K23+0.2*DemonHunter_Status!L23)) -> 100.3912 | I41: =(Class_Compare!$G$28*1000)-(DemonHunter_Status!K23*5) -> 731.5 | J41: =(Class_Compare!$I$28*1000+DemonHunter_Status!K23)/50 -> 23.074 | K41: =2+(Class_Compare!$L$28)+(DemonHunter_Status!L23/100) -> 3.65 | L41: =(0.2*DemonHunter_Status!I23+0.8*DemonHunter_Status!M23)/250 -> 0.1096 | M41: =(DemonHunter_Status!J23/25) -> 0.9 | N41: =Class_Compare!$H$28*(0.2*(DemonHunter_Status!K23*35)) -> 300.72 | O41: =(Class_Compare!$I$28*1000+DemonHunter_Status!K23)/1000 -> 1.1537 | P41: =(Class_Compare!$J$28*1000+DemonHunter_Status!K23+DemonHunter_Status!L23)/10 -> 109.87 | Q41: =((DemonHunter_Status!M23*Class_Compare!$M$28)+5)/2 -> 13.46 | R41: =((DemonHunter_Status!L23+DemonHunter_Status!M23)*Class_Compare!$N$28)/5 -> 8.688 | S41: 200 | T41: 0 | U41: 1.4875
A42: DmHM1 | B42: 40 | C42: =(B42^2*0.7)+DemonHunter_Status!$J24*(DemonHunter_Status!$J24*Class_Compare!$D$28)/2+100 -> 1378.7 | D42: =(U42)*(Class_Compare!$E$28*(50+1.5*(0.8*DemonHunter_Status!J24+0.2*DemonHunter_Status!M24))) -> 38.7 | E42: =DemonHunter_Status!M24*(DemonHunter_Status!M24*Class_Compare!$O$28)+100 -> 570.4 | F42: 109.5448276 | G42: =Class_Compare!$B$28*(100+1.2*(0.6*DemonHunter_Status!I24+0.2*DemonHunter_Status!K24+0.2*DemonHunter_Status!L24)) -> 57.76 | H42: =Class_Compare!$C$28*(100+1.2*(0.6*DemonHunter_Status!I24+0.2*DemonHunter_Status!K24+0.2*DemonHunter_Status!L24)) -> 101.08 | I42: =(Class_Compare!$G$28*1000)-(DemonHunter_Status!K24*5) -> 725 | J42: =(Class_Compare!$I$28*1000+DemonHunter_Status!K24)/50 -> 23.1 | K42: =2+(Class_Compare!$L$28)+(DemonHunter_Status!L24/100) -> 3.66 | L42: =(0.2*DemonHunter_Status!I24+0.8*DemonHunter_Status!M24)/250 -> 0.112 | M42: =(DemonHunter_Status!J24/25) -> 0.92 | N42: =Class_Compare!$H$28*(0.2*(DemonHunter_Status!K24*35)) -> 308 | O42: =(Class_Compare!$I$28*1000+DemonHunter_Status!K24)/1000 -> 1.155 | P42: =(Class_Compare!$J$28*1000+DemonHunter_Status!K24+DemonHunter_Status!L24)/10 -> 110.1 | Q42: =((DemonHunter_Status!M24*Class_Compare!$M$28)+5)/2 -> 13.7 | R42: =((DemonHunter_Status!L24+DemonHunter_Status!M24)*Class_Compare!$N$28)/5 -> 8.88 | S42: 200 | T42: 0 | U42: 1.5
A43: DmHM1 | B43: 41 | C43: =(B43^2*0.7)+DemonHunter_Status!$J25*(DemonHunter_Status!$J25*Class_Compare!$D$28)/2+100 -> 1442.375 | D43: =(U43)*(Class_Compare!$E$28*(50+1.5*(0.8*DemonHunter_Status!J25+0.2*DemonHunter_Status!M25))) -> 39.376425 | E43: =DemonHunter_Status!M25*(DemonHunter_Status!M25*Class_Compare!$O$28)+100 -> 590.776 | F43: 111.2890745 | G43: =Class_Compare!$B$28*(100+1.2*(0.6*DemonHunter_Status!I25+0.2*DemonHunter_Status!K25+0.2*DemonHunter_Status!L25)) -> 58.1536 | H43: =Class_Compare!$C$28*(100+1.2*(0.6*DemonHunter_Status!I25+0.2*DemonHunter_Status!K25+0.2*DemonHunter_Status!L25)) -> 101.7688 | I43: =(Class_Compare!$G$28*1000)-(DemonHunter_Status!K25*5) -> 718.5 | J43: =(Class_Compare!$I$28*1000+DemonHunter_Status!K25)/50 -> 23.126 | K43: =2+(Class_Compare!$L$28)+(DemonHunter_Status!L25/100) -> 3.67 | L43: =(0.2*DemonHunter_Status!I25+0.8*DemonHunter_Status!M25)/250 -> 0.1144 | M43: =(DemonHunter_Status!J25/25) -> 0.94 | N43: =Class_Compare!$H$28*(0.2*(DemonHunter_Status!K25*35)) -> 315.28 | O43: =(Class_Compare!$I$28*1000+DemonHunter_Status!K25)/1000 -> 1.1563 | P43: =(Class_Compare!$J$28*1000+DemonHunter_Status!K25+DemonHunter_Status!L25)/10 -> 110.33 | Q43: =((DemonHunter_Status!M25*Class_Compare!$M$28)+5)/2 -> 13.94 | R43: =((DemonHunter_Status!L25+DemonHunter_Status!M25)*Class_Compare!$N$28)/5 -> 9.072 | S43: 200 | T43: 0 | U43: 1.5125
A44: DmHM1 | B44: 42 | C44: =(B44^2*0.7)+DemonHunter_Status!$J26*(DemonHunter_Status!$J26*Class_Compare!$D$28)/2+100 -> 1507.6 | D44: =(U44)*(Class_Compare!$E$28*(50+1.5*(0.8*DemonHunter_Status!J26+0.2*DemonHunter_Status!M26))) -> 40.0587 | E44: =DemonHunter_Status!M26*(DemonHunter_Status!M26*Class_Compare!$O$28)+100 -> 611.584 | F44: 113.0651685 | G44: =Class_Compare!$B$28*(100+1.2*(0.6*DemonHunter_Status!I26+0.2*DemonHunter_Status!K26+0.2*DemonHunter_Status!L26)) -> 58.5472 | H44: =Class_Compare!$C$28*(100+1.2*(0.6*DemonHunter_Status!I26+0.2*DemonHunter_Status!K26+0.2*DemonHunter_Status!L26)) -> 102.4576 | I44: =(Class_Compare!$G$28*1000)-(DemonHunter_Status!K26*5) -> 712 | J44: =(Class_Compare!$I$28*1000+DemonHunter_Status!K26)/50 -> 23.152 | K44: =2+(Class_Compare!$L$28)+(DemonHunter_Status!L26/100) -> 3.68 | L44: =(0.2*DemonHunter_Status!I26+0.8*DemonHunter_Status!M26)/250 -> 0.1168 | M44: =(DemonHunter_Status!J26/25) -> 0.96 | N44: =Class_Compare!$H$28*(0.2*(DemonHunter_Status!K26*35)) -> 322.56 | O44: =(Class_Compare!$I$28*1000+DemonHunter_Status!K26)/1000 -> 1.1576 | P44: =(Class_Compare!$J$28*1000+DemonHunter_Status!K26+DemonHunter_Status!L26)/10 -> 110.56 | Q44: =((DemonHunter_Status!M26*Class_Compare!$M$28)+5)/2 -> 14.18 | R44: =((DemonHunter_Status!L26+DemonHunter_Status!M26)*Class_Compare!$N$28)/5 -> 9.264 | S44: 200 | T44: 0 | U44: 1.525
A45: DmHM1 | B45: 43 | C45: =(B45^2*0.7)+DemonHunter_Status!$J27*(DemonHunter_Status!$J27*Class_Compare!$D$28)/2+100 -> 1574.375 | D45: =(U45)*(Class_Compare!$E$28*(50+1.5*(0.8*DemonHunter_Status!J27+0.2*DemonHunter_Status!M27))) -> 40.746825 | E45: =DemonHunter_Status!M27*(DemonHunter_Status!M27*Class_Compare!$O$28)+100 -> 632.824 | F45: 114.8739901 | G45: =Class_Compare!$B$28*(100+1.2*(0.6*DemonHunter_Status!I27+0.2*DemonHunter_Status!K27+0.2*DemonHunter_Status!L27)) -> 58.9408 | H45: =Class_Compare!$C$28*(100+1.2*(0.6*DemonHunter_Status!I27+0.2*DemonHunter_Status!K27+0.2*DemonHunter_Status!L27)) -> 103.1464 | I45: =(Class_Compare!$G$28*1000)-(DemonHunter_Status!K27*5) -> 705.5 | J45: =(Class_Compare!$I$28*1000+DemonHunter_Status!K27)/50 -> 23.178 | K45: =2+(Class_Compare!$L$28)+(DemonHunter_Status!L27/100) -> 3.69 | L45: =(0.2*DemonHunter_Status!I27+0.8*DemonHunter_Status!M27)/250 -> 0.1192 | M45: =(DemonHunter_Status!J27/25) -> 0.98 | N45: =Class_Compare!$H$28*(0.2*(DemonHunter_Status!K27*35)) -> 329.84 | O45: =(Class_Compare!$I$28*1000+DemonHunter_Status!K27)/1000 -> 1.1589 | P45: =(Class_Compare!$J$28*1000+DemonHunter_Status!K27+DemonHunter_Status!L27)/10 -> 110.79 | Q45: =((DemonHunter_Status!M27*Class_Compare!$M$28)+5)/2 -> 14.42 | R45: =((DemonHunter_Status!L27+DemonHunter_Status!M27)*Class_Compare!$N$28)/5 -> 9.456 | S45: 200 | T45: 0 | U45: 1.5375
A46: DmHM1 | B46: 44 | C46: =(B46^2*0.7)+DemonHunter_Status!$J28*(DemonHunter_Status!$J28*Class_Compare!$D$28)/2+100 -> 1642.7 | D46: =(U46)*(Class_Compare!$E$28*(50+1.5*(0.8*DemonHunter_Status!J28+0.2*DemonHunter_Status!M28))) -> 41.4408 | E46: =DemonHunter_Status!M28*(DemonHunter_Status!M28*Class_Compare!$O$28)+100 -> 654.496 | F46: 116.7164521 | G46: =Class_Compare!$B$28*(100+1.2*(0.6*DemonHunter_Status!I28+0.2*DemonHunter_Status!K28+0.2*DemonHunter_Status!L28)) -> 59.3344 | H46: =Class_Compare!$C$28*(100+1.2*(0.6*DemonHunter_Status!I28+0.2*DemonHunter_Status!K28+0.2*DemonHunter_Status!L28)) -> 103.8352 | I46: =(Class_Compare!$G$28*1000)-(DemonHunter_Status!K28*5) -> 699 | J46: =(Class_Compare!$I$28*1000+DemonHunter_Status!K28)/50 -> 23.204 | K46: =2+(Class_Compare!$L$28)+(DemonHunter_Status!L28/100) -> 3.7 | L46: =(0.2*DemonHunter_Status!I28+0.8*DemonHunter_Status!M28)/250 -> 0.1216 | M46: =(DemonHunter_Status!J28/25) -> 1 | N46: =Class_Compare!$H$28*(0.2*(DemonHunter_Status!K28*35)) -> 337.12 | O46: =(Class_Compare!$I$28*1000+DemonHunter_Status!K28)/1000 -> 1.1602 | P46: =(Class_Compare!$J$28*1000+DemonHunter_Status!K28+DemonHunter_Status!L28)/10 -> 111.02 | Q46: =((DemonHunter_Status!M28*Class_Compare!$M$28)+5)/2 -> 14.66 | R46: =((DemonHunter_Status!L28+DemonHunter_Status!M28)*Class_Compare!$N$28)/5 -> 9.648 | S46: 200 | T46: 0 | U46: 1.55
A47: DmHM1 | B47: 45 | C47: =(B47^2*0.7)+DemonHunter_Status!$J29*(DemonHunter_Status!$J29*Class_Compare!$D$28)/2+100 -> 1712.575 | D47: =(U47)*(Class_Compare!$E$28*(50+1.5*(0.8*DemonHunter_Status!J29+0.2*DemonHunter_Status!M29))) -> 42.140625 | E47: =DemonHunter_Status!M29*(DemonHunter_Status!M29*Class_Compare!$O$28)+100 -> 676.6 | F47: 118.5935018 | G47: =Class_Compare!$B$28*(100+1.2*(0.6*DemonHunter_Status!I29+0.2*DemonHunter_Status!K29+0.2*DemonHunter_Status!L29)) -> 59.728 | H47: =Class_Compare!$C$28*(100+1.2*(0.6*DemonHunter_Status!I29+0.2*DemonHunter_Status!K29+0.2*DemonHunter_Status!L29)) -> 104.524 | I47: =(Class_Compare!$G$28*1000)-(DemonHunter_Status!K29*5) -> 692.5 | J47: =(Class_Compare!$I$28*1000+DemonHunter_Status!K29)/50 -> 23.23 | K47: =2+(Class_Compare!$L$28)+(DemonHunter_Status!L29/100) -> 3.71 | L47: =(0.2*DemonHunter_Status!I29+0.8*DemonHunter_Status!M29)/250 -> 0.124 | M47: =(DemonHunter_Status!J29/25) -> 1.02 | N47: =Class_Compare!$H$28*(0.2*(DemonHunter_Status!K29*35)) -> 344.4 | O47: =(Class_Compare!$I$28*1000+DemonHunter_Status!K29)/1000 -> 1.1615 | P47: =(Class_Compare!$J$28*1000+DemonHunter_Status!K29+DemonHunter_Status!L29)/10 -> 111.25 | Q47: =((DemonHunter_Status!M29*Class_Compare!$M$28)+5)/2 -> 14.9 | R47: =((DemonHunter_Status!L29+DemonHunter_Status!M29)*Class_Compare!$N$28)/5 -> 9.84 | S47: 200 | T47: 0 | U47: 1.5625
A48: DmHM1 | B48: 46 | C48: =(B48^2*0.7)+DemonHunter_Status!$J30*(DemonHunter_Status!$J30*Class_Compare!$D$28)/2+100 -> 1784 | D48: =(U48)*(Class_Compare!$E$28*(50+1.5*(0.8*DemonHunter_Status!J30+0.2*DemonHunter_Status!M30))) -> 42.8463 | E48: =DemonHunter_Status!M30*(DemonHunter_Status!M30*Class_Compare!$O$28)+100 -> 699.136 | F48: 120.5061224 | G48: =Class_Compare!$B$28*(100+1.2*(0.6*DemonHunter_Status!I30+0.2*DemonHunter_Status!K30+0.2*DemonHunter_Status!L30)) -> 60.1216 | H48: =Class_Compare!$C$28*(100+1.2*(0.6*DemonHunter_Status!I30+0.2*DemonHunter_Status!K30+0.2*DemonHunter_Status!L30)) -> 105.2128 | I48: =(Class_Compare!$G$28*1000)-(DemonHunter_Status!K30*5) -> 686 | J48: =(Class_Compare!$I$28*1000+DemonHunter_Status!K30)/50 -> 23.256 | K48: =2+(Class_Compare!$L$28)+(DemonHunter_Status!L30/100) -> 3.72 | L48: =(0.2*DemonHunter_Status!I30+0.8*DemonHunter_Status!M30)/250 -> 0.1264 | M48: =(DemonHunter_Status!J30/25) -> 1.04 | N48: =Class_Compare!$H$28*(0.2*(DemonHunter_Status!K30*35)) -> 351.68 | O48: =(Class_Compare!$I$28*1000+DemonHunter_Status!K30)/1000 -> 1.1628 | P48: =(Class_Compare!$J$28*1000+DemonHunter_Status!K30+DemonHunter_Status!L30)/10 -> 111.48 | Q48: =((DemonHunter_Status!M30*Class_Compare!$M$28)+5)/2 -> 15.14 | R48: =((DemonHunter_Status!L30+DemonHunter_Status!M30)*Class_Compare!$N$28)/5 -> 10.032 | S48: 200 | T48: 0 | U48: 1.575
A49: DmHM1 | B49: 47 | C49: =(B49^2*0.7)+DemonHunter_Status!$J31*(DemonHunter_Status!$J31*Class_Compare!$D$28)/2+100 -> 1856.975 | D49: =(U49)*(Class_Compare!$E$28*(50+1.5*(0.8*DemonHunter_Status!J31+0.2*DemonHunter_Status!M31))) -> 43.557825 | E49: =DemonHunter_Status!M31*(DemonHunter_Status!M31*Class_Compare!$O$28)+100 -> 722.104 | F49: 122.4553348 | G49: =Class_Compare!$B$28*(100+1.2*(0.6*DemonHunter_Status!I31+0.2*DemonHunter_Status!K31+0.2*DemonHunter_Status!L31)) -> 60.5152 | H49: =Class_Compare!$C$28*(100+1.2*(0.6*DemonHunter_Status!I31+0.2*DemonHunter_Status!K31+0.2*DemonHunter_Status!L31)) -> 105.9016 | I49: =(Class_Compare!$G$28*1000)-(DemonHunter_Status!K31*5) -> 679.5 | J49: =(Class_Compare!$I$28*1000+DemonHunter_Status!K31)/50 -> 23.282 | K49: =2+(Class_Compare!$L$28)+(DemonHunter_Status!L31/100) -> 3.73 | L49: =(0.2*DemonHunter_Status!I31+0.8*DemonHunter_Status!M31)/250 -> 0.1288 | M49: =(DemonHunter_Status!J31/25) -> 1.06 | N49: =Class_Compare!$H$28*(0.2*(DemonHunter_Status!K31*35)) -> 358.96 | O49: =(Class_Compare!$I$28*1000+DemonHunter_Status!K31)/1000 -> 1.1641 | P49: =(Class_Compare!$J$28*1000+DemonHunter_Status!K31+DemonHunter_Status!L31)/10 -> 111.71 | Q49: =((DemonHunter_Status!M31*Class_Compare!$M$28)+5)/2 -> 15.38 | R49: =((DemonHunter_Status!L31+DemonHunter_Status!M31)*Class_Compare!$N$28)/5 -> 10.224 | S49: 200 | T49: 0 | U49: 1.5875
A50: DmHM1 | B50: 48 | C50: =(B50^2*0.7)+DemonHunter_Status!$J32*(DemonHunter_Status!$J32*Class_Compare!$D$28)/2+100 -> 1931.5 | D50: =(U50)*(Class_Compare!$E$28*(50+1.5*(0.8*DemonHunter_Status!J32+0.2*DemonHunter_Status!M32))) -> 44.2752 | E50: =DemonHunter_Status!M32*(DemonHunter_Status!M32*Class_Compare!$O$28)+100 -> 745.504 | F50: 124.4421991 | G50: =Class_Compare!$B$28*(100+1.2*(0.6*DemonHunter_Status!I32+0.2*DemonHunter_Status!K32+0.2*DemonHunter_Status!L32)) -> 60.9088 | H50: =Class_Compare!$C$28*(100+1.2*(0.6*DemonHunter_Status!I32+0.2*DemonHunter_Status!K32+0.2*DemonHunter_Status!L32)) -> 106.5904 | I50: =(Class_Compare!$G$28*1000)-(DemonHunter_Status!K32*5) -> 673 | J50: =(Class_Compare!$I$28*1000+DemonHunter_Status!K32)/50 -> 23.308 | K50: =2+(Class_Compare!$L$28)+(DemonHunter_Status!L32/100) -> 3.74 | L50: =(0.2*DemonHunter_Status!I32+0.8*DemonHunter_Status!M32)/250 -> 0.1312 | M50: =(DemonHunter_Status!J32/25) -> 1.08 | N50: =Class_Compare!$H$28*(0.2*(DemonHunter_Status!K32*35)) -> 366.24 | O50: =(Class_Compare!$I$28*1000+DemonHunter_Status!K32)/1000 -> 1.1654 | P50: =(Class_Compare!$J$28*1000+DemonHunter_Status!K32+DemonHunter_Status!L32)/10 -> 111.94 | Q50: =((DemonHunter_Status!M32*Class_Compare!$M$28)+5)/2 -> 15.62 | R50: =((DemonHunter_Status!L32+DemonHunter_Status!M32)*Class_Compare!$N$28)/5 -> 10.416 | S50: 200 | T50: 0 | U50: 1.6
A51: DmHM1 | B51: 49 | C51: =(B51^2*0.7)+DemonHunter_Status!$J33*(DemonHunter_Status!$J33*Class_Compare!$D$28)/2+100 -> 2007.575 | D51: =(U51)*(Class_Compare!$E$28*(50+1.5*(0.8*DemonHunter_Status!J33+0.2*DemonHunter_Status!M33))) -> 44.998425 | E51: =DemonHunter_Status!M33*(DemonHunter_Status!M33*Class_Compare!$O$28)+100 -> 769.336 | F51: 126.467817 | G51: =Class_Compare!$B$28*(100+1.2*(0.6*DemonHunter_Status!I33+0.2*DemonHunter_Status!K33+0.2*DemonHunter_Status!L33)) -> 61.3024 | H51: =Class_Compare!$C$28*(100+1.2*(0.6*DemonHunter_Status!I33+0.2*DemonHunter_Status!K33+0.2*DemonHunter_Status!L33)) -> 107.2792 | I51: =(Class_Compare!$G$28*1000)-(DemonHunter_Status!K33*5) -> 666.5 | J51: =(Class_Compare!$I$28*1000+DemonHunter_Status!K33)/50 -> 23.334 | K51: =2+(Class_Compare!$L$28)+(DemonHunter_Status!L33/100) -> 3.75 | L51: =(0.2*DemonHunter_Status!I33+0.8*DemonHunter_Status!M33)/250 -> 0.1336 | M51: =(DemonHunter_Status!J33/25) -> 1.1 | N51: =Class_Compare!$H$28*(0.2*(DemonHunter_Status!K33*35)) -> 373.52 | O51: =(Class_Compare!$I$28*1000+DemonHunter_Status!K33)/1000 -> 1.1667 | P51: =(Class_Compare!$J$28*1000+DemonHunter_Status!K33+DemonHunter_Status!L33)/10 -> 112.17 | Q51: =((DemonHunter_Status!M33*Class_Compare!$M$28)+5)/2 -> 15.86 | R51: =((DemonHunter_Status!L33+DemonHunter_Status!M33)*Class_Compare!$N$28)/5 -> 10.608 | S51: 200 | T51: 0 | U51: 1.6125
A52: DmHM1 | B52: 50 | C52: =(B52^2*0.7)+DemonHunter_Status!$J34*(DemonHunter_Status!$J34*Class_Compare!$D$28)/2+100 -> 2085.2 | D52: =(U52)*(Class_Compare!$E$28*(50+1.5*(0.8*DemonHunter_Status!J34+0.2*DemonHunter_Status!M34))) -> 45.7275 | E52: =DemonHunter_Status!M34*(DemonHunter_Status!M34*Class_Compare!$O$28)+100 -> 793.6 | F52: 128.5333333 | G52: =Class_Compare!$B$28*(100+1.2*(0.6*DemonHunter_Status!I34+0.2*DemonHunter_Status!K34+0.2*DemonHunter_Status!L34)) -> 61.696 | H52: =Class_Compare!$C$28*(100+1.2*(0.6*DemonHunter_Status!I34+0.2*DemonHunter_Status!K34+0.2*DemonHunter_Status!L34)) -> 107.968 | I52: =(Class_Compare!$G$28*1000)-(DemonHunter_Status!K34*5) -> 660 | J52: =(Class_Compare!$I$28*1000+DemonHunter_Status!K34)/50 -> 23.36 | K52: =2+(Class_Compare!$L$28)+(DemonHunter_Status!L34/100) -> 3.76 | L52: =(0.2*DemonHunter_Status!I34+0.8*DemonHunter_Status!M34)/250 -> 0.136 | M52: =(DemonHunter_Status!J34/25) -> 1.12 | N52: =Class_Compare!$H$28*(0.2*(DemonHunter_Status!K34*35)) -> 380.8 | O52: =(Class_Compare!$I$28*1000+DemonHunter_Status!K34)/1000 -> 1.168 | P52: =(Class_Compare!$J$28*1000+DemonHunter_Status!K34+DemonHunter_Status!L34)/10 -> 112.4 | Q52: =((DemonHunter_Status!M34*Class_Compare!$M$28)+5)/2 -> 16.1 | R52: =((DemonHunter_Status!L34+DemonHunter_Status!M34)*Class_Compare!$N$28)/5 -> 10.8 | S52: 200 | T52: 0 | U52: 1.625
A53: 클래스 | B53: DmHM2
A54: DmHM2 | B54: 21 | C54: 463.375 | D54: 26.959425 | E54: 265.336 | F54: 81.48167354 | G54: 50.2816 | H54: 87.9928 | I54: 848.5 | J54: 22.606 | K54: 3.47 | L54: 0.0664 | M54: 0.54 | N54: 169.68 | O54: 1.1303 | P54: 105.73 | Q54: 9.14 | R54: 13.08 | S54: 200 | T54: 0
A55: DmHM2 | B55: 22 | C55: 497.6 | D55: 27.5247 | E55: 277.504 | F55: 82.75344418 | G55: 50.6752 | H55: 88.6816 | I55: 842 | J55: 22.632 | K55: 3.48 | L55: 0.0688 | M55: 0.56 | N55: 176.96 | O55: 1.1316 | P55: 105.96 | Q55: 9.38 | R55: 13.56 | S55: 200 | T55: 0
A56: DmHM2 | B56: 23 | C56: 533.375 | D56: 28.095825 | E56: 290.104 | F56: 84.04500299 | G56: 51.0688 | H56: 89.3704 | I56: 835.5 | J56: 22.658 | K56: 3.49 | L56: 0.0712 | M56: 0.58 | N56: 184.24 | O56: 1.1329 | P56: 106.19 | Q56: 9.62 | R56: 14.04 | S56: 200 | T56: 0
A57: DmHM2 | B57: 24 | C57: 570.7 | D57: 28.6728 | E57: 303.136 | F57: 85.35681544 | G57: 51.4624 | H57: 90.0592 | I57: 829 | J57: 22.684 | K57: 3.5 | L57: 0.0736 | M57: 0.6 | N57: 191.52 | O57: 1.1342 | P57: 106.42 | Q57: 9.86 | R57: 14.52 | S57: 200 | T57: 0
A58: DmHM2 | B58: 25 | C58: 609.575 | D58: 29.255625 | E58: 316.6 | F58: 86.6893617 | G58: 51.856 | H58: 90.748 | I58: 822.5 | J58: 22.71 | K58: 3.51 | L58: 0.076 | M58: 0.62 | N58: 198.8 | O58: 1.1355 | P58: 106.65 | Q58: 10.1 | R58: 15 | S58: 200 | T58: 0
A59: DmHM2 | B59: 26 | C59: 650 | D59: 29.8443 | E59: 330.496 | F59: 88.04313725 | G59: 52.2496 | H59: 91.4368 | I59: 816 | J59: 22.736 | K59: 3.52 | L59: 0.0784 | M59: 0.64 | N59: 206.08 | O59: 1.1368 | P59: 106.88 | Q59: 10.34 | R59: 15.48 | S59: 200 | T59: 0
A60: DmHM2 | B60: 27 | C60: 691.975 | D60: 30.438825 | E60: 344.824 | F60: 89.41865349 | G60: 52.6432 | H60: 92.1256 | I60: 809.5 | J60: 22.762 | K60: 3.53 | L60: 0.0808 | M60: 0.66 | N60: 213.36 | O60: 1.1381 | P60: 107.11 | Q60: 10.58 | R60: 15.96 | S60: 200 | T60: 0
A61: DmHM2 | B61: 28 | C61: 735.5 | D61: 31.0392 | E61: 359.584 | F61: 90.81643836 | G61: 53.0368 | H61: 92.8144 | I61: 803 | J61: 22.788 | K61: 3.54 | L61: 0.0832 | M61: 0.68 | N61: 220.64 | O61: 1.1394 | P61: 107.34 | Q61: 10.82 | R61: 16.44 | S61: 200 | T61: 0
A62: DmHM2 | B62: 29 | C62: 780.575 | D62: 31.645425 | E62: 374.776 | F62: 92.23703704 | G62: 53.4304 | H62: 93.5032 | I62: 796.5 | J62: 22.814 | K62: 3.55 | L62: 0.0856 | M62: 0.7 | N62: 227.92 | O62: 1.1407 | P62: 107.57 | Q62: 11.06 | R62: 16.92 | S62: 200 | T62: 0
A63: DmHM2 | B63: 30 | C63: 827.2 | D63: 32.2575 | E63: 390.4 | F63: 93.68101266 | G63: 53.824 | H63: 94.192 | I63: 790 | J63: 22.84 | K63: 3.56 | L63: 0.088 | M63: 0.72 | N63: 235.2 | O63: 1.142 | P63: 107.8 | Q63: 11.3 | R63: 17.4 | S63: 200 | T63: 0
A64: DmHM2 | B64: 31 | C64: 875.375 | D64: 32.875425 | E64: 406.456 | F64: 95.14894703 | G64: 54.2176 | H64: 94.8808 | I64: 783.5 | J64: 22.866 | K64: 3.57 | L64: 0.0904 | M64: 0.74 | N64: 242.48 | O64: 1.1433 | P64: 108.03 | Q64: 11.54 | R64: 17.88 | S64: 200 | T64: 0
A65: DmHM2 | B65: 32 | C65: 925.1 | D65: 33.4992 | E65: 422.944 | F65: 96.64144144 | G65: 54.6112 | H65: 95.5696 | I65: 777 | J65: 22.892 | K65: 3.58 | L65: 0.0928 | M65: 0.76 | N65: 249.76 | O65: 1.1446 | P65: 108.26 | Q65: 11.78 | R65: 18.36 | S65: 200 | T65: 0
A66: DmHM2 | B66: 33 | C66: 976.375 | D66: 34.128825 | E66: 439.864 | F66: 98.15911746 | G66: 55.0048 | H66: 96.2584 | I66: 770.5 | J66: 22.918 | K66: 3.59 | L66: 0.0952 | M66: 0.78 | N66: 257.04 | O66: 1.1459 | P66: 108.49 | Q66: 12.02 | R66: 18.84 | S66: 200 | T66: 0
A67: DmHM2 | B67: 34 | C67: 1029.2 | D67: 34.7643 | E67: 457.216 | F67: 99.7026178 | G67: 55.3984 | H67: 96.9472 | I67: 764 | J67: 22.944 | K67: 3.6 | L67: 0.0976 | M67: 0.8 | N67: 264.32 | O67: 1.1472 | P67: 108.72 | Q67: 12.26 | R67: 19.32 | S67: 200 | T67: 0
A68: DmHM2 | B68: 35 | C68: 1083.575 | D68: 35.405625 | E68: 475 | F68: 101.2726073 | G68: 55.792 | H68: 97.636 | I68: 757.5 | J68: 22.97 | K68: 3.61 | L68: 0.1 | M68: 0.82 | N68: 271.6 | O68: 1.1485 | P68: 108.95 | Q68: 12.5 | R68: 19.8 | S68: 200 | T68: 0
A69: DmHM2 | B69: 36 | C69: 1139.5 | D69: 36.0528 | E69: 493.216 | F69: 102.8697736 | G69: 56.1856 | H69: 98.3248 | I69: 751 | J69: 22.996 | K69: 3.62 | L69: 0.1024 | M69: 0.84 | N69: 278.88 | O69: 1.1498 | P69: 109.18 | Q69: 12.74 | R69: 20.28 | S69: 200 | T69: 0
A70: DmHM2 | B70: 37 | C70: 1196.975 | D70: 36.705825 | E70: 511.864 | F70: 104.4948287 | G70: 56.5792 | H70: 99.0136 | I70: 744.5 | J70: 23.022 | K70: 3.63 | L70: 0.1048 | M70: 0.86 | N70: 286.16 | O70: 1.1511 | P70: 109.41 | Q70: 12.98 | R70: 20.76 | S70: 200 | T70: 0
A71: DmHM2 | B71: 38 | C71: 1256 | D71: 37.3647 | E71: 530.944 | F71: 106.1485095 | G71: 56.9728 | H71: 99.7024 | I71: 738 | J71: 23.048 | K71: 3.64 | L71: 0.1072 | M71: 0.88 | N71: 293.44 | O71: 1.1524 | P71: 109.64 | Q71: 13.22 | R71: 21.24 | S71: 200 | T71: 0
A72: DmHM2 | B72: 39 | C72: 1316.575 | D72: 38.029425 | E72: 550.456 | F72: 107.8315789 | G72: 57.3664 | H72: 100.3912 | I72: 731.5 | J72: 23.074 | K72: 3.65 | L72: 0.1096 | M72: 0.9 | N72: 300.72 | O72: 1.1537 | P72: 109.87 | Q72: 13.46 | R72: 21.72 | S72: 200 | T72: 0
A73: DmHM2 | B73: 40 | C73: 1378.7 | D73: 38.7 | E73: 570.4 | F73: 109.5448276 | G73: 57.76 | H73: 101.08 | I73: 725 | J73: 23.1 | K73: 3.66 | L73: 0.112 | M73: 0.92 | N73: 308 | O73: 1.155 | P73: 110.1 | Q73: 13.7 | R73: 22.2 | S73: 200 | T73: 0
A74: DmHM2 | B74: 41 | C74: 1442.375 | D74: 39.376425 | E74: 590.776 | F74: 111.2890745 | G74: 58.1536 | H74: 101.7688 | I74: 718.5 | J74: 23.126 | K74: 3.67 | L74: 0.1144 | M74: 0.94 | N74: 315.28 | O74: 1.1563 | P74: 110.33 | Q74: 13.94 | R74: 22.68 | S74: 200 | T74: 0
A75: DmHM2 | B75: 42 | C75: 1507.6 | D75: 40.0587 | E75: 611.584 | F75: 113.0651685 | G75: 58.5472 | H75: 102.4576 | I75: 712 | J75: 23.152 | K75: 3.68 | L75: 0.1168 | M75: 0.96 | N75: 322.56 | O75: 1.1576 | P75: 110.56 | Q75: 14.18 | R75: 23.16 | S75: 200 | T75: 0
A76: DmHM2 | B76: 43 | C76: 1574.375 | D76: 40.746825 | E76: 632.824 | F76: 114.8739901 | G76: 58.9408 | H76: 103.1464 | I76: 705.5 | J76: 23.178 | K76: 3.69 | L76: 0.1192 | M76: 0.98 | N76: 329.84 | O76: 1.1589 | P76: 110.79 | Q76: 14.42 | R76: 23.64 | S76: 200 | T76: 0
A77: DmHM2 | B77: 44 | C77: 1642.7 | D77: 41.4408 | E77: 654.496 | F77: 116.7164521 | G77: 59.3344 | H77: 103.8352 | I77: 699 | J77: 23.204 | K77: 3.7 | L77: 0.1216 | M77: 1 | N77: 337.12 | O77: 1.1602 | P77: 111.02 | Q77: 14.66 | R77: 24.12 | S77: 200 | T77: 0
A78: DmHM2 | B78: 45 | C78: 1712.575 | D78: 42.140625 | E78: 676.6 | F78: 118.5935018 | G78: 59.728 | H78: 104.524 | I78: 692.5 | J78: 23.23 | K78: 3.71 | L78: 0.124 | M78: 1.02 | N78: 344.4 | O78: 1.1615 | P78: 111.25 | Q78: 14.9 | R78: 24.6 | S78: 200 | T78: 0
A79: DmHM2 | B79: 46 | C79: 1784 | D79: 42.8463 | E79: 699.136 | F79: 120.5061224 | G79: 60.1216 | H79: 105.2128 | I79: 686 | J79: 23.256 | K79: 3.72 | L79: 0.1264 | M79: 1.04 | N79: 351.68 | O79: 1.1628 | P79: 111.48 | Q79: 15.14 | R79: 25.08 | S79: 200 | T79: 0
A80: DmHM2 | B80: 47 | C80: 1856.975 | D80: 43.557825 | E80: 722.104 | F80: 122.4553348 | G80: 60.5152 | H80: 105.9016 | I80: 679.5 | J80: 23.282 | K80: 3.73 | L80: 0.1288 | M80: 1.06 | N80: 358.96 | O80: 1.1641 | P80: 111.71 | Q80: 15.38 | R80: 25.56 | S80: 200 | T80: 0
A81: DmHM2 | B81: 48 | C81: 1931.5 | D81: 44.2752 | E81: 745.504 | F81: 124.4421991 | G81: 60.9088 | H81: 106.5904 | I81: 673 | J81: 23.308 | K81: 3.74 | L81: 0.1312 | M81: 1.08 | N81: 366.24 | O81: 1.1654 | P81: 111.94 | Q81: 15.62 | R81: 26.04 | S81: 200 | T81: 0
A82: DmHM2 | B82: 49 | C82: 2007.575 | D82: 44.998425 | E82: 769.336 | F82: 126.467817 | G82: 61.3024 | H82: 107.2792 | I82: 666.5 | J82: 23.334 | K82: 3.75 | L82: 0.1336 | M82: 1.1 | N82: 373.52 | O82: 1.1667 | P82: 112.17 | Q82: 15.86 | R82: 26.52 | S82: 200 | T82: 0
A83: DmHM2 | B83: 50 | C83: 2085.2 | D83: 45.7275 | E83: 793.6 | F83: 128.5333333 | G83: 61.696 | H83: 107.968 | I83: 660 | J83: 23.36 | K83: 3.76 | L83: 0.136 | M83: 1.12 | N83: 380.8 | O83: 1.168 | P83: 112.4 | Q83: 16.1 | R83: 27 | S83: 200 | T83: 0

Sheet Archon_Status
A1: 초기시작 | B1: 6 | C1: 13 | D1: 6 | E1: 5 | F1: 10 | I1: 0.6 | J1: 1.3 | K1: 0.6 | L1: 0.5 | M1: 1 | P1: 1 | Q1: 1 | R1: 0.5 | S1: 0.2 | T1: 0.3
A2: Archon | B2: =VLOOKUP($A2,Class_Status!$B$3:$G$25,2,0) -> 0.5 | C2: =VLOOKUP($A2,Class_Status!$B$3:$G$25,3,0) -> 0.8 | D2: =VLOOKUP($A2,Class_Status!$B$3:$G$25,4,0) -> 0.5 | E2: =VLOOKUP($A2,Class_Status!$B$3:$G$25,5,0) -> 0.4 | F2: =VLOOKUP($A2,Class_Status!$B$3:$G$25,6,0) -> 0.8 | H2: ArchM1 | I2: =VLOOKUP($H2,Class_Status!$B$3:$G$25,2,0) -> 0.6 | J2: =VLOOKUP($H2,Class_Status!$B$3:$G$25,3,0) -> 1.3 | K2: =VLOOKUP($H2,Class_Status!$B$3:$G$25,4,0) -> 0.6 | L2: =VLOOKUP($H2,Class_Status!$B$3:$G$25,5,0) -> 0.5 | M2: =VLOOKUP($H2,Class_Status!$B$3:$G$25,6,0) -> 1 | O2: ArchM2 | P2: =VLOOKUP($H2,Class_Status!$B$3:$G$25,2,0) -> 0.6 | Q2: =VLOOKUP($H2,Class_Status!$B$3:$G$25,3,0) -> 1.3 | R2: =VLOOKUP($H2,Class_Status!$B$3:$G$25,4,0) -> 0.6 | S2: =VLOOKUP($H2,Class_Status!$B$3:$G$25,5,0) -> 0.5 | T2: =VLOOKUP($H2,Class_Status!$B$3:$G$25,6,0) -> 1
A3: Archon | B3: =SUM(B1:B2) -> 6.5 | C3: =SUM(C1:C2) -> 13.8 | D3: =SUM(D1:D2) -> 6.5 | E3: =SUM(E1:E2) -> 5.4 | F3: =SUM(F1:F2) -> 10.8 | H3: ArchM1 | I3: =B24 -> 16 | J3: =C24 -> 29 | K3: 16 | L3: 13 | M3: 26 | O3: ArchM2 | P3: =B24 -> 16 | Q3: =C24 -> 29 | R3: =D24 -> 16 | S3: =E24 -> 13 | T3: =F24 -> 26
A4: Lvl | B4: P_Str | C4: P_Sta | D4: P_Agil | E4: P_Int | F4: P_Wis | H4: Lvl | I4: P_Str | J4: P_Sta | K4: P_Agil | L4: P_Int | M4: P_Wis | O4: Lvl | P4: P_Str | Q4: P_Sta | R4: P_Agil | S4: P_Int | T4: P_Wis
A5: 1 | B5: =B3 -> 6.5 | C5: =C3 -> 13.8 | D5: =D3 -> 6.5 | E5: =E3 -> 5.4 | F5: =F3 -> 10.8 | H5: 21 | I5: =B24+I$2 -> 16.6 | J5: =C24+J$2 -> 30.3 | K5: =D24+K$2 -> 16.6 | L5: =E24+L$2 -> 13.5 | M5: =F24+M$2 -> 27 | O5: 21 | P5: =B24+P$2 -> 16.6 | Q5: =C24+Q$2 -> 30.3 | R5: =D24+R$2 -> 16.6 | S5: =E24+S$2 -> 13.5 | T5: =F24+T$2 -> 27
A6: 2 | B6: =B5+B$2 -> 7 | C6: =C5+C$2 -> 14.6 | D6: =D5+D$2 -> 7 | E6: =E5+E$2 -> 5.8 | F6: =F5+F$2 -> 11.6 | H6: 22 | I6: =I5+I$2 -> 17.2 | J6: =J5+J$2 -> 31.6 | K6: =K5+K$2 -> 17.2 | L6: =L5+L$2 -> 14 | M6: =M5+M$2 -> 28 | O6: 22 | P6: =P5+P$2 -> 17.2 | Q6: =Q5+Q$2 -> 31.6 | R6: =R5+R$2 -> 17.2 | S6: =S5+S$2 -> 14 | T6: =T5+T$2 -> 28
A7: 3 | B7: =B6+B$2 -> 7.5 | C7: =C6+C$2 -> 15.4 | D7: 7.5 | E7: 6.2 | F7: 12.4 | H7: 23 | I7: =I6+I$2 -> 17.8 | J7: =J6+J$2 -> 32.9 | K7: =K6+K$2 -> 17.8 | L7: =L6+L$2 -> 14.5 | M7: =M6+M$2 -> 29 | O7: 23 | P7: =P6+P$2 -> 17.8 | Q7: =Q6+Q$2 -> 32.9 | R7: =R6+R$2 -> 17.8 | S7: =S6+S$2 -> 14.5 | T7: =T6+T$2 -> 29
A8: 4 | B8: 8 | C8: 16.2 | D8: 8 | E8: 6.6 | F8: 13.2 | H8: 24 | I8: 18.4 | J8: 34.2 | K8: 18.4 | L8: 15 | M8: 30 | O8: 24 | P8: 18.4 | Q8: 34.2 | R8: 18.4 | S8: 15 | T8: 30
A9: 5 | B9: 8.5 | C9: 17 | D9: 8.5 | E9: 7 | F9: 14 | H9: 25 | I9: 19 | J9: 35.5 | K9: 19 | L9: 15.5 | M9: 31 | O9: 25 | P9: 19 | Q9: 35.5 | R9: 19 | S9: 15.5 | T9: 31
A10: 6 | B10: 9 | C10: 17.8 | D10: 9 | E10: 7.4 | F10: 14.8 | H10: 26 | I10: 19.6 | J10: 36.8 | K10: 19.6 | L10: 16 | M10: 32 | O10: 26 | P10: 19.6 | Q10: 36.8 | R10: 19.6 | S10: 16 | T10: 32
A11: 7 | B11: 9.5 | C11: 18.6 | D11: 9.5 | E11: 7.8 | F11: 15.6 | H11: 27 | I11: 20.2 | J11: 38.1 | K11: 20.2 | L11: 16.5 | M11: 33 | O11: 27 | P11: 20.2 | Q11: 38.1 | R11: 20.2 | S11: 16.5 | T11: 33
A12: 8 | B12: 10 | C12: 19.4 | D12: 10 | E12: 8.2 | F12: 16.4 | H12: 28 | I12: 20.8 | J12: 39.4 | K12: 20.8 | L12: 17 | M12: 34 | O12: 28 | P12: 20.8 | Q12: 39.4 | R12: 20.8 | S12: 17 | T12: 34
A13: 9 | B13: 10.5 | C13: 20.2 | D13: 10.5 | E13: 8.6 | F13: 17.2 | H13: 29 | I13: 21.4 | J13: 40.7 | K13: 21.4 | L13: 17.5 | M13: 35 | O13: 29 | P13: 21.4 | Q13: 40.7 | R13: 21.4 | S13: 17.5 | T13: 35
A14: 10 | B14: 11 | C14: 21 | D14: 11 | E14: 9 | F14: 18 | H14: 30 | I14: 22 | J14: 42 | K14: 22 | L14: 18 | M14: 36 | O14: 30 | P14: 22 | Q14: 42 | R14: 22 | S14: 18 | T14: 36
A15: 11 | B15: 11.5 | C15: 21.8 | D15: 11.5 | E15: 9.4 | F15: 18.8 | H15: 31 | I15: 22.6 | J15: 43.3 | K15: 22.6 | L15: 18.5 | M15: 37 | O15: 31 | P15: 22.6 | Q15: 43.3 | R15: 22.6 | S15: 18.5 | T15: 37
A16: 12 | B16: 12 | C16: 22.6 | D16: 12 | E16: 9.8 | F16: 19.6 | H16: 32 | I16: 23.2 | J16: 44.6 | K16: 23.2 | L16: 19 | M16: 38 | O16: 32 | P16: 23.2 | Q16: 44.6 | R16: 23.2 | S16: 19 | T16: 38
A17: 13 | B17: 12.5 | C17: 23.4 | D17: 12.5 | E17: 10.2 | F17: 20.4 | H17: 33 | I17: 23.8 | J17: 45.9 | K17: 23.8 | L17: 19.5 | M17: 39 | O17: 33 | P17: 23.8 | Q17: 45.9 | R17: 23.8 | S17: 19.5 | T17: 39
A18: 14 | B18: 13 | C18: 24.2 | D18: 13 | E18: 10.6 | F18: 21.2 | H18: 34 | I18: 24.4 | J18: 47.2 | K18: 24.4 | L18: 20 | M18: 40 | O18: 34 | P18: 24.4 | Q18: 47.2 | R18: 24.4 | S18: 20 | T18: 40
A19: 15 | B19: 13.5 | C19: 25 | D19: 13.5 | E19: 11 | F19: 22 | H19: 35 | I19: 25 | J19: 48.5 | K19: 25 | L19: 20.5 | M19: 41 | O19: 35 | P19: 25 | Q19: 48.5 | R19: 25 | S19: 20.5 | T19: 41
A20: 16 | B20: 14 | C20: 25.8 | D20: 14 | E20: 11.4 | F20: 22.8 | H20: 36 | I20: 25.6 | J20: 49.8 | K20: 25.6 | L20: 21 | M20: 42 | O20: 36 | P20: 25.6 | Q20: 49.8 | R20: 25.6 | S20: 21 | T20: 42
A21: 17 | B21: 14.5 | C21: 26.6 | D21: 14.5 | E21: 11.8 | F21: 23.6 | H21: 37 | I21: 26.2 | J21: 51.1 | K21: 26.2 | L21: 21.5 | M21: 43 | O21: 37 | P21: 26.2 | Q21: 51.1 | R21: 26.2 | S21: 21.5 | T21: 43
A22: 18 | B22: 15 | C22: 27.4 | D22: 15 | E22: 12.2 | F22: 24.4 | H22: 38 | I22: 26.8 | J22: 52.4 | K22: 26.8 | L22: 22 | M22: 44 | O22: 38 | P22: 26.8 | Q22: 52.4 | R22: 26.8 | S22: 22 | T22: 44
A23: 19 | B23: 15.5 | C23: =C22+C$2 -> 28.2 | D23: 15.5 | E23: 12.6 | F23: 25.2 | H23: 39 | I23: 27.4 | J23: 53.7 | K23: 27.4 | L23: 22.5 | M23: 45 | O23: 39 | P23: 27.4 | Q23: 53.7 | R23: 27.4 | S23: 22.5 | T23: 45
A24: 20 | B24: 16 | C24: 29 | D24: 16 | E24: 13 | F24: 26 | G24: =SUM(B24:F24) -> 100 | H24: 40 | I24: 28 | J24: 55 | K24: 28 | L24: 23 | M24: 46 | O24: 40 | P24: 28 | Q24: 55 | R24: 28 | S24: 23 | T24: 46
H25: 41 | I25: 28.6 | J25: 56.3 | K25: 28.6 | L25: 23.5 | M25: 47 | O25: 41 | P25: 28.6 | Q25: 56.3 | R25: 28.6 | S25: 23.5 | T25: 47
B26: 최소 공격력 | C26: 최대 생명력 | D26: 최소 공격력 | E26: 최소 공격력 | F26: 생명력회복 | H26: 42 | I26: 29.2 | J26: 57.6 | K26: 29.2 | L26: 24 | M26: 48 | O26: 42 | P26: 29.2 | Q26: 57.6 | R26: 29.2 | S26: 24 | T26: 48
B27: 최대 공격력 | C27: 생명력회복 | D27: 최대 공격력 | E27: 최대 공격력 | F27: 활력도 | H27: 43 | I27: 29.8 | J27: 58.9 | K27: 29.8 | L27: 24.5 | M27: 49 | O27: 43 | P27: 29.8 | Q27: 58.9 | R27: 29.8 | S27: 24.5 | T27: 49
B28: 치명타 저항 | C28: 피해 감소 | D28: 공격속도 | E28: 치명타 세기 | F28: 치명타 세기 | H28: 44 | I28: 30.4 | J28: 60.2 | K28: 30.4 | L28: 25 | M28: 50 | O28: 44 | P28: 30.4 | Q28: 60.2 | R28: 30.4 | S28: 25 | T28: 50
D29: 치명타 확률 | E29: 적중도 | F29: 상태이상저항 | H29: 45 | I29: 31 | J29: 61.5 | K29: 31 | L29: 25.5 | M29: 51 | O29: 45 | P29: 31 | Q29: 61.5 | R29: 31 | S29: 25.5 | T29: 51
D30: 방어력 | E30: 재사용시간 | F30: 치명타 저항 | H30: 46 | I30: 31.6 | J30: 62.8 | K30: 31.6 | L30: 26 | M30: 52 | O30: 46 | P30: 31.6 | Q30: 62.8 | R30: 31.6 | S30: 26 | T30: 52
D31: 회피율 | F31: 재사용시간 | H31: 47 | I31: 32.2 | J31: 64.1 | K31: 32.2 | L31: 26.5 | M31: 53 | O31: 47 | P31: 32.2 | Q31: 64.1 | R31: 32.2 | S31: 26.5 | T31: 53
D32: 적중도 | H32: 48 | I32: 32.8 | J32: 65.4 | K32: 32.8 | L32: 27 | M32: 54 | O32: 48 | P32: 32.8 | Q32: 65.4 | R32: 32.8 | S32: 27 | T32: 54
H33: 49 | I33: 33.4 | J33: 66.7 | K33: 33.4 | L33: 27.5 | M33: 55 | O33: 49 | P33: 33.4 | Q33: 66.7 | R33: 33.4 | S33: 27.5 | T33: 55
H34: 50 | I34: 34 | J34: 68 | K34: 34 | L34: 28 | M34: 56 | N34: =SUM(I34:M34) -> 220 | O34: 50 | P34: 34 | Q34: 68 | R34: 34 | S34: 28 | T34: 56
I36: P_Str | J36: P_Sta | K36: P_Agil | L36: P_Int | M36: P_Wis | P36: P_Str | Q36: P_Sta | R36: P_Agil | S36: P_Int | T36: P_Wis
I38: 최소 공격력 | J38: 최대 생명력 | K38: 최소 공격력 | L38: 최소 공격력 | M38: 생명력회복 | P38: 최소 공격력 | Q38: 최대 생명력 | R38: 최소 공격력 | S38: 최소 공격력 | T38: 생명력회복
I39: 최대 공격력 | J39: 생명력회복 | K39: 최대 공격력 | L39: 최대 공격력 | M39: 활력도 | P39: 최대 공격력 | Q39: 생명력회복 | R39: 최대 공격력 | S39: 최대 공격력 | T39: 활력도
I40: 치명타 저항 | J40: 피해 감소 | K40: 공격속도 | L40: 치명타 세기 | M40: 치명타 세기 | P40: 치명타 저항 | Q40: 피해 감소 | R40: 공격속도 | S40: 치명타 세기 | T40: 치명타 세기
K41: 치명타 확률 | L41: 적중도 | M41: 상태이상저항 | R41: 치명타 확률 | S41: 적중도 | T41: 상태이상저항
K42: 방어력 | L42: 재사용시간 | M42: 치명타 저항 | R42: 방어력 | S42: 재사용시간 | T42: 치명타 저항
K43: 회피율 | M43: 재사용시간 | R43: 회피율 | T43: 재사용시간
K44: 적중도 | R44: 적중도

Sheet Archon_Simul
A1: 클래스 | B1: 레벨 | C1: 최대 생명력 | D1: 생명력회복 | E1: 활력도 | F1: 초당평균공격력 | G1: 최소 공격력 | H1: 최대 공격력 | I1: 공격속도 | J1: 치명타 확률 | K1: 치명타 세기 | L1: 치명타저항 | M1: 피해감소 | N1: 방어력 | O1: 회피율 | P1: 적중도 | Q1: 상태이상저항 | R1: 스킬쿨타임감소 | S1: 이동속도 | T1: 신성력 | U1: 1
A2: Archon | B2: 1 | C2: =(B2^2*0.7)+Archon_Status!$C5*(Archon_Status!$C5*Class_Compare!$D$37)/2+100 -> 186.398 | D2: =(U2)*(Class_Compare!$E$37*(50+1.5*(0.8*Archon_Status!C5+0.2*Archon_Status!F5))) -> 28.269 | E2: =Archon_Status!F5*(Archon_Status!F5*Class_Compare!$O$37)+100 -> 216.64 | F2: =((G2+H2)/2)*(1000/(I2)) -> 33.34449612 | G2: =Class_Compare!$B$37*(100+1.2*(0.6*Archon_Status!B5+0.2*Archon_Status!D5+0.2*Archon_Status!E5)) -> 21.5072 | H2: =Class_Compare!$C$37*(100+1.2*(0.6*Archon_Status!B5+0.2*Archon_Status!D5+0.2*Archon_Status!E5)) -> 43.0144 | I2: =(Class_Compare!$G$37*1000)-(Archon_Status!D5*5) -> 967.5 | J2: =(Class_Compare!$I$37*1000+Archon_Status!D5)/50 -> 20.13 | K2: =2+(Class_Compare!$L$37)+(Archon_Status!E5/100) -> 2.554 | L2: =(0.2*Archon_Status!B5+0.8*Archon_Status!F5)/250 -> 0.03976 | M2: =(Archon_Status!C5/25) -> 0.552 | N2: =Class_Compare!$H$37*(0.2*(Archon_Status!D5*35)) -> 13.65 | O2: =(Class_Compare!$I$37*1000+Archon_Status!D5)/1000 -> 1.0065 | P2: =(Class_Compare!$J$37*1000+Archon_Status!D5+Archon_Status!E5)/10 -> 101.19 | Q2: =((Archon_Status!F5*Class_Compare!$M$37)+5)/2 -> 6.82 | R2: =((Archon_Status!E5+Archon_Status!F5)*Class_Compare!$N$37)/5 -> 0.648 | S2: 200 | T2: 0 | U2: =$U$1*(1+0.05*(B2/4)) -> 1.0125
A3: Archon | B3: 2 | C3: =(B3^2*0.7)+Archon_Status!$C6*(Archon_Status!$C6*Class_Compare!$D$37)/2+100 -> 198.722 | D3: =(U3)*(Class_Compare!$E$37*(50+1.5*(0.8*Archon_Status!C6+0.2*Archon_Status!F6))) -> 29.11 | E3: =Archon_Status!F6*(Archon_Status!F6*Class_Compare!$O$37)+100 -> 234.56 | F3: =((G3+H3)/2)*(1000/(I3)) -> 39.21160622 | G3: =Class_Compare!$B$17*(100+1.2*(0.6*Archon_Status!B6+0.2*Archon_Status!D6+0.2*Archon_Status!E6)) -> 32.4336 | H3: =Class_Compare!$C$37*(100+1.2*(0.6*Archon_Status!B6+0.2*Archon_Status!D6+0.2*Archon_Status!E6)) -> 43.2448 | I3: =(Class_Compare!$G$37*1000)-(Archon_Status!D6*5) -> 965 | J3: =(Class_Compare!$I$37*1000+Archon_Status!D6)/50 -> 20.14 | K3: =2+(Class_Compare!$L$37)+(Archon_Status!E6/100) -> 2.558 | L3: =(0.2*Archon_Status!B6+0.8*Archon_Status!F6)/250 -> 0.04272 | M3: =(Archon_Status!C6/25) -> 0.584 | N3: =Class_Compare!$H$37*(0.2*(Archon_Status!D6*35)) -> 14.7 | O3: =(Class_Compare!$I$37*1000+Archon_Status!D6)/1000 -> 1.007 | P3: =(Class_Compare!$J$37*1000+Archon_Status!D6+Archon_Status!E6)/10 -> 101.28 | Q3: =((Archon_Status!F6*Class_Compare!$M$37)+5)/2 -> 7.14 | R3: =((Archon_Status!E6+Archon_Status!F6)*Class_Compare!$N$37)/5 -> 0.696 | S3: 200 | T3: 0 | U3: =$U$1*(1+0.05*(B3/4)) -> 1.025
A4: Archon | B4: 3 | C4: =(B4^2*0.7)+Archon_Status!$C7*(Archon_Status!$C7*Class_Compare!$D$37)/2+100 -> 213.022 | D4: =(U4)*(Class_Compare!$E$37*(50+1.5*(0.8*Archon_Status!C7+0.2*Archon_Status!F7))) -> 29.963 | E4: =Archon_Status!F7*(Archon_Status!F7*Class_Compare!$O$37)+100 -> 253.76 | F4: 39.52290909 | G4: =Class_Compare!$B$17*(100+1.2*(0.6*Archon_Status!B7+0.2*Archon_Status!D7+0.2*Archon_Status!E7)) -> 32.6064 | H4: =Class_Compare!$C$37*(100+1.2*(0.6*Archon_Status!B7+0.2*Archon_Status!D7+0.2*Archon_Status!E7)) -> 43.4752 | I4: =(Class_Compare!$G$37*1000)-(Archon_Status!D7*5) -> 962.5 | J4: =(Class_Compare!$I$37*1000+Archon_Status!D7)/50 -> 20.15 | K4: =2+(Class_Compare!$L$37)+(Archon_Status!E7/100) -> 2.562 | L4: =(0.2*Archon_Status!B7+0.8*Archon_Status!F7)/250 -> 0.04568 | M4: =(Archon_Status!C7/25) -> 0.616 | N4: =Class_Compare!$H$37*(0.2*(Archon_Status!D7*35)) -> 15.75 | O4: =(Class_Compare!$I$37*1000+Archon_Status!D7)/1000 -> 1.0075 | P4: =(Class_Compare!$J$37*1000+Archon_Status!D7+Archon_Status!E7)/10 -> 101.37 | Q4: =((Archon_Status!F7*Class_Compare!$M$37)+5)/2 -> 7.46 | R4: =((Archon_Status!E7+Archon_Status!F7)*Class_Compare!$N$37)/5 -> 0.744 | S4: 200 | T4: 0 | U4: 1.0375
A5: Archon | B5: 4 | C5: =(B5^2*0.7)+Archon_Status!$C8*(Archon_Status!$C8*Class_Compare!$D$37)/2+100 -> 229.298 | D5: =(U5)*(Class_Compare!$E$37*(50+1.5*(0.8*Archon_Status!C8+0.2*Archon_Status!F8))) -> 30.828 | E5: =Archon_Status!F8*(Archon_Status!F8*Class_Compare!$O$37)+100 -> 274.24 | F5: 39.83583333 | G5: =Class_Compare!$B$17*(100+1.2*(0.6*Archon_Status!B8+0.2*Archon_Status!D8+0.2*Archon_Status!E8)) -> 32.7792 | H5: =Class_Compare!$C$37*(100+1.2*(0.6*Archon_Status!B8+0.2*Archon_Status!D8+0.2*Archon_Status!E8)) -> 43.7056 | I5: =(Class_Compare!$G$37*1000)-(Archon_Status!D8*5) -> 960 | J5: =(Class_Compare!$I$37*1000+Archon_Status!D8)/50 -> 20.16 | K5: =2+(Class_Compare!$L$37)+(Archon_Status!E8/100) -> 2.566 | L5: =(0.2*Archon_Status!B8+0.8*Archon_Status!F8)/250 -> 0.04864 | M5: =(Archon_Status!C8/25) -> 0.648 | N5: =Class_Compare!$H$37*(0.2*(Archon_Status!D8*35)) -> 16.8 | O5: =(Class_Compare!$I$37*1000+Archon_Status!D8)/1000 -> 1.008 | P5: =(Class_Compare!$J$37*1000+Archon_Status!D8+Archon_Status!E8)/10 -> 101.46 | Q5: =((Archon_Status!F8*Class_Compare!$M$37)+5)/2 -> 7.78 | R5: =((Archon_Status!E8+Archon_Status!F8)*Class_Compare!$N$37)/5 -> 0.792 | S5: 200 | T5: 0 | U5: 1.05
A6: Archon | B6: 5 | C6: =(B6^2*0.7)+Archon_Status!$C9*(Archon_Status!$C9*Class_Compare!$D$37)/2+100 -> 247.55 | D6: =(U6)*(Class_Compare!$E$37*(50+1.5*(0.8*Archon_Status!C9+0.2*Archon_Status!F9))) -> 31.705 | E6: =Archon_Status!F9*(Archon_Status!F9*Class_Compare!$O$37)+100 -> 296 | F6: 40.15039164 | G6: =Class_Compare!$B$17*(100+1.2*(0.6*Archon_Status!B9+0.2*Archon_Status!D9+0.2*Archon_Status!E9)) -> 32.952 | H6: =Class_Compare!$C$37*(100+1.2*(0.6*Archon_Status!B9+0.2*Archon_Status!D9+0.2*Archon_Status!E9)) -> 43.936 | I6: =(Class_Compare!$G$37*1000)-(Archon_Status!D9*5) -> 957.5 | J6: =(Class_Compare!$I$37*1000+Archon_Status!D9)/50 -> 20.17 | K6: =2+(Class_Compare!$L$37)+(Archon_Status!E9/100) -> 2.57 | L6: =(0.2*Archon_Status!B9+0.8*Archon_Status!F9)/250 -> 0.0516 | M6: =(Archon_Status!C9/25) -> 0.68 | N6: =Class_Compare!$H$37*(0.2*(Archon_Status!D9*35)) -> 17.85 | O6: =(Class_Compare!$I$37*1000+Archon_Status!D9)/1000 -> 1.0085 | P6: =(Class_Compare!$J$37*1000+Archon_Status!D9+Archon_Status!E9)/10 -> 101.55 | Q6: =((Archon_Status!F9*Class_Compare!$M$37)+5)/2 -> 8.1 | R6: =((Archon_Status!E9+Archon_Status!F9)*Class_Compare!$N$37)/5 -> 0.84 | S6: 200 | T6: 0 | U6: 1.0625
A7: Archon | B7: 6 | C7: =(B7^2*0.7)+Archon_Status!$C10*(Archon_Status!$C10*Class_Compare!$D$37)/2+100 -> 267.778 | D7: =(U7)*(Class_Compare!$E$37*(50+1.5*(0.8*Archon_Status!C10+0.2*Archon_Status!F10))) -> 32.594 | E7: =Archon_Status!F10*(Archon_Status!F10*Class_Compare!$O$37)+100 -> 319.04 | F7: 40.46659686 | G7: =Class_Compare!$B$17*(100+1.2*(0.6*Archon_Status!B10+0.2*Archon_Status!D10+0.2*Archon_Status!E10)) -> 33.1248 | H7: =Class_Compare!$C$37*(100+1.2*(0.6*Archon_Status!B10+0.2*Archon_Status!D10+0.2*Archon_Status!E10)) -> 44.1664 | I7: =(Class_Compare!$G$37*1000)-(Archon_Status!D10*5) -> 955 | J7: =(Class_Compare!$I$37*1000+Archon_Status!D10)/50 -> 20.18 | K7: =2+(Class_Compare!$L$37)+(Archon_Status!E10/100) -> 2.574 | L7: =(0.2*Archon_Status!B10+0.8*Archon_Status!F10)/250 -> 0.05456 | M7: =(Archon_Status!C10/25) -> 0.712 | N7: =Class_Compare!$H$37*(0.2*(Archon_Status!D10*35)) -> 18.9 | O7: =(Class_Compare!$I$37*1000+Archon_Status!D10)/1000 -> 1.009 | P7: =(Class_Compare!$J$37*1000+Archon_Status!D10+Archon_Status!E10)/10 -> 101.64 | Q7: =((Archon_Status!F10*Class_Compare!$M$37)+5)/2 -> 8.42 | R7: =((Archon_Status!E10+Archon_Status!F10)*Class_Compare!$N$37)/5 -> 0.888 | S7: 200 | T7: 0 | U7: 1.075
A8: Archon | B8: 7 | C8: =(B8^2*0.7)+Archon_Status!$C11*(Archon_Status!$C11*Class_Compare!$D$37)/2+100 -> 289.982 | D8: =(U8)*(Class_Compare!$E$37*(50+1.5*(0.8*Archon_Status!C11+0.2*Archon_Status!F11))) -> 33.495 | E8: =Archon_Status!F11*(Archon_Status!F11*Class_Compare!$O$37)+100 -> 343.36 | F8: 40.78446194 | G8: =Class_Compare!$B$17*(100+1.2*(0.6*Archon_Status!B11+0.2*Archon_Status!D11+0.2*Archon_Status!E11)) -> 33.2976 | H8: =Class_Compare!$C$37*(100+1.2*(0.6*Archon_Status!B11+0.2*Archon_Status!D11+0.2*Archon_Status!E11)) -> 44.3968 | I8: =(Class_Compare!$G$37*1000)-(Archon_Status!D11*5) -> 952.5 | J8: =(Class_Compare!$I$37*1000+Archon_Status!D11)/50 -> 20.19 | K8: =2+(Class_Compare!$L$37)+(Archon_Status!E11/100) -> 2.578 | L8: =(0.2*Archon_Status!B11+0.8*Archon_Status!F11)/250 -> 0.05752 | M8: =(Archon_Status!C11/25) -> 0.744 | N8: =Class_Compare!$H$37*(0.2*(Archon_Status!D11*35)) -> 19.95 | O8: =(Class_Compare!$I$37*1000+Archon_Status!D11)/1000 -> 1.0095 | P8: =(Class_Compare!$J$37*1000+Archon_Status!D11+Archon_Status!E11)/10 -> 101.73 | Q8: =((Archon_Status!F11*Class_Compare!$M$37)+5)/2 -> 8.74 | R8: =((Archon_Status!E11+Archon_Status!F11)*Class_Compare!$N$37)/5 -> 0.936 | S8: 200 | T8: 0 | U8: 1.0875
A9: Archon | B9: 8 | C9: =(B9^2*0.7)+Archon_Status!$C12*(Archon_Status!$C12*Class_Compare!$D$37)/2+100 -> 314.162 | D9: =(U9)*(Class_Compare!$E$37*(50+1.5*(0.8*Archon_Status!C12+0.2*Archon_Status!F12))) -> 34.408 | E9: =Archon_Status!F12*(Archon_Status!F12*Class_Compare!$O$37)+100 -> 368.96 | F9: 41.104 | G9: =Class_Compare!$B$17*(100+1.2*(0.6*Archon_Status!B12+0.2*Archon_Status!D12+0.2*Archon_Status!E12)) -> 33.4704 | H9: =Class_Compare!$C$37*(100+1.2*(0.6*Archon_Status!B12+0.2*Archon_Status!D12+0.2*Archon_Status!E12)) -> 44.6272 | I9: =(Class_Compare!$G$37*1000)-(Archon_Status!D12*5) -> 950 | J9: =(Class_Compare!$I$37*1000+Archon_Status!D12)/50 -> 20.2 | K9: =2+(Class_Compare!$L$37)+(Archon_Status!E12/100) -> 2.582 | L9: =(0.2*Archon_Status!B12+0.8*Archon_Status!F12)/250 -> 0.06048 | M9: =(Archon_Status!C12/25) -> 0.776 | N9: =Class_Compare!$H$37*(0.2*(Archon_Status!D12*35)) -> 21 | O9: =(Class_Compare!$I$37*1000+Archon_Status!D12)/1000 -> 1.01 | P9: =(Class_Compare!$J$37*1000+Archon_Status!D12+Archon_Status!E12)/10 -> 101.82 | Q9: =((Archon_Status!F12*Class_Compare!$M$37)+5)/2 -> 9.06 | R9: =((Archon_Status!E12+Archon_Status!F12)*Class_Compare!$N$37)/5 -> 0.984 | S9: 200 | T9: 0 | U9: 1.1
A10: Archon | B10: 9 | C10: =(B10^2*0.7)+Archon_Status!$C13*(Archon_Status!$C13*Class_Compare!$D$37)/2+100 -> 340.318 | D10: =(U10)*(Class_Compare!$E$37*(50+1.5*(0.8*Archon_Status!C13+0.2*Archon_Status!F13))) -> 35.333 | E10: =Archon_Status!F13*(Archon_Status!F13*Class_Compare!$O$37)+100 -> 395.84 | F10: 41.42522427 | G10: =Class_Compare!$B$17*(100+1.2*(0.6*Archon_Status!B13+0.2*Archon_Status!D13+0.2*Archon_Status!E13)) -> 33.6432 | H10: =Class_Compare!$C$37*(100+1.2*(0.6*Archon_Status!B13+0.2*Archon_Status!D13+0.2*Archon_Status!E13)) -> 44.8576 | I10: =(Class_Compare!$G$37*1000)-(Archon_Status!D13*5) -> 947.5 | J10: =(Class_Compare!$I$37*1000+Archon_Status!D13)/50 -> 20.21 | K10: =2+(Class_Compare!$L$37)+(Archon_Status!E13/100) -> 2.586 | L10: =(0.2*Archon_Status!B13+0.8*Archon_Status!F13)/250 -> 0.06344 | M10: =(Archon_Status!C13/25) -> 0.808 | N10: =Class_Compare!$H$37*(0.2*(Archon_Status!D13*35)) -> 22.05 | O10: =(Class_Compare!$I$37*1000+Archon_Status!D13)/1000 -> 1.0105 | P10: =(Class_Compare!$J$37*1000+Archon_Status!D13+Archon_Status!E13)/10 -> 101.91 | Q10: =((Archon_Status!F13*Class_Compare!$M$37)+5)/2 -> 9.38 | R10: =((Archon_Status!E13+Archon_Status!F13)*Class_Compare!$N$37)/5 -> 1.032 | S10: 200 | T10: 0 | U10: 1.1125
A11: Archon | B11: 10 | C11: =(B11^2*0.7)+Archon_Status!$C14*(Archon_Status!$C14*Class_Compare!$D$37)/2+100 -> 368.45 | D11: =(U11)*(Class_Compare!$E$37*(50+1.5*(0.8*Archon_Status!C14+0.2*Archon_Status!F14))) -> 36.27 | E11: =Archon_Status!F14*(Archon_Status!F14*Class_Compare!$O$37)+100 -> 424 | F11: 41.74814815 | G11: =Class_Compare!$B$17*(100+1.2*(0.6*Archon_Status!B14+0.2*Archon_Status!D14+0.2*Archon_Status!E14)) -> 33.816 | H11: =Class_Compare!$C$37*(100+1.2*(0.6*Archon_Status!B14+0.2*Archon_Status!D14+0.2*Archon_Status!E14)) -> 45.088 | I11: =(Class_Compare!$G$37*1000)-(Archon_Status!D14*5) -> 945 | J11: =(Class_Compare!$I$37*1000+Archon_Status!D14)/50 -> 20.22 | K11: =2+(Class_Compare!$L$37)+(Archon_Status!E14/100) -> 2.59 | L11: =(0.2*Archon_Status!B14+0.8*Archon_Status!F14)/250 -> 0.0664 | M11: =(Archon_Status!C14/25) -> 0.84 | N11: =Class_Compare!$H$37*(0.2*(Archon_Status!D14*35)) -> 23.1 | O11: =(Class_Compare!$I$37*1000+Archon_Status!D14)/1000 -> 1.011 | P11: =(Class_Compare!$J$37*1000+Archon_Status!D14+Archon_Status!E14)/10 -> 102 | Q11: =((Archon_Status!F14*Class_Compare!$M$37)+5)/2 -> 9.7 | R11: =((Archon_Status!E14+Archon_Status!F14)*Class_Compare!$N$37)/5 -> 1.08 | S11: 200 | T11: 0 | U11: 1.125
A12: Archon | B12: 11 | C12: =(B12^2*0.7)+Archon_Status!$C15*(Archon_Status!$C15*Class_Compare!$D$37)/2+100 -> 398.558 | D12: =(U12)*(Class_Compare!$E$37*(50+1.5*(0.8*Archon_Status!C15+0.2*Archon_Status!F15))) -> 37.219 | E12: =Archon_Status!F15*(Archon_Status!F15*Class_Compare!$O$37)+100 -> 453.44 | F12: 42.07278515 | G12: =Class_Compare!$B$17*(100+1.2*(0.6*Archon_Status!B15+0.2*Archon_Status!D15+0.2*Archon_Status!E15)) -> 33.9888 | H12: =Class_Compare!$C$37*(100+1.2*(0.6*Archon_Status!B15+0.2*Archon_Status!D15+0.2*Archon_Status!E15)) -> 45.3184 | I12: =(Class_Compare!$G$37*1000)-(Archon_Status!D15*5) -> 942.5 | J12: =(Class_Compare!$I$37*1000+Archon_Status!D15)/50 -> 20.23 | K12: =2+(Class_Compare!$L$37)+(Archon_Status!E15/100) -> 2.594 | L12: =(0.2*Archon_Status!B15+0.8*Archon_Status!F15)/250 -> 0.06936 | M12: =(Archon_Status!C15/25) -> 0.872 | N12: =Class_Compare!$H$37*(0.2*(Archon_Status!D15*35)) -> 24.15 | O12: =(Class_Compare!$I$37*1000+Archon_Status!D15)/1000 -> 1.0115 | P12: =(Class_Compare!$J$37*1000+Archon_Status!D15+Archon_Status!E15)/10 -> 102.09 | Q12: =((Archon_Status!F15*Class_Compare!$M$37)+5)/2 -> 10.02 | R12: =((Archon_Status!E15+Archon_Status!F15)*Class_Compare!$N$37)/5 -> 1.128 | S12: 200 | T12: 0 | U12: 1.1375
A13: Archon | B13: 12 | C13: =(B13^2*0.7)+Archon_Status!$C16*(Archon_Status!$C16*Class_Compare!$D$37)/2+100 -> 430.642 | D13: =(U13)*(Class_Compare!$E$37*(50+1.5*(0.8*Archon_Status!C16+0.2*Archon_Status!F16))) -> 38.18 | E13: =Archon_Status!F16*(Archon_Status!F16*Class_Compare!$O$37)+100 -> 484.16 | F13: 42.39914894 | G13: =Class_Compare!$B$17*(100+1.2*(0.6*Archon_Status!B16+0.2*Archon_Status!D16+0.2*Archon_Status!E16)) -> 34.1616 | H13: =Class_Compare!$C$37*(100+1.2*(0.6*Archon_Status!B16+0.2*Archon_Status!D16+0.2*Archon_Status!E16)) -> 45.5488 | I13: =(Class_Compare!$G$37*1000)-(Archon_Status!D16*5) -> 940 | J13: =(Class_Compare!$I$37*1000+Archon_Status!D16)/50 -> 20.24 | K13: =2+(Class_Compare!$L$37)+(Archon_Status!E16/100) -> 2.598 | L13: =(0.2*Archon_Status!B16+0.8*Archon_Status!F16)/250 -> 0.07232 | M13: =(Archon_Status!C16/25) -> 0.904 | N13: =Class_Compare!$H$37*(0.2*(Archon_Status!D16*35)) -> 25.2 | O13: =(Class_Compare!$I$37*1000+Archon_Status!D16)/1000 -> 1.012 | P13: =(Class_Compare!$J$37*1000+Archon_Status!D16+Archon_Status!E16)/10 -> 102.18 | Q13: =((Archon_Status!F16*Class_Compare!$M$37)+5)/2 -> 10.34 | R13: =((Archon_Status!E16+Archon_Status!F16)*Class_Compare!$N$37)/5 -> 1.176 | S13: 200 | T13: 0 | U13: 1.15
A14: Archon | B14: 13 | C14: =(B14^2*0.7)+Archon_Status!$C17*(Archon_Status!$C17*Class_Compare!$D$37)/2+100 -> 464.702 | D14: =(U14)*(Class_Compare!$E$37*(50+1.5*(0.8*Archon_Status!C17+0.2*Archon_Status!F17))) -> 39.153 | E14: =Archon_Status!F17*(Archon_Status!F17*Class_Compare!$O$37)+100 -> 516.16 | F14: 42.72725333 | G14: =Class_Compare!$B$17*(100+1.2*(0.6*Archon_Status!B17+0.2*Archon_Status!D17+0.2*Archon_Status!E17)) -> 34.3344 | H14: =Class_Compare!$C$37*(100+1.2*(0.6*Archon_Status!B17+0.2*Archon_Status!D17+0.2*Archon_Status!E17)) -> 45.7792 | I14: =(Class_Compare!$G$37*1000)-(Archon_Status!D17*5) -> 937.5 | J14: =(Class_Compare!$I$37*1000+Archon_Status!D17)/50 -> 20.25 | K14: =2+(Class_Compare!$L$37)+(Archon_Status!E17/100) -> 2.602 | L14: =(0.2*Archon_Status!B17+0.8*Archon_Status!F17)/250 -> 0.07528 | M14: =(Archon_Status!C17/25) -> 0.936 | N14: =Class_Compare!$H$37*(0.2*(Archon_Status!D17*35)) -> 26.25 | O14: =(Class_Compare!$I$37*1000+Archon_Status!D17)/1000 -> 1.0125 | P14: =(Class_Compare!$J$37*1000+Archon_Status!D17+Archon_Status!E17)/10 -> 102.27 | Q14: =((Archon_Status!F17*Class_Compare!$M$37)+5)/2 -> 10.66 | R14: =((Archon_Status!E17+Archon_Status!F17)*Class_Compare!$N$37)/5 -> 1.224 | S14: 200 | T14: 0 | U14: 1.1625
A15: Archon | B15: 14 | C15: =(B15^2*0.7)+Archon_Status!$C18*(Archon_Status!$C18*Class_Compare!$D$37)/2+100 -> 500.738 | D15: =(U15)*(Class_Compare!$E$37*(50+1.5*(0.8*Archon_Status!C18+0.2*Archon_Status!F18))) -> 40.138 | E15: =Archon_Status!F18*(Archon_Status!F18*Class_Compare!$O$37)+100 -> 549.44 | F15: 43.0571123 | G15: =Class_Compare!$B$17*(100+1.2*(0.6*Archon_Status!B18+0.2*Archon_Status!D18+0.2*Archon_Status!E18)) -> 34.5072 | H15: =Class_Compare!$C$37*(100+1.2*(0.6*Archon_Status!B18+0.2*Archon_Status!D18+0.2*Archon_Status!E18)) -> 46.0096 | I15: =(Class_Compare!$G$37*1000)-(Archon_Status!D18*5) -> 935 | J15: =(Class_Compare!$I$37*1000+Archon_Status!D18)/50 -> 20.26 | K15: =2+(Class_Compare!$L$37)+(Archon_Status!E18/100) -> 2.606 | L15: =(0.2*Archon_Status!B18+0.8*Archon_Status!F18)/250 -> 0.07824 | M15: =(Archon_Status!C18/25) -> 0.968 | N15: =Class_Compare!$H$37*(0.2*(Archon_Status!D18*35)) -> 27.3 | O15: =(Class_Compare!$I$37*1000+Archon_Status!D18)/1000 -> 1.013 | P15: =(Class_Compare!$J$37*1000+Archon_Status!D18+Archon_Status!E18)/10 -> 102.36 | Q15: =((Archon_Status!F18*Class_Compare!$M$37)+5)/2 -> 10.98 | R15: =((Archon_Status!E18+Archon_Status!F18)*Class_Compare!$N$37)/5 -> 1.272 | S15: 200 | T15: 0 | U15: 1.175
A16: Archon | B16: 15 | C16: =(B16^2*0.7)+Archon_Status!$C19*(Archon_Status!$C19*Class_Compare!$D$37)/2+100 -> 538.75 | D16: =(U16)*(Class_Compare!$E$37*(50+1.5*(0.8*Archon_Status!C19+0.2*Archon_Status!F19))) -> 41.135 | E16: =Archon_Status!F19*(Archon_Status!F19*Class_Compare!$O$37)+100 -> 584 | F16: 43.38873995 | G16: =Class_Compare!$B$17*(100+1.2*(0.6*Archon_Status!B19+0.2*Archon_Status!D19+0.2*Archon_Status!E19)) -> 34.68 | H16: =Class_Compare!$C$37*(100+1.2*(0.6*Archon_Status!B19+0.2*Archon_Status!D19+0.2*Archon_Status!E19)) -> 46.24 | I16: =(Class_Compare!$G$37*1000)-(Archon_Status!D19*5) -> 932.5 | J16: =(Class_Compare!$I$37*1000+Archon_Status!D19)/50 -> 20.27 | K16: =2+(Class_Compare!$L$37)+(Archon_Status!E19/100) -> 2.61 | L16: =(0.2*Archon_Status!B19+0.8*Archon_Status!F19)/250 -> 0.0812 | M16: =(Archon_Status!C19/25) -> 1 | N16: =Class_Compare!$H$37*(0.2*(Archon_Status!D19*35)) -> 28.35 | O16: =(Class_Compare!$I$37*1000+Archon_Status!D19)/1000 -> 1.0135 | P16: =(Class_Compare!$J$37*1000+Archon_Status!D19+Archon_Status!E19)/10 -> 102.45 | Q16: =((Archon_Status!F19*Class_Compare!$M$37)+5)/2 -> 11.3 | R16: =((Archon_Status!E19+Archon_Status!F19)*Class_Compare!$N$37)/5 -> 1.32 | S16: 200 | T16: 0 | U16: 1.1875
A17: Archon | B17: 16 | C17: =(B17^2*0.7)+Archon_Status!$C20*(Archon_Status!$C20*Class_Compare!$D$37)/2+100 -> 578.738 | D17: =(U17)*(Class_Compare!$E$37*(50+1.5*(0.8*Archon_Status!C20+0.2*Archon_Status!F20))) -> 42.144 | E17: =Archon_Status!F20*(Archon_Status!F20*Class_Compare!$O$37)+100 -> 619.84 | F17: 43.72215054 | G17: =Class_Compare!$B$17*(100+1.2*(0.6*Archon_Status!B20+0.2*Archon_Status!D20+0.2*Archon_Status!E20)) -> 34.8528 | H17: =Class_Compare!$C$37*(100+1.2*(0.6*Archon_Status!B20+0.2*Archon_Status!D20+0.2*Archon_Status!E20)) -> 46.4704 | I17: =(Class_Compare!$G$37*1000)-(Archon_Status!D20*5) -> 930 | J17: =(Class_Compare!$I$37*1000+Archon_Status!D20)/50 -> 20.28 | K17: =2+(Class_Compare!$L$37)+(Archon_Status!E20/100) -> 2.614 | L17: =(0.2*Archon_Status!B20+0.8*Archon_Status!F20)/250 -> 0.08416 | M17: =(Archon_Status!C20/25) -> 1.032 | N17: =Class_Compare!$H$37*(0.2*(Archon_Status!D20*35)) -> 29.4 | O17: =(Class_Compare!$I$37*1000+Archon_Status!D20)/1000 -> 1.014 | P17: =(Class_Compare!$J$37*1000+Archon_Status!D20+Archon_Status!E20)/10 -> 102.54 | Q17: =((Archon_Status!F20*Class_Compare!$M$37)+5)/2 -> 11.62 | R17: =((Archon_Status!E20+Archon_Status!F20)*Class_Compare!$N$37)/5 -> 1.368 | S17: 200 | T17: 0 | U17: 1.2
A18: Archon | B18: 17 | C18: =(B18^2*0.7)+Archon_Status!$C21*(Archon_Status!$C21*Class_Compare!$D$37)/2+100 -> 620.702 | D18: =(U18)*(Class_Compare!$E$37*(50+1.5*(0.8*Archon_Status!C21+0.2*Archon_Status!F21))) -> 43.165 | E18: =Archon_Status!F21*(Archon_Status!F21*Class_Compare!$O$37)+100 -> 656.96 | F18: 44.05735849 | G18: =Class_Compare!$B$17*(100+1.2*(0.6*Archon_Status!B21+0.2*Archon_Status!D21+0.2*Archon_Status!E21)) -> 35.0256 | H18: =Class_Compare!$C$37*(100+1.2*(0.6*Archon_Status!B21+0.2*Archon_Status!D21+0.2*Archon_Status!E21)) -> 46.7008 | I18: =(Class_Compare!$G$37*1000)-(Archon_Status!D21*5) -> 927.5 | J18: =(Class_Compare!$I$37*1000+Archon_Status!D21)/50 -> 20.29 | K18: =2+(Class_Compare!$L$37)+(Archon_Status!E21/100) -> 2.618 | L18: =(0.2*Archon_Status!B21+0.8*Archon_Status!F21)/250 -> 0.08712 | M18: =(Archon_Status!C21/25) -> 1.064 | N18: =Class_Compare!$H$37*(0.2*(Archon_Status!D21*35)) -> 30.45 | O18: =(Class_Compare!$I$37*1000+Archon_Status!D21)/1000 -> 1.0145 | P18: =(Class_Compare!$J$37*1000+Archon_Status!D21+Archon_Status!E21)/10 -> 102.63 | Q18: =((Archon_Status!F21*Class_Compare!$M$37)+5)/2 -> 11.94 | R18: =((Archon_Status!E21+Archon_Status!F21)*Class_Compare!$N$37)/5 -> 1.416 | S18: 200 | T18: 0 | U18: 1.2125
A19: Archon | B19: 18 | C19: =(B19^2*0.7)+Archon_Status!$C22*(Archon_Status!$C22*Class_Compare!$D$37)/2+100 -> 664.642 | D19: =(U19)*(Class_Compare!$E$37*(50+1.5*(0.8*Archon_Status!C22+0.2*Archon_Status!F22))) -> 44.198 | E19: =Archon_Status!F22*(Archon_Status!F22*Class_Compare!$O$37)+100 -> 695.36 | F19: 44.39437838 | G19: =Class_Compare!$B$17*(100+1.2*(0.6*Archon_Status!B22+0.2*Archon_Status!D22+0.2*Archon_Status!E22)) -> 35.1984 | H19: =Class_Compare!$C$37*(100+1.2*(0.6*Archon_Status!B22+0.2*Archon_Status!D22+0.2*Archon_Status!E22)) -> 46.9312 | I19: =(Class_Compare!$G$37*1000)-(Archon_Status!D22*5) -> 925 | J19: =(Class_Compare!$I$37*1000+Archon_Status!D22)/50 -> 20.3 | K19: =2+(Class_Compare!$L$37)+(Archon_Status!E22/100) -> 2.622 | L19: =(0.2*Archon_Status!B22+0.8*Archon_Status!F22)/250 -> 0.09008 | M19: =(Archon_Status!C22/25) -> 1.096 | N19: =Class_Compare!$H$37*(0.2*(Archon_Status!D22*35)) -> 31.5 | O19: =(Class_Compare!$I$37*1000+Archon_Status!D22)/1000 -> 1.015 | P19: =(Class_Compare!$J$37*1000+Archon_Status!D22+Archon_Status!E22)/10 -> 102.72 | Q19: =((Archon_Status!F22*Class_Compare!$M$37)+5)/2 -> 12.26 | R19: =((Archon_Status!E22+Archon_Status!F22)*Class_Compare!$N$37)/5 -> 1.464 | S19: 200 | T19: 0 | U19: 1.225
A20: Archon | B20: 19 | C20: =(B20^2*0.7)+Archon_Status!$C23*(Archon_Status!$C23*Class_Compare!$D$37)/2+100 -> 710.558 | D20: =(U20)*(Class_Compare!$E$37*(50+1.5*(0.8*Archon_Status!C23+0.2*Archon_Status!F23))) -> 45.243 | E20: =Archon_Status!F23*(Archon_Status!F23*Class_Compare!$O$37)+100 -> 735.04 | F20: 44.73322493 | G20: =Class_Compare!$B$17*(100+1.2*(0.6*Archon_Status!B23+0.2*Archon_Status!D23+0.2*Archon_Status!E23)) -> 35.3712 | H20: =Class_Compare!$C$37*(100+1.2*(0.6*Archon_Status!B23+0.2*Archon_Status!D23+0.2*Archon_Status!E23)) -> 47.1616 | I20: =(Class_Compare!$G$37*1000)-(Archon_Status!D23*5) -> 922.5 | J20: =(Class_Compare!$I$37*1000+Archon_Status!D23)/50 -> 20.31 | K20: =2+(Class_Compare!$L$37)+(Archon_Status!E23/100) -> 2.626 | L20: =(0.2*Archon_Status!B23+0.8*Archon_Status!F23)/250 -> 0.09304 | M20: =(Archon_Status!C23/25) -> 1.128 | N20: =Class_Compare!$H$37*(0.2*(Archon_Status!D23*35)) -> 32.55 | O20: =(Class_Compare!$I$37*1000+Archon_Status!D23)/1000 -> 1.0155 | P20: =(Class_Compare!$J$37*1000+Archon_Status!D23+Archon_Status!E23)/10 -> 102.81 | Q20: =((Archon_Status!F23*Class_Compare!$M$37)+5)/2 -> 12.58 | R20: =((Archon_Status!E23+Archon_Status!F23)*Class_Compare!$N$37)/5 -> 1.512 | S20: 200 | T20: 0 | U20: 1.2375
A21: Archon | B21: 20 | C21: =(B21^2*0.7)+Archon_Status!$C24*(Archon_Status!$C24*Class_Compare!$D$37)/2+100 -> 758.45 | D21: =(U21)*(Class_Compare!$E$37*(50+1.5*(0.8*Archon_Status!C24+0.2*Archon_Status!F24))) -> 46.3 | E21: =Archon_Status!F24*(Archon_Status!F24*Class_Compare!$O$37)+100 -> 776 | F21: 45.07391304 | G21: =Class_Compare!$B$17*(100+1.2*(0.6*Archon_Status!B24+0.2*Archon_Status!D24+0.2*Archon_Status!E24)) -> 35.544 | H21: =Class_Compare!$C$37*(100+1.2*(0.6*Archon_Status!B24+0.2*Archon_Status!D24+0.2*Archon_Status!E24)) -> 47.392 | I21: =(Class_Compare!$G$37*1000)-(Archon_Status!D24*5) -> 920 | J21: =(Class_Compare!$I$37*1000+Archon_Status!D24)/50 -> 20.32 | K21: =2+(Class_Compare!$L$37)+(Archon_Status!E24/100) -> 2.63 | L21: =(0.2*Archon_Status!B24+0.8*Archon_Status!F24)/250 -> 0.096 | M21: =(Archon_Status!C24/25) -> 1.16 | N21: =Class_Compare!$H$37*(0.2*(Archon_Status!D24*35)) -> 33.6 | O21: =(Class_Compare!$I$37*1000+Archon_Status!D24)/1000 -> 1.016 | P21: =(Class_Compare!$J$37*1000+Archon_Status!D24+Archon_Status!E24)/10 -> 102.9 | Q21: =((Archon_Status!F24*Class_Compare!$M$37)+5)/2 -> 12.9 | R21: =((Archon_Status!E24+Archon_Status!F24)*Class_Compare!$N$37)/5 -> 1.56 | S21: 200 | T21: 0 | U21: 1.25
A22: 클래스 | B22: ArchM1
A23: ArchM1 | B23: 21 | C23: =(B23^2*0.7)+Archon_Status!$J5*(Archon_Status!$J5*Class_Compare!$D$38)/2+100 -> 913.6495 | D23: =(U23)*(Class_Compare!$E$38*(50+1.5*(0.8*Archon_Status!J5+0.2*Archon_Status!M5))) -> 71.55345 | E23: =Archon_Status!M5*(Archon_Status!M5*Class_Compare!$O$38)+100 -> 974.8 | F23: =((G23+H23)/2)*(1000/(I23)) -> 71.47960742 | G23: =Class_Compare!$B$38*(100+1.2*(0.6*Archon_Status!I5+0.2*Archon_Status!K5+0.2*Archon_Status!L5)) -> 47.6704 | H23: =Class_Compare!$C$38*(100+1.2*(0.6*Archon_Status!I5+0.2*Archon_Status!K5+0.2*Archon_Status!L5)) -> 83.4232 | I23: =(Class_Compare!$G$38*1000)-(Archon_Status!K5*5) -> 917 | J23: =(Class_Compare!$I$38*1000+Archon_Status!K5)/50 -> 22.332 | K23: =2+(Class_Compare!$L$38)+(Archon_Status!L5/100) -> 2.835 | L23: =(0.2*Archon_Status!I5+0.8*Archon_Status!M5)/250 -> 0.09968 | M23: =(Archon_Status!J5/25) -> 1.212 | N23: =Class_Compare!$H$38*(0.2*(Archon_Status!K5*35)) -> 58.1 | O23: =(Class_Compare!$I$38*1000+Archon_Status!K5)/1000 -> 1.1166 | P23: =(Class_Compare!$J$38*1000+Archon_Status!K5+Archon_Status!L5)/10 -> 103.01 | Q23: =((Archon_Status!M5*Class_Compare!$M$38)+5)/2 -> 14.65 | R23: =((Archon_Status!L5+Archon_Status!M5)*Class_Compare!$N$38)/5 -> 2.43 | S23: 200 | T23: 0 | U23: =$U$1*(1+0.05*(B23/4)) -> 1.2625
A24: ArchM1 | B24: 22 | C24: =(B24^2*0.7)+Archon_Status!$J6*(Archon_Status!$J6*Class_Compare!$D$38)/2+100 -> 988.008 | D24: =(U24)*(Class_Compare!$E$38*(50+1.5*(0.8*Archon_Status!J6+0.2*Archon_Status!M6))) -> 73.6848 | E24: =Archon_Status!M6*(Archon_Status!M6*Class_Compare!$O$38)+100 -> 1040.8 | F24: =((G24+H24)/2)*(1000/(I24)) -> 72.13304158 | G24: =Class_Compare!$B$38*(100+1.2*(0.6*Archon_Status!I6+0.2*Archon_Status!K6+0.2*Archon_Status!L6)) -> 47.9488 | H24: =Class_Compare!$C$38*(100+1.2*(0.6*Archon_Status!I6+0.2*Archon_Status!K6+0.2*Archon_Status!L6)) -> 83.9104 | I24: =(Class_Compare!$G$38*1000)-(Archon_Status!K6*5) -> 914 | J24: =(Class_Compare!$I$38*1000+Archon_Status!K6)/50 -> 22.344 | K24: =2+(Class_Compare!$L$38)+(Archon_Status!L6/100) -> 2.84 | L24: =(0.2*Archon_Status!I6+0.8*Archon_Status!M6)/250 -> 0.10336 | M24: =(Archon_Status!J6/25) -> 1.264 | N24: =Class_Compare!$H$38*(0.2*(Archon_Status!K6*35)) -> 60.2 | O24: =(Class_Compare!$I$38*1000+Archon_Status!K6)/1000 -> 1.1172 | P24: =(Class_Compare!$J$38*1000+Archon_Status!K6+Archon_Status!L6)/10 -> 103.12 | Q24: =((Archon_Status!M6*Class_Compare!$M$38)+5)/2 -> 15.1 | R24: =((Archon_Status!L6+Archon_Status!M6)*Class_Compare!$N$38)/5 -> 2.52 | S24: 200 | T24: 0 | U24: =$U$1*(1+0.05*(B24/4)) -> 1.275
A25: ArchM1 | B25: 23 | C25: =(B25^2*0.7)+Archon_Status!$J7*(Archon_Status!$J7*Class_Compare!$D$38)/2+100 -> 1065.6255 | D25: =(U25)*(Class_Compare!$E$38*(50+1.5*(0.8*Archon_Status!J7+0.2*Archon_Status!M7))) -> 75.84405 | E25: =Archon_Status!M7*(Archon_Status!M7*Class_Compare!$O$38)+100 -> 1109.2 | F25: 72.79077936 | G25: =Class_Compare!$B$38*(100+1.2*(0.6*Archon_Status!I7+0.2*Archon_Status!K7+0.2*Archon_Status!L7)) -> 48.2272 | H25: =Class_Compare!$C$38*(100+1.2*(0.6*Archon_Status!I7+0.2*Archon_Status!K7+0.2*Archon_Status!L7)) -> 84.3976 | I25: =(Class_Compare!$G$38*1000)-(Archon_Status!K7*5) -> 911 | J25: =(Class_Compare!$I$38*1000+Archon_Status!K7)/50 -> 22.356 | K25: =2+(Class_Compare!$L$38)+(Archon_Status!L7/100) -> 2.845 | L25: =(0.2*Archon_Status!I7+0.8*Archon_Status!M7)/250 -> 0.10704 | M25: =(Archon_Status!J7/25) -> 1.316 | N25: =Class_Compare!$H$38*(0.2*(Archon_Status!K7*35)) -> 62.3 | O25: =(Class_Compare!$I$38*1000+Archon_Status!K7)/1000 -> 1.1178 | P25: =(Class_Compare!$J$38*1000+Archon_Status!K7+Archon_Status!L7)/10 -> 103.23 | Q25: =((Archon_Status!M7*Class_Compare!$M$38)+5)/2 -> 15.55 | R25: =((Archon_Status!L7+Archon_Status!M7)*Class_Compare!$N$38)/5 -> 2.61 | S25: 200 | T25: 0 | U25: 1.2875
A26: ArchM1 | B26: 24 | C26: =(B26^2*0.7)+Archon_Status!$J8*(Archon_Status!$J8*Class_Compare!$D$38)/2+100 -> 1146.502 | D26: =(U26)*(Class_Compare!$E$38*(50+1.5*(0.8*Archon_Status!J8+0.2*Archon_Status!M8))) -> 78.0312 | E26: =Archon_Status!M8*(Archon_Status!M8*Class_Compare!$O$38)+100 -> 1180 | F26: 73.45286344 | G26: =Class_Compare!$B$38*(100+1.2*(0.6*Archon_Status!I8+0.2*Archon_Status!K8+0.2*Archon_Status!L8)) -> 48.5056 | H26: =Class_Compare!$C$38*(100+1.2*(0.6*Archon_Status!I8+0.2*Archon_Status!K8+0.2*Archon_Status!L8)) -> 84.8848 | I26: =(Class_Compare!$G$38*1000)-(Archon_Status!K8*5) -> 908 | J26: =(Class_Compare!$I$38*1000+Archon_Status!K8)/50 -> 22.368 | K26: =2+(Class_Compare!$L$38)+(Archon_Status!L8/100) -> 2.85 | L26: =(0.2*Archon_Status!I8+0.8*Archon_Status!M8)/250 -> 0.11072 | M26: =(Archon_Status!J8/25) -> 1.368 | N26: =Class_Compare!$H$38*(0.2*(Archon_Status!K8*35)) -> 64.4 | O26: =(Class_Compare!$I$38*1000+Archon_Status!K8)/1000 -> 1.1184 | P26: =(Class_Compare!$J$38*1000+Archon_Status!K8+Archon_Status!L8)/10 -> 103.34 | Q26: =((Archon_Status!M8*Class_Compare!$M$38)+5)/2 -> 16 | R26: =((Archon_Status!L8+Archon_Status!M8)*Class_Compare!$N$38)/5 -> 2.7 | S26: 200 | T26: 0 | U26: 1.3
A27: ArchM1 | B27: 25 | C27: =(B27^2*0.7)+Archon_Status!$J9*(Archon_Status!$J9*Class_Compare!$D$38)/2+100 -> 1230.6375 | D27: =(U27)*(Class_Compare!$E$38*(50+1.5*(0.8*Archon_Status!J9+0.2*Archon_Status!M9))) -> 80.24625 | E27: =Archon_Status!M9*(Archon_Status!M9*Class_Compare!$O$38)+100 -> 1253.2 | F27: 74.11933702 | G27: =Class_Compare!$B$38*(100+1.2*(0.6*Archon_Status!I9+0.2*Archon_Status!K9+0.2*Archon_Status!L9)) -> 48.784 | H27: =Class_Compare!$C$38*(100+1.2*(0.6*Archon_Status!I9+0.2*Archon_Status!K9+0.2*Archon_Status!L9)) -> 85.372 | I27: =(Class_Compare!$G$38*1000)-(Archon_Status!K9*5) -> 905 | J27: =(Class_Compare!$I$38*1000+Archon_Status!K9)/50 -> 22.38 | K27: =2+(Class_Compare!$L$38)+(Archon_Status!L9/100) -> 2.855 | L27: =(0.2*Archon_Status!I9+0.8*Archon_Status!M9)/250 -> 0.1144 | M27: =(Archon_Status!J9/25) -> 1.42 | N27: =Class_Compare!$H$38*(0.2*(Archon_Status!K9*35)) -> 66.5 | O27: =(Class_Compare!$I$38*1000+Archon_Status!K9)/1000 -> 1.119 | P27: =(Class_Compare!$J$38*1000+Archon_Status!K9+Archon_Status!L9)/10 -> 103.45 | Q27: =((Archon_Status!M9*Class_Compare!$M$38)+5)/2 -> 16.45 | R27: =((Archon_Status!L9+Archon_Status!M9)*Class_Compare!$N$38)/5 -> 2.79 | S27: 200 | T27: 0 | U27: 1.3125
A28: ArchM1 | B28: 26 | C28: =(B28^2*0.7)+Archon_Status!$J10*(Archon_Status!$J10*Class_Compare!$D$38)/2+100 -> 1318.032 | D28: =(U28)*(Class_Compare!$E$38*(50+1.5*(0.8*Archon_Status!J10+0.2*Archon_Status!M10))) -> 82.4892 | E28: =Archon_Status!M10*(Archon_Status!M10*Class_Compare!$O$38)+100 -> 1328.8 | F28: 74.7902439 | G28: =Class_Compare!$B$38*(100+1.2*(0.6*Archon_Status!I10+0.2*Archon_Status!K10+0.2*Archon_Status!L10)) -> 49.0624 | H28: =Class_Compare!$C$38*(100+1.2*(0.6*Archon_Status!I10+0.2*Archon_Status!K10+0.2*Archon_Status!L10)) -> 85.8592 | I28: =(Class_Compare!$G$38*1000)-(Archon_Status!K10*5) -> 902 | J28: =(Class_Compare!$I$38*1000+Archon_Status!K10)/50 -> 22.392 | K28: =2+(Class_Compare!$L$38)+(Archon_Status!L10/100) -> 2.86 | L28: =(0.2*Archon_Status!I10+0.8*Archon_Status!M10)/250 -> 0.11808 | M28: =(Archon_Status!J10/25) -> 1.472 | N28: =Class_Compare!$H$38*(0.2*(Archon_Status!K10*35)) -> 68.6 | O28: =(Class_Compare!$I$38*1000+Archon_Status!K10)/1000 -> 1.1196 | P28: =(Class_Compare!$J$38*1000+Archon_Status!K10+Archon_Status!L10)/10 -> 103.56 | Q28: =((Archon_Status!M10*Class_Compare!$M$38)+5)/2 -> 16.9 | R28: =((Archon_Status!L10+Archon_Status!M10)*Class_Compare!$N$38)/5 -> 2.88 | S28: 200 | T28: 0 | U28: 1.325
A29: ArchM1 | B29: 27 | C29: =(B29^2*0.7)+Archon_Status!$J11*(Archon_Status!$J11*Class_Compare!$D$38)/2+100 -> 1408.6855 | D29: =(U29)*(Class_Compare!$E$38*(50+1.5*(0.8*Archon_Status!J11+0.2*Archon_Status!M11))) -> 84.76005 | E29: =Archon_Status!M11*(Archon_Status!M11*Class_Compare!$O$38)+100 -> 1406.8 | F29: 75.46562848 | G29: =Class_Compare!$B$38*(100+1.2*(0.6*Archon_Status!I11+0.2*Archon_Status!K11+0.2*Archon_Status!L11)) -> 49.3408 | H29: =Class_Compare!$C$38*(100+1.2*(0.6*Archon_Status!I11+0.2*Archon_Status!K11+0.2*Archon_Status!L11)) -> 86.3464 | I29: =(Class_Compare!$G$38*1000)-(Archon_Status!K11*5) -> 899 | J29: =(Class_Compare!$I$38*1000+Archon_Status!K11)/50 -> 22.404 | K29: =2+(Class_Compare!$L$38)+(Archon_Status!L11/100) -> 2.865 | L29: =(0.2*Archon_Status!I11+0.8*Archon_Status!M11)/250 -> 0.12176 | M29: =(Archon_Status!J11/25) -> 1.524 | N29: =Class_Compare!$H$38*(0.2*(Archon_Status!K11*35)) -> 70.7 | O29: =(Class_Compare!$I$38*1000+Archon_Status!K11)/1000 -> 1.1202 | P29: =(Class_Compare!$J$38*1000+Archon_Status!K11+Archon_Status!L11)/10 -> 103.67 | Q29: =((Archon_Status!M11*Class_Compare!$M$38)+5)/2 -> 17.35 | R29: =((Archon_Status!L11+Archon_Status!M11)*Class_Compare!$N$38)/5 -> 2.97 | S29: 200 | T29: 0 | U29: 1.3375
A30: ArchM1 | B30: 28 | C30: =(B30^2*0.7)+Archon_Status!$J12*(Archon_Status!$J12*Class_Compare!$D$38)/2+100 -> 1502.598 | D30: =(U30)*(Class_Compare!$E$38*(50+1.5*(0.8*Archon_Status!J12+0.2*Archon_Status!M12))) -> 87.0588 | E30: =Archon_Status!M12*(Archon_Status!M12*Class_Compare!$O$38)+100 -> 1487.2 | F30: 76.14553571 | G30: =Class_Compare!$B$38*(100+1.2*(0.6*Archon_Status!I12+0.2*Archon_Status!K12+0.2*Archon_Status!L12)) -> 49.6192 | H30: =Class_Compare!$C$38*(100+1.2*(0.6*Archon_Status!I12+0.2*Archon_Status!K12+0.2*Archon_Status!L12)) -> 86.8336 | I30: =(Class_Compare!$G$38*1000)-(Archon_Status!K12*5) -> 896 | J30: =(Class_Compare!$I$38*1000+Archon_Status!K12)/50 -> 22.416 | K30: =2+(Class_Compare!$L$38)+(Archon_Status!L12/100) -> 2.87 | L30: =(0.2*Archon_Status!I12+0.8*Archon_Status!M12)/250 -> 0.12544 | M30: =(Archon_Status!J12/25) -> 1.576 | N30: =Class_Compare!$H$38*(0.2*(Archon_Status!K12*35)) -> 72.8 | O30: =(Class_Compare!$I$38*1000+Archon_Status!K12)/1000 -> 1.1208 | P30: =(Class_Compare!$J$38*1000+Archon_Status!K12+Archon_Status!L12)/10 -> 103.78 | Q30: =((Archon_Status!M12*Class_Compare!$M$38)+5)/2 -> 17.8 | R30: =((Archon_Status!L12+Archon_Status!M12)*Class_Compare!$N$38)/5 -> 3.06 | S30: 200 | T30: 0 | U30: 1.35
A31: ArchM1 | B31: 29 | C31: =(B31^2*0.7)+Archon_Status!$J13*(Archon_Status!$J13*Class_Compare!$D$38)/2+100 -> 1599.7695 | D31: =(U31)*(Class_Compare!$E$38*(50+1.5*(0.8*Archon_Status!J13+0.2*Archon_Status!M13))) -> 89.38545 | E31: =Archon_Status!M13*(Archon_Status!M13*Class_Compare!$O$38)+100 -> 1570 | F31: 76.8300112 | G31: =Class_Compare!$B$38*(100+1.2*(0.6*Archon_Status!I13+0.2*Archon_Status!K13+0.2*Archon_Status!L13)) -> 49.8976 | H31: =Class_Compare!$C$38*(100+1.2*(0.6*Archon_Status!I13+0.2*Archon_Status!K13+0.2*Archon_Status!L13)) -> 87.3208 | I31: =(Class_Compare!$G$38*1000)-(Archon_Status!K13*5) -> 893 | J31: =(Class_Compare!$I$38*1000+Archon_Status!K13)/50 -> 22.428 | K31: =2+(Class_Compare!$L$38)+(Archon_Status!L13/100) -> 2.875 | L31: =(0.2*Archon_Status!I13+0.8*Archon_Status!M13)/250 -> 0.12912 | M31: =(Archon_Status!J13/25) -> 1.628 | N31: =Class_Compare!$H$38*(0.2*(Archon_Status!K13*35)) -> 74.9 | O31: =(Class_Compare!$I$38*1000+Archon_Status!K13)/1000 -> 1.1214 | P31: =(Class_Compare!$J$38*1000+Archon_Status!K13+Archon_Status!L13)/10 -> 103.89 | Q31: =((Archon_Status!M13*Class_Compare!$M$38)+5)/2 -> 18.25 | R31: =((Archon_Status!L13+Archon_Status!M13)*Class_Compare!$N$38)/5 -> 3.15 | S31: 200 | T31: 0 | U31: 1.3625
A32: ArchM1 | B32: 30 | C32: =(B32^2*0.7)+Archon_Status!$J14*(Archon_Status!$J14*Class_Compare!$D$38)/2+100 -> 1700.2 | D32: =(U32)*(Class_Compare!$E$38*(50+1.5*(0.8*Archon_Status!J14+0.2*Archon_Status!M14))) -> 91.74 | E32: =Archon_Status!M14*(Archon_Status!M14*Class_Compare!$O$38)+100 -> 1655.2 | F32: 77.51910112 | G32: =Class_Compare!$B$38*(100+1.2*(0.6*Archon_Status!I14+0.2*Archon_Status!K14+0.2*Archon_Status!L14)) -> 50.176 | H32: =Class_Compare!$C$38*(100+1.2*(0.6*Archon_Status!I14+0.2*Archon_Status!K14+0.2*Archon_Status!L14)) -> 87.808 | I32: =(Class_Compare!$G$38*1000)-(Archon_Status!K14*5) -> 890 | J32: =(Class_Compare!$I$38*1000+Archon_Status!K14)/50 -> 22.44 | K32: =2+(Class_Compare!$L$38)+(Archon_Status!L14/100) -> 2.88 | L32: =(0.2*Archon_Status!I14+0.8*Archon_Status!M14)/250 -> 0.1328 | M32: =(Archon_Status!J14/25) -> 1.68 | N32: =Class_Compare!$H$38*(0.2*(Archon_Status!K14*35)) -> 77 | O32: =(Class_Compare!$I$38*1000+Archon_Status!K14)/1000 -> 1.122 | P32: =(Class_Compare!$J$38*1000+Archon_Status!K14+Archon_Status!L14)/10 -> 104 | Q32: =((Archon_Status!M14*Class_Compare!$M$38)+5)/2 -> 18.7 | R32: =((Archon_Status!L14+Archon_Status!M14)*Class_Compare!$N$38)/5 -> 3.24 | S32: 200 | T32: 0 | U32: 1.375
A33: ArchM1 | B33: 31 | C33: =(B33^2*0.7)+Archon_Status!$J15*(Archon_Status!$J15*Class_Compare!$D$38)/2+100 -> 1803.8895 | D33: =(U33)*(Class_Compare!$E$38*(50+1.5*(0.8*Archon_Status!J15+0.2*Archon_Status!M15))) -> 94.12245 | E33: =Archon_Status!M15*(Archon_Status!M15*Class_Compare!$O$38)+100 -> 1742.8 | F33: 78.21285231 | G33: =Class_Compare!$B$38*(100+1.2*(0.6*Archon_Status!I15+0.2*Archon_Status!K15+0.2*Archon_Status!L15)) -> 50.4544 | H33: =Class_Compare!$C$38*(100+1.2*(0.6*Archon_Status!I15+0.2*Archon_Status!K15+0.2*Archon_Status!L15)) -> 88.2952 | I33: =(Class_Compare!$G$38*1000)-(Archon_Status!K15*5) -> 887 | J33: =(Class_Compare!$I$38*1000+Archon_Status!K15)/50 -> 22.452 | K33: =2+(Class_Compare!$L$38)+(Archon_Status!L15/100) -> 2.885 | L33: =(0.2*Archon_Status!I15+0.8*Archon_Status!M15)/250 -> 0.13648 | M33: =(Archon_Status!J15/25) -> 1.732 | N33: =Class_Compare!$H$38*(0.2*(Archon_Status!K15*35)) -> 79.1 | O33: =(Class_Compare!$I$38*1000+Archon_Status!K15)/1000 -> 1.1226 | P33: =(Class_Compare!$J$38*1000+Archon_Status!K15+Archon_Status!L15)/10 -> 104.11 | Q33: =((Archon_Status!M15*Class_Compare!$M$38)+5)/2 -> 19.15 | R33: =((Archon_Status!L15+Archon_Status!M15)*Class_Compare!$N$38)/5 -> 3.33 | S33: 200 | T33: 0 | U33: 1.3875
A34: ArchM1 | B34: 32 | C34: =(B34^2*0.7)+Archon_Status!$J16*(Archon_Status!$J16*Class_Compare!$D$38)/2+100 -> 1910.838 | D34: =(U34)*(Class_Compare!$E$38*(50+1.5*(0.8*Archon_Status!J16+0.2*Archon_Status!M16))) -> 96.5328 | E34: =Archon_Status!M16*(Archon_Status!M16*Class_Compare!$O$38)+100 -> 1832.8 | F34: 78.91131222 | G34: =Class_Compare!$B$38*(100+1.2*(0.6*Archon_Status!I16+0.2*Archon_Status!K16+0.2*Archon_Status!L16)) -> 50.7328 | H34: =Class_Compare!$C$38*(100+1.2*(0.6*Archon_Status!I16+0.2*Archon_Status!K16+0.2*Archon_Status!L16)) -> 88.7824 | I34: =(Class_Compare!$G$38*1000)-(Archon_Status!K16*5) -> 884 | J34: =(Class_Compare!$I$38*1000+Archon_Status!K16)/50 -> 22.464 | K34: =2+(Class_Compare!$L$38)+(Archon_Status!L16/100) -> 2.89 | L34: =(0.2*Archon_Status!I16+0.8*Archon_Status!M16)/250 -> 0.14016 | M34: =(Archon_Status!J16/25) -> 1.784 | N34: =Class_Compare!$H$38*(0.2*(Archon_Status!K16*35)) -> 81.2 | O34: =(Class_Compare!$I$38*1000+Archon_Status!K16)/1000 -> 1.1232 | P34: =(Class_Compare!$J$38*1000+Archon_Status!K16+Archon_Status!L16)/10 -> 104.22 | Q34: =((Archon_Status!M16*Class_Compare!$M$38)+5)/2 -> 19.6 | R34: =((Archon_Status!L16+Archon_Status!M16)*Class_Compare!$N$38)/5 -> 3.42 | S34: 200 | T34: 0 | U34: 1.4
A35: ArchM1 | B35: 33 | C35: =(B35^2*0.7)+Archon_Status!$J17*(Archon_Status!$J17*Class_Compare!$D$38)/2+100 -> 2021.0455 | D35: =(U35)*(Class_Compare!$E$38*(50+1.5*(0.8*Archon_Status!J17+0.2*Archon_Status!M17))) -> 98.97105 | E35: =Archon_Status!M17*(Archon_Status!M17*Class_Compare!$O$38)+100 -> 1925.2 | F35: 79.61452894 | G35: =Class_Compare!$B$38*(100+1.2*(0.6*Archon_Status!I17+0.2*Archon_Status!K17+0.2*Archon_Status!L17)) -> 51.0112 | H35: =Class_Compare!$C$38*(100+1.2*(0.6*Archon_Status!I17+0.2*Archon_Status!K17+0.2*Archon_Status!L17)) -> 89.2696 | I35: =(Class_Compare!$G$38*1000)-(Archon_Status!K17*5) -> 881 | J35: =(Class_Compare!$I$38*1000+Archon_Status!K17)/50 -> 22.476 | K35: =2+(Class_Compare!$L$38)+(Archon_Status!L17/100) -> 2.895 | L35: =(0.2*Archon_Status!I17+0.8*Archon_Status!M17)/250 -> 0.14384 | M35: =(Archon_Status!J17/25) -> 1.836 | N35: =Class_Compare!$H$38*(0.2*(Archon_Status!K17*35)) -> 83.3 | O35: =(Class_Compare!$I$38*1000+Archon_Status!K17)/1000 -> 1.1238 | P35: =(Class_Compare!$J$38*1000+Archon_Status!K17+Archon_Status!L17)/10 -> 104.33 | Q35: =((Archon_Status!M17*Class_Compare!$M$38)+5)/2 -> 20.05 | R35: =((Archon_Status!L17+Archon_Status!M17)*Class_Compare!$N$38)/5 -> 3.51 | S35: 200 | T35: 0 | U35: 1.4125
A36: ArchM1 | B36: 34 | C36: =(B36^2*0.7)+Archon_Status!$J18*(Archon_Status!$J18*Class_Compare!$D$38)/2+100 -> 2134.512 | D36: =(U36)*(Class_Compare!$E$38*(50+1.5*(0.8*Archon_Status!J18+0.2*Archon_Status!M18))) -> 101.4372 | E36: =Archon_Status!M18*(Archon_Status!M18*Class_Compare!$O$38)+100 -> 2020 | F36: 80.32255125 | G36: =Class_Compare!$B$38*(100+1.2*(0.6*Archon_Status!I18+0.2*Archon_Status!K18+0.2*Archon_Status!L18)) -> 51.2896 | H36: =Class_Compare!$C$38*(100+1.2*(0.6*Archon_Status!I18+0.2*Archon_Status!K18+0.2*Archon_Status!L18)) -> 89.7568 | I36: =(Class_Compare!$G$38*1000)-(Archon_Status!K18*5) -> 878 | J36: =(Class_Compare!$I$38*1000+Archon_Status!K18)/50 -> 22.488 | K36: =2+(Class_Compare!$L$38)+(Archon_Status!L18/100) -> 2.9 | L36: =(0.2*Archon_Status!I18+0.8*Archon_Status!M18)/250 -> 0.14752 | M36: =(Archon_Status!J18/25) -> 1.888 | N36: =Class_Compare!$H$38*(0.2*(Archon_Status!K18*35)) -> 85.4 | O36: =(Class_Compare!$I$38*1000+Archon_Status!K18)/1000 -> 1.1244 | P36: =(Class_Compare!$J$38*1000+Archon_Status!K18+Archon_Status!L18)/10 -> 104.44 | Q36: =((Archon_Status!M18*Class_Compare!$M$38)+5)/2 -> 20.5 | R36: =((Archon_Status!L18+Archon_Status!M18)*Class_Compare!$N$38)/5 -> 3.6 | S36: 200 | T36: 0 | U36: 1.425
A37: ArchM1 | B37: 35 | C37: =(B37^2*0.7)+Archon_Status!$J19*(Archon_Status!$J19*Class_Compare!$D$38)/2+100 -> 2251.2375 | D37: =(U37)*(Class_Compare!$E$38*(50+1.5*(0.8*Archon_Status!J19+0.2*Archon_Status!M19))) -> 103.93125 | E37: =Archon_Status!M19*(Archon_Status!M19*Class_Compare!$O$38)+100 -> 2117.2 | F37: 81.03542857 | G37: =Class_Compare!$B$38*(100+1.2*(0.6*Archon_Status!I19+0.2*Archon_Status!K19+0.2*Archon_Status!L19)) -> 51.568 | H37: =Class_Compare!$C$38*(100+1.2*(0.6*Archon_Status!I19+0.2*Archon_Status!K19+0.2*Archon_Status!L19)) -> 90.244 | I37: =(Class_Compare!$G$38*1000)-(Archon_Status!K19*5) -> 875 | J37: =(Class_Compare!$I$38*1000+Archon_Status!K19)/50 -> 22.5 | K37: =2+(Class_Compare!$L$38)+(Archon_Status!L19/100) -> 2.905 | L37: =(0.2*Archon_Status!I19+0.8*Archon_Status!M19)/250 -> 0.1512 | M37: =(Archon_Status!J19/25) -> 1.94 | N37: =Class_Compare!$H$38*(0.2*(Archon_Status!K19*35)) -> 87.5 | O37: =(Class_Compare!$I$38*1000+Archon_Status!K19)/1000 -> 1.125 | P37: =(Class_Compare!$J$38*1000+Archon_Status!K19+Archon_Status!L19)/10 -> 104.55 | Q37: =((Archon_Status!M19*Class_Compare!$M$38)+5)/2 -> 20.95 | R37: =((Archon_Status!L19+Archon_Status!M19)*Class_Compare!$N$38)/5 -> 3.69 | S37: 200 | T37: 0 | U37: 1.4375
A38: ArchM1 | B38: 36 | C38: =(B38^2*0.7)+Archon_Status!$J20*(Archon_Status!$J20*Class_Compare!$D$38)/2+100 -> 2371.222 | D38: =(U38)*(Class_Compare!$E$38*(50+1.5*(0.8*Archon_Status!J20+0.2*Archon_Status!M20))) -> 106.4532 | E38: =Archon_Status!M20*(Archon_Status!M20*Class_Compare!$O$38)+100 -> 2216.8 | F38: 81.75321101 | G38: =Class_Compare!$B$38*(100+1.2*(0.6*Archon_Status!I20+0.2*Archon_Status!K20+0.2*Archon_Status!L20)) -> 51.8464 | H38: =Class_Compare!$C$38*(100+1.2*(0.6*Archon_Status!I20+0.2*Archon_Status!K20+0.2*Archon_Status!L20)) -> 90.7312 | I38: =(Class_Compare!$G$38*1000)-(Archon_Status!K20*5) -> 872 | J38: =(Class_Compare!$I$38*1000+Archon_Status!K20)/50 -> 22.512 | K38: =2+(Class_Compare!$L$38)+(Archon_Status!L20/100) -> 2.91 | L38: =(0.2*Archon_Status!I20+0.8*Archon_Status!M20)/250 -> 0.15488 | M38: =(Archon_Status!J20/25) -> 1.992 | N38: =Class_Compare!$H$38*(0.2*(Archon_Status!K20*35)) -> 89.6 | O38: =(Class_Compare!$I$38*1000+Archon_Status!K20)/1000 -> 1.1256 | P38: =(Class_Compare!$J$38*1000+Archon_Status!K20+Archon_Status!L20)/10 -> 104.66 | Q38: =((Archon_Status!M20*Class_Compare!$M$38)+5)/2 -> 21.4 | R38: =((Archon_Status!L20+Archon_Status!M20)*Class_Compare!$N$38)/5 -> 3.78 | S38: 200 | T38: 0 | U38: 1.45
A39: ArchM1 | B39: 37 | C39: =(B39^2*0.7)+Archon_Status!$J21*(Archon_Status!$J21*Class_Compare!$D$38)/2+100 -> 2494.4655 | D39: =(U39)*(Class_Compare!$E$38*(50+1.5*(0.8*Archon_Status!J21+0.2*Archon_Status!M21))) -> 109.00305 | E39: =Archon_Status!M21*(Archon_Status!M21*Class_Compare!$O$38)+100 -> 2318.8 | F39: 82.47594937 | G39: =Class_Compare!$B$38*(100+1.2*(0.6*Archon_Status!I21+0.2*Archon_Status!K21+0.2*Archon_Status!L21)) -> 52.1248 | H39: =Class_Compare!$C$38*(100+1.2*(0.6*Archon_Status!I21+0.2*Archon_Status!K21+0.2*Archon_Status!L21)) -> 91.2184 | I39: =(Class_Compare!$G$38*1000)-(Archon_Status!K21*5) -> 869 | J39: =(Class_Compare!$I$38*1000+Archon_Status!K21)/50 -> 22.524 | K39: =2+(Class_Compare!$L$38)+(Archon_Status!L21/100) -> 2.915 | L39: =(0.2*Archon_Status!I21+0.8*Archon_Status!M21)/250 -> 0.15856 | M39: =(Archon_Status!J21/25) -> 2.044 | N39: =Class_Compare!$H$38*(0.2*(Archon_Status!K21*35)) -> 91.7 | O39: =(Class_Compare!$I$38*1000+Archon_Status!K21)/1000 -> 1.1262 | P39: =(Class_Compare!$J$38*1000+Archon_Status!K21+Archon_Status!L21)/10 -> 104.77 | Q39: =((Archon_Status!M21*Class_Compare!$M$38)+5)/2 -> 21.85 | R39: =((Archon_Status!L21+Archon_Status!M21)*Class_Compare!$N$38)/5 -> 3.87 | S39: 200 | T39: 0 | U39: 1.4625
A40: ArchM1 | B40: 38 | C40: =(B40^2*0.7)+Archon_Status!$J22*(Archon_Status!$J22*Class_Compare!$D$38)/2+100 -> 2620.968 | D40: =(U40)*(Class_Compare!$E$38*(50+1.5*(0.8*Archon_Status!J22+0.2*Archon_Status!M22))) -> 111.5808 | E40: =Archon_Status!M22*(Archon_Status!M22*Class_Compare!$O$38)+100 -> 2423.2 | F40: 83.20369515 | G40: =Class_Compare!$B$38*(100+1.2*(0.6*Archon_Status!I22+0.2*Archon_Status!K22+0.2*Archon_Status!L22)) -> 52.4032 | H40: =Class_Compare!$C$38*(100+1.2*(0.6*Archon_Status!I22+0.2*Archon_Status!K22+0.2*Archon_Status!L22)) -> 91.7056 | I40: =(Class_Compare!$G$38*1000)-(Archon_Status!K22*5) -> 866 | J40: =(Class_Compare!$I$38*1000+Archon_Status!K22)/50 -> 22.536 | K40: =2+(Class_Compare!$L$38)+(Archon_Status!L22/100) -> 2.92 | L40: =(0.2*Archon_Status!I22+0.8*Archon_Status!M22)/250 -> 0.16224 | M40: =(Archon_Status!J22/25) -> 2.096 | N40: =Class_Compare!$H$38*(0.2*(Archon_Status!K22*35)) -> 93.8 | O40: =(Class_Compare!$I$38*1000+Archon_Status!K22)/1000 -> 1.1268 | P40: =(Class_Compare!$J$38*1000+Archon_Status!K22+Archon_Status!L22)/10 -> 104.88 | Q40: =((Archon_Status!M22*Class_Compare!$M$38)+5)/2 -> 22.3 | R40: =((Archon_Status!L22+Archon_Status!M22)*Class_Compare!$N$38)/5 -> 3.96 | S40: 200 | T40: 0 | U40: 1.475
A41: ArchM1 | B41: 39 | C41: =(B41^2*0.7)+Archon_Status!$J23*(Archon_Status!$J23*Class_Compare!$D$38)/2+100 -> 2750.7295 | D41: =(U41)*(Class_Compare!$E$38*(50+1.5*(0.8*Archon_Status!J23+0.2*Archon_Status!M23))) -> 114.18645 | E41: =Archon_Status!M23*(Archon_Status!M23*Class_Compare!$O$38)+100 -> 2530 | F41: 83.93650058 | G41: =Class_Compare!$B$38*(100+1.2*(0.6*Archon_Status!I23+0.2*Archon_Status!K23+0.2*Archon_Status!L23)) -> 52.6816 | H41: =Class_Compare!$C$38*(100+1.2*(0.6*Archon_Status!I23+0.2*Archon_Status!K23+0.2*Archon_Status!L23)) -> 92.1928 | I41: =(Class_Compare!$G$38*1000)-(Archon_Status!K23*5) -> 863 | J41: =(Class_Compare!$I$38*1000+Archon_Status!K23)/50 -> 22.548 | K41: =2+(Class_Compare!$L$38)+(Archon_Status!L23/100) -> 2.925 | L41: =(0.2*Archon_Status!I23+0.8*Archon_Status!M23)/250 -> 0.16592 | M41: =(Archon_Status!J23/25) -> 2.148 | N41: =Class_Compare!$H$38*(0.2*(Archon_Status!K23*35)) -> 95.9 | O41: =(Class_Compare!$I$38*1000+Archon_Status!K23)/1000 -> 1.1274 | P41: =(Class_Compare!$J$38*1000+Archon_Status!K23+Archon_Status!L23)/10 -> 104.99 | Q41: =((Archon_Status!M23*Class_Compare!$M$38)+5)/2 -> 22.75 | R41: =((Archon_Status!L23+Archon_Status!M23)*Class_Compare!$N$38)/5 -> 4.05 | S41: 200 | T41: 0 | U41: 1.4875
A42: ArchM1 | B42: 40 | C42: =(B42^2*0.7)+Archon_Status!$J24*(Archon_Status!$J24*Class_Compare!$D$38)/2+100 -> 2883.75 | D42: =(U42)*(Class_Compare!$E$38*(50+1.5*(0.8*Archon_Status!J24+0.2*Archon_Status!M24))) -> 116.82 | E42: =Archon_Status!M24*(Archon_Status!M24*Class_Compare!$O$38)+100 -> 2639.2 | F42: 84.6744186 | G42: =Class_Compare!$B$38*(100+1.2*(0.6*Archon_Status!I24+0.2*Archon_Status!K24+0.2*Archon_Status!L24)) -> 52.96 | H42: =Class_Compare!$C$38*(100+1.2*(0.6*Archon_Status!I24+0.2*Archon_Status!K24+0.2*Archon_Status!L24)) -> 92.68 | I42: =(Class_Compare!$G$38*1000)-(Archon_Status!K24*5) -> 860 | J42: =(Class_Compare!$I$38*1000+Archon_Status!K24)/50 -> 22.56 | K42: =2+(Class_Compare!$L$38)+(Archon_Status!L24/100) -> 2.93 | L42: =(0.2*Archon_Status!I24+0.8*Archon_Status!M24)/250 -> 0.1696 | M42: =(Archon_Status!J24/25) -> 2.2 | N42: =Class_Compare!$H$38*(0.2*(Archon_Status!K24*35)) -> 98 | O42: =(Class_Compare!$I$38*1000+Archon_Status!K24)/1000 -> 1.128 | P42: =(Class_Compare!$J$38*1000+Archon_Status!K24+Archon_Status!L24)/10 -> 105.1 | Q42: =((Archon_Status!M24*Class_Compare!$M$38)+5)/2 -> 23.2 | R42: =((Archon_Status!L24+Archon_Status!M24)*Class_Compare!$N$38)/5 -> 4.14 | S42: 200 | T42: 0 | U42: 1.5
A43: ArchM1 | B43: 41 | C43: =(B43^2*0.7)+Archon_Status!$J25*(Archon_Status!$J25*Class_Compare!$D$38)/2+100 -> 3020.0295 | D43: =(U43)*(Class_Compare!$E$38*(50+1.5*(0.8*Archon_Status!J25+0.2*Archon_Status!M25))) -> 119.48145 | E43: =Archon_Status!M25*(Archon_Status!M25*Class_Compare!$O$38)+100 -> 2750.8 | F43: 85.41750292 | G43: =Class_Compare!$B$38*(100+1.2*(0.6*Archon_Status!I25+0.2*Archon_Status!K25+0.2*Archon_Status!L25)) -> 53.2384 | H43: =Class_Compare!$C$38*(100+1.2*(0.6*Archon_Status!I25+0.2*Archon_Status!K25+0.2*Archon_Status!L25)) -> 93.1672 | I43: =(Class_Compare!$G$38*1000)-(Archon_Status!K25*5) -> 857 | J43: =(Class_Compare!$I$38*1000+Archon_Status!K25)/50 -> 22.572 | K43: =2+(Class_Compare!$L$38)+(Archon_Status!L25/100) -> 2.935 | L43: =(0.2*Archon_Status!I25+0.8*Archon_Status!M25)/250 -> 0.17328 | M43: =(Archon_Status!J25/25) -> 2.252 | N43: =Class_Compare!$H$38*(0.2*(Archon_Status!K25*35)) -> 100.1 | O43: =(Class_Compare!$I$38*1000+Archon_Status!K25)/1000 -> 1.1286 | P43: =(Class_Compare!$J$38*1000+Archon_Status!K25+Archon_Status!L25)/10 -> 105.21 | Q43: =((Archon_Status!M25*Class_Compare!$M$38)+5)/2 -> 23.65 | R43: =((Archon_Status!L25+Archon_Status!M25)*Class_Compare!$N$38)/5 -> 4.23 | S43: 200 | T43: 0 | U43: 1.5125
A44: ArchM1 | B44: 42 | C44: =(B44^2*0.7)+Archon_Status!$J26*(Archon_Status!$J26*Class_Compare!$D$38)/2+100 -> 3159.568 | D44: =(U44)*(Class_Compare!$E$38*(50+1.5*(0.8*Archon_Status!J26+0.2*Archon_Status!M26))) -> 122.1708 | E44: =Archon_Status!M26*(Archon_Status!M26*Class_Compare!$O$38)+100 -> 2864.8 | F44: 86.16580796 | G44: =Class_Compare!$B$38*(100+1.2*(0.6*Archon_Status!I26+0.2*Archon_Status!K26+0.2*Archon_Status!L26)) -> 53.5168 | H44: =Class_Compare!$C$38*(100+1.2*(0.6*Archon_Status!I26+0.2*Archon_Status!K26+0.2*Archon_Status!L26)) -> 93.6544 | I44: =(Class_Compare!$G$38*1000)-(Archon_Status!K26*5) -> 854 | J44: =(Class_Compare!$I$38*1000+Archon_Status!K26)/50 -> 22.584 | K44: =2+(Class_Compare!$L$38)+(Archon_Status!L26/100) -> 2.94 | L44: =(0.2*Archon_Status!I26+0.8*Archon_Status!M26)/250 -> 0.17696 | M44: =(Archon_Status!J26/25) -> 2.304 | N44: =Class_Compare!$H$38*(0.2*(Archon_Status!K26*35)) -> 102.2 | O44: =(Class_Compare!$I$38*1000+Archon_Status!K26)/1000 -> 1.1292 | P44: =(Class_Compare!$J$38*1000+Archon_Status!K26+Archon_Status!L26)/10 -> 105.32 | Q44: =((Archon_Status!M26*Class_Compare!$M$38)+5)/2 -> 24.1 | R44: =((Archon_Status!L26+Archon_Status!M26)*Class_Compare!$N$38)/5 -> 4.32 | S44: 200 | T44: 0 | U44: 1.525
A45: ArchM1 | B45: 43 | C45: =(B45^2*0.7)+Archon_Status!$J27*(Archon_Status!$J27*Class_Compare!$D$38)/2+100 -> 3302.3655 | D45: =(U45)*(Class_Compare!$E$38*(50+1.5*(0.8*Archon_Status!J27+0.2*Archon_Status!M27))) -> 124.88805 | E45: =Archon_Status!M27*(Archon_Status!M27*Class_Compare!$O$38)+100 -> 2981.2 | F45: 86.91938895 | G45: =Class_Compare!$B$38*(100+1.2*(0.6*Archon_Status!I27+0.2*Archon_Status!K27+0.2*Archon_Status!L27)) -> 53.7952 | H45: =Class_Compare!$C$38*(100+1.2*(0.6*Archon_Status!I27+0.2*Archon_Status!K27+0.2*Archon_Status!L27)) -> 94.1416 | I45: =(Class_Compare!$G$38*1000)-(Archon_Status!K27*5) -> 851 | J45: =(Class_Compare!$I$38*1000+Archon_Status!K27)/50 -> 22.596 | K45: =2+(Class_Compare!$L$38)+(Archon_Status!L27/100) -> 2.945 | L45: =(0.2*Archon_Status!I27+0.8*Archon_Status!M27)/250 -> 0.18064 | M45: =(Archon_Status!J27/25) -> 2.356 | N45: =Class_Compare!$H$38*(0.2*(Archon_Status!K27*35)) -> 104.3 | O45: =(Class_Compare!$I$38*1000+Archon_Status!K27)/1000 -> 1.1298 | P45: =(Class_Compare!$J$38*1000+Archon_Status!K27+Archon_Status!L27)/10 -> 105.43 | Q45: =((Archon_Status!M27*Class_Compare!$M$38)+5)/2 -> 24.55 | R45: =((Archon_Status!L27+Archon_Status!M27)*Class_Compare!$N$38)/5 -> 4.41 | S45: 200 | T45: 0 | U45: 1.5375
A46: ArchM1 | B46: 44 | C46: =(B46^2*0.7)+Archon_Status!$J28*(Archon_Status!$J28*Class_Compare!$D$38)/2+100 -> 3448.422 | D46: =(U46)*(Class_Compare!$E$38*(50+1.5*(0.8*Archon_Status!J28+0.2*Archon_Status!M28))) -> 127.6332 | E46: =Archon_Status!M28*(Archon_Status!M28*Class_Compare!$O$38)+100 -> 3100 | F46: 87.67830189 | G46: =Class_Compare!$B$38*(100+1.2*(0.6*Archon_Status!I28+0.2*Archon_Status!K28+0.2*Archon_Status!L28)) -> 54.0736 | H46: =Class_Compare!$C$38*(100+1.2*(0.6*Archon_Status!I28+0.2*Archon_Status!K28+0.2*Archon_Status!L28)) -> 94.6288 | I46: =(Class_Compare!$G$38*1000)-(Archon_Status!K28*5) -> 848 | J46: =(Class_Compare!$I$38*1000+Archon_Status!K28)/50 -> 22.608 | K46: =2+(Class_Compare!$L$38)+(Archon_Status!L28/100) -> 2.95 | L46: =(0.2*Archon_Status!I28+0.8*Archon_Status!M28)/250 -> 0.18432 | M46: =(Archon_Status!J28/25) -> 2.408 | N46: =Class_Compare!$H$38*(0.2*(Archon_Status!K28*35)) -> 106.4 | O46: =(Class_Compare!$I$38*1000+Archon_Status!K28)/1000 -> 1.1304 | P46: =(Class_Compare!$J$38*1000+Archon_Status!K28+Archon_Status!L28)/10 -> 105.54 | Q46: =((Archon_Status!M28*Class_Compare!$M$38)+5)/2 -> 25 | R46: =((Archon_Status!L28+Archon_Status!M28)*Class_Compare!$N$38)/5 -> 4.5 | S46: 200 | T46: 0 | U46: 1.55
A47: ArchM1 | B47: 45 | C47: =(B47^2*0.7)+Archon_Status!$J29*(Archon_Status!$J29*Class_Compare!$D$38)/2+100 -> 3597.7375 | D47: =(U47)*(Class_Compare!$E$38*(50+1.5*(0.8*Archon_Status!J29+0.2*Archon_Status!M29))) -> 130.40625 | E47: =Archon_Status!M29*(Archon_Status!M29*Class_Compare!$O$38)+100 -> 3221.2 | F47: 88.44260355 | G47: =Class_Compare!$B$38*(100+1.2*(0.6*Archon_Status!I29+0.2*Archon_Status!K29+0.2*Archon_Status!L29)) -> 54.352 | H47: =Class_Compare!$C$38*(100+1.2*(0.6*Archon_Status!I29+0.2*Archon_Status!K29+0.2*Archon_Status!L29)) -> 95.116 | I47: =(Class_Compare!$G$38*1000)-(Archon_Status!K29*5) -> 845 | J47: =(Class_Compare!$I$38*1000+Archon_Status!K29)/50 -> 22.62 | K47: =2+(Class_Compare!$L$38)+(Archon_Status!L29/100) -> 2.955 | L47: =(0.2*Archon_Status!I29+0.8*Archon_Status!M29)/250 -> 0.188 | M47: =(Archon_Status!J29/25) -> 2.46 | N47: =Class_Compare!$H$38*(0.2*(Archon_Status!K29*35)) -> 108.5 | O47: =(Class_Compare!$I$38*1000+Archon_Status!K29)/1000 -> 1.131 | P47: =(Class_Compare!$J$38*1000+Archon_Status!K29+Archon_Status!L29)/10 -> 105.65 | Q47: =((Archon_Status!M29*Class_Compare!$M$38)+5)/2 -> 25.45 | R47: =((Archon_Status!L29+Archon_Status!M29)*Class_Compare!$N$38)/5 -> 4.59 | S47: 200 | T47: 0 | U47: 1.5625
A48: ArchM1 | B48: 46 | C48: =(B48^2*0.7)+Archon_Status!$J30*(Archon_Status!$J30*Class_Compare!$D$38)/2+100 -> 3750.312 | D48: =(U48)*(Class_Compare!$E$38*(50+1.5*(0.8*Archon_Status!J30+0.2*Archon_Status!M30))) -> 133.2072 | E48: =Archon_Status!M30*(Archon_Status!M30*Class_Compare!$O$38)+100 -> 3344.8 | F48: 89.21235154 | G48: =Class_Compare!$B$38*(100+1.2*(0.6*Archon_Status!I30+0.2*Archon_Status!K30+0.2*Archon_Status!L30)) -> 54.6304 | H48: =Class_Compare!$C$38*(100+1.2*(0.6*Archon_Status!I30+0.2*Archon_Status!K30+0.2*Archon_Status!L30)) -> 95.6032 | I48: =(Class_Compare!$G$38*1000)-(Archon_Status!K30*5) -> 842 | J48: =(Class_Compare!$I$38*1000+Archon_Status!K30)/50 -> 22.632 | K48: =2+(Class_Compare!$L$38)+(Archon_Status!L30/100) -> 2.96 | L48: =(0.2*Archon_Status!I30+0.8*Archon_Status!M30)/250 -> 0.19168 | M48: =(Archon_Status!J30/25) -> 2.512 | N48: =Class_Compare!$H$38*(0.2*(Archon_Status!K30*35)) -> 110.6 | O48: =(Class_Compare!$I$38*1000+Archon_Status!K30)/1000 -> 1.1316 | P48: =(Class_Compare!$J$38*1000+Archon_Status!K30+Archon_Status!L30)/10 -> 105.76 | Q48: =((Archon_Status!M30*Class_Compare!$M$38)+5)/2 -> 25.9 | R48: =((Archon_Status!L30+Archon_Status!M30)*Class_Compare!$N$38)/5 -> 4.68 | S48: 200 | T48: 0 | U48: 1.575
A49: ArchM1 | B49: 47 | C49: =(B49^2*0.7)+Archon_Status!$J31*(Archon_Status!$J31*Class_Compare!$D$38)/2+100 -> 3906.1455 | D49: =(U49)*(Class_Compare!$E$38*(50+1.5*(0.8*Archon_Status!J31+0.2*Archon_Status!M31))) -> 136.03605 | E49: =Archon_Status!M31*(Archon_Status!M31*Class_Compare!$O$38)+100 -> 3470.8 | F49: 89.98760429 | G49: =Class_Compare!$B$38*(100+1.2*(0.6*Archon_Status!I31+0.2*Archon_Status!K31+0.2*Archon_Status!L31)) -> 54.9088 | H49: =Class_Compare!$C$38*(100+1.2*(0.6*Archon_Status!I31+0.2*Archon_Status!K31+0.2*Archon_Status!L31)) -> 96.0904 | I49: =(Class_Compare!$G$38*1000)-(Archon_Status!K31*5) -> 839 | J49: =(Class_Compare!$I$38*1000+Archon_Status!K31)/50 -> 22.644 | K49: =2+(Class_Compare!$L$38)+(Archon_Status!L31/100) -> 2.965 | L49: =(0.2*Archon_Status!I31+0.8*Archon_Status!M31)/250 -> 0.19536 | M49: =(Archon_Status!J31/25) -> 2.564 | N49: =Class_Compare!$H$38*(0.2*(Archon_Status!K31*35)) -> 112.7 | O49: =(Class_Compare!$I$38*1000+Archon_Status!K31)/1000 -> 1.1322 | P49: =(Class_Compare!$J$38*1000+Archon_Status!K31+Archon_Status!L31)/10 -> 105.87 | Q49: =((Archon_Status!M31*Class_Compare!$M$38)+5)/2 -> 26.35 | R49: =((Archon_Status!L31+Archon_Status!M31)*Class_Compare!$N$38)/5 -> 4.77 | S49: 200 | T49: 0 | U49: 1.5875
A50: ArchM1 | B50: 48 | C50: =(B50^2*0.7)+Archon_Status!$J32*(Archon_Status!$J32*Class_Compare!$D$38)/2+100 -> 4065.238 | D50: =(U50)*(Class_Compare!$E$38*(50+1.5*(0.8*Archon_Status!J32+0.2*Archon_Status!M32))) -> 138.8928 | E50: =Archon_Status!M32*(Archon_Status!M32*Class_Compare!$O$38)+100 -> 3599.2 | F50: 90.76842105 | G50: =Class_Compare!$B$38*(100+1.2*(0.6*Archon_Status!I32+0.2*Archon_Status!K32+0.2*Archon_Status!L32)) -> 55.1872 | H50: =Class_Compare!$C$38*(100+1.2*(0.6*Archon_Status!I32+0.2*Archon_Status!K32+0.2*Archon_Status!L32)) -> 96.5776 | I50: =(Class_Compare!$G$38*1000)-(Archon_Status!K32*5) -> 836 | J50: =(Class_Compare!$I$38*1000+Archon_Status!K32)/50 -> 22.656 | K50: =2+(Class_Compare!$L$38)+(Archon_Status!L32/100) -> 2.97 | L50: =(0.2*Archon_Status!I32+0.8*Archon_Status!M32)/250 -> 0.19904 | M50: =(Archon_Status!J32/25) -> 2.616 | N50: =Class_Compare!$H$38*(0.2*(Archon_Status!K32*35)) -> 114.8 | O50: =(Class_Compare!$I$38*1000+Archon_Status!K32)/1000 -> 1.1328 | P50: =(Class_Compare!$J$38*1000+Archon_Status!K32+Archon_Status!L32)/10 -> 105.98 | Q50: =((Archon_Status!M32*Class_Compare!$M$38)+5)/2 -> 26.8 | R50: =((Archon_Status!L32+Archon_Status!M32)*Class_Compare!$N$38)/5 -> 4.86 | S50: 200 | T50: 0 | U50: 1.6
A51: ArchM1 | B51: 49 | C51: =(B51^2*0.7)+Archon_Status!$J33*(Archon_Status!$J33*Class_Compare!$D$38)/2+100 -> 4227.5895 | D51: =(U51)*(Class_Compare!$E$38*(50+1.5*(0.8*Archon_Status!J33+0.2*Archon_Status!M33))) -> 141.77745 | E51: =Archon_Status!M33*(Archon_Status!M33*Class_Compare!$O$38)+100 -> 3730 | F51: 91.55486194 | G51: =Class_Compare!$B$38*(100+1.2*(0.6*Archon_Status!I33+0.2*Archon_Status!K33+0.2*Archon_Status!L33)) -> 55.4656 | H51: =Class_Compare!$C$38*(100+1.2*(0.6*Archon_Status!I33+0.2*Archon_Status!K33+0.2*Archon_Status!L33)) -> 97.0648 | I51: =(Class_Compare!$G$38*1000)-(Archon_Status!K33*5) -> 833 | J51: =(Class_Compare!$I$38*1000+Archon_Status!K33)/50 -> 22.668 | K51: =2+(Class_Compare!$L$38)+(Archon_Status!L33/100) -> 2.975 | L51: =(0.2*Archon_Status!I33+0.8*Archon_Status!M33)/250 -> 0.20272 | M51: =(Archon_Status!J33/25) -> 2.668 | N51: =Class_Compare!$H$38*(0.2*(Archon_Status!K33*35)) -> 116.9 | O51: =(Class_Compare!$I$38*1000+Archon_Status!K33)/1000 -> 1.1334 | P51: =(Class_Compare!$J$38*1000+Archon_Status!K33+Archon_Status!L33)/10 -> 106.09 | Q51: =((Archon_Status!M33*Class_Compare!$M$38)+5)/2 -> 27.25 | R51: =((Archon_Status!L33+Archon_Status!M33)*Class_Compare!$N$38)/5 -> 4.95 | S51: 200 | T51: 0 | U51: 1.6125
A52: ArchM1 | B52: 50 | C52: =(B52^2*0.7)+Archon_Status!$J34*(Archon_Status!$J34*Class_Compare!$D$38)/2+100 -> 4393.2 | D52: =(U52)*(Class_Compare!$E$38*(50+1.5*(0.8*Archon_Status!J34+0.2*Archon_Status!M34))) -> 144.69 | E52: =Archon_Status!M34*(Archon_Status!M34*Class_Compare!$O$38)+100 -> 3863.2 | F52: 92.34698795 | G52: =Class_Compare!$B$38*(100+1.2*(0.6*Archon_Status!I34+0.2*Archon_Status!K34+0.2*Archon_Status!L34)) -> 55.744 | H52: =Class_Compare!$C$38*(100+1.2*(0.6*Archon_Status!I34+0.2*Archon_Status!K34+0.2*Archon_Status!L34)) -> 97.552 | I52: =(Class_Compare!$G$38*1000)-(Archon_Status!K34*5) -> 830 | J52: =(Class_Compare!$I$38*1000+Archon_Status!K34)/50 -> 22.68 | K52: =2+(Class_Compare!$L$38)+(Archon_Status!L34/100) -> 2.98 | L52: =(0.2*Archon_Status!I34+0.8*Archon_Status!M34)/250 -> 0.2064 | M52: =(Archon_Status!J34/25) -> 2.72 | N52: =Class_Compare!$H$38*(0.2*(Archon_Status!K34*35)) -> 119 | O52: =(Class_Compare!$I$38*1000+Archon_Status!K34)/1000 -> 1.134 | P52: =(Class_Compare!$J$38*1000+Archon_Status!K34+Archon_Status!L34)/10 -> 106.2 | Q52: =((Archon_Status!M34*Class_Compare!$M$38)+5)/2 -> 27.7 | R52: =((Archon_Status!L34+Archon_Status!M34)*Class_Compare!$N$38)/5 -> 5.04 | S52: 200 | T52: 0 | U52: 1.625
A53: 클래스 | B53: ArchM2
A54: ArchM2 | B54: 21 | C54: 913.6495 | D54: 71.55345 | E54: 974.8 | F54: 71.47960742 | G54: 47.6704 | H54: 83.4232 | I54: 917 | J54: 22.332 | K54: 2.835 | L54: 0.09968 | M54: 1.212 | N54: 58.1 | O54: 1.1166 | P54: 103.01 | Q54: 14.65 | R54: 2.43 | S54: 200 | T54: 0
A55: ArchM2 | B55: 22 | C55: 988.008 | D55: 73.6848 | E55: 1040.8 | F55: 72.13304158 | G55: 47.9488 | H55: 83.9104 | I55: 914 | J55: 22.344 | K55: 2.84 | L55: 0.10336 | M55: 1.264 | N55: 60.2 | O55: 1.1172 | P55: 103.12 | Q55: 15.1 | R55: 2.52 | S55: 200 | T55: 0
A56: ArchM2 | B56: 23 | C56: 1065.6255 | D56: 75.84405 | E56: 1109.2 | F56: 72.79077936 | G56: 48.2272 | H56: 84.3976 | I56: 911 | J56: 22.356 | K56: 2.845 | L56: 0.10704 | M56: 1.316 | N56: 62.3 | O56: 1.1178 | P56: 103.23 | Q56: 15.55 | R56: 2.61 | S56: 200 | T56: 0
A57: ArchM2 | B57: 24 | C57: 1146.502 | D57: 78.0312 | E57: 1180 | F57: 73.45286344 | G57: 48.5056 | H57: 84.8848 | I57: 908 | J57: 22.368 | K57: 2.85 | L57: 0.11072 | M57: 1.368 | N57: 64.4 | O57: 1.1184 | P57: 103.34 | Q57: 16 | R57: 2.7 | S57: 200 | T57: 0
A58: ArchM2 | B58: 25 | C58: 1230.6375 | D58: 80.24625 | E58: 1253.2 | F58: 74.11933702 | G58: 48.784 | H58: 85.372 | I58: 905 | J58: 22.38 | K58: 2.855 | L58: 0.1144 | M58: 1.42 | N58: 66.5 | O58: 1.119 | P58: 103.45 | Q58: 16.45 | R58: 2.79 | S58: 200 | T58: 0
A59: ArchM2 | B59: 26 | C59: 1318.032 | D59: 82.4892 | E59: 1328.8 | F59: 74.7902439 | G59: 49.0624 | H59: 85.8592 | I59: 902 | J59: 22.392 | K59: 2.86 | L59: 0.11808 | M59: 1.472 | N59: 68.6 | O59: 1.1196 | P59: 103.56 | Q59: 16.9 | R59: 2.88 | S59: 200 | T59: 0
A60: ArchM2 | B60: 27 | C60: 1408.6855 | D60: 84.76005 | E60: 1406.8 | F60: 75.46562848 | G60: 49.3408 | H60: 86.3464 | I60: 899 | J60: 22.404 | K60: 2.865 | L60: 0.12176 | M60: 1.524 | N60: 70.7 | O60: 1.1202 | P60: 103.67 | Q60: 17.35 | R60: 2.97 | S60: 200 | T60: 0
A61: ArchM2 | B61: 28 | C61: 1502.598 | D61: 87.0588 | E61: 1487.2 | F61: 76.14553571 | G61: 49.6192 | H61: 86.8336 | I61: 896 | J61: 22.416 | K61: 2.87 | L61: 0.12544 | M61: 1.576 | N61: 72.8 | O61: 1.1208 | P61: 103.78 | Q61: 17.8 | R61: 3.06 | S61: 200 | T61: 0
A62: ArchM2 | B62: 29 | C62: 1599.7695 | D62: 89.38545 | E62: 1570 | F62: 76.8300112 | G62: 49.8976 | H62: 87.3208 | I62: 893 | J62: 22.428 | K62: 2.875 | L62: 0.12912 | M62: 1.628 | N62: 74.9 | O62: 1.1214 | P62: 103.89 | Q62: 18.25 | R62: 3.15 | S62: 200 | T62: 0
A63: ArchM2 | B63: 30 | C63: 1700.2 | D63: 91.74 | E63: 1655.2 | F63: 77.51910112 | G63: 50.176 | H63: 87.808 | I63: 890 | J63: 22.44 | K63: 2.88 | L63: 0.1328 | M63: 1.68 | N63: 77 | O63: 1.122 | P63: 104 | Q63: 18.7 | R63: 3.24 | S63: 200 | T63: 0
A64: ArchM2 | B64: 31 | C64: 1803.8895 | D64: 94.12245 | E64: 1742.8 | F64: 78.21285231 | G64: 50.4544 | H64: 88.2952 | I64: 887 | J64: 22.452 | K64: 2.885 | L64: 0.13648 | M64: 1.732 | N64: 79.1 | O64: 1.1226 | P64: 104.11 | Q64: 19.15 | R64: 3.33 | S64: 200 | T64: 0
A65: ArchM2 | B65: 32 | C65: 1910.838 | D65: 96.5328 | E65: 1832.8 | F65: 78.91131222 | G65: 50.7328 | H65: 88.7824 | I65: 884 | J65: 22.464 | K65: 2.89 | L65: 0.14016 | M65: 1.784 | N65: 81.2 | O65: 1.1232 | P65: 104.22 | Q65: 19.6 | R65: 3.42 | S65: 200 | T65: 0
A66: ArchM2 | B66: 33 | C66: 2021.0455 | D66: 98.97105 | E66: 1925.2 | F66: 79.61452894 | G66: 51.0112 | H66: 89.2696 | I66: 881 | J66: 22.476 | K66: 2.895 | L66: 0.14384 | M66: 1.836 | N66: 83.3 | O66: 1.1238 | P66: 104.33 | Q66: 20.05 | R66: 3.51 | S66: 200 | T66: 0
A67: ArchM2 | B67: 34 | C67: 2134.512 | D67: 101.4372 | E67: 2020 | F67: 80.32255125 | G67: 51.2896 | H67: 89.7568 | I67: 878 | J67: 22.488 | K67: 2.9 | L67: 0.14752 | M67: 1.888 | N67: 85.4 | O67: 1.1244 | P67: 104.44 | Q67: 20.5 | R67: 3.6 | S67: 200 | T67: 0
A68: ArchM2 | B68: 35 | C68: 2251.2375 | D68: 103.93125 | E68: 2117.2 | F68: 81.03542857 | G68: 51.568 | H68: 90.244 | I68: 875 | J68: 22.5 | K68: 2.905 | L68: 0.1512 | M68: 1.94 | N68: 87.5 | O68: 1.125 | P68: 104.55 | Q68: 20.95 | R68: 3.69 | S68: 200 | T68: 0
A69: ArchM2 | B69: 36 | C69: 2371.222 | D69: 106.4532 | E69: 2216.8 | F69: 81.75321101 | G69: 51.8464 | H69: 90.7312 | I69: 872 | J69: 22.512 | K69: 2.91 | L69: 0.15488 | M69: 1.992 | N69: 89.6 | O69: 1.1256 | P69: 104.66 | Q69: 21.4 | R69: 3.78 | S69: 200 | T69: 0
A70: ArchM2 | B70: 37 | C70: 2494.4655 | D70: 109.00305 | E70: 2318.8 | F70: 82.47594937 | G70: 52.1248 | H70: 91.2184 | I70: 869 | J70: 22.524 | K70: 2.915 | L70: 0.15856 | M70: 2.044 | N70: 91.7 | O70: 1.1262 | P70: 104.77 | Q70: 21.85 | R70: 3.87 | S70: 200 | T70: 0
A71: ArchM2 | B71: 38 | C71: 2620.968 | D71: 111.5808 | E71: 2423.2 | F71: 83.20369515 | G71: 52.4032 | H71: 91.7056 | I71: 866 | J71: 22.536 | K71: 2.92 | L71: 0.16224 | M71: 2.096 | N71: 93.8 | O71: 1.1268 | P71: 104.88 | Q71: 22.3 | R71: 3.96 | S71: 200 | T71: 0
A72: ArchM2 | B72: 39 | C72: 2750.7295 | D72: 114.18645 | E72: 2530 | F72: 83.93650058 | G72: 52.6816 | H72: 92.1928 | I72: 863 | J72: 22.548 | K72: 2.925 | L72: 0.16592 | M72: 2.148 | N72: 95.9 | O72: 1.1274 | P72: 104.99 | Q72: 22.75 | R72: 4.05 | S72: 200 | T72: 0
A73: ArchM2 | B73: 40 | C73: 2883.75 | D73: 116.82 | E73: 2639.2 | F73: 84.6744186 | G73: 52.96 | H73: 92.68 | I73: 860 | J73: 22.56 | K73: 2.93 | L73: 0.1696 | M73: 2.2 | N73: 98 | O73: 1.128 | P73: 105.1 | Q73: 23.2 | R73: 4.14 | S73: 200 | T73: 0
A74: ArchM2 | B74: 41 | C74: 3020.0295 | D74: 119.48145 | E74: 2750.8 | F74: 85.41750292 | G74: 53.2384 | H74: 93.1672 | I74: 857 | J74: 22.572 | K74: 2.935 | L74: 0.17328 | M74: 2.252 | N74: 100.1 | O74: 1.1286 | P74: 105.21 | Q74: 23.65 | R74: 4.23 | S74: 200 | T74: 0
A75: ArchM2 | B75: 42 | C75: 3159.568 | D75: 122.1708 | E75: 2864.8 | F75: 86.16580796 | G75: 53.5168 | H75: 93.6544 | I75: 854 | J75: 22.584 | K75: 2.94 | L75: 0.17696 | M75: 2.304 | N75: 102.2 | O75: 1.1292 | P75: 105.32 | Q75: 24.1 | R75: 4.32 | S75: 200 | T75: 0
A76: ArchM2 | B76: 43 | C76: 3302.3655 | D76: 124.88805 | E76: 2981.2 | F76: 86.91938895 | G76: 53.7952 | H76: 94.1416 | I76: 851 | J76: 22.596 | K76: 2.945 | L76: 0.18064 | M76: 2.356 | N76: 104.3 | O76: 1.1298 | P76: 105.43 | Q76: 24.55 | R76: 4.41 | S76: 200 | T76: 0
A77: ArchM2 | B77: 44 | C77: 3448.422 | D77: 127.6332 | E77: 3100 | F77: 87.67830189 | G77: 54.0736 | H77: 94.6288 | I77: 848 | J77: 22.608 | K77: 2.95 | L77: 0.18432 | M77: 2.408 | N77: 106.4 | O77: 1.1304 | P77: 105.54 | Q77: 25 | R77: 4.5 | S77: 200 | T77: 0
A78: ArchM2 | B78: 45 | C78: 3597.7375 | D78: 130.40625 | E78: 3221.2 | F78: 88.44260355 | G78: 54.352 | H78: 95.116 | I78: 845 | J78: 22.62 | K78: 2.955 | L78: 0.188 | M78: 2.46 | N78: 108.5 | O78: 1.131 | P78: 105.65 | Q78: 25.45 | R78: 4.59 | S78: 200 | T78: 0
A79: ArchM2 | B79: 46 | C79: 3750.312 | D79: 133.2072 | E79: 3344.8 | F79: 89.21235154 | G79: 54.6304 | H79: 95.6032 | I79: 842 | J79: 22.632 | K79: 2.96 | L79: 0.19168 | M79: 2.512 | N79: 110.6 | O79: 1.1316 | P79: 105.76 | Q79: 25.9 | R79: 4.68 | S79: 200 | T79: 0
A80: ArchM2 | B80: 47 | C80: 3906.1455 | D80: 136.03605 | E80: 3470.8 | F80: 89.98760429 | G80: 54.9088 | H80: 96.0904 | I80: 839 | J80: 22.644 | K80: 2.965 | L80: 0.19536 | M80: 2.564 | N80: 112.7 | O80: 1.1322 | P80: 105.87 | Q80: 26.35 | R80: 4.77 | S80: 200 | T80: 0
A81: ArchM2 | B81: 48 | C81: 4065.238 | D81: 138.8928 | E81: 3599.2 | F81: 90.76842105 | G81: 55.1872 | H81: 96.5776 | I81: 836 | J81: 22.656 | K81: 2.97 | L81: 0.19904 | M81: 2.616 | N81: 114.8 | O81: 1.1328 | P81: 105.98 | Q81: 26.8 | R81: 4.86 | S81: 200 | T81: 0
A82: ArchM2 | B82: 49 | C82: 4227.5895 | D82: 141.77745 | E82: 3730 | F82: 91.55486194 | G82: 55.4656 | H82: 97.0648 | I82: 833 | J82: 22.668 | K82: 2.975 | L82: 0.20272 | M82: 2.668 | N82: 116.9 | O82: 1.1334 | P82: 106.09 | Q82: 27.25 | R82: 4.95 | S82: 200 | T82: 0
A83: ArchM2 | B83: 50 | C83: 4393.2 | D83: 144.69 | E83: 3863.2 | F83: 92.34698795 | G83: 55.744 | H83: 97.552 | I83: 830 | J83: 22.68 | K83: 2.98 | L83: 0.2064 | M83: 2.72 | N83: 119 | O83: 1.134 | P83: 106.2 | Q83: 27.7 | R83: 5.04 | S83: 200 | T83: 0

Sheet Knight_Status
A1: 초기시작 | B1: 4 | C1: 12 | D1: 15 | E1: 6 | F1: 3 | I1: 0.4 | J1: 1.2 | K1: 1.5 | L1: 0.6 | M1: 0.3 | P1: 0.4 | Q1: 1.2 | R1: 1.5 | S1: 0.6 | T1: 0.3
A2: Knight | B2: =VLOOKUP($A2,Class_Status!$B$3:$G$25,2,0) -> 0.3 | C2: =VLOOKUP($A2,Class_Status!$B$3:$G$25,3,0) -> 1 | D2: =VLOOKUP($A2,Class_Status!$B$3:$G$25,4,0) -> 1 | E2: =VLOOKUP($A2,Class_Status!$B$3:$G$25,5,0) -> 0.5 | F2: =VLOOKUP($A2,Class_Status!$B$3:$G$25,6,0) -> 0.2 | H2: KntM1 | I2: =VLOOKUP($H2,Class_Status!$B$3:$G$25,2,0) -> 0.4 | J2: =VLOOKUP($H2,Class_Status!$B$3:$G$25,3,0) -> 1.2 | K2: =VLOOKUP($H2,Class_Status!$B$3:$G$25,4,0) -> 1.5 | L2: =VLOOKUP($H2,Class_Status!$B$3:$G$25,5,0) -> 0.6 | M2: =VLOOKUP($H2,Class_Status!$B$3:$G$25,6,0) -> 0.3 | O2: KntM2 | P2: =VLOOKUP($O2,Class_Status!$B$3:$G$25,2,0) -> 1 | Q2: =VLOOKUP($O2,Class_Status!$B$3:$G$25,3,0) -> 1 | R2: =VLOOKUP($O2,Class_Status!$B$3:$G$25,4,0) -> 1 | S2: =VLOOKUP($O2,Class_Status!$B$3:$G$25,5,0) -> 1 | T2: =VLOOKUP($O2,Class_Status!$B$3:$G$25,6,0) -> 1
A3: Knight | B3: =SUM(B1:B2) -> 4.3 | C3: =SUM(C1:C2) -> 13 | D3: =SUM(D1:D2) -> 16 | E3: =SUM(E1:E2) -> 6.5 | F3: =SUM(F1:F2) -> 3.2 | H3: KntM1 | I3: =B24 -> 10 | J3: =C24 -> 32 | K3: =D24 -> 35 | L3: =E24 -> 16 | M3: =F24 -> 7 | O3: KntM2 | P3: =SUM(P1:P2) -> 1.4 | Q3: =SUM(Q1:Q2) -> 2.2 | R3: =SUM(R1:R2) -> 2.5 | S3: =SUM(S1:S2) -> 1.6 | T3: =SUM(T1:T2) -> 1.3
A4: Lvl | B4: P_Str | C4: P_Sta | D4: P_Agil | E4: P_Int | F4: P_Wis | H4: Lvl | I4: P_Str | J4: P_Sta | K4: P_Agil | L4: P_Int | M4: P_Wis | O4: Lvl | P4: P_Str | Q4: P_Sta | R4: P_Agil | S4: P_Int | T4: P_Wis
A5: 1 | B5: =B3 -> 4.3 | C5: =C3 -> 13 | D5: =D3 -> 16 | E5: =E3 -> 6.5 | F5: =F3 -> 3.2 | H5: 21 | I5: =I3+I$2 -> 10.4 | J5: =J3+J$2 -> 33.2 | K5: =K3+K$2 -> 36.5 | L5: =L3+L$2 -> 16.6 | M5: =M3+M$2 -> 7.3 | O5: 21 | P5: =B24+P3 -> 11.4 | Q5: =C24+Q3 -> 34.2 | R5: =D24+R3 -> 37.5 | S5: =E24+S3 -> 17.6 | T5: =F24+T3 -> 8.3
A6: 2 | B6: =B5+B$2 -> 4.6 | C6: =C5+C$2 -> 14 | D6: =D5+D$2 -> 17 | E6: =E5+E$2 -> 7 | F6: =F5+F$2 -> 3.4 | H6: 22 | I6: =I5+I$2 -> 10.8 | J6: =J5+J$2 -> 34.4 | K6: =K5+K$2 -> 38 | L6: =L5+L$2 -> 17.2 | M6: =M5+M$2 -> 7.6 | O6: 22 | P6: =P5+P$3 -> 12.8 | Q6: =Q5+Q$3 -> 36.4 | R6: =R5+R$3 -> 40 | S6: =S5+S$3 -> 19.2 | T6: =T5+T$3 -> 9.6
A7: 3 | B7: =B6+B$2 -> 4.9 | C7: =C6+C$2 -> 15 | D7: =D6+D$2 -> 18 | E7: =E6+E$2 -> 7.5 | F7: =F6+F$2 -> 3.6 | H7: 23 | I7: =I6+I$2 -> 11.2 | J7: =J6+J$2 -> 35.6 | K7: =K6+K$2 -> 39.5 | L7: =L6+L$2 -> 17.8 | M7: =M6+M$2 -> 7.9 | O7: 23 | P7: 14.2 | Q7: 38.6 | R7: 42.5 | S7: 20.8 | T7: 10.9
A8: 4 | B8: 5.2 | C8: 16 | D8: 19 | E8: 8 | F8: 3.8 | H8: 24 | I8: 11.6 | J8: 36.8 | K8: 41 | L8: 18.4 | M8: 8.2 | O8: 24 | P8: 15.6 | Q8: 40.8 | R8: 45 | S8: 22.4 | T8: 12.2
A9: 5 | B9: 5.5 | C9: 17 | D9: 20 | E9: 8.5 | F9: 4 | H9: 25 | I9: 12 | J9: 38 | K9: 42.5 | L9: 19 | M9: 8.5 | O9: 25 | P9: 17 | Q9: 43 | R9: 47.5 | S9: 24 | T9: 13.5
A10: 6 | B10: 5.8 | C10: 18 | D10: 21 | E10: 9 | F10: 4.2 | H10: 26 | I10: 12.4 | J10: 39.2 | K10: 44 | L10: 19.6 | M10: 8.8 | O10: 26 | P10: 18.4 | Q10: 45.2 | R10: 50 | S10: 25.6 | T10: 14.8
A11: 7 | B11: 6.1 | C11: 19 | D11: 22 | E11: 9.5 | F11: 4.4 | H11: 27 | I11: 12.8 | J11: 40.4 | K11: 45.5 | L11: 20.2 | M11: 9.1 | O11: 27 | P11: 19.8 | Q11: 47.4 | R11: 52.5 | S11: 27.2 | T11: 16.1
A12: 8 | B12: 6.4 | C12: 20 | D12: 23 | E12: 10 | F12: 4.6 | H12: 28 | I12: 13.2 | J12: 41.6 | K12: 47 | L12: 20.8 | M12: 9.4 | O12: 28 | P12: 21.2 | Q12: 49.6 | R12: 55 | S12: 28.8 | T12: 17.4
A13: 9 | B13: 6.7 | C13: 21 | D13: 24 | E13: 10.5 | F13: 4.8 | H13: 29 | I13: 13.6 | J13: 42.8 | K13: 48.5 | L13: 21.4 | M13: 9.7 | O13: 29 | P13: 22.6 | Q13: 51.8 | R13: 57.5 | S13: 30.4 | T13: 18.7
A14: 10 | B14: 7 | C14: 22 | D14: 25 | E14: 11 | F14: 5 | H14: 30 | I14: 14 | J14: 44 | K14: 50 | L14: 22 | M14: 10 | O14: 30 | P14: 24 | Q14: 54 | R14: 60 | S14: 32 | T14: 20
A15: 11 | B15: 7.3 | C15: 23 | D15: 26 | E15: 11.5 | F15: 5.2 | H15: 31 | I15: 14.4 | J15: 45.2 | K15: 51.5 | L15: 22.6 | M15: 10.3 | O15: 31 | P15: 25.4 | Q15: 56.2 | R15: 62.5 | S15: 33.6 | T15: 21.3
A16: 12 | B16: 7.6 | C16: 24 | D16: 27 | E16: 12 | F16: 5.4 | H16: 32 | I16: 14.8 | J16: 46.4 | K16: 53 | L16: 23.2 | M16: 10.6 | O16: 32 | P16: 26.8 | Q16: 58.4 | R16: 65 | S16: 35.2 | T16: 22.6
A17: 13 | B17: 7.9 | C17: 25 | D17: 28 | E17: 12.5 | F17: 5.6 | H17: 33 | I17: 15.2 | J17: 47.6 | K17: 54.5 | L17: 23.8 | M17: 10.9 | O17: 33 | P17: 28.2 | Q17: 60.6 | R17: 67.5 | S17: 36.8 | T17: 23.9
A18: 14 | B18: 8.2 | C18: 26 | D18: 29 | E18: 13 | F18: 5.8 | H18: 34 | I18: 15.6 | J18: 48.8 | K18: 56 | L18: 24.4 | M18: 11.2 | O18: 34 | P18: 29.6 | Q18: 62.8 | R18: 70 | S18: 38.4 | T18: 25.2
A19: 15 | B19: 8.5 | C19: 27 | D19: 30 | E19: 13.5 | F19: 6 | H19: 35 | I19: 16 | J19: 50 | K19: 57.5 | L19: 25 | M19: 11.5 | O19: 35 | P19: 31 | Q19: 65 | R19: 72.5 | S19: 40 | T19: 26.5
A20: 16 | B20: 8.8 | C20: 28 | D20: 31 | E20: 14 | F20: 6.2 | H20: 36 | I20: 16.4 | J20: 51.2 | K20: 59 | L20: 25.6 | M20: 11.8 | O20: 36 | P20: 32.4 | Q20: 67.2 | R20: 75 | S20: 41.6 | T20: 27.8
A21: 17 | B21: 9.1 | C21: 29 | D21: 32 | E21: 14.5 | F21: 6.4 | H21: 37 | I21: 16.8 | J21: 52.4 | K21: 60.5 | L21: 26.2 | M21: 12.1 | O21: 37 | P21: 33.8 | Q21: 69.4 | R21: 77.5 | S21: 43.2 | T21: 29.1
A22: 18 | B22: 9.4 | C22: 30 | D22: 33 | E22: 15 | F22: 6.6 | H22: 38 | I22: 17.2 | J22: 53.6 | K22: 62 | L22: 26.8 | M22: 12.4 | O22: 38 | P22: 35.2 | Q22: 71.6 | R22: 80 | S22: 44.8 | T22: 30.4
A23: 19 | B23: 9.7 | C23: 31 | D23: 34 | E23: 15.5 | F23: 6.8 | H23: 39 | I23: 17.6 | J23: 54.8 | K23: 63.5 | L23: 27.4 | M23: 12.7 | O23: 39 | P23: 36.6 | Q23: 73.8 | R23: 82.5 | S23: 46.4 | T23: 31.7
A24: 20 | B24: 10 | C24: 32 | D24: 35 | E24: 16 | F24: 7 | G24: =SUM(B24:F24) -> 100 | H24: 40 | I24: 18 | J24: 56 | K24: 65 | L24: 28 | M24: 13 | O24: 40 | P24: 38 | Q24: 76 | R24: 85 | S24: 48 | T24: 33
H25: 41 | I25: 18.4 | J25: 57.2 | K25: 66.5 | L25: 28.6 | M25: 13.3 | O25: 41 | P25: 39.4 | Q25: 78.2 | R25: 87.5 | S25: 49.6 | T25: 34.3
B26: 최소 공격력 | C26: 최대 생명력 | D26: 최소 공격력 | E26: 최소 공격력 | F26: 생명력회복 | H26: 42 | I26: 18.8 | J26: 58.4 | K26: 68 | L26: 29.2 | M26: 13.6 | O26: 42 | P26: 40.8 | Q26: 80.4 | R26: 90 | S26: 51.2 | T26: 35.6
B27: 최대 공격력 | C27: 생명력회복 | D27: 최대 공격력 | E27: 최대 공격력 | F27: 활력도 | H27: 43 | I27: 19.2 | J27: 59.6 | K27: 69.5 | L27: 29.8 | M27: 13.9 | O27: 43 | P27: 42.2 | Q27: 82.6 | R27: 92.5 | S27: 52.8 | T27: 36.9
B28: 치명타 저항 | C28: 피해 감소 | D28: 공격속도 | E28: 치명타 세기 | F28: 치명타 세기 | H28: 44 | I28: 19.6 | J28: 60.8 | K28: 71 | L28: 30.4 | M28: 14.2 | O28: 44 | P28: 43.6 | Q28: 84.8 | R28: 95 | S28: 54.4 | T28: 38.2
D29: 치명타 확률 | E29: 적중도 | F29: 상태이상저항 | H29: 45 | I29: 20 | J29: 62 | K29: 72.5 | L29: 31 | M29: 14.5 | O29: 45 | P29: 45 | Q29: 87 | R29: 97.5 | S29: 56 | T29: 39.5
D30: 방어력 | E30: 재사용시간 | F30: 치명타 저항 | H30: 46 | I30: 20.4 | J30: 63.2 | K30: 74 | L30: 31.6 | M30: 14.8 | O30: 46 | P30: 46.4 | Q30: 89.2 | R30: 100 | S30: 57.6 | T30: 40.8
D31: 회피율 | F31: 재사용시간 | H31: 47 | I31: 20.8 | J31: 64.4 | K31: 75.5 | L31: 32.2 | M31: 15.1 | O31: 47 | P31: 47.8 | Q31: 91.4 | R31: 102.5 | S31: 59.2 | T31: 42.1
D32: 적중도 | H32: 48 | I32: 21.2 | J32: 65.6 | K32: 77 | L32: 32.8 | M32: 15.4 | O32: 48 | P32: 49.2 | Q32: 93.6 | R32: 105 | S32: 60.8 | T32: 43.4
H33: 49 | I33: 21.6 | J33: 66.8 | K33: 78.5 | L33: 33.4 | M33: 15.7 | O33: 49 | P33: 50.6 | Q33: 95.8 | R33: 107.5 | S33: 62.4 | T33: 44.7
H34: 50 | I34: 22 | J34: 68 | K34: 80 | L34: 34 | M34: 16 | N34: =SUM(I34:M34) -> 220 | O34: 50 | P34: 52 | Q34: 98 | R34: 110 | S34: 64 | T34: 46
I36: P_Str | J36: P_Sta | K36: P_Agil | L36: P_Int | M36: P_Wis | P36: P_Str | Q36: P_Sta | R36: P_Agil | S36: P_Int | T36: P_Wis
I38: 최소 공격력 | J38: 최대 생명력 | K38: 최소 공격력 | L38: 최소 공격력 | M38: 생명력회복 | P38: 최소 공격력 | Q38: 최대 생명력 | R38: 최소 공격력 | S38: 최소 공격력 | T38: 생명력회복
I39: 최대 공격력 | J39: 생명력회복 | K39: 최대 공격력 | L39: 최대 공격력 | M39: 활력도 | P39: 최대 공격력 | Q39: 생명력회복 | R39: 최대 공격력 | S39: 최대 공격력 | T39: 활력도
I40: 치명타 저항 | J40: 피해 감소 | K40: 공격속도 | L40: 치명타 세기 | M40: 치명타 세기 | P40: 치명타 저항 | Q40: 피해 감소 | R40: 공격속도 | S40: 치명타 세기 | T40: 치명타 세기
K41: 치명타 확률 | L41: 적중도 | M41: 상태이상저항 | R41: 치명타 확률 | S41: 적중도 | T41: 상태이상저항
K42: 방어력 | L42: 재사용시간 | M42: 치명타 저항 | R42: 방어력 | S42: 재사용시간 | T42: 치명타 저항
K43: 회피율 | M43: 재사용시간 | R43: 회피율 | T43: 재사용시간
K44: 적중도 | R44: 적중도

Sheet Knight_Simul
A1: 클래스 | B1: 레벨 | C1: 최대 생명력 | D1: 생명력회복 | E1: 활력도 | F1: 초당평균공격력 | G1: 최소 공격력 | H1: 최대 공격력 | I1: 공격속도 | J1: 치명타 확률 | K1: 치명타 세기 | L1: 치명타저항 | M1: 피해감소 | N1: 방어력 | O1: 회피율 | P1: 적중도 | Q1: 상태이상저항 | R1: 스킬쿨타임감소 | S1: 이동속도 | T1: 신성력 | U1: 1
A2: Knight | B2: 1 | C2: =(B2^2*0.7)+Knight_Status!$C5*(Knight_Status!$C5*Class_Compare!$D$17)/2+100 -> 151.4 | D2: =(U2)*(Class_Compare!$E$17*(50+1.5*(0.8*Knight_Status!C5+0.2*Knight_Status!F5))) -> 40.4352 | E2: =Knight_Status!F5*(Knight_Status!F5*Class_Compare!$O$17)+100 -> 103.072 | F2: =((G2+H2)/2)*(1000/(I2)) -> 35.37913043 | G2: =Class_Compare!$B$17*(100+1.2*(0.6*Knight_Status!B5+0.2*Knight_Status!D5+0.2*Knight_Status!E5)) -> 32.5488 | H2: =Class_Compare!$C$17*(100+1.2*(0.6*Knight_Status!B5+0.2*Knight_Status!D5+0.2*Knight_Status!E5)) -> 32.5488 | I2: =(Class_Compare!$G$17*1000)-(Knight_Status!D5*5) -> 920 | J2: =(Class_Compare!$I$17*1000+Knight_Status!D5)/50 -> 20.32 | K2: =2+(Class_Compare!$L$17)+(Knight_Status!E5/100) -> 2.665 | L2: =(0.2*Knight_Status!B5+0.8*Knight_Status!F5)/250 -> 0.01368 | M2: =(Knight_Status!C5/25) -> 0.52 | N2: =Class_Compare!$H$17*(0.2*(Knight_Status!D5*35)) -> 100.8 | O2: =(Class_Compare!$I$17*1000+Knight_Status!D5)/1000 -> 1.016 | P2: =(Class_Compare!$J$17*1000+Knight_Status!D5+Knight_Status!E5)/10 -> 102.25 | Q2: =((Knight_Status!F5*Class_Compare!$M$17)+5)/2 -> 2.98 | R2: =((Knight_Status!E5+Knight_Status!F5)*Class_Compare!$N$17)/5 -> 0.582 | S2: 200 | T2: 0 | U2: =$U$1*(1+0.05*(B2/4)) -> 1.0125
A3: Knight | B3: 2 | C3: =(B3^2*0.7)+Knight_Status!$C6*(Knight_Status!$C6*Class_Compare!$D$17)/2+100 -> 161.6 | D3: =(U3)*(Class_Compare!$E$17*(50+1.5*(0.8*Knight_Status!C6+0.2*Knight_Status!F6))) -> 41.7093 | E3: =Knight_Status!F6*(Knight_Status!F6*Class_Compare!$O$17)+100 -> 103.468 | F3: =((G3+H3)/2)*(1000/(I3)) -> 36.10360656 | G3: =Class_Compare!$B$17*(100+1.2*(0.6*Knight_Status!B6+0.2*Knight_Status!D6+0.2*Knight_Status!E6)) -> 32.7216 | H3: =Class_Compare!$C$17*(100+1.2*(0.5*Knight_Status!B6+0.35*Knight_Status!D6+0.15*Knight_Status!E6)) -> 33.348 | I3: =(Class_Compare!$G$17*1000)-(Knight_Status!D6*5) -> 915 | J3: =(Class_Compare!$I$17*1000+Knight_Status!D6)/50 -> 20.34 | K3: =2+(Class_Compare!$L$17)+(Knight_Status!E6/100) -> 2.67 | L3: =(0.2*Knight_Status!B6+0.8*Knight_Status!F6)/250 -> 0.01456 | M3: =(Knight_Status!C6/25) -> 0.56 | N3: =Class_Compare!$H$17*(0.2*(Knight_Status!D6*35)) -> 107.1 | O3: =(Class_Compare!$I$17*1000+Knight_Status!D6)/1000 -> 1.017 | P3: =(Class_Compare!$J$17*1000+Knight_Status!D6+Knight_Status!E6)/10 -> 102.4 | Q3: =((Knight_Status!F6*Class_Compare!$M$17)+5)/2 -> 3.01 | R3: =((Knight_Status!E6+Knight_Status!F6)*Class_Compare!$N$17)/5 -> 0.624 | S3: 200 | T3: 0 | U3: =$U$1*(1+0.05*(B3/4)) -> 1.025
A4: Knight | B4: 3 | C4: =(B4^2*0.7)+Knight_Status!$C7*(Knight_Status!$C7*Class_Compare!$D$17)/2+100 -> 173.8 | D4: =(U4)*(Class_Compare!$E$17*(50+1.5*(0.8*Knight_Status!C7+0.2*Knight_Status!F7))) -> 43.0023 | E4: =Knight_Status!F7*(Knight_Status!F7*Class_Compare!$O$17)+100 -> 103.888 | F4: 36.51065934 | G4: =Class_Compare!$B$17*(100+1.2*(0.6*Knight_Status!B7+0.2*Knight_Status!D7+0.2*Knight_Status!E7)) -> 32.8944 | H4: =Class_Compare!$C$17*(100+1.2*(0.5*Knight_Status!B7+0.35*Knight_Status!D7+0.15*Knight_Status!E7)) -> 33.555 | I4: =(Class_Compare!$G$17*1000)-(Knight_Status!D7*5) -> 910 | J4: =(Class_Compare!$I$17*1000+Knight_Status!D7)/50 -> 20.36 | K4: =2+(Class_Compare!$L$17)+(Knight_Status!E7/100) -> 2.675 | L4: =(0.2*Knight_Status!B7+0.8*Knight_Status!F7)/250 -> 0.01544 | M4: =(Knight_Status!C7/25) -> 0.6 | N4: =Class_Compare!$H$17*(0.2*(Knight_Status!D7*35)) -> 113.4 | O4: =(Class_Compare!$I$17*1000+Knight_Status!D7)/1000 -> 1.018 | P4: =(Class_Compare!$J$17*1000+Knight_Status!D7+Knight_Status!E7)/10 -> 102.55 | Q4: =((Knight_Status!F7*Class_Compare!$M$17)+5)/2 -> 3.04 | R4: =((Knight_Status!E7+Knight_Status!F7)*Class_Compare!$N$17)/5 -> 0.666 | S4: 200 | T4: 0 | U4: 1.0375
A5: Knight | B5: 4 | C5: =(B5^2*0.7)+Knight_Status!$C8*(Knight_Status!$C8*Class_Compare!$D$17)/2+100 -> 188 | D5: =(U5)*(Class_Compare!$E$17*(50+1.5*(0.8*Knight_Status!C8+0.2*Knight_Status!F8))) -> 44.3142 | E5: =Knight_Status!F8*(Knight_Status!F8*Class_Compare!$O$17)+100 -> 104.332 | F5: 36.92220994 | G5: =Class_Compare!$B$17*(100+1.2*(0.6*Knight_Status!B8+0.2*Knight_Status!D8+0.2*Knight_Status!E8)) -> 33.0672 | H5: =Class_Compare!$C$17*(100+1.2*(0.5*Knight_Status!B8+0.35*Knight_Status!D8+0.15*Knight_Status!E8)) -> 33.762 | I5: =(Class_Compare!$G$17*1000)-(Knight_Status!D8*5) -> 905 | J5: =(Class_Compare!$I$17*1000+Knight_Status!D8)/50 -> 20.38 | K5: =2+(Class_Compare!$L$17)+(Knight_Status!E8/100) -> 2.68 | L5: =(0.2*Knight_Status!B8+0.8*Knight_Status!F8)/250 -> 0.01632 | M5: =(Knight_Status!C8/25) -> 0.64 | N5: =Class_Compare!$H$17*(0.2*(Knight_Status!D8*35)) -> 119.7 | O5: =(Class_Compare!$I$17*1000+Knight_Status!D8)/1000 -> 1.019 | P5: =(Class_Compare!$J$17*1000+Knight_Status!D8+Knight_Status!E8)/10 -> 102.7 | Q5: =((Knight_Status!F8*Class_Compare!$M$17)+5)/2 -> 3.07 | R5: =((Knight_Status!E8+Knight_Status!F8)*Class_Compare!$N$17)/5 -> 0.708 | S5: 200 | T5: 0 | U5: 1.05
A6: Knight | B6: 5 | C6: =(B6^2*0.7)+Knight_Status!$C9*(Knight_Status!$C9*Class_Compare!$D$17)/2+100 -> 204.2 | D6: =(U6)*(Class_Compare!$E$17*(50+1.5*(0.8*Knight_Status!C9+0.2*Knight_Status!F9))) -> 45.645 | E6: =Knight_Status!F9*(Knight_Status!F9*Class_Compare!$O$17)+100 -> 104.8 | F6: 37.33833333 | G6: =Class_Compare!$B$17*(100+1.2*(0.6*Knight_Status!B9+0.2*Knight_Status!D9+0.2*Knight_Status!E9)) -> 33.24 | H6: =Class_Compare!$C$17*(100+1.2*(0.5*Knight_Status!B9+0.35*Knight_Status!D9+0.15*Knight_Status!E9)) -> 33.969 | I6: =(Class_Compare!$G$17*1000)-(Knight_Status!D9*5) -> 900 | J6: =(Class_Compare!$I$17*1000+Knight_Status!D9)/50 -> 20.4 | K6: =2+(Class_Compare!$L$17)+(Knight_Status!E9/100) -> 2.685 | L6: =(0.2*Knight_Status!B9+0.8*Knight_Status!F9)/250 -> 0.0172 | M6: =(Knight_Status!C9/25) -> 0.68 | N6: =Class_Compare!$H$17*(0.2*(Knight_Status!D9*35)) -> 126 | O6: =(Class_Compare!$I$17*1000+Knight_Status!D9)/1000 -> 1.02 | P6: =(Class_Compare!$J$17*1000+Knight_Status!D9+Knight_Status!E9)/10 -> 102.85 | Q6: =((Knight_Status!F9*Class_Compare!$M$17)+5)/2 -> 3.1 | R6: =((Knight_Status!E9+Knight_Status!F9)*Class_Compare!$N$17)/5 -> 0.75 | S6: 200 | T6: 0 | U6: 1.0625
A7: Knight | B7: 6 | C7: =(B7^2*0.7)+Knight_Status!$C10*(Knight_Status!$C10*Class_Compare!$D$17)/2+100 -> 222.4 | D7: =(U7)*(Class_Compare!$E$17*(50+1.5*(0.8*Knight_Status!C10+0.2*Knight_Status!F10))) -> 46.9947 | E7: =Knight_Status!F10*(Knight_Status!F10*Class_Compare!$O$17)+100 -> 105.292 | F7: 37.75910615 | G7: =Class_Compare!$B$17*(100+1.2*(0.6*Knight_Status!B10+0.2*Knight_Status!D10+0.2*Knight_Status!E10)) -> 33.4128 | H7: =Class_Compare!$C$17*(100+1.2*(0.5*Knight_Status!B10+0.35*Knight_Status!D10+0.15*Knight_Status!E10)) -> 34.176 | I7: =(Class_Compare!$G$17*1000)-(Knight_Status!D10*5) -> 895 | J7: =(Class_Compare!$I$17*1000+Knight_Status!D10)/50 -> 20.42 | K7: =2+(Class_Compare!$L$17)+(Knight_Status!E10/100) -> 2.69 | L7: =(0.2*Knight_Status!B10+0.8*Knight_Status!F10)/250 -> 0.01808 | M7: =(Knight_Status!C10/25) -> 0.72 | N7: =Class_Compare!$H$17*(0.2*(Knight_Status!D10*35)) -> 132.3 | O7: =(Class_Compare!$I$17*1000+Knight_Status!D10)/1000 -> 1.021 | P7: =(Class_Compare!$J$17*1000+Knight_Status!D10+Knight_Status!E10)/10 -> 103 | Q7: =((Knight_Status!F10*Class_Compare!$M$17)+5)/2 -> 3.13 | R7: =((Knight_Status!E10+Knight_Status!F10)*Class_Compare!$N$17)/5 -> 0.792 | S7: 200 | T7: 0 | U7: 1.075
